Workbook

Sheet Form
B20: =List!$C$254 -> Vítejte v aplikaci AVENTPLAN | I20: =List!$C$204&": " -> Verze: | J20: 2.8.2
B22: =List!$C$364 -> Před prvním použitím doporučujeme zadat identifikační údaje pro objednávky a nastavit hmotnosti materiálů
B25: =" "&List!$C$145 -> Základní údaje | E25: =" "&List!$C$370 -> Tabulka hmotností | H25: =" "&List!$C$381 -> Přejít k plánování výklopů
B26: =List!$C$365 -> Údaje pro objednávku, zadání slevy od prodejce | E26: =List!$C$366 -> Hmotnosti materiálů, skla a alurámečků
I27: =" "&List!$C$137 -> Nápověda
C98: =List!$C$234 -> Formulář pro identifikační údaje
C99: =List!$C$235 -> Odběratel
C101: =List!$C$236 -> Adresa
C105: =List!$C$237 -> Dodací adresa
C109: =List!$C$238 -> IČO, DIČ
C113: =List!$C$239 -> Telefon, fax, e-mail
D118: =List!$C$208&" [%]: " -> Sleva od prodejce [%]:
C121: =List!$C$257 -> Vyplňte identifikační údaje a výši slevy od prodejce.
C122: =List!$C$259 -> Identifikační údaje se budou zobrazovat v objednávkách
C123: =List!$C$258 -> Po vyplnění se vraťte na úvod a subor uložte nebo zavřete s potvrzením změn.
C125: =List!$C$150 -> Zpět na úvod | H125: =" "&List!$C$151 -> Zpět na plánování
J198: =List!$C$370 -> Tabulka hmotností
J199: =List!$C$379&" " -> Můžete nastavit hodnoty pro všechny výklopy nebo můžete měnit nastavení až při plánování jednotlivých výklopů.
J200: =List!$C$222&" [kg/m3]" -> Objemová hmotnost materiálu [kg/m3]
I201: =List!$C$367 -> Přednastavená | J201: =List!$C$369 -> Vlastní
H202: =List!$C$84&" " -> MDF | I202: =Price!$G230 -> 760
H203: =List!$C$85&" " -> Dřevotříska | I203: =Price!$G231 -> 680
H204: =List!$C$363&" " -> Sklo | I204: =Price!$G232 -> 2500
D205: =List!$C$98 -> Pro přesné hodnoty se obraťte na dodavatele materiálu
J207: Hmotnost alurámečků [kg/bm]
I208: =List!$C$367 -> Přednastavená | J208: =List!$C$369 -> Vlastní
G209: =List!$C$17&" "&List!$C$373&" " -> Široké alurámečky S vloženým sklem | I209: =Price!$G238 -> 0.62
G210: =List!$C$17&" "&List!$C$374&" " -> Široké alurámečky S naloženým nebo nalepeným sklem | I210: =Price!$G239 -> 0.63
H211: =List!$C$377&" [kg/set] * " -> Hmotnost spojovacího materiálu [kg/set] * | I211: =Price!$G240 -> 0.61
G214: =List!$C$19&" "&List!$C$375&" " -> Úzké alurámečky S vloženým sklem | I214: =Price!$G243 -> 0.31
G215: =List!$C$19&" "&List!$C$376&" " -> Úzké alurámečky S naloženým nebo nalepeným sklem | I215: =Price!$G244 -> 0.32
H216: =List!$C$377&" [kg/set] * " -> Hmotnost spojovacího materiálu [kg/set] * | I216: =Price!$G245 -> 0.46
D217: =List!$C$98 -> Pro přesné hodnoty se obraťte na dodavatele materiálu
F219: =" * "& List!$C$378&" " -> * Rohové spojky, šrouby, těsnění pro jeden rámeček
J221: =List!$C$380&" " -> Chcete-li změny zachovat i pro příští použití, vraťte se na úvod a soubor uložte.
E224: =List!$C$150 -> Zpět na úvod | H224: =" "&List!$C$151 -> Zpět na plánování
B297: =List!C209 -> Ceník | E297: List | H297: =List!$C$150 -> Zpět na úvod
C397: =" "&List!C136 -> Úvod plánování
C399: =List!$C$364&":" -> Před prvním použitím doporučujeme zadat identifikační údaje pro objednávky a nastavit hmotnosti materiálů :
C400: ="1. "&List!$C$256&" ' "&List!$C$145&" ' " -> 1. Přejděte na ' Základní údaje '
C401: ="2. "&List!$C$257 -> 2. Vyplňte identifikační údaje a výši slevy od prodejce.
C402: ="3. "&List!$C$258 -> 3. Po vyplnění se vraťte na úvod a subor uložte nebo zavřete s potvrzením změn.
C403: =" "&List!$C$259 -> Identifikační údaje se budou zobrazovat v objednávkách
C411: =List!$C$270&":" -> Legenda:
C413: =" "&List!C271 -> Změna zobrazovaných hodnot
C414: =" "&List!C272 -> Výpočet hmotnosti
C416: =" "&List!C273 -> Upozornění
C417: =" "&List!C274 -> Informace a vysvětlivky
C418: =" "&List!C275 -> Tip
C419: =" "&List!C276 -> Nápověda
C420: =" "&List!C277 -> Odkazy na brožury, montážní návody a instrukážní videa
C422: =" "&List!C278 -> Soubory PDF
G427: =List!$C$149 -> Zpět

Sheet Menu
B3: =" AVENTOS"&" - "&List!C3 -> AVENTOS - systém výklopů
K6: =" "&List!$C$150 -> Zpět na úvod
K8: =" "&List!$C$145 -> Základní údaje
K9: =List!$C$365 -> Údaje pro objednávku, zadání slevy od prodejce
K12: =" "&List!$C$370 -> Tabulka hmotností
K13: =List!$C$366 -> Hmotnosti materiálů, skla a alurámečků
B15: AVENTOS HF | D15: AVENTOS HS | F15: AVENTOS HL
K16: =" "&List!$C$141 -> Doplňky
K18: =" "&List!$C$137 -> Nápověda
B25: AVENTOS HK top | D25: AVENTOS HK-S | F25: AVENTOS HK-XS
B27: =List!$C$40&" " -> Cenová hladina | F27: =IF($S$27=1,0,IF($S$27=2,Cen!$K$1,IF($S$27=3,$F$147,0))) -> 0 | H27: =List!$C$127&" * " -> Barva krytek * | Q27: 3 | S27: 1
C28: =IF(S27=2,List!$C$46&" ["&List!$C$145&"] ",IF(S27=3,IF(F27=0,List!$C$44&" ",List!$C$45&" ")," ")) -> 
F29: =IF($S$27=3,List!$C$47&" "," ") ->  | L29: =List!$C$222&" [kg/m3]" -> Objemová hmotnost materiálu [kg/m3] | Q29: kryt. | S29: ceny
B30: =List!$C$207&":" -> Prodejce: | K30: =Form!H202 -> MDF | L30: =Q203 -> 760 | Q30: =List!$C$128 -> Světle šedá (HG/T) | S30: =List!$C$41 -> Základní ceny
B31: =IF(Price!I7<>0," "&Price!I7," ") ->  | K31: =Form!H203 -> Dřevotříska | L31: =Q204 -> 680 | Q31: =List!$C$129 -> Tmavě šedá (TGR) | S31: =List!$C$42 -> Nákupní ceny
B32: =IF(Price!I8<>0," "&Price!I8," ") ->  | K32: =Form!H204 -> Sklo | L32: =Q205 -> 2500 | Q32: =List!$C$130 -> Hedvábně bílá (SW/T) | S32: =List!$C$43 -> Se slevou
B33: =IF(Price!I9<>0," "&Price!I9," ") ->  | L33: =List!$C$180&" " -> Změnit
B34: =IF(Price!I10<>0," "&Price!I10," ") -> 
B35: =IF(Price!I11<>0," "&Price!I11," ") ->  | L35: =List!$C$17&" / "&List!$C$19 -> Široké alurámečky / Úzké alurámečky
B36: =IF(Price!I12<>0," "&Price!I12," ") ->  | L36: =List!$C$47&" " -> Nastavit | Q36: 2
B37: =IF(Price!I13<>0," "&Price!I13," ") -> 
B38: =IF(Price!I14<>0," "&Price!I14," ") -> 
D41: =List!$C$205&": " -> Platnost ceníku od: | E41: =Price!$I$4 -> 0 | K41: =List!$C$204&": " -> Verze: | L41: =Form!J20 -> 2.8.2
C43: =List!$C$10&" "&List!$C$11&" "&List!$C$218 -> Tato aplikace slouží k snadnějšímu objednávání kování AVENTOS. Výsledky nemusí být přesné, zvláště při použití výpočtu hmotnosti. Firma Blum ani prodejci neručí za jejich správnost.
C46: ="* "&List!C388 -> * Výběr barvy ovlivní i barvu pístů, popř. adaptérů TIP-ON
E147: =List!$C$44&" [%] " -> Zadejte výši slevy [%]
E151: =List!$C$150 -> Zpět na úvod
Q203: =IF(Form!$J202>0,Form!$J202,Form!$I202) -> 760
Q204: =IF(Form!$J203>0,Form!$J203,Form!$I203) -> 680
Q205: =IF(Form!$J204>0,Form!$J204,Form!$I204) -> 2500
Q215: =IF(Form!$J209>0,Form!$J209,Form!$I209) -> 0.62
Q216: =IF(Form!$J210>0,Form!$J210,Form!$I210) -> 0.63
Q217: =IF(Form!$J211>0,Form!$J211,Form!$I211) -> 0.61
Q220: =IF(Form!$J214>0,Form!$J214,Form!$I214) -> 0.31
Q221: =IF(Form!$J215>0,Form!$J215,Form!$I215) -> 0.32
Q222: =IF(Form!$J216>0,Form!$J216,Form!$I216) -> 0.46
C403: =" "&List!C136 -> Úvod plánování
C405: =List!C261 -> Na úvodní obrazovce vyberte, jaké ceny se budou zobrazovat:
C406: =" - "&List!C262 -> - Základní (ceníkové) ceny bez slevy
C407: =" - "&List!$C$42&" ("&List!$C$46&")" -> - Nákupní ceny (Ceny se slevou od prodejce)
C408: =" - "&List!$C$45 -> - Ceny s volitelnou slevou
C409: =" "&List!$C$263 -> Zadáte-li slevu s mínusovým znamínkem, zobrazí se ceny o tuto hodnotu vyšší.
C411: =List!C265 -> Proveďte volbu barvy krytek
C412: =List!C266 -> Volba ovlivní barvu krytek u všech vybraných zdvihačů.
C414: =List!C268 -> Kliknutím na obrázek nebo popis přejděte na požadovaný typ zdvihače.
C417: =List!$C$270&":" -> Legenda:
C419: =" "&List!C271 -> Změna zobrazovaných hodnot
C420: =" "&List!C272 -> Výpočet hmotnosti
C422: =" "&List!C273 -> Upozornění
C423: =" "&List!C274 -> Informace a vysvětlivky
C424: =" "&List!C275 -> Tip
C425: =" "&List!C276 -> Nápověda
G433: =List!$C$149 -> Zpět
B496: =List!$C$135& " List" -> Jdi na List | E496: =List!$C$150 -> Zpět na úvod

Sheet HF
B3: AVENTOS HF | R3: =List!$C$135 -> Jdi na
R5: =" "&List!$C$136 -> Úvod plánování
E6: =" "&List!$C$72&" (KB)" -> Šířka korpusu (KB) | R6: =" "&List!$C$137 -> Nápověda
E7: =" "&List!$C$152&" 1800 mm" -> do 1800 mm
E8: =" "&List!$C$73&" (KH)" -> Výška korpusu (KH) | R8: AVENTOS HF
E9: 480 - 1040 mm | R9: AVENTOS HS
R10: AVENTOS HL
R11: AVENTOS HK top
R12: AVENTOS HK-S
B13: =List!$C$14 -> Dřevěná čela | R13: AVENTOS HK-XS
R16: =List!$C$141 -> Doplňky
R18: =" "&List!$C$139 -> Přehled korpusů
R19: =" "&List!$C$140 -> Objednávka
B23: =List!$C$17 -> Široké alurámečky | E23: =List!$C$15 -> Dřevěné čelo | H23: =List!$C$18 -> Široký alurámeček
E24: =List!$C$18 -> Široký alurámeček | H24: =List!$C$15 -> Dřevěné čelo
B34: =List!$C$19 -> Úzké alurámečky | E34: =List!$C$15 -> Dřevěné čelo | H34: =List!$C$20 -> Úzký alurámeček
E35: =List!$C$20 -> Úzký alurámeček | H35: =List!$C$15 -> Dřevěné čelo
L37: 2 | N37: 2 | P37: 2
B38: =List!$C$115&" " -> Horní závěsy | L38: záv. | N38: střed. | P38: podl.
B39: =List!$C$118&" " -> Středové závěsy | L39: EXPANDO | N39: EXPANDO | P39: EXPANDO
B40: =List!$C$121&" " -> Montážní podložky | L40: =List!$C$117 -> na vruty | N40: =List!$C$120 -> na vruty | P40: =List!$C$123 -> na vruty
C400: AVENTOS HF
C403: =List!$C$280 -> Vyberte požadovanou montážní techniku pro závěsy a podložky
C405: =List!$C$268 -> Kliknutím na obrázek nebo popis přejděte na požadovaný typ zdvihače.
H415: =List!$C$149 -> Zpět | J415: =List!$C$149 -> Zpět

Sheet HS
B3: AVENTOS HS | R3: =List!$C$135 -> Jdi na
R5: =" "&List!$C$136 -> Úvod plánování
R6: =" "&List!$C$137 -> Nápověda
B7: =List!$C$72&" (KB) " -> Šířka korpusu (KB) | D7: =" "&List!$C$152&" 1800 mm" -> do 1800 mm
B8: =List!$C$73&" (KH) " -> Výška korpusu (KH) | D8: 350 - 800 mm | R8: AVENTOS HF
R9: AVENTOS HS
R10: AVENTOS HL
R11: AVENTOS HK top
R12: AVENTOS HK-S
R13: AVENTOS HK-XS
R15: =List!$C$141 -> Doplňky
R17: =" "&List!$C$139 -> Přehled korpusů
R18: =" "&List!$C$140 -> Objednávka
B24: =List!$C$15 -> Dřevěné čelo | E24: =List!$C$18 -> Široký alurámeček | H24: =List!$C$20 -> Úzký alurámeček
B27: =List!$C$124&" " -> Čelní kování | K27: 1
K28: čelní kování
K29: EXPANDO
K30: =List!$C$126 -> na vruty
C401: AVENTOS HS
C404: =List!$C$310 -> Vyberte požadovanou montážní techniku pro čelní kování
C406: =List!$C$268 -> Kliknutím na obrázek nebo popis přejděte na požadovaný typ zdvihače.
H416: =List!$C$149 -> Zpět | J416: =List!$C$149 -> Zpět

Sheet HL
B3: AVENTOS HL | R3: =List!$C$135 -> Jdi na
R5: =" "&List!$C$136 -> Úvod plánování
R6: =" "&List!$C$137 -> Nápověda
B7: =List!$C$72&" (KB) " -> Šířka korpusu (KB) | D7: =" "&List!$C$152&" 1800 mm" -> do 1800 mm
B8: =List!$C$73&" (KH) " -> Výška korpusu (KH) | D8: 300 - 580 mm | R8: AVENTOS HF
R9: AVENTOS HS
R10: AVENTOS HL
R11: AVENTOS HK top
R12: AVENTOS HK-S
R13: AVENTOS HK-XS
R15: =List!$C$141 -> Doplňky
R17: =" "&List!$C$139 -> Přehled korpusů
R18: =" "&List!$C$140 -> Objednávka
R20: =" "&List!$C$356 -> Odstup čela
B24: =List!$C$15 -> Dřevěné čelo | E24: =List!$C$18 -> Široký alurámeček | H24: =List!$C$20 -> Úzký alurámeček
B27: =List!$C$124&" " -> Čelní kování | K27: 1
K28: čelní kování
K29: EXPANDO
K30: =List!$C$126 -> na vruty
B300: =List!$C$356 -> Odstup čela
B301: =List!$C$73 -> Výška korpusu | C301: =List!$C$354 -> Sada ramen | E301: A | F301: B
B302: 300 | C302: 20L3200 | E302: 159 | F302: 140.5
B303: 349 | C303: 20L3200 | E303: 159 | F303: 189.5
B304: 350 | C304: 20L3500 | E304: 209 | F304: 140.5
B305: 399 | C305: 20L3500 | E305: 209 | F305: 189.5
B306: 400 | C306: 20L3800 | E306: 259 | F306: 140.5
B307: 550 | C307: 20L3800 | E307: 259 | F307: 189.5
B308: 450 | C308: 20L3900 | E308: 309.5 | F308: 140.5
B309: 580 | C309: 20L3900 | E309: 309.5 | F309: 189.5
E315: =List!$C$149 -> Zpět
C399: AVENTOS HL
C402: =List!$C$310 -> Vyberte požadovanou montážní techniku pro čelní kování
C404: =List!$C$268 -> Kliknutím na obrázek nebo popis přejděte na požadovaný typ zdvihače.
H414: =List!$C$149 -> Zpět | J414: =List!$C$149 -> Zpět

Sheet HK
B3: AVENTOS HK top | R3: =List!$C$135 -> Jdi na
R5: =" "&List!$C$136 -> Úvod plánování
R6: =" "&List!$C$137 -> Nápověda
B7: =List!$C$72&" (KB) " -> Šířka korpusu (KB) | D7: =" "&List!$C$152&" 1800 mm" -> do 1800 mm
B8: =List!$C$73&" (KH) " -> Výška korpusu (KH) | D8: =" "&List!$C$152&" 600 mm *" -> do 600 mm * | R8: AVENTOS HF
R9: AVENTOS HS
R10: AVENTOS HL
R11: AVENTOS HK top
B12: ="* "&List!$C$211 -> * Z ergonomického hlediska doporučujeme maximální výšku korpusu 600mm. Dodržíte-li však hranici faktoru výkonnosti, můžete realizovat i vyšší výklopy. | R12: AVENTOS HK-S
R13: AVENTOS HK-XS
R15: =List!$C$141 -> Doplňky
R17: =" "&List!$C$139 -> Přehled korpusů
R18: =" "&List!$C$140 -> Objednávka
B24: =List!$C$15 -> Dřevěné čelo | E24: =List!$C$18 -> Široký alurámeček | H24: =List!$C$20 -> Úzký alurámeček
B27: =List!$C$124&" " -> Čelní kování | K27: 2 | M27: 1
B28: Provedení zdvihače** | K28: čelní kování | M28: provedení
K29: EXPANDO | M29: vruty
B30: ** Zvolte, jaký způsob montáže chcete: | K30: =List!$C$126 -> na vruty | M30: šrouby
B31: "vruty" - zdvihače s integrovanou šablonou (bez nutnosti rozměřování)
B32: "šrouby" - zdvihače s přednotovanými šrouby (nutné předvrtání)
C401: AVENTOS HK
C404: =List!$C$310 -> Vyberte požadovanou montážní techniku pro čelní kování
C406: =List!$C$268 -> Kliknutím na obrázek nebo popis přejděte na požadovaný typ zdvihače.
H416: =List!$C$149 -> Zpět | J416: =List!$C$149 -> Zpět

Sheet HKS
B3: AVENTOS HK-S | R3: =List!$C$135 -> Jdi na
R5: =" "&List!$C$136 -> Úvod plánování
R6: =" "&List!$C$137 -> Nápověda
B7: =List!$C$72&" (KB) " -> Šířka korpusu (KB) | D7: =" *" -> *
B8: =List!$C$73&" (KH) " -> Výška korpusu (KH) | D8: 190 - 600 mm | R8: AVENTOS HF
R9: AVENTOS HS
B10: ="* "&List!$C$214 -> * Vše záleží na hodnotě faktoru výkonnosti | R10: AVENTOS HL
R11: AVENTOS HK top
R12: AVENTOS HK-S
R13: AVENTOS HK-XS
R15: =List!$C$141 -> Doplňky
R17: =" "&List!$C$139 -> Přehled korpusů
R18: =" "&List!$C$140 -> Objednávka
B24: =List!$C$15 -> Dřevěné čelo | E24: =List!$C$18 -> Široký alurámeček | H24: =List!$C$20 -> Úzký alurámeček
B27: =List!$C$124&" " -> Čelní kování | K27: 2 | N27: 2
K28: čelní kování | N28: kryt.
K29: EXPANDO | N29: =IF(Menu!$Q$27=3,List!$C128," ") -> Světle šedá (HG/T)
K30: =List!$C$126 -> na vruty | N30: =IF(Menu!$Q$27=3,List!$C130," ") -> Hedvábně bílá (SW/T)
C401: AVENTOS HK-S
C404: =List!$C$310 -> Vyberte požadovanou montážní techniku pro čelní kování
C406: =List!$C$268 -> Kliknutím na obrázek nebo popis přejděte na požadovaný typ zdvihače.
J416: =List!$C$149 -> Zpět

Sheet HKXS
B3: AVENTOS HK-XS | R3: =List!$C$135 -> Jdi na
R5: =" "&List!$C$136 -> Úvod plánování
R6: =" "&List!$C$137 -> Nápověda
B7: =List!$C$72&" (KB) " -> Šířka korpusu (KB) | D7: =" do 1800 mm*" -> do 1800 mm*
B8: =List!$C$73&" (KH) " -> Výška korpusu (KH) | D8: 240 - 600 mm | R8: AVENTOS HF
R9: AVENTOS HS
B10: ="* "&List!$C$214 -> * Vše záleží na hodnotě faktoru výkonnosti | R10: AVENTOS HL
R11: AVENTOS HK top
R12: AVENTOS HK-S
R13: AVENTOS HK-XS
R15: =List!$C$141 -> Doplňky
R17: =" "&List!$C$139 -> Přehled korpusů
R18: =" "&List!$C$140 -> Objednávka
B23: =List!$C$15 -> Dřevěné čelo | E23: =List!$C$18 -> Široký alurámeček | H23: =List!$C$20 -> Úzký alurámeček
B26: =List!$C$124&" " -> Čelní kování | K26: 2 | L26: 2 | M26: 2 | N26: 2
B27: =List!$C$133&" " -> Boční čep | K27: čelní kování | L27: boční čep | M27: Závěsy | N27: Podložky
B28: =List!$C$115&" " -> Horní závěsy | K28: EXPANDO | L28: EXPANDO | M28: EXPANDO | N28: EXPANDO
B29: =List!$C$121&" " -> Montážní podložky | K29: =List!$C$126 -> na vruty | L29: =List!$C$126 -> na vruty | M29: =List!$C$126 -> na vruty | N29: =List!$C$126 -> na vruty
C400: AVENTOS HK-S
C403: =List!$C$310 -> Vyberte požadovanou montážní techniku pro čelní kování
C405: =List!$C$268 -> Kliknutím na obrázek nebo popis přejděte na požadovaný typ zdvihače.
J415: =List!$C$149 -> Zpět

Sheet HFwa
B2: AVENTOS HF | D2: AVENTOS HS | F2: AVENTOS HL | H2: AVENTOS HK top | J2: AVENTOS HK-S | L2: AVENTOS HK-XS | O2: rámeček | S2: 3 | Z2: =List!$C$135 -> Jdi na
B4: =List!$C$17&" ***" -> Široké alurámečky *** | F4: =N200&" " -> Alurámečky s 4mm sklem | O4: 1 | S4: =" "&List!$C$39&" A " -> Cena za korpus A | Z4: =List!$C$136 -> Úvod plánování
O5: A = 1 | S5: =" "&List!$C$39&" B " -> Cena za korpus B | Z5: =List!$C$137 -> Nápověda
G6: =List!$C$47&" "&List!$C$22&" " -> Nastavit hmotnost alurámečků | O6: B = 2 | S6: =" "&List!$C$59 -> Cena celkem bez DPH | AR6: =" "&List!$C$80&" LF " -> Ukazatel výkonnosti LF | AT6: =List!$C$79 -> Zdvihací mechanizmus
B7: =List!$C$142 -> Soupis kování | G7: =IF(S2=1,$N$138,IF($S$2=2,$P$138,IF($S$2=3,$L$138,0))) -> 0 | Z7: =List!$C$141 -> Doplňky
H8: =IF(AND(OR($S$9=1, $S$18=1), $L$138>0), $N$32, " ") ->  | AR8: =" 2.600 - 5.500 (1 "&List!$C$153&" LF 960 - 2.650)" -> 2.600 - 5.500 (1 ks LF 960 - 2.650) | AT8: 20F2200.05
B9: SERVO-DRIVE | D9: =List!$C$62&" A" -> Korpus A | N9: zdvih A | P9: teleskop | S9: =IF($T$9=TRUE,1,2) -> 2 | T9: FALSE | V9: - SRVDRV | Z9: =List!$C$139 -> Přehled korpusů | AR9: 5.350 - 10.150 | AT9: 20F2500.05
B10: =List!$C$72&" KB [mm] " -> Šířka korpusu KB [mm] | I10: =IF(H10=0," ",IF($H10<220," min. 220mm",IF($H10>1800," max. 1 800mm"," ")))&IF(H15>0,IF(H10=0,"● "&List!$C$111," ")," ") ->  | N10: F22 | O10: =IF($H14<Cen!$F$240,0.5,IF($H14<Cen!$F$241,1,0)) -> 0.5 | P10: F32 | Q10: =SUM(IF($P14<Cen!$F$248,IF($H14<Cen!$F$240,0.5,1),0)) -> 0.5 | T10: Závěs A | V10: Závěs As | Z10: =List!$C$140 -> Objednávka | AR10: 9.000 - 17.250 | AT10: 20F2800.05
B11: =List!$C$73&" [mm]" -> Výška korpusu [mm] | E11: TKH * | G11: KH | I11: =IF(H11=0," ",IF($H11<480," min. 480mm",IF($H11>1040," max. 1 040mm"," ")))&IF(H15>0,IF(H11=0,"● "&List!$C$111," ")," ") ->  | N11: F25 | O11: =IF($H14<Cen!$E$242,0,IF($H14<Cen!$F$242,1,0)) -> 0 | P11: F35 | Q11: =IF($P14<Cen!$F$249,IF($P14>Cen!$E$249,IF($H14<Cen!$F$240,0.5,1),0),0) -> 0 | T11: T558E | U11: =IF($O$42=1,IF($H10>1199,3,IF($T15>11.9,3,2)),0)+IF(O$42=1,IF($H10>1799,1,IF($T15>19.9,1,0)),0) -> 0 | V11: Z553E | W11: =IF($Q$42=1,IF($H10>1199,3,IF($T15>11.9,3,2)),0)+IF($Q$42=1,IF($H10>1799,1,IF($T15>19.9,1,0)),0) -> 0
B12: =List!$C$74&" [kg] ** " -> Hmotnost čela včetně úchytky [kg] ** | I12: =IF($H15=0," ",IF(SUM($H12,$H13)=0,$N$34," "))&IF($H15>0,IF($H12>0,$N$35," ")," ") ->  | N12: F28 | O12: =IF($H14<Cen!$E$243,0,IF($H14<Cen!$F$243,1,IF($H14>Cen!$E$244,0,0))) -> 0 | P12: F38 | Q12: =IF($P14<Cen!$F$250,IF($P14>Cen!$E$250,IF($H14<Cen!$F$240,0.5,1),0),0) -> 0 | T12: T5550 | U12: =IF($O$42=2,IF($H10>1199,3,IF($T15>11.9,3,2)),0)+IF($O$42=2,IF($H10>1799,1,IF($T15>19.9,1,0)),0) -> 2 | V12: Z5500 | W12: =IF($Q$42=2,IF($H10>1199,3,IF($T15>11.9,3,2)),0)+IF($Q$42=2,IF($H10>1799,1,IF($T15>19.9,1,0)),0) -> 2 | AR12: =List!$C$80&" LF = "&List!$C$298&" [kg]" -> Ukazatel výkonnosti LF = výška korpusu KH [mm] x hmotnost obou čel včetně úchytky [kg]
B13: =List!$C$76&" [kg] " -> Vypočtená hmotnost čela [kg] | H13: =$H$210 -> 0 | I13: =IF($H15>0,IF($H13>0,IF($H12=0,$N$35," ")," ")," ") ->  | P13: F39 | Q13: =IF($P14<Cen!$F$251,IF($P14>Cen!$E$251,IF($H14<Cen!$F$240,0.5,1),0),0) -> 0 | Z13: =" "&List!$C$177&" A" -> Výpočet hmotnosti A
B14: =List!$C$80&" LF " -> Ukazatel výkonnosti LF | H14: =IF(H11<1041,IF(H11>479,IF(H12>0,H11*H12,H11*H13),0),0) -> 0 | I14: =IF(AND(H14>0,H14<960), $T$38, IF($H14>17250,$N$38," ")) ->  | O14: výška korpusu | P14: =IF(F11>0,IF(F11>=H11,F11,0),H11) -> 0
B15: =List!$C$69&" " -> Počet skříněk | I15: =IF(AND(M15>0, H14>959, O10=0.5), $U$39, " ") ->  | M15: =IF($H10*$P14=0,0,IF(SUM($H12,$H13)=0,0,IF($P14>Cen!$F$252,0,IF(P14<Cen!$E$248,0,IF(OR(H14<Cen!$E$240, H14>Cen!$F$243),0,$H15))))) -> 0 | N15: ← Hlavní údaj | S15: hmot = | T15: =IF(H12>0,H12,H13) -> 0 | U15: =IF(SUM(H12,H13)=0,0,IF(H12>0,1,2)) -> 0 | V15: zadaná / vypočtená | Z15: =" "&List!$C$176 -> Výpočet asymetrických čel | AR15: =List!$C$149 -> Zpět
B16: =IF(H15>0,IF(U15=0," ",IF(U15=1,$N$47,$N$48))," ")&IF(H15>0,IF(U15=0," ",IF(U15=1,$N$49,$N$50))," ") -> 
B17: =IF(F11=0," ",IF(F11>1040,"TKH = max. 1040!",IF(F11<480,"TKH = min. 480!",IF(F11<H11,$N$53,IF(H15>0,IF(F11=0," ",IF(F11>0,$N$52," "))," "))))) -> 
B18: SERVO-DRIVE | D18: =List!$C$62&" B" -> Korpus B | N18: zdvih B | P18: teleskop | S18: =IF($T$18=TRUE,1,2) -> 2 | T18: FALSE | V18: - SRVDRV | Z18: =" "&List!$C$361 -> Ověření síly zdvihače
B19: =List!$C$72&" KB [mm] " -> Šířka korpusu KB [mm] | I19: =IF(H19=0," ",IF($H19<220," min. 220mm",IF($H19>1800," max. 1 800mm"," ")))&IF(H24>0,IF(H19=0,"● "&List!$C$111," ")," ") ->  | N19: F22 | O19: =IF($H23<Cen!$F$240,0.5,IF($H23<Cen!$F$241,1,0)) -> 0.5 | P19: F32 | Q19: =SUM(IF($P23<Cen!$F$248,IF($H23<Cen!$F$240,0.5,1),0)) -> 0.5 | T19: Závěs B | V19: Závěs Bs
B20: =List!$C$73&" [mm]" -> Výška korpusu [mm] | E20: TKH * | G20: KH | I20: =IF(H20=0," ",IF($H20<480," min. 480mm",IF($H20>1040," max. 1 040mm"," ")))&IF(H24>0,IF(H20=0,"● "&List!$C$111," ")," ") ->  | N20: F25 | O20: =IF($H23<Cen!$E$242,0,IF($H23<Cen!$F$242,1,0)) -> 0 | P20: F35 | Q20: =IF($P23<Cen!$F$249,IF($P23>Cen!$E$249,IF($H23<Cen!$F$240,0.5,1),0),0) -> 0 | T20: T558E | U20: =IF($O$42=1,IF($H19>1199,3,IF($T24>11.9,3,2)),0)+IF(O$42=1,IF($H19>1799,1,IF($T24>19.9,1,0)),0) -> 0 | V20: Z553E | W20: =IF($Q$42=1,IF($H19>1199,3,IF($T24>11.9,3,2)),0)+IF($Q$42=1,IF($H19>1799,1,IF($T24>19.9,1,0)),0) -> 0
B21: =List!$C$74&" [kg] ** " -> Hmotnost čela včetně úchytky [kg] ** | I21: =IF($H24=0," ",IF(SUM($H21,$H22)=0,$N$34," "))&IF($H24>0,IF($H21>0,$N$35," ")," ") ->  | N21: F28 | O21: =IF($H23<Cen!$E$243,0,IF($H23<Cen!$F$243,1,IF($H23>Cen!$E$244,0,0))) -> 0 | P21: F38 | Q21: =IF($P23<Cen!$F$250,IF($P23>Cen!$E$250,IF($H23<Cen!$F$240,0.5,1),0),0) -> 0 | T21: T5550 | U21: =IF($O$42=2,IF($H19>1199,3,IF($T24>11.9,3,2)),0)+IF($O$42=2,IF($H19>1799,1,IF($T24>19.9,1,0)),0) -> 2 | V21: Z5500 | W21: =IF($Q$42=2,IF($H19>1199,3,IF($T24>11.9,3,2)),0)+IF($Q$42=2,IF($H19>1799,1,IF($T24>19.9,1,0)),0) -> 2
B22: =List!$C$76&" [kg] " -> Vypočtená hmotnost čela [kg] | H22: =$H$219 -> 0 | I22: =IF($H24>0,IF($H22>0,IF($H21=0,$N$35," ")," ")," ") ->  | P22: F39 | Q22: =IF($P23<Cen!$F$251,IF($P23>Cen!$E$251,IF($H23<Cen!$F$240,0.5,1),0),0) -> 0 | Z22: =" "&List!$C$177&" B" -> Výpočet hmotnosti B
B23: =List!$C$80&" LF " -> Ukazatel výkonnosti LF | H23: =IF(H20<1041,IF(H20>479,IF(H21>0,H20*H21,H20*H22),0),0) -> 0 | I23: =IF(AND(H23>0,H23<960), $T$38, IF($H23>17250,$N$38," ")) ->  | O23: výška korpusu | P23: =IF(F20>0,IF(F20>=H20,F20,0),H20) -> 0
B24: =List!$C$69&" " -> Počet skříněk | I24: =IF(AND(M24>0, H23>959, O19=0.5), $U$39, " ") ->  | M24: =IF($H19*$P23=0,0,IF(SUM($H21,$H22)=0,0,IF($P23>Cen!$F$252,0,IF(P23<Cen!$E$248,0,IF(OR(H23<Cen!$E$240, H23>Cen!$F$243),0,$H24))))) -> 0 | N24: ← Hlavní údaj | S24: hmot = | T24: =IF(H21>0,H21,H22) -> 0 | U24: =IF(SUM(H21,H22)=0,0,IF(H21>0,1,2)) -> 0 | V24: zadaná / vypočtená | Z24: =" "&List!$C$176 -> Výpočet asymetrických čel
B25: =IF(H24>0,IF(U24=0," ",IF(U24=1,$N$47,$N$48))," ")&IF(H24>0,IF(U24=0," ",IF(U24=1,$N$49,$N$50))," ") -> 
B26: =IF(F20=0," ",IF(F20>1040,"TKH = max. 1040!",IF(F20<480,"TKH = min. 480!",IF(F20<H20,$N$53,IF(H24>0,IF(F20=0," ",IF(F20>0,$N$52," "))," "))))) -> 
B27: =IF(OR(AND($S$9=1, $M$15>0), AND($S$18=1, $M$24>0)), List!$C$157, " ") ->  | S27: =IF($T$27=FALSE,2,1) -> 1 | T27: TRUE | V27: - Zdroj
P28: 2
N32: =List!C158 -> Cena bez napájecího zdroje!
C33: ="* "&List!$C$165 -> * Pouze pro asymetrická čela: zadejte teoretickou výšku TKH.
C34: =" ( "&List!$C$166&")" -> ( TKH = dvojnásobná výška horního čela včetně mezer) | N34: =" "&List!$C$103 -> Doplňte nebo použijte "Výpočet hmotnosti"
C35: ="** "&List!$C$168 -> ** Pokud znáte hmotnost a nechcete využít výpočtu hmotnosti | N35: ="◄ "&List!$C$100 -> ◄ hodnota bude použita pro výpočet LF
C36: ="*** "&List!$C$371 -> *** Vyberte typ alurámečku! | N36: =" * "&List!$C$110 -> * Doplňte hodnoty
C37: =" "&List!$C$372 -> Více informací k výběru alurámečků v Nápovědě
N38: =" max. 17.250! "&List!$C$105 -> max. 17.250! Upravte hmotnost nebo výšku | T38: =" min. 960! "&List!$C$105 -> min. 960! Upravte hmotnost nebo výšku
N39: =" "&List!$C$104 -> Přídavný třetí zdvihač | U39: =" "&List!C109 -> Použijte pouze jeden zdvihač
N40: =List!$C$163 -> Přídavný třetí zdvihač může být použit pouze s plným spodním čelem!
N42: =HF!$L$37 -> 2 | O42: 2 | P42: =HF!$N$37 -> 2 | Q42: 2 | R42: =HF!$P$37 -> 2 | T42: =Menu!$Q$27 -> 3
N43: záv. | O43: alu | P43: střed. | Q43: alu | R43: podl. | T43: kryt.
N44: =List!$C$116 -> Expando | P44: =List!$C$116 -> Expando | R44: =List!$C$116 -> Expando | T44: =List!$C$128 -> Světle šedá (HG/T)
N45: =List!$C$117 -> na vruty | P45: =List!$C$117 -> na vruty | R45: =List!$C$117 -> na vruty | T45: =List!$C$129 -> Tmavě šedá (TGR)
T46: =List!$C$130 -> Hedvábně bílá (SW/T)
N47: =List!C169 -> Pro určení typu zdvihače bude použita zadaná hmotnost
N48: =List!C170 -> Pro určení typu zdvihače bude použita vypočtená hmotnost
N49: =". "&List!$C$171 -> . Chcete-li použít vypočtenou hmotnost, smažte zadanou hodnotu
N50: =". "&List!$C$172 -> . Chcete-li použít zadanou hmotnost, zadejte ji do políčka
N51: =List!C173 -> 0
N52: =List!C174 -> Pro výběr teleskopů bude použita teoretická výška TKH
N53: =List!C175 -> Teoretická výška TKH nesmí být menší než KH
B98: =List!C142 -> Soupis kování
B100: =$B$2 -> AVENTOS HF | D100: =B4 -> Široké alurámečky ***
B101: =List!C50 -> Název | G101: =List!$C$51 -> Číslo artiklu | I101: =List!C52 -> Barva | J101: =List!C54 -> Ks | K101: =List!C56 -> Jednotková cena | L101: =List!C57 -> Celkem | M101: A | N101: Cena | O101: B | P101: Cena | S101: Filtr
B102: =Cen!A2 -> Sada zdvihačů HF | G102: =Cen!E2 -> 20F2200.05 | I102: =Cen!G2 -> ZN | J102: =ROUNDUP($M$15*O10+$M$24*O19,0) -> 0 | K102: =Cen!I2 -> 0 | L102: =J102*K102 -> 0 | M102: =ROUNDUP($M$15*O10,0) -> 0 | N102: =$K102*M102 -> 0 | O102: =ROUNDUP($M$24*O19,0) -> 0 | P102: =$K102*O102 -> 0 | S102: x
B103: =Cen!A3 -> Sada zdvihačů HF | G103: =Cen!E3 -> 20F2500.05 | I103: =Cen!G3 -> ZN | J103: =ROUNDUP($M$15*O11+$M$24*O20,0) -> 0 | K103: =Cen!I3 -> 0 | L103: 0 | M103: =ROUNDUP($M$15*O11,0) -> 0 | N103: 0 | O103: =ROUNDUP($M$24*O20,0) -> 0 | P103: 0 | S103: x
B104: =Cen!A4 -> Sada zdvihačů HF | G104: =Cen!E4 -> 20F2800.05 | I104: =Cen!G4 -> ZN | J104: =ROUNDUP($M$15*O12+$M$24*O21,0) -> 0 | K104: =Cen!I4 -> 0 | L104: 0 | M104: =ROUNDUP($M$15*O12,0) -> 0 | N104: 0 | O104: =ROUNDUP($M$24*O21,0) -> 0 | P104: 0 | S104: x
B105: =Cen!A5 -> Sada teleskopů (480-570mm) | G105: =Cen!E5 -> 20F3200.01 | I105: =Cen!G5 -> NI | J105: =ROUNDUP($M$15*Q10+$M$24*Q19,0) -> 0 | K105: =Cen!I5 -> 0 | L105: 0 | M105: =ROUNDUP($M$15*Q10,0) -> 0 | N105: 0 | O105: =ROUNDUP($M$24*Q19,0) -> 0 | P105: 0 | S105: x
B106: =Cen!A6 -> Sada teleskopů (560-710mm) | G106: =Cen!E6 -> 20F3500.01 | I106: =Cen!G6 -> NI | J106: =ROUNDUP($M$15*Q11+$M$24*Q20,0) -> 0 | K106: =Cen!I6 -> 0 | L106: 0 | M106: =ROUNDUP($M$15*Q11,0) -> 0 | N106: 0 | O106: =ROUNDUP($M$24*Q20,0) -> 0 | P106: 0 | S106: x
B107: =Cen!A7 -> Sada teleskopů (700-900mm) | G107: =Cen!E7 -> 20F3800.01 | I107: =Cen!G7 -> NI | J107: =ROUNDUP($M$15*Q12+$M$24*Q21,0) -> 0 | K107: =Cen!I7 -> 0 | L107: 0 | M107: =ROUNDUP($M$15*Q12,0) -> 0 | N107: 0 | O107: =ROUNDUP($M$24*Q21,0) -> 0 | P107: 0 | S107: x
B108: =Cen!A8 -> Sada teleskopů (760-1040mm) | G108: =Cen!E8 -> 20F3900.01 | I108: =Cen!G8 -> NI | J108: =ROUNDUP($M$15*Q13+$M$24*Q22,0) -> 0 | K108: =Cen!I8 -> 0 | L108: 0 | M108: =ROUNDUP($M$15*Q13,0) -> 0 | N108: 0 | O108: =ROUNDUP($M$24*Q22,0) -> 0 | P108: 0 | S108: x
B109: =Cen!A9 -> Sada krytek HF SERVO-DRIVE, sv.šedá | G109: =Cen!E9 -> 21F8000 | I109: =Cen!G9 -> HG/T | J109: =SUM(M109,O109,Q109) -> 0 | K109: =Cen!I9 -> 0 | L109: 0 | M109: =IF($S$9=2,0,IF($T$42=1,$M$134,0)) -> 0 | N109: 0 | O109: =IF($S$18=2,0,IF($T$42=1,$O$134,0)) -> 0 | P109: 0 | S109: x
B110: =Cen!A10 -> Sada krytek HF SERVO-DRIVE, tm.šedá | G110: =Cen!E10 -> 21F8000 | I110: =Cen!G10 -> TGR | J110: =SUM(M110,O110,Q110) -> 0 | K110: =Cen!I10 -> 0 | L110: =J110*K110 -> 0 | M110: =IF($S$9=2,0,IF($T$42=2,$M$134,0)) -> 0 | N110: =$K110*M110 -> 0 | O110: =IF($S$18=2,0,IF($T$42=2,$O$134,0)) -> 0 | P110: =$K110*O110 -> 0 | S110: x
B111: =Cen!A11 -> Sada krytek HF SERVO-DRIVE, bílá | G111: =Cen!E11 -> 21F8000 | I111: =Cen!G11 -> SW/T | J111: 0 | K111: =Cen!I11 -> 0 | L111: 0 | M111: =IF($S$9=2,0,IF($T$42=3,$M$134,0)) -> 0 | N111: 0 | O111: =IF($S$18=2,0,IF($T$42=3,$O$134,0)) -> 0 | P111: 0 | S111: x
B113: =Cen!A12 -> Sada krytek HF, světle šedá | G113: =Cen!E12 -> 20F8000 | I113: =Cen!G12 -> HG/T | J113: 0 | K113: =Cen!I12 -> 0 | L113: 0 | M113: =IF($S$9=1,0,IF($T$42=1,SUM($M$102:$M$104,0),0)) -> 0 | N113: 0 | O113: =IF($S$18=1,0,IF($T$42=1,SUM($O$102:$O$104,0),0)) -> 0 | P113: 0 | S113: x
B114: =Cen!A13 -> Sada krytek HF, tmavě šedá | G114: =Cen!E13 -> 20F8000 | I114: =Cen!G13 -> TGR | J114: =SUM(M114,O114,Q114) -> 0 | K114: =Cen!I13 -> 0 | L114: =J114*K114 -> 0 | M114: =IF($S$9=1,0,IF($T$42=2,SUM($M$102:$M$104,0),0)) -> 0 | N114: =$K114*M114 -> 0 | O114: =IF($S$18=1,0,IF($T$42=2,SUM($O$102:$O$104,0),0)) -> 0 | P114: =$K114*O114 -> 0 | S114: x
B115: =Cen!A14 -> Sada krytek HF, bílá | G115: =Cen!E14 -> 20F8000 | I115: =Cen!G14 -> SW/T | J115: 0 | K115: =Cen!I14 -> 0 | L115: 0 | M115: =IF($S$9=1,0,IF($T$42=3,SUM($M$102:$M$104,0),0)) -> 0 | N115: 0 | O115: =IF($S$18=1,0,IF($T$42=3,SUM($O$102:$O$104,0),0)) -> 0 | P115: 0 | S115: x
B117: =Cen!A15 -> Závěs CLIP top 120° | G117: =Cen!E15 -> 70T5550.TL | I117: =Cen!G15 -> NI | J117: 0 | K117: =Cen!I15 -> 0 | L117: 0 | M117: =$M$15*$U$12 -> 0 | N117: 0 | O117: =$M$24*$U$21 -> 0 | P117: 0 | S117: x
B118: =Cen!A16 -> Závěs CLIP top 120° EXPANDO | G118: =Cen!E16 -> 70T558E | I118: =Cen!G16 -> NI | J118: 0 | K118: =Cen!I16 -> 0 | L118: 0 | M118: =$M$15*$U$11 -> 0 | N118: 0 | O118: =$M$24*$U$20 -> 0 | P118: 0
B119: =Cen!A17 -> Středový závěs CLIP top | G119: =Cen!E17 -> 78Z5500T | I119: =Cen!G17 -> NI | J119: 0 | K119: =Cen!I17 -> 0 | L119: 0 | M119: =$M$15*$W$12 -> 0 | N119: 0 | O119: =$M$24*$W$21 -> 0 | P119: 0 | S119: x
B120: =Cen!A18 -> Středový závěs CLIP top EXPANDO | G120: =Cen!E18 -> 78Z553ET | I120: =Cen!G18 -> NI | J120: 0 | K120: =Cen!I18 -> 0 | L120: 0 | M120: =$M$15*$W$11 -> 0 | N120: 0 | O120: =$M$24*$W$20 -> 0 | P120: 0
B121: =Cen!A19 -> Závěs CLIP top pro alurámečky | G121: =Cen!E19 -> 72T550A.TL | I121: =Cen!G19 -> NI | K121: =Cen!I19 -> 0 | L121: 0 | N121: 0 | P121: 0
B122: =Cen!A20 -> Střed. závěs CLIP top pro alurámečky | G122: =Cen!E20 -> 78Z550AT | I122: =Cen!G20 -> NI | K122: =Cen!I20 -> 0 | L122: 0 | N122: 0 | P122: 0
B123: =Cen!A21 -> Přímá montážní podložka | G123: =Cen!E21 -> 175H3100 | I123: =Cen!G21 -> NI | J123: =SUM(M123,O123,Q123) -> 0 | K123: =Cen!I21 -> 0 | L123: 0 | M123: =SUM($Q$10*2,$Q$11*2,$Q$12*2,$Q$13*2,IF($R$42=2,$U$12,0))*$M$15 -> 0 | N123: 0 | O123: =SUM($Q$19*2,$Q$20*2,$Q$21*2,$Q$22*2,IF($R$42=2,$U$21,0))*$M$24 -> 0 | P123: 0 | S123: x
B124: =Cen!A22 -> Přímá montážní podložka, EXPANDO | G124: =Cen!E22 -> 177H3100E | I124: =Cen!G22 -> NI | J124: =SUM(M124,O124,Q124) -> 0 | K124: =Cen!I22 -> 0 | L124: 0 | M124: =IF($R$42=1,$U$12*$M$15,0) -> 0 | N124: 0 | O124: =IF($R$42=1,$U$21*$M$24,0) -> 0 | P124: 0 | S124: x
B125: =Cen!A23 -> Podložka CLIP excentrická | G125: =Cen!E23 -> 173H7100 | I125: =Cen!G23 -> NI | J125: =SUM(M125,O125,Q125) -> 0 | K125: =Cen!I23 -> 0 | L125: 0 | M125: =$M$15*$W$12 -> 0 | N125: 0 | O125: =$M$24*$W$21 -> 0 | P125: 0 | S125: x
B126: =Cen!A24 -> Adaptér CLIP k teleskopům P | G126: =Cen!E24 -> 175H5B00 R | I126: =Cen!G24 -> NI | K126: =Cen!I24 -> 0 | L126: 0 | N126: 0 | P126: 0
B127: =Cen!A25 -> Adaptér CLIP k teleskopům L | G127: =Cen!E25 -> 175H5B00 L | I127: =Cen!G25 -> NI | K127: =Cen!I25 -> 0 | L127: 0 | N127: 0 | P127: 0
B128: =Cen!A26 -> Adaptér CLIP ke středovým závěsům | G128: =Cen!E26 -> 175H5A00 | I128: =Cen!G26 -> NI | K128: =Cen!I26 -> 0 | L128: 0 | N128: 0 | P128: 0
B129: =Cen!A27 -> Omezovač úhlu otevření na 83° | G129: =Cen!E27 -> 20F7011 | I129: =Cen!G27 -> TGR | K129: =Cen!I27 -> 0 | L129: 0 | N129: 0 | P129: 0
B130: =Cen!A28 -> Omezovač úhlu otevření na 104° | G130: =Cen!E28 -> 20F7051 | I130: =Cen!G28 -> TGR | K130: =Cen!I28 -> 0 | L130: 0 | N130: 0 | P130: 0
B131: =Cen!A151 -> CLIP top krytka raménka Nikl | G131: =Cen!E151 -> 70.1503 | I131: =Cen!G151 -> NI | J131: =SUM(M131,O131,Q131) -> 0 | K131: =Cen!I151 -> 0 | L131: 0 | M131: =SUM(M$117:M$122) -> 0 | N131: 0 | O131: =SUM(O$117:O$122) -> 0 | P131: 0 | S131: x
B132: =Cen!A195 -> Samořezný vrut do alurámečků | G132: =Cen!E195 -> 660.0950 | I132: =Cen!G195 -> NI | J132: =SUM(M132,O132,Q132) -> 0 | K132: =Cen!I195 -> 0 | L132: =J132*K132 -> 0 | M132: =SUM(SUM(M117:M125)*2, -M117*2) -> 0 | N132: =$K132*M132 -> 0 | O132: =SUM(SUM(O117:O125)*2, -O117*2) -> 0 | P132: =$K132*O132 -> 0 | S132: x
L133: =J133*K133 -> 0 | N133: 0 | P133: 0
B134: =Cen!A199 -> SERVO-DRIVE jednotka (sada) | G134: =Cen!E199 -> 21FA000 | I134: =Cen!G199 -> HGR | J134: =SUM(M134,O134,Q134) -> 0 | K134: =Cen!I199 -> 0 | L134: =J134*K134 -> 0 | M134: =IF($S$9=2,0,$M$15) -> 0 | N134: 0 | O134: =IF($S$18=2,0,$M$24) -> 0 | P134: 0 | S134: x
B135: =Cen!A200 -> SERVO-DRIVE jednotka (sada) pro HK top | G135: =Cen!E200 -> 23KA000 | I135: =Cen!G200 -> HGR | K135: =Cen!I200 -> 0 | L135: =J135*K135 -> 0 | N135: 0 | P135: 0
K138: =List!$C$59&" " -> Cena celkem bez DPH | L138: =SUM(L102:L136) -> 0 | N138: =SUM(N102:N137) -> 0 | P138: =SUM(P102:P137) -> 0 | R138: =SUM(R102:R137) -> 0
L140: =List!$C$149 -> Zpět
B199: =List!$C$71 -> Výpočet hmotnosti čel
C200: =List!$C$161&" " -> Provedení čel | I200: =IF(U206=3,IF(H200=0,N203," "),IF(H200>0,N204," ")) ->  | N200: =IF($U$206=1,$U$227,IF($U$206=2,$U$228,$U$229&" - "&$N$210&"mm")) -> Alurámečky s 4mm sklem | S200: =Menu!$Q$205 -> 2500
N201: =" "&List!$C$224 -> Změnit objemovou hmotnost
N202: =" "&List!$C$225&" [kg/m3]" -> Zadejte objemovou hmotnost [kg/m3]
N203: =" "&List!$C$226&" [mm]" -> Zadejte sílu skla [mm]
N204: =" "&List!$C$221&" '"&List!$C$89&"'" -> Hodnota platí jen pro volbu 'Alurámečky s jiným sklem'
F205: =D9 -> Korpus A | T205: váha spoj. | U205: tl. skla | V205: typ alu
B206: =List!$C$72&" KB [mm] " -> Šířka korpusu KB [mm] | H206: =H10 -> 0 | N206: =H206*H207*H208 -> 0 | S206: =IF($V$206=1,$M$236,$M$237) -> 0.62 | T206: =$M$238*2 -> 1.22 | U206: 1 | V206: =$O$4 -> 1
B207: =List!$C$73&" KH [mm] " -> Výška korpusu KH [mm] | H207: =H11 -> 0 | N207: =N206/1000000000 -> 0 | O207: 3 | S207: váha alu | T207: =SUM(H206*4,(H207-180)*2)*S206/1000 -> -0.2232 | U207: A plocha B
B208: =List!$C$77&" TS [mm] " -> Síla čela TS [mm] | N208: =Menu!$L$30 -> 760 | O208: =List!$C$84&" ("&N208&" kg/m3)" -> MDF (760 kg/m3) | S208: =$S$200*4/1000 -> 10 | T208: =IF($V$206=1,U208*S208,V208*S208) -> 0.128 | U208: =SUM(($H$206-80)*($H$207-160)/1000000) -> 0.0128 | V208: =SUM(($H$206-6)*($H$207-15)/1000000) -> 9e-05 | W208: 4mm
B209: =List!$C$78&" [kg] " -> Hmotnost úchytky [kg] | I209: =IF(SUM(H206,H207)=0," ",IF(H209=0," ● "&List!$C$112," ")) ->  | N209: =Menu!$L$31 -> 680 | O209: =List!$C$85&" ("&N209&" kg/m3)" -> Dřevotříska (680 kg/m3) | S209: =$S$200*5/1000 -> 12.5 | T209: =IF($V$206=1,U209*S209,V209*S209) -> 0.16 | U209: =SUM(($H$206-80)*($H$207-160)/1000000) -> 0.0128 | V209: =SUM(($H$206-6)*($H$207-15)/1000000) -> 9e-05 | W209: 5mm
B210: =List!$C$76&" [kg] " -> Vypočtená hmotnost čela [kg] | H210: =IF(S211=0,0,S211+H209) -> 0 | M210: =IF(H206*H207*H208=0,0,IF(O207=1,N207*N208+H209,IF(O207=2,N207*N209+H209,N207*N210+H209))) -> 0 | N210: =$H$200 -> 0 | O210: =List!$C$86 -> Jiné - volitelná hustota | S210: =$S$200*$H$200/1000 -> 0 | T210: =IF($V$206=1,U210*S210,V210*S210) -> 0 | U210: =SUM(($H$206-80)*($H$207-160)/1000000) -> 0.0128 | V210: =SUM(($H$206-6)*($H$207-15)/1000000) -> 9e-05 | W210: jiné
C211: =IF(H210>0,IF(H209=0,$N$227," ")," ") ->  | S211: =IF(OR(AND(U206=3, $H$200=0), H206*H207=0), 0, SUM(IF(U206=1,T208,IF(U206=2,T209,T210)),T207,T206)) -> 0
F214: =D18 -> Korpus B | T214: váha spoj. | U214: tl. skla | V214: typ alu
B215: =List!$C$72&" KB [mm] " -> Šířka korpusu KB [mm] | H215: =H19 -> 0 | N215: =H215*H216*H217 -> 0 | S215: =IF($V$206=1,$M$236,$M$237) -> 0.62 | T215: =$M$238*2 -> 1.22 | U215: =$U$206 -> 1 | V215: =$V$206 -> 1
B216: =List!$C$73&" KH [mm] " -> Výška korpusu KH [mm] | H216: =H20 -> 0 | N216: =N215/1000000000 -> 0 | O216: =O207 -> 3 | S216: váha alu | T216: =SUM(H215*4,(H216-180)*2)*S215/1000 -> -0.2232 | U216: A plocha B
B217: =List!$C$77&" TS [mm] " -> Síla čela TS [mm] | N217: =$N$208 -> 760 | O217: =$O$208 -> MDF (760 kg/m3) | S217: =S208 -> 10 | T217: =IF($V$206=1,U217*S217,V217*S217) -> 0.128 | U217: =SUM(($H$215-80)*($H$216-160)/1000000) -> 0.0128 | V217: =SUM(($H$215-6)*($H$216-15)/1000000) -> 9e-05 | W217: 4mm
B218: =List!$C$78&" [kg] " -> Hmotnost úchytky [kg] | I218: =IF(SUM(H215,H216)=0," ",IF(H218=0," ● "&List!$C$112," ")) ->  | N218: =$N$209 -> 680 | O218: =$O$209 -> Dřevotříska (680 kg/m3) | S218: =S209 -> 12.5 | T218: =IF($V$206=1,U218*S218,V218*S218) -> 0.16 | U218: =SUM(($H$215-80)*($H$216-160)/1000000) -> 0.0128 | V218: =SUM(($H$215-6)*($H$216-15)/1000000) -> 9e-05 | W218: 5mm
B219: =List!$C$76&" [kg] " -> Vypočtená hmotnost čela [kg] | H219: =IF(S220=0,0,S220+H218) -> 0 | M219: =IF(H215*H216*H217=0,0,IF(O216=1,N216*N217+H218,IF(O216=2,N216*N218+H218,N216*N219+H218))) -> 0 | N219: =$N$210 -> 0 | O219: =$O$210 -> Jiné - volitelná hustota | S219: =S210 -> 0 | T219: =IF($V$206=1,U219*S219,V219*S219) -> 0 | U219: =SUM(($H$215-80)*($H$216-160)/1000000) -> 0.0128 | V219: =SUM(($H$215-6)*($H$216-15)/1000000) -> 9e-05 | W219: jiné
C220: =IF(H219>0,IF(H218=0,$N$227," ")," ") ->  | S220: =IF(OR(AND(U215=3, $H$200=0), H215*H216=0), 0, SUM(IF(U215=1,T217,IF(U215=2,T218,T219)),T216,T215)) -> 0
G224: =List!$C$149 -> Zpět
C227: =List!$C$217&" "&List!$C$218 -> Upozornění: Vypočtené hodnoty jsou pouze orientační. Firma Blum ani prodejci neručí za jejich správnost. | N227: =List!$C$95&"!" -> Není započtena hmotnost úchytky! | U227: =List!$C$87 -> Alurámečky s 4mm sklem
U228: =List!$C$88 -> Alurámečky s 5mm sklem
U229: =List!$C$89 -> Alurámečky s jiným sklem
E235: Hmotnost alurámečků [kg/bm] | G235: =List!$C$368 -> Podle Úvodu | H235: =List!$C$58 -> Změna
F236: =List!$C$373&" " -> S vloženým sklem | G236: =Menu!$Q215 -> 0.62 | M236: =IF($H236>0,$H236,$G236) -> 0.62
F237: =List!$C$374&" " -> S naloženým nebo nalepeným sklem | G237: 0.65 | M237: =IF($H237>0,$H237,$G237) -> 0.65
F238: =List!$C$377&" [kg/set] * " -> Hmotnost spojovacího materiálu [kg/set] * | G238: 0.61 | M238: =IF($H238>0,$H238,$G238) -> 0.61
C240: =" * "& List!$C$378&" " -> * Rohové spojky, šrouby, těsnění pro jeden rámeček
G243: =List!$C$149 -> Zpět
B299: =List!$C$176 -> Výpočet asymetrických čel
B301: =" "&List!$C$179 -> Parametry korpusu
B302: =List!$C$73&" KH [mm] " -> Výška korpusu KH [mm] | K302: =IF(SUM($I$303:$J$306,$I$313)<>0,IF($I$302=0," "&List!$C$111," ")," ") -> 
B303: =List!$C$182&" [mm] " -> Mezera nahoře [mm]
B304: =List!$C$183&" [mm] " -> Mezera mezi čely [mm] | K304: =IF($I$302=0," ",IF($I$304<1.5," min. 1,5 mm!"," ")) -> 
B305: =List!$C$184&" [mm] " -> Mezera dole [mm]
B306: =List!$C$185&" [mm] " -> Síla dna korpusu [mm]
B308: =" "&List!$C$187 -> Výsledky plánování
G309: =List!$C$188&" [mm] " -> Možné výšky čel [mm] | P309: =ROUNDUP((+$I$302-$I$303-$I$304-$I$305)/2,0) -> 0 | Q309: =IF($P$309<272,70,47) -> 70
B310: =List!$C$189 -> Vrchní čelo (FHo) v rozmezí | G310: min. | H310: =IF($P$309=0,0,IF($P$309<236,$Q$314,IF($P$309>516,$Q$314,$P$309))) -> 0 | I310: max. | J310: =IF($P$309=0,0,IF($Q$314=$H$310,$Q$314,IF($P$314<$P$313,$P$314,$P$313))) -> 0 | P310: =ROUNDDOWN(($I$302-$I$303-$I$304-$I$305-$Q$309-19-$I$306+$I$305)/1.5,0) -> -59 | Q310: =IF($P$309<272,70,47) -> 70
B311: =List!$C$190 -> Spodní čelo (FHu) v rozmezí | G311: min. | H311: =IF($J$311=$Q$314,$Q$314,SUM($I$302-$I$303-$I$304-$I$305-$J$310)) -> 0 | I311: max. | J311: =IF($Q$314=$H$310,$Q$314,(+$I$302-$I$303-$I$304-$I$305)/2) -> 0 | P311: =ROUNDDOWN(($I$302-$I$303-$I$304-$I$305-$Q$310-19-$I$306+$I$305)/1.5,0) -> -59 | Q311: =IF($P$309<272,70,47) -> 70
P312: =ROUNDDOWN(($I$302-$I$303-$I$304-$I$305-$Q$311-19-$I$306+$I$305)/1.5,0) -> -59 | Q312: =IF($P$309<272,70,47) -> 70
B313: =List!$C$196&" FHo [mm] " -> Výška vrchního čela FHo [mm] | K313: =IF($I$302=0," ",IF($I$313>$J$310,V313,IF($I$313<$H$310,$S$313," "))) ->  | P313: =ROUNDDOWN(($I$302-$I$303-$I$304-$I$305-$Q$312-19-$I$306+$I$305)/1.5,0) -> -59 | S313: =" min. "&TEXT($H$310,"#")&" mm!" -> min. mm! | V313: =" max. "&TEXT($J$310,"#")&" mm!" -> max. mm!
B314: =List!$C$197&" FHu [mm] " -> Výška spodního čela FHu [mm] | I314: =IF($I$313<$H$310,$Q$314,IF($I$313>$J$310,$Q$314,+$I$302-$I$303-$I$304-$I$305-$I$313)) -> 0 | P314: =+(1040-$I$303-$I$304-$I$305)/2 -> 520 | Q314: =List!C193 -> nelze
B315: =List!$C$198&" H [mm] " -> Pozice zdvihače H [mm] | I315: =IF($P$309=0,0,IF($I$314=$Q$314, $Q$314,$I$313*0.6-$Q$315+$I$303)) -> 0 | Q315: =IF($I$313<272,28,57) -> 28
B316: =List!$C$199&" X [mm] " -> Pozice mont. podložky pro teleskopy X [mm] | I316: =IF($P$309=0,0,IF($I$314=$Q$314,$Q$314,$I$313*0.5+$Q$316)) -> 0 | Q316: =IF($I$313<272,70,47) -> 70
B317: =List!$C$200&" TKH [mm] * " -> Teoretická výška korpusu TKH [mm] * | I317: =IF($I$314=$Q$314,$Q$314,IF($Q$317>479.99,IF($Q$317<1040.01,$Q$317,$Q$314)," ")) ->  | P317: TKH | Q317: =SUM($I$313*2+$I$303+$I$304+$I$305) -> 0
B319: * | C319: =List!$C$202 -> Tuto výšku zadejte do tabulky pro plánování výklopů
I324: =List!$C$149 -> Zpět
B399: AVENTOS HF
B401: =List!$C$281 -> Potřebný zdvihač se určí pomocí ukazatele výkonnosti.
B402: =List!$C$282 -> Ukazatel výkonnosti závisí na hmotnosti dolního i horního čílka, a rovněž na výšce korpusu.
B404: =" "&List!$C$295 -> Tak se to dělá:
D405: =List!$C$80&" = " -> Ukazatel výkonnosti = | E405: =List!$C$298&" [kg]" -> výška korpusu KH [mm] x hmotnost obou čel včetně úchytky [kg]
B411: =List!$C$289 -> Pokud znáte hmotnost čela, můžete ji zadat, jinak použijte "Výpočet hmotnosti".
B412: =List!$C$290 -> V tabulce má přednost zadaná hodnota. Chcete-li použít vypočtenou hmotnost, smažte zadanou hodnotu.
B414: =List!$C$301&". "&List!$C$302&"." -> Délka teleskopů závisí na výšce korpusu KH. U asymetrických čel se použije teoretická výška TKH.
B416: =" "&List!$C$144&":" -> Asymetrická čela:
B417: =" "&List!$C$299 -> Teoretická výška korpusu (TKH) = výška horního čela (FHo) x 2 (včetně mezer)
B419: =List!$C$293 -> U asymetrických čel musí být větší čelo nahoře!
B421: =List!$C$304 -> Pokud zadáte hodnotu TKH, použije se pro určení délky teleskopů
B422: =List!$C$305 -> Nemáte-li asymetrická čela, nechte políčko prázdné.
B423: =List!$C$306&" ' "&List!$C$176&"' " -> Pro výpočet TKH můžete použít ' Výpočet asymetrických čel'
B426: =List!$C$284 -> Chcete-li změnit barvu krytek, přejděte na "Úvod"
B428: =List!$C$383 -> Věnujte pozornost výběru alurámečků.
B429: =List!$C$384 -> Vyberte, který typ lépe odpovídá tvaru použitého alurámečku.
B430: =List!$C$385 -> Způsob osazení skla do rámečku výrazně ovlivňuje plochu skla a tím i hmotnost!
C432: =" "&List!$C$373&" " -> S vloženým sklem
C434: =" "&List!$C$374&" " -> S naloženým nebo nalepeným sklem
L436: =List!$C$149 -> Zpět

Sheet HFw
B2: AVENTOS HF | D2: AVENTOS HS | F2: AVENTOS HL | H2: AVENTOS HK top | J2: AVENTOS HK-S | L2: AVENTOS HK-XS | S2: 3 | Z2: =List!$C$135 -> Jdi na
B4: =List!$C$15 -> Dřevěné čelo | F4: =N200&" " -> Dřevotříska (680 kg/m3) A~18/ B~18mm | S4: =" "&List!$C$39&" A " -> Cena za korpus A | Z4: =List!$C$136 -> Úvod plánování
S5: =" "&List!$C$39&" B " -> Cena za korpus B | Z5: =List!$C$137 -> Nápověda
S6: =" "&List!$C$59 -> Cena celkem bez DPH | AR6: =" "&List!$C$80&" LF " -> Ukazatel výkonnosti LF | AT6: =List!$C$79 -> Zdvihací mechanizmus
B7: =List!$C$142 -> Soupis kování | G7: =IF(S2=1,$N$138,IF($S$2=2,$P$138,IF($S$2=3,$L$138,0))) -> 0 | Z7: =List!$C$141 -> Doplňky
H8: =IF(AND(OR($S$9=1, $S$18=1), $L$138>0), $N$32, " ") ->  | AR8: =" 2.600 - 5.500 (1 "&List!$C$153&" LF 960 - 2.650)" -> 2.600 - 5.500 (1 ks LF 960 - 2.650) | AT8: 20F2200.05
B9: SERVO-DRIVE | D9: =List!$C$62&" A" -> Korpus A | N9: zdvih A | P9: teleskop | S9: =IF($T$9=TRUE,1,2) -> 1 | T9: TRUE | V9: - SRVDRV | Z9: =List!$C$139 -> Přehled korpusů | AR9: 5.350 - 10.150 | AT9: 20F2500.05
B10: =List!$C$72&" KB [mm] " -> Šířka korpusu KB [mm] | I10: =IF(H10=0," ",IF($H10<220," min. 220mm",IF($H10>1800," max. 1 800mm"," ")))&IF(H15>0,IF(H10=0,"● "&List!$C$111," ")," ") ->  | N10: F22 | O10: =IF($H14<Cen!$F$240,0.5,IF($H14<Cen!$F$241,1,0)) -> 0.5 | P10: F32 | Q10: =SUM(IF($P14<Cen!$F$248,IF($H14<Cen!$F$240,0.5,1),0),IF($P14<Cen!$F$248,IF($H14>Cen!$E$244,0.5,0),0))*IF($P14<480,0,1) -> 0 | T10: Závěs A | V10: Závěs As | Z10: =List!$C$140 -> Objednávka | AR10: =" 9.000 - 17.250 (3 "&List!$C$153&" LF 13.500 - 25.900)" -> 9.000 - 17.250 (3 ks LF 13.500 - 25.900) | AT10: 20F2800.05
B11: =List!$C$73&" [mm]" -> Výška korpusu [mm] | E11: TKH * | G11: KH | I11: =IF(H11=0," ",IF($H11<480," min. 480mm",IF($H11>1040," max. 1 040mm"," ")))&IF(H15>0,IF(H11=0,"● "&List!$C$111," ")," ") ->  | N11: F25 | O11: =IF($H14<Cen!$E$242,0,IF($H14<Cen!$F$242,1,0)) -> 0 | P11: F35 | Q11: =IF($P14<Cen!$F$249,IF($P14>Cen!$E$249,IF($H14<Cen!$F$240,0.5,1),0),0)+IF($P14<Cen!$F$249,IF($P14>Cen!$E$249,IF($H14>Cen!$E$244,0.5,0),0),0) -> 0 | T11: T558E | U11: =IF($N$42=1,IF($H10>1199,3,IF($T15>11.9,3,2)),0)+IF(N$42=1,IF($H10>1799,1,IF($T15>19.9,1,0)),0) -> 0 | V11: Z553E | W11: =IF($P$42=1,IF($H10>1199,3,IF($T15>11.9,3,2)),0)+IF($P$42=1,IF($H10>1799,1,IF($T15>19.9,1,0)),0) -> 0
B12: =List!$C$74&" [kg] ** " -> Hmotnost čela včetně úchytky [kg] ** | I12: =IF($H15=0," ",IF(SUM($H12,$H13)=0,$N$34," "))&IF($H15>0,IF($H12>0,$N$35," ")," ") ->  | N12: F28 | O12: =IF($H14<Cen!$E$243,0,IF($H14<Cen!$F$243,1,IF($H14>Cen!$E$244,1.5,0))) -> 0 | P12: F38 | Q12: =IF($P14<Cen!$F$250,IF($P14>Cen!$E$250,IF($H14<Cen!$F$240,0.5,1),0),0)+IF($P14<Cen!$F$250,IF($P14>Cen!$E$250,IF($H14>Cen!$E$244,0.5,0),0),0) -> 0 | T12: T5550 | U12: =IF($N$42=2,IF($H10>1199,3,IF($T15>11.9,3,2)),0)+IF($N$42=2,IF($H10>1799,1,IF($T15>19.9,1,0)),0) -> 2 | V12: Z5500 | W12: =IF($P$42=2,IF($H10>1199,3,IF($T15>11.9,3,2)),0)+IF($P$42=2,IF($H10>1799,1,IF($T15>19.9,1,0)),0) -> 2 | AR12: =List!$C$80&" LF = "&List!$C$298&" [kg]" -> Ukazatel výkonnosti LF = výška korpusu KH [mm] x hmotnost obou čel včetně úchytky [kg]
B13: =List!$C$76&" [kg] " -> Vypočtená hmotnost čela [kg] | H13: =$H$210 -> 0 | I13: =IF($H15>0,IF($H13>0,IF($H12=0,$N$35," ")," ")," ") ->  | P13: F39 | Q13: =IF($P14<Cen!$F$251,IF($P14>Cen!$E$251,IF($H14<Cen!$F$240,0.5,1),0),0)+IF($P14<Cen!$F$251,IF($P14>Cen!$E$251,IF($H14>Cen!$E$244,0.5,0),0),0) -> 0 | Z13: =" "&List!$C$177&" A" -> Výpočet hmotnosti A
B14: =List!$C$80&" LF " -> Ukazatel výkonnosti LF | H14: =IF(H11<1041,IF(H11>479,IF(H12>0,H11*H12,H11*H13),0),0) -> 0 | I14: =IF(AND(H14>0, H14<960), $T$38, IF($H14>25900,$N$38,IF($H14>17250,$N$39," "))&IF(H14>25900," ",IF(AND($S9=1,$H14>17250),$Q$39," "))) ->  | O14: výška korpusu | P14: =IF(F11>0,IF(F11>=H11,F11,0),H11) -> 0
B15: =List!$C$69&" " -> Počet skříněk | I15: =IF(AND(M15>0, H14>959, O10=0.5), $U$39, " ") ->  | M15: =IF($H10*$P14=0,0,IF(SUM($H12,$H13)=0,0,IF($P14>Cen!$F$252,0,IF(P14<Cen!$E$248,0,IF(OR(H14<Cen!$E$240, H14>Cen!$F$244),0,$H15))))) -> 0 | N15: ← Hlavní údaj | S15: hmot = | T15: =IF(H12>0,H12,H13) -> 0 | U15: =IF(SUM(H12,H13)=0,0,IF(H12>0,1,2)) -> 0 | V15: zadaná / vypočtená | Z15: =" "&List!$C$176 -> Výpočet asymetrických čel | AR15: =List!$C$149 -> Zpět
B16: =IF(H15>0,IF(U15=0," ",IF(U15=1,$N$47,$N$48))," ")&IF(H15>0,IF(U15=0," ",IF(U15=1,$N$49,$N$50))," ") -> 
B17: =IF(F11=0," ",IF(F11>1040,"TKH = max. 1040!",IF(F11<480,"TKH = min. 480!",IF(F11<H11,$N$53,IF(H15>0,IF(F11=0," ",IF(F11>0,$N$52," "))," "))))) -> 
B18: SERVO-DRIVE | D18: =List!$C$62&" B" -> Korpus B | N18: zdvih B | P18: teleskop | S18: =IF($T$18=TRUE,1,2) -> 2 | T18: FALSE | V18: - SRVDRV | Z18: =" "&List!$C$361 -> Ověření síly zdvihače
B19: =List!$C$72&" KB [mm] " -> Šířka korpusu KB [mm] | I19: =IF(H19=0," ",IF($H19<220," min. 220mm",IF($H19>1800," max. 1 800mm"," ")))&IF(H24>0,IF(H19=0,"● "&List!$C$111," ")," ") ->  | N19: F22 | O19: =IF($H23<Cen!$F$240,0.5,IF($H23<Cen!$F$241,1,0)) -> 0.5 | P19: F32 | Q19: =SUM(IF($P23<Cen!$F$248,IF($H23<Cen!$F$240,0.5,1),0),IF($P23<Cen!$F$248,IF($H23>Cen!$E$244,0.5,0),0))*IF($P23<480,0,1) -> 0 | T19: Závěs B | V19: Závěs Bs
B20: =List!$C$73&" [mm]" -> Výška korpusu [mm] | E20: TKH * | G20: KH | I20: =IF(H20=0," ",IF($H20<480," min. 480mm",IF($H20>1040," max. 1 040mm"," ")))&IF(H24>0,IF(H20=0,"● "&List!$C$111," ")," ") ->  | N20: F25 | O20: =IF($H23<Cen!$E$242,0,IF($H23<Cen!$F$242,1,0)) -> 0 | P20: F35 | Q20: =IF($P23<Cen!$F$249,IF($P23>Cen!$E$249,IF($H23<Cen!$F$240,0.5,1),0),0)+IF($P23<Cen!$F$249,IF($P23>Cen!$E$249,IF($H23>Cen!$E$244,0.5,0),0),0) -> 0 | T20: T558E | U20: =IF($N$42=1,IF($H19>1199,3,IF($T24>11.9,3,2)),0)+IF(N$42=1,IF($H19>1799,1,IF($T24>19.9,1,0)),0) -> 0 | V20: Z553E | W20: =IF($P$42=1,IF($H19>1199,3,IF($T24>11.9,3,2)),0)+IF($P$42=1,IF($H19>1799,1,IF($T24>19.9,1,0)),0) -> 0
B21: =List!$C$74&" [kg] ** " -> Hmotnost čela včetně úchytky [kg] ** | I21: =IF($H24=0," ",IF(SUM($H21,$H22)=0,$N$34," "))&IF($H24>0,IF($H21>0,$N$35," ")," ") ->  | N21: F28 | O21: =IF($H23<Cen!$E$243,0,IF($H23<Cen!$F$243,1,IF($H23>Cen!$E$244,1.5,0))) -> 0 | P21: F38 | Q21: =IF($P23<Cen!$F$250,IF($P23>Cen!$E$250,IF($H23<Cen!$F$240,0.5,1),0),0)+IF($P23<Cen!$F$250,IF($P23>Cen!$E$250,IF($H23>Cen!$E$244,0.5,0),0),0) -> 0 | T21: T5550 | U21: =IF($N$42=2,IF($H19>1199,3,IF($T24>11.9,3,2)),0)+IF($N$42=2,IF($H19>1799,1,IF($T24>19.9,1,0)),0) -> 2 | V21: Z5500 | W21: =IF($P$42=2,IF($H19>1199,3,IF($T24>11.9,3,2)),0)+IF($P$42=2,IF($H19>1799,1,IF($T24>19.9,1,0)),0) -> 2
B22: =List!$C$76&" [kg] " -> Vypočtená hmotnost čela [kg] | H22: =$H$219 -> 0 | I22: =IF($H24>0,IF($H22>0,IF($H21=0,$N$35," ")," ")," ") ->  | P22: F39 | Q22: =IF($P23<Cen!$F$251,IF($P23>Cen!$E$251,IF($H23<Cen!$F$240,0.5,1),0),0)+IF($P23<Cen!$F$251,IF($P23>Cen!$E$251,IF($H23>Cen!$E$244,0.5,0),0),0) -> 0 | Z22: =" "&List!$C$177&" B" -> Výpočet hmotnosti B
B23: =List!$C$80&" LF " -> Ukazatel výkonnosti LF | H23: =IF(H20<1041,IF(H20>479,IF(H21>0,H20*H21,H20*H22),0),0) -> 0 | I23: =IF(AND(H23>0, H23<960), $T$38, IF($H23>25900,$N$38,IF($H23>17250,$N$39," "))&IF(H23>25900," ",IF(AND($S18=1,$H23>17250),$Q$39," "))) ->  | O23: výška korpusu | P23: =IF(F20>0,IF(F20>=H20,F20,0),H20) -> 0
B24: =List!$C$69&" " -> Počet skříněk | I24: =IF(AND(M24>0, H23>959, O19=0.5), $U$39, " ") ->  | M24: =IF($H19*$P23=0,0,IF(SUM($H21,$H22)=0,0,IF($P23>Cen!$F$252,0,IF(P23<Cen!$E$248,0,IF(OR(H23<Cen!$E$240, H23>Cen!$F$244),0,$H24))))) -> 0 | N24: ← Hlavní údaj | S24: hmot = | T24: =IF(H21>0,H21,H22) -> 0 | U24: =IF(SUM(H21,H22)=0,0,IF(H21>0,1,2)) -> 0 | V24: zadaná / vypočtená | Z24: =" "&List!$C$176 -> Výpočet asymetrických čel
B25: =IF(H24>0,IF(U24=0," ",IF(U24=1,$N$47,$N$48))," ")&IF(H24>0,IF(U24=0," ",IF(U24=1,$N$49,$N$50))," ") -> 
B26: =IF(F20=0," ",IF(F20>1040,"TKH = max. 1040!",IF(F20<480,"TKH = min. 480!",IF(F20<H20,$N$53,IF(H24>0,IF(F20=0," ",IF(F20>0,$N$52," "))," "))))) -> 
B27: =IF(OR(AND($S$9=1, $M$15>0), AND($S$18=1, $M$24>0)), List!$C$157, " ") ->  | S27: =IF($T$27=FALSE,2,1) -> 1 | T27: TRUE | V27: - Zdroj
C31: =IF($H14>25900," ",IF($H14>17250,$N$40,IF($H23>25900," ",IF($H23>17250,$N$40," ")))) -> 
N32: =List!C158 -> Cena bez napájecího zdroje!
C33: ="* "&List!$C$165 -> * Pouze pro asymetrická čela: zadejte teoretickou výšku TKH.
C34: =" ( "&List!$C$166&")" -> ( TKH = dvojnásobná výška horního čela včetně mezer) | N34: =" "&List!$C$103 -> Doplňte nebo použijte "Výpočet hmotnosti"
N35: ="◄ "&List!$C$100 -> ◄ hodnota bude použita pro výpočet LF
C36: ="** "&List!$C$168 -> ** Pokud znáte hmotnost a nechcete využít výpočtu hmotnosti | N36: =" * "&List!$C$110 -> * Doplňte hodnoty
N38: =" max. 25.900! "&List!$C$105 -> max. 25.900! Upravte hmotnost nebo výšku | T38: =" min. 960! "&List!$C$105 -> min. 960! Upravte hmotnost nebo výšku
N39: =" "&List!$C$104&"!" -> Přídavný třetí zdvihač! | Q39: =" "&List!$C$108&"!" -> Druhá pohonná jednotka! | U39: =" "&List!C109 -> Použijte pouze jeden zdvihač
N40: =List!$C$163 -> Přídavný třetí zdvihač může být použit pouze s plným spodním čelem!
N42: =HF!$L$37 -> 2 | P42: =HF!$N$37 -> 2 | R42: =HF!$P$37 -> 2 | T42: =Menu!$Q$27 -> 3
N43: záv. | P43: střed. | R43: podl. | T43: kryt.
N44: =List!$C$116 -> Expando | P44: =List!$C$116 -> Expando | R44: =List!$C$116 -> Expando | T44: =List!$C$128 -> Světle šedá (HG/T)
N45: =List!$C$117 -> na vruty | P45: =List!$C$117 -> na vruty | R45: =List!$C$117 -> na vruty | T45: =List!$C$129 -> Tmavě šedá (TGR)
T46: =List!$C$130 -> Hedvábně bílá (SW/T)
N47: =List!C169&". " -> Pro určení typu zdvihače bude použita zadaná hmotnost.
N48: =List!C170&". " -> Pro určení typu zdvihače bude použita vypočtená hmotnost.
N49: =List!C171 -> Chcete-li použít vypočtenou hmotnost, smažte zadanou hodnotu
N50: =List!C172 -> Chcete-li použít zadanou hmotnost, zadejte ji do políčka
N51: =List!C173 -> 0
N52: =List!C174 -> Pro výběr teleskopů bude použita teoretická výška TKH
N53: =List!C175 -> Teoretická výška TKH nesmí být menší než KH
B98: =List!C142 -> Soupis kování
B100: =$B$2 -> AVENTOS HF | D100: =B4 -> Dřevěné čelo
B101: =List!C50 -> Název | G101: =List!$C$51 -> Číslo artiklu | I101: =List!C52 -> Barva | J101: =List!C54 -> Ks | K101: =List!C56 -> Jednotková cena | L101: =List!C57 -> Celkem | M101: A | N101: Cena | O101: B | P101: Cena | Q101: C | R101: Cena | S101: Filtr
B102: =Cen!A2 -> Sada zdvihačů HF | G102: =Cen!E2 -> 20F2200.05 | I102: =Cen!G2 -> ZN | J102: =ROUNDUP($M$15*O10+$M$24*O19,0) -> 0 | K102: =Cen!I2 -> 0 | L102: =J102*K102 -> 0 | M102: =ROUNDUP($M$15*O10,0) -> 0 | N102: =$K102*M102 -> 0 | O102: =ROUNDUP($M$24*O19,0) -> 0 | P102: =$K102*O102 -> 0 | R102: =$K102*Q102 -> 0 | S102: x
B103: =Cen!A3 -> Sada zdvihačů HF | G103: =Cen!E3 -> 20F2500.05 | I103: =Cen!G3 -> ZN | J103: =ROUNDUP($M$15*O11+$M$24*O20,0) -> 0 | K103: =Cen!I3 -> 0 | L103: =J103*K103 -> 0 | M103: =ROUNDUP($M$15*O11,0) -> 0 | N103: 0 | O103: =ROUNDUP($M$24*O20,0) -> 0 | P103: 0 | R103: 0 | S103: x
B104: =Cen!A4 -> Sada zdvihačů HF | G104: =Cen!E4 -> 20F2800.05 | I104: =Cen!G4 -> ZN | J104: =ROUNDUP($M$15*O12+$M$24*O21,0) -> 0 | K104: =Cen!I4 -> 0 | L104: 0 | M104: =ROUNDUP($M$15*O12,0) -> 0 | N104: 0 | O104: =ROUNDUP($M$24*O21,0) -> 0 | P104: 0 | R104: 0 | S104: x
B105: =Cen!A5 -> Sada teleskopů (480-570mm) | G105: =Cen!E5 -> 20F3200.01 | I105: =Cen!G5 -> NI | J105: =ROUNDUP($M$15*Q10+$M$24*Q19,0) -> 0 | K105: =Cen!I5 -> 0 | L105: 0 | M105: =ROUNDUP($M$15*Q10,0) -> 0 | N105: 0 | O105: =ROUNDUP($M$24*Q19,0) -> 0 | P105: 0 | R105: 0 | S105: x
B106: =Cen!A6 -> Sada teleskopů (560-710mm) | G106: =Cen!E6 -> 20F3500.01 | I106: =Cen!G6 -> NI | J106: =ROUNDUP($M$15*Q11+$M$24*Q20,0) -> 0 | K106: =Cen!I6 -> 0 | L106: 0 | M106: =ROUNDUP($M$15*Q11,0) -> 0 | N106: 0 | O106: =ROUNDUP($M$24*Q20,0) -> 0 | P106: 0 | R106: 0 | S106: x
B107: =Cen!A7 -> Sada teleskopů (700-900mm) | G107: =Cen!E7 -> 20F3800.01 | I107: =Cen!G7 -> NI | J107: =ROUNDUP($M$15*Q12+$M$24*Q21,0) -> 0 | K107: =Cen!I7 -> 0 | L107: 0 | M107: =ROUNDUP($M$15*Q12,0) -> 0 | N107: 0 | O107: =ROUNDUP($M$24*Q21,0) -> 0 | P107: 0 | R107: 0 | S107: x
B108: =Cen!A8 -> Sada teleskopů (760-1040mm) | G108: =Cen!E8 -> 20F3900.01 | I108: =Cen!G8 -> NI | J108: =ROUNDUP($M$15*Q13+$M$24*Q22,0) -> 0 | K108: =Cen!I8 -> 0 | L108: 0 | M108: =ROUNDUP($M$15*Q13,0) -> 0 | N108: 0 | O108: =ROUNDUP($M$24*Q22,0) -> 0 | P108: 0 | R108: 0 | S108: x
B109: =Cen!A9 -> Sada krytek HF SERVO-DRIVE, sv.šedá | G109: =Cen!E9 -> 21F8000 | I109: =Cen!G9 -> HG/T | J109: =SUM(M109,O109,Q109) -> 0 | K109: =Cen!I9 -> 0 | L109: 0 | M109: =IF($S$9=2,0,IF($T$42=1,$M$134,0)) -> 0 | N109: 0 | O109: =IF($S$18=2,0,IF($T$42=1,$O$134,0)) -> 0 | P109: 0 | R109: 0 | S109: x
B110: =Cen!A10 -> Sada krytek HF SERVO-DRIVE, tm.šedá | G110: =Cen!E10 -> 21F8000 | I110: =Cen!G10 -> TGR | J110: 0 | K110: =Cen!I10 -> 0 | L110: 0 | M110: =IF($S$9=2,0,IF($T$42=2,$M$134,0)) -> 0 | N110: 0 | O110: =IF($S$18=2,0,IF($T$42=2,$O$134,0)) -> 0 | P110: 0 | S110: x
B111: =Cen!A11 -> Sada krytek HF SERVO-DRIVE, bílá | G111: =Cen!E11 -> 21F8000 | I111: =Cen!G11 -> SW/T | J111: 0 | K111: =Cen!I11 -> 0 | L111: 0 | M111: =IF($S$9=2,0,IF($T$42=3,$M$134,0)) -> 0 | N111: 0 | O111: =IF($S$18=2,0,IF($T$42=3,$O$134,0)) -> 0 | P111: 0 | R111: 0 | S111: x
B113: =Cen!A12 -> Sada krytek HF, světle šedá | G113: =Cen!E12 -> 20F8000 | I113: =Cen!G12 -> HG/T | J113: 0 | K113: =Cen!I12 -> 0 | L113: 0 | M113: =IF($S$9=1,0,IF($T$42=1,SUM($M$102:$M$104,0),0)) -> 0 | N113: 0 | O113: =IF($S$18=1,0,IF($T$42=1,SUM($O$102:$O$104,0),0)) -> 0 | P113: 0 | R113: 0 | S113: x
B114: =Cen!A13 -> Sada krytek HF, tmavě šedá | G114: =Cen!E13 -> 20F8000 | I114: =Cen!G13 -> TGR | J114: 0 | K114: =Cen!I13 -> 0 | L114: 0 | M114: =IF($S$9=1,0,IF($T$42=2,SUM($M$102:$M$104,0),0)) -> 0 | N114: 0 | O114: =IF($S$18=1,0,IF($T$42=2,SUM($O$102:$O$104,0),0)) -> 0 | S114: x
B115: =Cen!A14 -> Sada krytek HF, bílá | G115: =Cen!E14 -> 20F8000 | I115: =Cen!G14 -> SW/T | J115: 0 | K115: =Cen!I14 -> 0 | L115: 0 | M115: =IF($S$9=1,0,IF($T$42=3,SUM($M$102:$M$104,0),0)) -> 0 | N115: 0 | O115: =IF($S$18=1,0,IF($T$42=3,SUM($O$102:$O$104,0),0)) -> 0 | P115: 0 | R115: 0 | S115: x
B117: =Cen!A15 -> Závěs CLIP top 120° | G117: =Cen!E15 -> 70T5550.TL | I117: =Cen!G15 -> NI | J117: 0 | K117: =Cen!I15 -> 0 | L117: 0 | M117: =$M$15*$U$12 -> 0 | N117: 0 | O117: =$M$24*$U$21 -> 0 | P117: 0 | R117: 0 | S117: x
B118: =Cen!A16 -> Závěs CLIP top 120° EXPANDO | G118: =Cen!E16 -> 70T558E | I118: =Cen!G16 -> NI | J118: 0 | K118: =Cen!I16 -> 0 | L118: 0 | M118: =$M$15*$U$11 -> 0 | N118: 0 | O118: =$M$24*$U$20 -> 0 | P118: 0 | R118: 0 | S118: x
B119: =Cen!A17 -> Středový závěs CLIP top | G119: =Cen!E17 -> 78Z5500T | I119: =Cen!G17 -> NI | J119: 0 | K119: =Cen!I17 -> 0 | L119: 0 | M119: =$M$15*$W$12 -> 0 | N119: 0 | O119: =$M$24*$W$21 -> 0 | P119: 0 | R119: 0 | S119: x
B120: =Cen!A18 -> Středový závěs CLIP top EXPANDO | G120: =Cen!E18 -> 78Z553ET | I120: =Cen!G18 -> NI | J120: 0 | K120: =Cen!I18 -> 0 | L120: 0 | M120: =$M$15*$W$11 -> 0 | N120: 0 | O120: =$M$24*$W$20 -> 0 | P120: 0 | R120: 0 | S120: x
B121: =Cen!A19 -> Závěs CLIP top pro alurámečky | G121: =Cen!E19 -> 72T550A.TL | I121: =Cen!G19 -> NI | K121: =Cen!I19 -> 0 | L121: 0 | N121: 0 | P121: 0 | R121: 0
B122: =Cen!A20 -> Střed. závěs CLIP top pro alurámečky | G122: =Cen!E20 -> 78Z550AT | I122: =Cen!G20 -> NI | K122: =Cen!I20 -> 0 | L122: 0 | N122: 0 | P122: 0 | R122: 0
B123: =Cen!A21 -> Přímá montážní podložka | G123: =Cen!E21 -> 175H3100 | I123: =Cen!G21 -> NI | J123: =SUM(M123,O123,Q123) -> 0 | K123: =Cen!I21 -> 0 | L123: 0 | M123: =IF($R$42=2,SUM($U$11,$U$12,$W$11,$W$12,$Q$10*2,$Q$11*2,$Q$12*2,$Q$13*2)*$M$15,0) -> 0 | N123: 0 | O123: =IF($R$42=2,SUM($U$20,$U$21,$W$20,$W$21,$Q$19*2,$Q$20*2,$Q$21*2,$Q$22*2)*$M$24,0) -> 0 | P123: 0 | R123: 0 | S123: x
B124: =Cen!A22 -> Přímá montážní podložka, EXPANDO | G124: =Cen!E22 -> 177H3100E | I124: =Cen!G22 -> NI | J124: =SUM(M124,O124,Q124) -> 0 | K124: =Cen!I22 -> 0 | L124: 0 | M124: =IF($R$42=1,SUM($U$11,$U$12,$W$11,$W$12,$Q$10*2,$Q$11*2,$Q$12*2,$Q$13*2)*$M$15,0) -> 0 | N124: 0 | O124: =IF($R$42=1,SUM($U$20,$U$21,$W$20,$W$21,$Q$19*2,$Q$20*2,$Q$21*2,$Q$22*2)*$M$24,0) -> 0 | P124: 0 | R124: 0 | S124: x
B125: =Cen!A23 -> Podložka CLIP excentrická | G125: =Cen!E23 -> 173H7100 | I125: =Cen!G23 -> NI | K125: =Cen!I23 -> 0 | L125: 0 | N125: 0 | P125: 0 | R125: 0
B126: =Cen!A24 -> Adaptér CLIP k teleskopům P | G126: =Cen!E24 -> 175H5B00 R | I126: =Cen!G24 -> NI | K126: =Cen!I24 -> 0 | L126: 0 | N126: 0 | P126: 0
B127: =Cen!A25 -> Adaptér CLIP k teleskopům L | G127: =Cen!E25 -> 175H5B00 L | I127: =Cen!G25 -> NI | K127: =Cen!I25 -> 0 | L127: 0 | N127: 0 | P127: 0
B128: =Cen!A26 -> Adaptér CLIP ke středovým závěsům | G128: =Cen!E26 -> 175H5A00 | I128: =Cen!G26 -> NI | K128: =Cen!I26 -> 0 | L128: 0 | N128: 0 | P128: 0
B129: =Cen!A27 -> Omezovač úhlu otevření na 83° | G129: =Cen!E27 -> 20F7011 | I129: =Cen!G27 -> TGR | K129: =Cen!I27 -> 0 | L129: 0 | N129: 0 | P129: 0
B130: =Cen!A28 -> Omezovač úhlu otevření na 104° | G130: =Cen!E28 -> 20F7051 | I130: =Cen!G28 -> TGR | K130: =Cen!I28 -> 0 | L130: 0 | N130: 0 | P130: 0
B131: =Cen!A151 -> CLIP top krytka raménka Nikl | G131: =Cen!E151 -> 70.1503 | I131: =Cen!G151 -> NI | J131: =SUM(M131,O131,Q131) -> 0 | K131: =Cen!I151 -> 0 | L131: 0 | M131: =SUM(M$117:M$122) -> 0 | N131: 0 | O131: =SUM(O$117:O$122) -> 0 | P131: 0 | S131: x
L133: 0 | N133: 0 | P133: 0
B134: =Cen!A199 -> SERVO-DRIVE jednotka (sada) | G134: =Cen!E199 -> 21FA000 | I134: =Cen!G199 -> HGR | J134: =SUM(M134,O134,Q134) -> 0 | K134: =Cen!I199 -> 0 | L134: 0 | M134: =IF($S$9=2,0,$M$15)+IF(AND($S$9=1,$H$14>17250),$M$15,0) -> 0 | N134: 0 | O134: =IF($S$18=2,0,$M$24)+IF(AND($S$18=1,$H$23>17250),$M$24,0) -> 0 | P134: 0 | S134: x
B135: =Cen!A200 -> SERVO-DRIVE jednotka (sada) pro HK top | G135: =Cen!E200 -> 23KA000 | I135: =Cen!G200 -> HGR | K135: =Cen!I200 -> 0 | L135: 0 | N135: 0 | P135: 0
L136: 0 | N136: 0 | P136: 0
K138: =List!$C$59&" " -> Cena celkem bez DPH | L138: =SUM(L102:L136) -> 0 | N138: =SUM(N102:N137) -> 0 | P138: =SUM(P102:P137) -> 0 | R138: =SUM(R102:R137) -> 0
L140: =List!$C$149 -> Zpět
B199: =List!$C$71 -> Výpočet hmotnosti čel
C200: =List!$C$161&" " -> Provedení čel | I200: =IF(O207=3,IF(H200=0,N203," "),IF(H200>0,N204," ")) ->  | N200: =IF($O$207=1,$O$208,IF($O$207=2,$O$209,$O$210&" "&$N$210&"kg/m3"))&" A~"&$H$208&"/ B~"&$H$217&"mm" -> Dřevotříska (680 kg/m3) A~18/ B~18mm
D201: =IF($O$207<>3,$N$202," ")&" " -> Změnit hodnoty můžete v Úvodu plánování
N202: =" "&List!$C$382 -> Změnit hodnoty můžete v Úvodu plánování
N203: =" "&List!$C$225&" [kg/m3]" -> Zadejte objemovou hmotnost [kg/m3]
N204: =" "&List!$C$221&" '"&List!$C$86&"'" -> Hodnota platí jen pro volbu 'Jiné - volitelná hustota'
F205: =D9 -> Korpus A
B206: =List!$C$72&" KB [mm] " -> Šířka korpusu KB [mm] | H206: =H10 -> 0 | N206: =H206*H207*H208 -> 0
B207: =List!$C$73&" KH [mm] " -> Výška korpusu KH [mm] | H207: =H11 -> 0 | N207: =N206/1000000000 -> 0 | O207: 2
B208: =List!$C$77&" TS [mm] " -> Síla čela TS [mm] | H208: 18 | I208: =IF(SUM(H206,H207)=0," ",IF(H208=0," ● "&List!$C$111," ")) ->  | N208: =Menu!$L$30 -> 760 | O208: =List!$C$84&" ("&N208&" kg/m3)" -> MDF (760 kg/m3)
B209: =List!$C$78&" [kg] " -> Hmotnost úchytky [kg] | I209: =IF(SUM(H206,H207)=0," ",IF(H209=0," ● "&List!$C$112," ")) ->  | N209: =Menu!$L$31 -> 680 | O209: =List!$C$85&" ("&N209&" kg/m3)" -> Dřevotříska (680 kg/m3)
B210: =List!$C$76&" [kg] " -> Vypočtená hmotnost čela [kg] | H210: =IF(M210=0,0,M210+H209) -> 0 | M210: =IF(H206*H207*H208=0,0,IF(O207=1,N207*N208,IF(O207=2,N207*N209,N207*N210))) -> 0 | N210: =$H$200 -> 0 | O210: =List!$C$86 -> Jiné - volitelná hustota
C211: =IF(H210>0,IF(H209=0,$N$227," ")," ") -> 
F214: =D18 -> Korpus B
B215: =List!$C$72&" KB [mm] " -> Šířka korpusu KB [mm] | H215: =H19 -> 0 | N215: =H215*H216*H217 -> 0
B216: =List!$C$73&" KH [mm] " -> Výška korpusu KH [mm] | H216: =H20 -> 0 | N216: =N215/1000000000 -> 0 | O216: =O207 -> 2
B217: =List!$C$77&" TS [mm] " -> Síla čela TS [mm] | H217: 18 | I217: =IF(SUM(H215,H216)=0," ",IF(H217=0," ● "&List!$C$111," ")) ->  | N217: =$N$208 -> 760 | O217: =$O$208 -> MDF (760 kg/m3)
B218: =List!$C$78&" [kg] " -> Hmotnost úchytky [kg] | H218: 0.5 | I218: =IF(SUM(H215,H216)=0," ",IF(H218=0," ● "&List!$C$112," ")) ->  | N218: =$N$209 -> 680 | O218: =$O$209 -> Dřevotříska (680 kg/m3)
B219: =List!$C$76&" [kg] " -> Vypočtená hmotnost čela [kg] | H219: =IF(M219=0,0,M219+H218) -> 0 | M219: =IF(H215*H216*H217=0,0,IF(O216=1,N216*N217,IF(O216=2,N216*N218,N216*N219))) -> 0 | N219: =$N$210 -> 0 | O219: =$O$210 -> Jiné - volitelná hustota
C220: =IF(H219>0,IF(H218=0,$N$227," ")," ") -> 
G224: =List!$C$149 -> Zpět
C227: =List!$C$217&" "&List!$C$218 -> Upozornění: Vypočtené hodnoty jsou pouze orientační. Firma Blum ani prodejci neručí za jejich správnost. | N227: =List!$C$95&"!" -> Není započtena hmotnost úchytky!
B300: =List!$C$176 -> Výpočet asymetrických čel
B302: =" "&List!$C$179 -> Parametry korpusu
B303: =List!$C$73&" KH [mm] " -> Výška korpusu KH [mm] | K303: =IF(SUM($I$304:$J$307,$I$314)<>0,IF($I$303=0," "&List!$C$111," ")," ") -> 
B304: =List!$C$182&" [mm] " -> Mezera nahoře [mm]
B305: =List!$C$183&" [mm] " -> Mezera mezi čely [mm] | K305: =IF($I$303=0," ",IF($I$305<1.5," min. 1,5 mm!"," ")) -> 
B306: =List!$C$184&" [mm] " -> Mezera dole [mm]
B307: =List!$C$185&" [mm] " -> Síla dna korpusu [mm]
B309: =" "&List!$C$187 -> Výsledky plánování
G310: =List!$C$188&" [mm] " -> Možné výšky čel [mm] | P310: =ROUNDUP((+$I$303-$I$304-$I$305-$I$306)/2,0) -> 0 | Q310: =IF($P$310<272,70,47) -> 70
B311: =List!$C$189 -> Vrchní čelo (FHo) v rozmezí | G311: min. | H311: =IF($P$310=0,0,IF($P$310<236,$Q$315,IF($P$310>516,$Q$315,$P$310))) -> 0 | I311: max. | J311: =IF($P$310=0,0,IF($Q$315=$H$311,$Q$315,IF($P$315<$P$314,$P$315,$P$314))) -> 0 | P311: =ROUNDDOWN(($I$303-$I$304-$I$305-$I$306-$Q$310-19-$I$307+$I$306)/1.5,0) -> -59 | Q311: =IF($P$310<272,70,47) -> 70
B312: =List!$C$190 -> Spodní čelo (FHu) v rozmezí | G312: min. | H312: =IF($J$312=$Q$315,$Q$315,SUM($I$303-$I$304-$I$305-$I$306-$J$311)) -> 0 | I312: max. | J312: =IF($Q$315=$H$311,$Q$315,(+$I$303-$I$304-$I$305-$I$306)/2) -> 0 | P312: =ROUNDDOWN(($I$303-$I$304-$I$305-$I$306-$Q$311-19-$I$307+$I$306)/1.5,0) -> -59 | Q312: =IF($P$310<272,70,47) -> 70
P313: =ROUNDDOWN(($I$303-$I$304-$I$305-$I$306-$Q$312-19-$I$307+$I$306)/1.5,0) -> -59 | Q313: =IF($P$310<272,70,47) -> 70
B314: =List!$C$196&" FHo [mm] " -> Výška vrchního čela FHo [mm] | K314: =IF($I$303=0," ",IF($I$314>$J$311,V314,IF($I$314<$H$311,$S$314," "))) ->  | P314: =ROUNDDOWN(($I$303-$I$304-$I$305-$I$306-$Q$313-19-$I$307+$I$306)/1.5,0) -> -59 | S314: =" min. "&TEXT($H$311,"#")&" mm!" -> min. mm! | V314: =" max. "&TEXT($J$311,"#")&" mm!" -> max. mm!
B315: =List!$C$197&" FHu [mm] " -> Výška spodního čela FHu [mm] | I315: =IF($I$314<$H$311,$Q$315,IF($I$314>$J$311,$Q$315,+$I$303-$I$304-$I$305-$I$306-$I$314)) -> 0 | P315: =+(1040-$I$304-$I$305-$I$306)/2 -> 520 | Q315: =List!C193 -> nelze
B316: =List!$C$198&" H [mm] " -> Pozice zdvihače H [mm] | I316: =IF($P$310=0,0,IF($I$315=$Q$315, $Q$315,$I$314*0.6-$Q$316+$I$304)) -> 0 | Q316: =IF($I$314<272,28,57) -> 28
B317: =List!$C$199&" X [mm] " -> Pozice mont. podložky pro teleskopy X [mm] | I317: =IF($P$310=0,0,IF($I$315=$Q$315,$Q$315,$I$314*0.5+$Q$317)) -> 0 | Q317: =IF($I$314<272,70,47) -> 70
B318: =List!$C$200&" TKH [mm] * " -> Teoretická výška korpusu TKH [mm] * | I318: =IF($I$315=$Q$315,$Q$315,IF($Q$318>479.99,IF($Q$318<1040.01,$Q$318,$Q$315)," ")) ->  | P318: TKH | Q318: =SUM($I$314*2+$I$304+$I$305+$I$306) -> 0
B320: * | C320: =List!$C$202 -> Tuto výšku zadejte do tabulky pro plánování výklopů
I325: =List!$C$149 -> Zpět
B400: AVENTOS HF
B402: =List!$C$281 -> Potřebný zdvihač se určí pomocí ukazatele výkonnosti.
B403: =List!$C$282 -> Ukazatel výkonnosti závisí na hmotnosti dolního i horního čílka, a rovněž na výšce korpusu.
B405: =" "&List!$C$295 -> Tak se to dělá:
D406: =List!$C$80&" = " -> Ukazatel výkonnosti = | E406: =List!$C$298&" [kg]" -> výška korpusu KH [mm] x hmotnost obou čel včetně úchytky [kg]
B408: =List!$C$286 -> Je-li ukazatel výkonnosti větší než 17.250, přidá se třetí zdvihač.
B409: =List!$C$287 -> Pokud je zvolen SERVO-DRIVE, přidá se rovněž druhá pohonná jednotka.
B410: =List!$C$163 -> Přídavný třetí zdvihač může být použit pouze s plným spodním čelem!
B412: =List!$C$289 -> Pokud znáte hmotnost čela, můžete ji zadat, jinak použijte "Výpočet hmotnosti".
B413: =List!$C$290 -> V tabulce má přednost zadaná hodnota. Chcete-li použít vypočtenou hmotnost, smažte zadanou hodnotu.
B415: =List!$C$301&". "&List!$C$302&"." -> Délka teleskopů závisí na výšce korpusu KH. U asymetrických čel se použije teoretická výška TKH.
B417: =" "&List!$C$144&":" -> Asymetrická čela:
B418: =" "&List!$C$299 -> Teoretická výška korpusu (TKH) = výška horního čela (FHo) x 2 (včetně mezer)
B420: =List!$C$293 -> U asymetrických čel musí být větší čelo nahoře!
B422: =List!$C$304 -> Pokud zadáte hodnotu TKH, použije se pro určení délky teleskopů
B423: =List!$C$305 -> Nemáte-li asymetrická čela, nechte políčko prázdné.
B424: =List!$C$306&" ' "&List!$C$176&"' " -> Pro výpočet TKH můžete použít ' Výpočet asymetrických čel'
B427: =List!$C$284 -> Chcete-li změnit barvu krytek, přejděte na "Úvod"
L435: =List!$C$149 -> Zpět

Sheet HFw_wa
B2: AVENTOS HF | D2: AVENTOS HS | F2: AVENTOS HL | H2: AVENTOS HK top | J2: AVENTOS HK-S | L2: AVENTOS HK-XS | O2: rámeček | S2: 3 | Z2: =List!$C$135 -> Jdi na
B4: =List!$C$15 -> Dřevěné čelo | F4: =$N$200&" " -> MDF (760 kg/m3) A~/ B~mm | O4: 1 | S4: =" "&List!$C$39&" A " -> Cena za korpus A | Z4: =List!$C$136 -> Úvod plánování
B5: =List!$C$18&" ***" -> Široký alurámeček *** | F5: =$N$201&" " -> Alurámečky s 4mm sklem | O5: A = 1 | S5: =" "&List!$C$39&" B " -> Cena za korpus B | Z5: =List!$C$137 -> Nápověda
G6: =List!$C$47&" "&List!$C$22&" " -> Nastavit hmotnost alurámečků | O6: B = 2 | S6: =" "&List!$C$59 -> Cena celkem bez DPH | AR6: =" "&List!$C$80&" LF " -> Ukazatel výkonnosti LF | AT6: =List!$C$79 -> Zdvihací mechanizmus
B7: =List!$C$142 -> Soupis kování | G7: =IF(S2=1,$N$138,IF($S$2=2,$P$138,IF($S$2=3,$L$138,0))) -> 0 | Z7: =List!$C$141 -> Doplňky
H8: =IF(AND(OR($S$9=1, $S$18=1), $L$138>0), $N$32, " ") ->  | AR8: =" 2.600 - 5.500 (1 "&List!$C$153&" LF 960 - 2.650)" -> 2.600 - 5.500 (1 ks LF 960 - 2.650) | AT8: 20F2200.05
B9: SERVO-DRIVE | D9: =List!$C$62&" A" -> Korpus A | N9: zdvih A | P9: teleskop | S9: =IF($T$9=TRUE,1,2) -> 2 | T9: FALSE | V9: - SRVDRV | Z9: =List!$C$139 -> Přehled korpusů | AR9: 5.350 - 10.150 | AT9: 20F2500.05
B10: =List!$C$72&" KB [mm] " -> Šířka korpusu KB [mm] | I10: =IF(H10=0," ",IF($H10<220," min. 220mm",IF($H10>1800," max. 1 800mm"," ")))&IF(H15>0,IF(H10=0,"● "&List!$C$111," ")," ") ->  | N10: F22 | O10: =IF($H14<Cen!$F$240,0.5,IF($H14<Cen!$F$241,1,0)) -> 0.5 | P10: F32 | Q10: =SUM(IF($P14<Cen!$F$248,IF($H14<Cen!$F$240,0.5,1),0)) -> 0.5 | T10: Závěs A | V10: Závěs As | Z10: =List!$C$140 -> Objednávka | AR10: 9.000 - 17.250 | AT10: 20F2800.05
B11: =List!$C$73&" [mm]" -> Výška korpusu [mm] | E11: TKH * | G11: KH | I11: =IF(H11=0," ",IF($H11<480," min. 480mm",IF($H11>1040," max. 1 040mm"," ")))&IF(H15>0,IF(H11=0,"● "&List!$C$111," ")," ") ->  | N11: F25 | O11: =IF($H14<Cen!$E$242,0,IF($H14<Cen!$F$242,1,0)) -> 0 | P11: F35 | Q11: =IF($P14<Cen!$F$249,IF($P14>Cen!$E$249,IF($H14<Cen!$F$240,0.5,1),0),0) -> 0 | T11: T558E | U11: =IF($N$42=1,IF($H10>1199,3,IF($T15>11.9,3,2)),0)+IF(N$42=1,IF($H10>1799,1,IF($T15>19.9,1,0)),0) -> 0 | V11: Z553E | W11: =IF($Q$42=1,IF($H10>1199,3,IF($T15>11.9,3,2)),0)+IF($Q$42=1,IF($H10>1799,1,IF($T15>19.9,1,0)),0) -> 0
B12: =List!$C$74&" [kg] ** " -> Hmotnost čela včetně úchytky [kg] ** | I12: =IF($H15=0," ",IF(SUM($H12,$H13)=0,$N$34," "))&IF($H15>0,IF($H12>0,$N$35," ")," ") ->  | N12: F28 | O12: =IF($H14<Cen!$E$243,0,IF($H14<Cen!$F$243,1,IF($H14>Cen!$E$244,0,0))) -> 0 | P12: F38 | Q12: =IF($P14<Cen!$F$250,IF($P14>Cen!$E$250,IF($H14<Cen!$F$240,0.5,1),0),0) -> 0 | T12: T5550 | U12: =IF($N$42=2,IF($H10>1199,3,IF($T15>11.9,3,2)),0)+IF($N$42=2,IF($H10>1799,1,IF($T15>19.9,1,0)),0) -> 2 | V12: Z5500 | W12: =IF($Q$42=2,IF($H10>1199,3,IF($T15>11.9,3,2)),0)+IF($Q$42=2,IF($H10>1799,1,IF($T15>19.9,1,0)),0) -> 2 | AR12: =List!$C$80&" LF = "&List!$C$298&" [kg]" -> Ukazatel výkonnosti LF = výška korpusu KH [mm] x hmotnost obou čel včetně úchytky [kg]
B13: =List!$C$76&" [kg] " -> Vypočtená hmotnost čela [kg] | H13: =$H$210 -> 0 | I13: =IF($H15>0,IF($H13>0,IF($H12=0,$N$35," ")," ")," ") ->  | P13: F39 | Q13: =IF($P14<Cen!$F$251,IF($P14>Cen!$E$251,IF($H14<Cen!$F$240,0.5,1),0),0) -> 0 | Z13: =" "&List!$C$177&" A" -> Výpočet hmotnosti A
B14: =List!$C$80&" LF " -> Ukazatel výkonnosti LF | H14: =IF(H11<1041,IF(H11>479,IF(H12>0,H11*H12,H11*H13),0),0) -> 0 | I14: =IF(AND(H14>0,H14<960), $T$38, IF($H14>17250,$N$38," ")) ->  | O14: výška korpusu | P14: =IF(F11>0,IF(F11>=H11,F11,0),H11) -> 0
B15: =List!$C$69&" " -> Počet skříněk | I15: =IF(AND(M15>0, H14>959, O10=0.5), $U$39, " ") ->  | M15: =IF($H10*$P14=0,0,IF(SUM($H12,$H13)=0,0,IF($P14>Cen!$F$252,0,IF(P14<Cen!$E$248,0,IF(OR(H14<Cen!$E$240, H14>Cen!$F$243),0,$H15))))) -> 0 | N15: ← Hlavní údaj | S15: hmot = | T15: =IF(H12>0,H12,H13) -> 0 | U15: =IF(SUM(H12,H13)=0,0,IF(H12>0,1,2)) -> 0 | V15: zadaná / vypočtená | Z15: =" "&List!$C$176 -> Výpočet asymetrických čel | AR15: =List!$C$149 -> Zpět
B16: =IF(H15>0,IF(U15=0," ",IF(U15=1,$N$47,$N$48))," ")&IF(H15>0,IF(U15=0," ",IF(U15=1,$N$49,$N$50))," ") -> 
B17: =IF(F11=0," ",IF(F11>1040,"TKH = max. 1040!",IF(F11<480,"TKH = min. 480!",IF(F11<H11,$N$53,IF(H15>0,IF(F11=0," ",IF(F11>0,$N$52," "))," "))))) -> 
B18: SERVO-DRIVE | D18: =List!$C$62&" B" -> Korpus B | N18: zdvih B | P18: teleskop | S18: =IF($T$18=TRUE,1,2) -> 2 | T18: FALSE | V18: - SRVDRV | Z18: =" "&List!$C$361 -> Ověření síly zdvihače
B19: =List!$C$72&" KB [mm] " -> Šířka korpusu KB [mm] | I19: =IF(H19=0," ",IF($H19<220," min. 220mm",IF($H19>1800," max. 1 800mm"," ")))&IF(H24>0,IF(H19=0,"● "&List!$C$111," ")," ") ->  | N19: F22 | O19: =IF($H23<Cen!$F$240,0.5,IF($H23<Cen!$F$241,1,0)) -> 0.5 | P19: F32 | Q19: =SUM(IF($P23<Cen!$F$248,IF($H23<Cen!$F$240,0.5,1),0)) -> 0.5 | T19: Závěs B | V19: Závěs Bs
B20: =List!$C$73&" [mm]" -> Výška korpusu [mm] | E20: TKH * | G20: KH | I20: =IF(H20=0," ",IF($H20<480," min. 480mm",IF($H20>1040," max. 1 040mm"," ")))&IF(H24>0,IF(H20=0,"● "&List!$C$111," ")," ") ->  | N20: F25 | O20: =IF($H23<Cen!$E$242,0,IF($H23<Cen!$F$242,1,0)) -> 0 | P20: F35 | Q20: =IF($P23<Cen!$F$249,IF($P23>Cen!$E$249,IF($H23<Cen!$F$240,0.5,1),0),0) -> 0 | T20: T558E | U20: =IF($N$42=1,IF($H19>1199,3,IF($T24>11.9,3,2)),0)+IF(N$42=1,IF($H19>1799,1,IF($T24>19.9,1,0)),0) -> 0 | V20: Z553E | W20: =IF($Q$42=1,IF($H19>1199,3,IF($T24>11.9,3,2)),0)+IF($Q$42=1,IF($H19>1799,1,IF($T24>19.9,1,0)),0) -> 0
B21: =List!$C$74&" [kg] ** " -> Hmotnost čela včetně úchytky [kg] ** | I21: =IF($H24=0," ",IF(SUM($H21,$H22)=0,$N$34," "))&IF($H24>0,IF($H21>0,$N$35," ")," ") ->  | N21: F28 | O21: =IF($H23<Cen!$E$243,0,IF($H23<Cen!$F$243,1,IF($H23>Cen!$E$244,0,0))) -> 0 | P21: F38 | Q21: =IF($P23<Cen!$F$250,IF($P23>Cen!$E$250,IF($H23<Cen!$F$240,0.5,1),0),0) -> 0 | T21: T5550 | U21: =IF($N$42=2,IF($H19>1199,3,IF($T24>11.9,3,2)),0)+IF($N$42=2,IF($H19>1799,1,IF($T24>19.9,1,0)),0) -> 2 | V21: Z5500 | W21: =IF($Q$42=2,IF($H19>1199,3,IF($T24>11.9,3,2)),0)+IF($Q$42=2,IF($H19>1799,1,IF($T24>19.9,1,0)),0) -> 2
B22: =List!$C$76&" [kg] " -> Vypočtená hmotnost čela [kg] | H22: =$H$219 -> 0 | I22: =IF($H24>0,IF($H22>0,IF($H21=0,$N$35," ")," ")," ") ->  | P22: F39 | Q22: =IF($P23<Cen!$F$251,IF($P23>Cen!$E$251,IF($H23<Cen!$F$240,0.5,1),0),0) -> 0 | Z22: =" "&List!$C$177&" B" -> Výpočet hmotnosti B
B23: =List!$C$80&" LF " -> Ukazatel výkonnosti LF | H23: =IF(H20<1041,IF(H20>479,IF(H21>0,H20*H21,H20*H22),0),0) -> 0 | I23: =IF(AND(H23>0,H23<960), $T$38, IF($H23>17250,$N$38," ")) ->  | O23: výška korpusu | P23: =IF(F20>0,IF(F20>=H20,F20,0),H20) -> 0
B24: =List!$C$69&" " -> Počet skříněk | I24: =IF(AND(M24>0, H23>959, O19=0.5), $U$39, " ") ->  | M24: =IF($H19*$P23=0,0,IF(SUM($H21,$H22)=0,0,IF($P23>Cen!$F$252,0,IF(P23<Cen!$E$248,0,IF(OR(H23<Cen!$E$240, H23>Cen!$F$243),0,$H24))))) -> 0 | N24: ← Hlavní údaj | S24: hmot = | T24: =IF(H21>0,H21,H22) -> 0 | U24: =IF(SUM(H21,H22)=0,0,IF(H21>0,1,2)) -> 0 | V24: zadaná / vypočtená | Z24: =" "&List!$C$176 -> Výpočet asymetrických čel
B25: =IF(H24>0,IF(U24=0," ",IF(U24=1,$N$47,$N$48))," ")&IF(H24>0,IF(U24=0," ",IF(U24=1,$N$49,$N$50))," ") -> 
B26: =IF(F20=0," ",IF(F20>1040,"TKH = max. 1040!",IF(F20<480,"TKH = min. 480!",IF(F20<H20,$N$53,IF(H24>0,IF(F20=0," ",IF(F20>0,$N$52," "))," "))))) -> 
B27: =IF(OR(AND($S$9=1, $M$15>0), AND($S$18=1, $M$24>0)), List!$C$157, " ") ->  | S27: =IF($T$27=FALSE,2,1) -> 1 | T27: TRUE | V27: - Zdroj
N32: =List!C158 -> Cena bez napájecího zdroje!
C33: ="* "&List!$C$165 -> * Pouze pro asymetrická čela: zadejte teoretickou výšku TKH.
C34: =" ( "&List!$C$166&")" -> ( TKH = dvojnásobná výška horního čela včetně mezer) | N34: =" "&List!$C$103 -> Doplňte nebo použijte "Výpočet hmotnosti"
C35: ="** "&List!$C$168 -> ** Pokud znáte hmotnost a nechcete využít výpočtu hmotnosti | N35: ="◄ "&List!$C$100 -> ◄ hodnota bude použita pro výpočet LF
C36: ="*** "&List!$C$371 -> *** Vyberte typ alurámečku! | N36: =" * "&List!$C$110 -> * Doplňte hodnoty
C37: =" "&List!$C$372 -> Více informací k výběru alurámečků v Nápovědě
N38: =" max. 17.250! "&List!$C$105 -> max. 17.250! Upravte hmotnost nebo výšku | T38: =" min. 960! "&List!$C$105 -> min. 960! Upravte hmotnost nebo výšku
N39: =" "&List!$C$104 -> Přídavný třetí zdvihač | U39: =" "&List!C109 -> Použijte pouze jeden zdvihač
N40: =List!$C$163 -> Přídavný třetí zdvihač může být použit pouze s plným spodním čelem!
N42: =HF!$L$37 -> 2 | O42: 2 | P42: =HF!$N$37 -> 2 | Q42: 2 | R42: =HF!$P$37 -> 2 | T42: =Menu!$Q$27 -> 3
N43: záv. | O43: alu | P43: střed. | Q43: alu | R43: podl. | T43: kryt.
N44: =List!$C$116 -> Expando | P44: =List!$C$116 -> Expando | R44: =List!$C$116 -> Expando | T44: =List!$C$128 -> Světle šedá (HG/T)
N45: =List!$C$117 -> na vruty | P45: =List!$C$117 -> na vruty | R45: =List!$C$117 -> na vruty | T45: =List!$C$130 -> Hedvábně bílá (SW/T)
T46: =List!$C$131 -> 0
N47: =List!C169 -> Pro určení typu zdvihače bude použita zadaná hmotnost
N48: =List!C170 -> Pro určení typu zdvihače bude použita vypočtená hmotnost
N49: =". "&List!$C$171 -> . Chcete-li použít vypočtenou hmotnost, smažte zadanou hodnotu
N50: =". "&List!$C$172 -> . Chcete-li použít zadanou hmotnost, zadejte ji do políčka
N51: =List!C173 -> 0
N52: =List!C174 -> Pro výběr teleskopů bude použita teoretická výška TKH
N53: =List!C175 -> Teoretická výška TKH nesmí být menší než KH
B98: =List!C142 -> Soupis kování
B100: =$B$2 -> AVENTOS HF | D100: =B4 -> Dřevěné čelo | F100: - | G100: =B5 -> Široký alurámeček ***
B101: =List!C50 -> Název | G101: =List!$C$51 -> Číslo artiklu | I101: =List!C52 -> Barva | J101: =List!C54 -> Ks | K101: =List!C56 -> Jednotková cena | L101: =List!C57 -> Celkem | M101: A | N101: Cena | O101: B | P101: Cena | S101: Filtr
B102: =Cen!A2 -> Sada zdvihačů HF | G102: =Cen!E2 -> 20F2200.05 | I102: =Cen!G2 -> ZN | J102: =ROUNDUP($M$15*O10+$M$24*O19,0) -> 0 | K102: =Cen!I2 -> 0 | L102: =J102*K102 -> 0 | M102: =ROUNDUP($M$15*O10,0) -> 0 | N102: =$K102*M102 -> 0 | O102: =ROUNDUP($M$24*O19,0) -> 0 | P102: =$K102*O102 -> 0 | S102: x
B103: =Cen!A3 -> Sada zdvihačů HF | G103: =Cen!E3 -> 20F2500.05 | I103: =Cen!G3 -> ZN | J103: =ROUNDUP($M$15*O11+$M$24*O20,0) -> 0 | K103: =Cen!I3 -> 0 | L103: =J103*K103 -> 0 | M103: =ROUNDUP($M$15*O11,0) -> 0 | N103: 0 | O103: =ROUNDUP($M$24*O20,0) -> 0 | P103: 0 | S103: x
B104: =Cen!A4 -> Sada zdvihačů HF | G104: =Cen!E4 -> 20F2800.05 | I104: =Cen!G4 -> ZN | J104: =ROUNDUP($M$15*O12+$M$24*O21,0) -> 0 | K104: =Cen!I4 -> 0 | L104: 0 | M104: =ROUNDUP($M$15*O12,0) -> 0 | N104: 0 | O104: =ROUNDUP($M$24*O21,0) -> 0 | P104: 0 | S104: x
B105: =Cen!A5 -> Sada teleskopů (480-570mm) | G105: =Cen!E5 -> 20F3200.01 | I105: =Cen!G5 -> NI | J105: =ROUNDUP($M$15*Q10+$M$24*Q19,0) -> 0 | K105: =Cen!I5 -> 0 | L105: 0 | M105: =ROUNDUP($M$15*Q10,0) -> 0 | N105: 0 | O105: =ROUNDUP($M$24*Q19,0) -> 0 | P105: 0 | S105: x
B106: =Cen!A6 -> Sada teleskopů (560-710mm) | G106: =Cen!E6 -> 20F3500.01 | I106: =Cen!G6 -> NI | J106: =ROUNDUP($M$15*Q11+$M$24*Q20,0) -> 0 | K106: =Cen!I6 -> 0 | L106: 0 | M106: =ROUNDUP($M$15*Q11,0) -> 0 | N106: 0 | O106: =ROUNDUP($M$24*Q20,0) -> 0 | P106: 0 | S106: x
B107: =Cen!A7 -> Sada teleskopů (700-900mm) | G107: =Cen!E7 -> 20F3800.01 | I107: =Cen!G7 -> NI | J107: =ROUNDUP($M$15*Q12+$M$24*Q21,0) -> 0 | K107: =Cen!I7 -> 0 | L107: 0 | M107: =ROUNDUP($M$15*Q12,0) -> 0 | N107: 0 | O107: =ROUNDUP($M$24*Q21,0) -> 0 | P107: 0 | S107: x
B108: =Cen!A8 -> Sada teleskopů (760-1040mm) | G108: =Cen!E8 -> 20F3900.01 | I108: =Cen!G8 -> NI | J108: =ROUNDUP($M$15*Q13+$M$24*Q22,0) -> 0 | K108: =Cen!I8 -> 0 | L108: 0 | M108: =ROUNDUP($M$15*Q13,0) -> 0 | N108: 0 | O108: =ROUNDUP($M$24*Q22,0) -> 0 | P108: 0 | S108: x
B109: =Cen!A9 -> Sada krytek HF SERVO-DRIVE, sv.šedá | G109: =Cen!E9 -> 21F8000 | I109: =Cen!G9 -> HG/T | J109: =SUM(M109,O109,Q109) -> 0 | K109: =Cen!I9 -> 0 | L109: 0 | M109: =IF($S$9=2,0,IF($T$42=1,$M$134,0)) -> 0 | N109: 0 | O109: =IF($S$18=2,0,IF($T$42=1,$O$134,0)) -> 0 | P109: 0 | S109: x
B110: =Cen!A10 -> Sada krytek HF SERVO-DRIVE, tm.šedá | G110: =Cen!E10 -> 21F8000 | I110: =Cen!G10 -> TGR | J110: =SUM(M110,O110,Q110) -> 0 | K110: =Cen!I10 -> 0 | L110: =J110*K110 -> 0 | M110: =IF($S$9=2,0,IF($T$42=2,$M$134,0)) -> 0 | N110: =$K110*M110 -> 0 | O110: =IF($S$18=2,0,IF($T$42=2,$O$134,0)) -> 0 | P110: =$K110*O110 -> 0 | S110: x
B111: =Cen!A11 -> Sada krytek HF SERVO-DRIVE, bílá | G111: =Cen!E11 -> 21F8000 | I111: =Cen!G11 -> SW/T | J111: 0 | K111: =Cen!I11 -> 0 | L111: 0 | M111: =IF($S$9=2,0,IF($T$42=3,$M$134,0)) -> 0 | N111: 0 | O111: =IF($S$18=2,0,IF($T$42=3,$O$134,0)) -> 0 | P111: 0 | S111: x
B113: =Cen!A12 -> Sada krytek HF, světle šedá | G113: =Cen!E12 -> 20F8000 | I113: =Cen!G12 -> HG/T | J113: 0 | K113: =Cen!I12 -> 0 | L113: 0 | M113: =IF($S$9=1,0,IF($T$42=1,SUM($M$102:$M$104,0),0)) -> 0 | N113: 0 | O113: =IF($S$18=1,0,IF($T$42=1,SUM($O$102:$O$104,0),0)) -> 0 | P113: 0 | S113: x
B114: =Cen!A13 -> Sada krytek HF, tmavě šedá | G114: =Cen!E13 -> 20F8000 | I114: =Cen!G13 -> TGR | J114: =SUM(M114,O114,Q114) -> 0 | K114: =Cen!I13 -> 0 | L114: =J114*K114 -> 0 | M114: =IF($S$9=1,0,IF($T$42=2,SUM($M$102:$M$104,0),0)) -> 0 | N114: =$K114*M114 -> 0 | O114: =IF($S$18=1,0,IF($T$42=2,SUM($O$102:$O$104,0),0)) -> 0 | P114: =$K114*O114 -> 0 | S114: x
B115: =Cen!A14 -> Sada krytek HF, bílá | G115: =Cen!E14 -> 20F8000 | I115: =Cen!G14 -> SW/T | J115: 0 | K115: =Cen!I14 -> 0 | L115: 0 | M115: =IF($S$9=1,0,IF($T$42=3,SUM($M$102:$M$104,0),0)) -> 0 | N115: 0 | O115: =IF($S$18=1,0,IF($T$42=3,SUM($O$102:$O$104,0),0)) -> 0 | P115: 0 | S115: x
B117: =Cen!A15 -> Závěs CLIP top 120° | G117: =Cen!E15 -> 70T5550.TL | I117: =Cen!G15 -> NI | J117: 0 | K117: =Cen!I15 -> 0 | L117: 0 | M117: =$M$15*$U$12 -> 0 | N117: 0 | O117: =$M$24*$U$21 -> 0 | P117: 0 | S117: x
B118: =Cen!A16 -> Závěs CLIP top 120° EXPANDO | G118: =Cen!E16 -> 70T558E | I118: =Cen!G16 -> NI | J118: 0 | K118: =Cen!I16 -> 0 | L118: 0 | M118: =$M$15*$U$11 -> 0 | N118: 0 | O118: =$M$24*$U$20 -> 0 | P118: 0 | S118: x
B119: =Cen!A17 -> Středový závěs CLIP top | G119: =Cen!E17 -> 78Z5500T | I119: =Cen!G17 -> NI | J119: 0 | K119: =Cen!I17 -> 0 | L119: 0 | M119: =$M$15*$W$12 -> 0 | N119: 0 | O119: =$M$24*$W$21 -> 0 | P119: 0 | S119: x
B120: =Cen!A18 -> Středový závěs CLIP top EXPANDO | G120: =Cen!E18 -> 78Z553ET | I120: =Cen!G18 -> NI | J120: 0 | K120: =Cen!I18 -> 0 | L120: 0 | M120: =$M$15*$W$11 -> 0 | N120: 0 | O120: =$M$24*$W$20 -> 0 | P120: 0
B121: =Cen!A19 -> Závěs CLIP top pro alurámečky | G121: =Cen!E19 -> 72T550A.TL | I121: =Cen!G19 -> NI | K121: =Cen!I19 -> 0 | L121: 0 | N121: 0 | P121: 0
B122: =Cen!A20 -> Střed. závěs CLIP top pro alurámečky | G122: =Cen!E20 -> 78Z550AT | I122: =Cen!G20 -> NI | K122: =Cen!I20 -> 0 | L122: 0 | N122: 0 | P122: 0
B123: =Cen!A21 -> Přímá montážní podložka | G123: =Cen!E21 -> 175H3100 | I123: =Cen!G21 -> NI | J123: =SUM(M123,O123,Q123) -> 0 | K123: =Cen!I21 -> 0 | L123: 0 | M123: =SUM($Q$10*2,$Q$11*2,$Q$12*2,$Q$13*2,IF($R$42=2,SUM($U$11:$U$12,$W$11:$W$12),0))*$M$15 -> 0 | N123: 0 | O123: =SUM($Q$19*2,$Q$20*2,$Q$21*2,$Q$22*2,IF($R$42=2,SUM($U$20:$U$21,$W$20:$W$21),0))*$M$24 -> 0 | P123: 0 | S123: x
B124: =Cen!A22 -> Přímá montážní podložka, EXPANDO | G124: =Cen!E22 -> 177H3100E | I124: =Cen!G22 -> NI | J124: =SUM(M124,O124,Q124) -> 0 | K124: =Cen!I22 -> 0 | L124: 0 | M124: =IF($R$42=1,SUM($U$11,$U$12,$W$11,$W$12)*$M$15,0) -> 0 | N124: 0 | O124: =IF($R$42=1,SUM($U$20,$U$21,$W$20,$W$21)*$M$24,0) -> 0 | P124: 0 | S124: x
B125: =Cen!A23 -> Podložka CLIP excentrická | G125: =Cen!E23 -> 173H7100 | I125: =Cen!G23 -> NI | K125: =Cen!I23 -> 0 | L125: 0 | N125: 0 | P125: 0
B126: =Cen!A24 -> Adaptér CLIP k teleskopům P | G126: =Cen!E24 -> 175H5B00 R | I126: =Cen!G24 -> NI | K126: =Cen!I24 -> 0 | L126: 0 | N126: 0 | P126: 0
B127: =Cen!A25 -> Adaptér CLIP k teleskopům L | G127: =Cen!E25 -> 175H5B00 L | I127: =Cen!G25 -> NI | K127: =Cen!I25 -> 0 | L127: 0 | N127: 0 | P127: 0
B128: =Cen!A26 -> Adaptér CLIP ke středovým závěsům | G128: =Cen!E26 -> 175H5A00 | I128: =Cen!G26 -> NI | K128: =Cen!I26 -> 0 | L128: 0 | N128: 0 | P128: 0
B129: =Cen!A27 -> Omezovač úhlu otevření na 83° | G129: =Cen!E27 -> 20F7011 | I129: =Cen!G27 -> TGR | K129: =Cen!I27 -> 0 | L129: 0 | N129: 0 | P129: 0
B130: =Cen!A28 -> Omezovač úhlu otevření na 104° | G130: =Cen!E28 -> 20F7051 | I130: =Cen!G28 -> TGR | K130: =Cen!I28 -> 0 | L130: 0 | N130: 0 | P130: 0
B131: =Cen!A151 -> CLIP top krytka raménka Nikl | G131: =Cen!E151 -> 70.1503 | I131: =Cen!G151 -> NI | J131: =SUM(M131,O131,Q131) -> 0 | K131: =Cen!I151 -> 0 | L131: 0 | M131: =SUM(M$117:M$122) -> 0 | N131: 0 | O131: =SUM(O$117:O$122) -> 0 | P131: 0 | S131: x
B132: =Cen!A195 -> Samořezný vrut do alurámečků | G132: =Cen!E195 -> 660.0950 | I132: =Cen!G195 -> NI | J132: =SUM(M132,O132,Q132) -> 0 | K132: =Cen!I195 -> 0 | L132: 0 | M132: =SUM(SUM(M119:M125)*2, -M119*4) -> 0 | N132: =$K132*M132 -> 0 | O132: =SUM(SUM(O119:O125)*2, -O119*4) -> 0 | P132: =$K132*O132 -> 0 | S132: x
L133: 0 | N133: 0 | P133: 0
B134: =Cen!A199 -> SERVO-DRIVE jednotka (sada) | G134: =Cen!E199 -> 21FA000 | I134: =Cen!G199 -> HGR | J134: =SUM(M134,O134,Q134) -> 0 | K134: =Cen!I199 -> 0 | L134: 0 | M134: =IF($S$9=2,0,$M$15) -> 0 | N134: 0 | O134: =IF($S$18=2,0,$M$24) -> 0 | P134: 0 | S134: x
B135: =Cen!A200 -> SERVO-DRIVE jednotka (sada) pro HK top | G135: =Cen!E200 -> 23KA000 | I135: =Cen!G200 -> HGR | K135: =Cen!I200 -> 0 | L135: 0 | N135: 0 | P135: 0
K138: =List!$C$59&" " -> Cena celkem bez DPH | L138: =SUM(L102:L136) -> 0 | N138: =SUM(N102:N137) -> 0 | P138: =SUM(P102:P137) -> 0 | R138: =SUM(R102:R137) -> 0
L140: =List!$C$149 -> Zpět
B199: =List!$C$71 -> Výpočet hmotnosti čel
C200: =List!$C$33&" " -> horní čelo | I200: =IF(O207=3,IF(H200=0,N203," "),IF(H200>0,N204," ")) ->  | N200: =IF($O$207=1,$O$208,IF($O$207=2,$O$209,$O$210&" "&$N$210&"kg/m3"))&" A~"&$H$208&"/ B~"&$H$217&"mm" -> MDF (760 kg/m3) A~/ B~mm | S200: =Menu!$Q$205 -> 2500
D201: =IF($O$207<>3,$N$202," ")&" " -> Změnit hodnoty můžete v Úvodu plánování | N201: =IF($U$206=1,$U$227,IF($U$206=2,$U$228,$U$229&" - "&$H$202&"mm")) -> Alurámečky s 4mm sklem
C202: =List!$C$34&" " -> dolní čelo | I202: =IF(U206=3,IF(H202=0,T203," "),IF(H202>0,T204," ")) ->  | N202: =" "&List!$C$382 -> Změnit hodnoty můžete v Úvodu plánování
N203: =" "&List!$C$225&" [kg/m3]" -> Zadejte objemovou hmotnost [kg/m3] | T203: =" "&List!$C$226&" [mm]" -> Zadejte sílu skla [mm]
N204: =" "&List!$C$221&" '"&List!$C$86&"'" -> Hodnota platí jen pro volbu 'Jiné - volitelná hustota' | T204: =" "&List!$C$221&" '"&List!$C$89&"'" -> Hodnota platí jen pro volbu 'Alurámečky s jiným sklem'
F205: =D9 -> Korpus A | T205: váha spoj. | U205: tl. skla | V205: typ alu
B206: =List!$C$72&" KB [mm] " -> Šířka korpusu KB [mm] | H206: =H10 -> 0 | N206: =H206*H207*H208/2 -> 0 | S206: =IF($V$206=1,$M$236,$M$237) -> 0.62 | T206: =$M$238 -> 0.61 | U206: 1 | V206: =$O$4 -> 1
B207: =List!$C$73&" KH [mm] " -> Výška korpusu KH [mm] | H207: =H11 -> 0 | N207: =N206/1000000000 -> 0 | O207: 1 | S207: váha alu | T207: =SUM(H206*2,(H207/2-90)*2)*S206/1000 -> -0.1116 | U207: A plocha B
B208: =List!$C$77&" TS [mm] " -> Síla čela TS [mm] | I208: =IF(SUM(H206,H207)=0," ",IF(H208=0," ● "&List!$C$111," ")) ->  | N208: =Menu!$L$30 -> 760 | O208: =List!$C$84&" ("&N208&" kg/m3)" -> MDF (760 kg/m3) | S208: =$S$200*4/1000 -> 10 | T208: =IF($V$206=1,U208*S208,V208*S208) -> 0.064 | U208: =SUM(($H$206-80)*($H$207/2-80)/1000000) -> 0.0064 | V208: =SUM(($H$206-6)*($H$207/2-6)/1000000) -> 3.6e-05 | W208: 4mm
B209: =List!$C$78&" [kg] " -> Hmotnost úchytky [kg] | I209: =IF(SUM(H206,H207)=0," ",IF(H209=0," ● "&List!$C$112," ")) ->  | N209: =Menu!$L$31 -> 680 | O209: =List!$C$85&" ("&N209&" kg/m3)" -> Dřevotříska (680 kg/m3) | S209: =$S$200*5/1000 -> 12.5 | T209: =IF($V$206=1,U209*S209,V209*S209) -> 0.08 | U209: =SUM(($H$206-80)*($H$207/2-80)/1000000) -> 0.0064 | V209: =SUM(($H$206-6)*($H$207/2-6)/1000000) -> 3.6e-05 | W209: 5mm
B210: =List!$C$76&" [kg] " -> Vypočtená hmotnost čela [kg] | H210: =IF(M210*S211<>0,SUM(M210,S211,H209),0) -> 0 | M210: =IF(H206*H207*H208=0,0,IF(O207=1,N207*N208,IF(O207=2,N207*N209,N207*N210))) -> 0 | N210: =$H$200 -> 0 | O210: =List!$C$86 -> Jiné - volitelná hustota | S210: =$S$200*$H$202/1000 -> 0 | T210: =IF($V$206=1,U210*S210,V210*S210) -> 0 | U210: =SUM(($H$206-80)*($H$207/2-80)/1000000) -> 0.0064 | V210: =SUM(($H$206-6)*($H$207/2-6)/1000000) -> 3.6e-05 | W210: jiné
C211: =IF(H210>0,IF(H209=0,$N$227," ")," ") ->  | S211: =IF(OR(AND(U206=3, $H$202=0), H206*H207=0), 0, SUM(IF(U206=1,T208,IF(U206=2,T209,T210)),T207,T206)) -> 0
F214: =D18 -> Korpus B | T214: váha spoj. | U214: tl. skla | V214: typ alu
B215: =List!$C$72&" KB [mm] " -> Šířka korpusu KB [mm] | H215: =H19 -> 0 | N215: =H215*H216*H217 -> 0 | S215: =IF($V$206=1,$M$236,$M$237) -> 0.62 | T215: =$M$238 -> 0.61 | U215: =$U$206 -> 1 | V215: =$V$206 -> 1
B216: =List!$C$73&" KH [mm] " -> Výška korpusu KH [mm] | H216: =H20 -> 0 | N216: =N215/1000000000/2 -> 0 | O216: =O207 -> 1 | S216: váha alu | T216: =SUM(H215*2,(H216/2-90)*2)*S215/1000 -> -0.1116 | U216: A plocha B
B217: =List!$C$77&" TS [mm] " -> Síla čela TS [mm] | I217: =IF(SUM(H215,H216)=0," ",IF(H217=0," ● "&List!$C$111," ")) ->  | N217: =$N$208 -> 760 | O217: =$O$208 -> MDF (760 kg/m3) | S217: =S208 -> 10 | T217: =IF($V$206=1,U217*S217,V217*S217) -> 0.064 | U217: =SUM(($H$215-80)*($H$216/2-80)/1000000) -> 0.0064 | V217: =SUM(($H$215-6)*($H$216/2-6)/1000000) -> 3.6e-05 | W217: 4mm
B218: =List!$C$78&" [kg] " -> Hmotnost úchytky [kg] | I218: =IF(SUM(H215,H216)=0," ",IF(H218=0," ● "&List!$C$112," ")) ->  | N218: =$N$209 -> 680 | O218: =$O$209 -> Dřevotříska (680 kg/m3) | S218: =S209 -> 12.5 | T218: =IF($V$206=1,U218*S218,V218*S218) -> 0.08 | U218: =SUM(($H$215-80)*($H$216/2-80)/1000000) -> 0.0064 | V218: =SUM(($H$215-6)*($H$216/2-6)/1000000) -> 3.6e-05 | W218: 5mm
B219: =List!$C$76&" [kg] " -> Vypočtená hmotnost čela [kg] | H219: =IF(M219*S220<>0,SUM(M219,S220,H218),0) -> 0 | M219: =IF(H215*H216*H217=0,0,IF(O216=1,N216*N217,IF(O216=2,N216*N218,N216*N219))) -> 0 | N219: =$N$210 -> 0 | O219: =$O$210 -> Jiné - volitelná hustota | S219: =S210 -> 0 | T219: =IF($V$206=1,U219*S219,V219*S219) -> 0 | U219: =SUM(($H$215-80)*($H$216/2-80)/1000000) -> 0.0064 | V219: =SUM(($H$215-6)*($H$216/2-6)/1000000) -> 3.6e-05 | W219: jiné
C220: =IF(H219>0,IF(H218=0,$N$227," ")," ") ->  | S220: =IF(OR(AND(U215=3, $H$202=0), H215*H216=0), 0, SUM(IF(U215=1,T217,IF(U215=2,T218,T219)),T216,T215)) -> 0
K223: =IF(SUM(J221,J222)=0," ",IF(J223=0," * "&List!$C$111," ")) -> 
G224: =List!$C$149 -> Zpět
C227: =List!$C$217&" "&List!$C$218 -> Upozornění: Vypočtené hodnoty jsou pouze orientační. Firma Blum ani prodejci neručí za jejich správnost. | N227: =List!$C$95&"!" -> Není započtena hmotnost úchytky! | U227: =List!$C$87 -> Alurámečky s 4mm sklem
U228: =List!$C$88 -> Alurámečky s 5mm sklem
U229: =List!$C$89 -> Alurámečky s jiným sklem
E235: Hmotnost alurámečků [kg/bm] | G235: =List!$C$368 -> Podle Úvodu | H235: =List!$C$58 -> Změna
F236: =List!$C$373&" " -> S vloženým sklem | G236: =Menu!$Q215 -> 0.62 | M236: =IF($H236>0,$H236,$G236) -> 0.62
F237: =List!$C$374&" " -> S naloženým nebo nalepeným sklem | G237: 0.65 | M237: =IF($H237>0,$H237,$G237) -> 0.65
F238: =List!$C$377&" [kg/set] * " -> Hmotnost spojovacího materiálu [kg/set] * | G238: 0.61 | M238: =IF($H238>0,$H238,$G238) -> 0.61
C240: =" * "& List!$C$378&" " -> * Rohové spojky, šrouby, těsnění pro jeden rámeček
G243: =List!$C$149 -> Zpět
B300: =List!$C$176 -> Výpočet asymetrických čel
B302: =" "&List!$C$179 -> Parametry korpusu
B303: =List!$C$73&" KH [mm] " -> Výška korpusu KH [mm] | K303: =IF(SUM($I$304:$J$307,$I$314)<>0,IF($I$303=0," "&List!$C$111," ")," ") -> 
B304: =List!$C$182&" [mm] " -> Mezera nahoře [mm]
B305: =List!$C$183&" [mm] " -> Mezera mezi čely [mm] | K305: =IF($I$303=0," ",IF($I$305<1.5," min. 1,5 mm!"," ")) -> 
B306: =List!$C$184&" [mm] " -> Mezera dole [mm]
B307: =List!$C$185&" [mm] " -> Síla dna korpusu [mm]
B309: =" "&List!$C$187 -> Výsledky plánování
G310: =List!$C$188&" [mm] " -> Možné výšky čel [mm] | P310: =ROUNDUP((+$I$303-$I$304-$I$305-$I$306)/2,0) -> 0 | Q310: =IF($P$310<272,70,47) -> 70
B311: =List!$C$189 -> Vrchní čelo (FHo) v rozmezí | G311: min. | H311: =IF($P$310=0,0,IF($P$310<236,$Q$315,IF($P$310>516,$Q$315,$P$310))) -> 0 | I311: max. | J311: =IF($P$310=0,0,IF($Q$315=$H$311,$Q$315,IF($P$315<$P$314,$P$315,$P$314))) -> 0 | P311: =ROUNDDOWN(($I$303-$I$304-$I$305-$I$306-$Q$310-19-$I$307+$I$306)/1.5,0) -> -59 | Q311: =IF($P$310<272,70,47) -> 70
B312: =List!$C$190 -> Spodní čelo (FHu) v rozmezí | G312: min. | H312: =IF($J$312=$Q$315,$Q$315,SUM($I$303-$I$304-$I$305-$I$306-$J$311)) -> 0 | I312: max. | J312: =IF($Q$315=$H$311,$Q$315,(+$I$303-$I$304-$I$305-$I$306)/2) -> 0 | P312: =ROUNDDOWN(($I$303-$I$304-$I$305-$I$306-$Q$311-19-$I$307+$I$306)/1.5,0) -> -59 | Q312: =IF($P$310<272,70,47) -> 70
P313: =ROUNDDOWN(($I$303-$I$304-$I$305-$I$306-$Q$312-19-$I$307+$I$306)/1.5,0) -> -59 | Q313: =IF($P$310<272,70,47) -> 70
B314: =List!$C$196&" FHo [mm] " -> Výška vrchního čela FHo [mm] | K314: =IF($I$303=0," ",IF($I$314>$J$311,V314,IF($I$314<$H$311,$S$314," "))) ->  | P314: =ROUNDDOWN(($I$303-$I$304-$I$305-$I$306-$Q$313-19-$I$307+$I$306)/1.5,0) -> -59 | S314: =" min. "&TEXT($H$311,"#")&" mm!" -> min. mm! | V314: =" max. "&TEXT($J$311,"#")&" mm!" -> max. mm!
B315: =List!$C$197&" FHu [mm] " -> Výška spodního čela FHu [mm] | I315: =IF($I$314<$H$311,$Q$315,IF($I$314>$J$311,$Q$315,+$I$303-$I$304-$I$305-$I$306-$I$314)) -> 0 | P315: =+(1040-$I$304-$I$305-$I$306)/2 -> 520 | Q315: =List!C193 -> nelze
B316: =List!$C$198&" H [mm] " -> Pozice zdvihače H [mm] | I316: =IF($P$310=0,0,IF($I$315=$Q$315, $Q$315,$I$314*0.6-$Q$316+$I$304)) -> 0 | Q316: =IF($I$314<272,28,57) -> 28
B317: =List!$C$199&" X [mm] " -> Pozice mont. podložky pro teleskopy X [mm] | I317: =IF($P$310=0,0,IF($I$315=$Q$315,$Q$315,$I$314*0.5+$Q$317)) -> 0 | Q317: =IF($I$314<272,70,47) -> 70
B318: =List!$C$200&" TKH [mm] * " -> Teoretická výška korpusu TKH [mm] * | I318: =IF($I$315=$Q$315,$Q$315,IF($Q$318>479.99,IF($Q$318<1040.01,$Q$318,$Q$315)," ")) ->  | P318: TKH | Q318: =SUM($I$314*2+$I$304+$I$305+$I$306) -> 0
B320: * | C320: =List!$C$202 -> Tuto výšku zadejte do tabulky pro plánování výklopů
I325: =List!$C$149 -> Zpět
B399: AVENTOS HF
B401: =List!$C$281 -> Potřebný zdvihač se určí pomocí ukazatele výkonnosti.
B402: =List!$C$282 -> Ukazatel výkonnosti závisí na hmotnosti dolního i horního čílka, a rovněž na výšce korpusu.
B404: =" "&List!$C$295 -> Tak se to dělá:
D405: =List!$C$80&" = " -> Ukazatel výkonnosti = | E405: =List!$C$298&" [kg]" -> výška korpusu KH [mm] x hmotnost obou čel včetně úchytky [kg]
B411: =List!$C$289 -> Pokud znáte hmotnost čela, můžete ji zadat, jinak použijte "Výpočet hmotnosti".
B412: =List!$C$290 -> V tabulce má přednost zadaná hodnota. Chcete-li použít vypočtenou hmotnost, smažte zadanou hodnotu.
B414: =List!$C$301&". "&List!$C$302&"." -> Délka teleskopů závisí na výšce korpusu KH. U asymetrických čel se použije teoretická výška TKH.
B416: =" "&List!$C$144&":" -> Asymetrická čela:
B417: =" "&List!$C$299 -> Teoretická výška korpusu (TKH) = výška horního čela (FHo) x 2 (včetně mezer)
B419: =List!$C$293 -> U asymetrických čel musí být větší čelo nahoře!
B421: =List!$C$304 -> Pokud zadáte hodnotu TKH, použije se pro určení délky teleskopů
B422: =List!$C$305 -> Nemáte-li asymetrická čela, nechte políčko prázdné.
B423: =List!$C$306&" ' "&List!$C$176&"' " -> Pro výpočet TKH můžete použít ' Výpočet asymetrických čel'
B426: =List!$C$284 -> Chcete-li změnit barvu krytek, přejděte na "Úvod"
B428: =List!$C$383 -> Věnujte pozornost výběru alurámečků.
B429: =List!$C$384 -> Vyberte, který typ lépe odpovídá tvaru použitého alurámečku.
B430: =List!$C$385 -> Způsob osazení skla do rámečku výrazně ovlivňuje plochu skla a tím i hmotnost!
C432: =" "&List!$C$373&" " -> S vloženým sklem
C434: =" "&List!$C$374&" " -> S naloženým nebo nalepeným sklem
L436: =List!$C$149 -> Zpět

Sheet HFwa_w
B2: AVENTOS HF | D2: AVENTOS HS | F2: AVENTOS HL | H2: AVENTOS HK top | J2: AVENTOS HK-S | L2: AVENTOS HK-XS | O2: rámeček | S2: 3 | Z2: =List!$C$135 -> Jdi na
B4: =List!$C$18&" ***" -> Široký alurámeček *** | F4: =$N$200&" " -> Alurámečky s 4mm sklem | O4: 1 | S4: =" "&List!$C$39&" A " -> Cena za korpus A | Z4: =List!$C$136 -> Úvod plánování
B5: =List!$C$15 -> Dřevěné čelo | F5: =$N$201&" " -> MDF (760 kg/m3) A~/ B~mm | O5: A = 1 | S5: =" "&List!$C$39&" B " -> Cena za korpus B | Z5: =List!$C$137 -> Nápověda
G6: =List!$C$47&" "&List!$C$22&" " -> Nastavit hmotnost alurámečků | O6: B = 2 | S6: =" "&List!$C$59 -> Cena celkem bez DPH | AR6: =" "&List!$C$80&" LF " -> Ukazatel výkonnosti LF | AT6: =List!$C$79 -> Zdvihací mechanizmus
B7: =List!$C$142 -> Soupis kování | G7: =IF(S2=1,$N$138,IF($S$2=2,$P$138,IF($S$2=3,$L$138,0))) -> 0 | Z7: =List!$C$141 -> Doplňky
H8: =IF(AND(OR($S$9=1, $S$18=1), $L$138>0), $N$32, " ") ->  | AR8: =" 2.600 - 5.500 (1 "&List!$C$153&" LF 960 - 2.650)" -> 2.600 - 5.500 (1 ks LF 960 - 2.650) | AT8: 20F2200.05
B9: SERVO-DRIVE | D9: =List!$C$62&" A" -> Korpus A | N9: zdvih A | P9: teleskop | S9: =IF($T$9=TRUE,1,2) -> 2 | T9: FALSE | V9: - SRVDRV | Z9: =List!$C$139 -> Přehled korpusů | AR9: 5.350 - 10.150 | AT9: 20F2500.05
B10: =List!$C$72&" KB [mm] " -> Šířka korpusu KB [mm] | I10: =IF(H10=0," ",IF($H10<220," min. 220mm",IF($H10>1800," max. 1 800mm"," ")))&IF(H15>0,IF(H10=0,"● "&List!$C$111," ")," ") ->  | N10: F22 | O10: =IF($H14<Cen!$F$240,0.5,IF($H14<Cen!$F$241,1,0)) -> 0.5 | P10: F32 | Q10: =SUM(IF($P14<Cen!$F$248,IF($H14<Cen!$F$240,0.5,1),0),IF($P14<Cen!$F$248,IF($H14>Cen!$E$244,0.5,0),0))*IF($P14<480,0,1) -> 0 | T10: Závěs A | V10: Závěs As | Z10: =List!$C$140 -> Objednávka | AR10: =" 9.000 - 17.250 (3 "&List!$C$153&" LF 13.500 - 25.900)" -> 9.000 - 17.250 (3 ks LF 13.500 - 25.900) | AT10: 20F2800.05
B11: =List!$C$73&" [mm]" -> Výška korpusu [mm] | E11: TKH * | G11: KH | I11: =IF(H11=0," ",IF($H11<480," min. 480mm",IF($H11>1040," max. 1 040mm"," ")))&IF(H15>0,IF(H11=0,"● "&List!$C$111," ")," ") ->  | N11: F25 | O11: =IF($H14<Cen!$E$242,0,IF($H14<Cen!$F$242,1,0)) -> 0 | P11: F35 | Q11: =IF($P14<Cen!$F$249,IF($P14>Cen!$E$249,IF($H14<Cen!$F$240,0.5,1),0),0)+IF($P14<Cen!$F$249,IF($P14>Cen!$E$249,IF($H14>Cen!$E$244,0.5,0),0),0) -> 0 | T11: T558E | U11: =IF($O$42=1,IF($H10>1199,3,IF($T15>11.9,3,2)),0)+IF(O$42=1,IF($H10>1799,1,IF($T15>19.9,1,0)),0) -> 0 | V11: Z553E | W11: =IF($P$42=1,IF($H10>1199,3,IF($T15>11.9,3,2)),0)+IF($P$42=1,IF($H10>1799,1,IF($T15>19.9,1,0)),0) -> 0
B12: =List!$C$74&" [kg] ** " -> Hmotnost čela včetně úchytky [kg] ** | I12: =IF($H15=0," ",IF(SUM($H12,$H13)=0,$N$34," "))&IF($H15>0,IF($H12>0,$N$35," ")," ") ->  | N12: F28 | O12: =IF($H14<Cen!$E$243,0,IF($H14<Cen!$F$243,1,IF($H14>Cen!$E$244,1.5,0))) -> 0 | P12: F38 | Q12: =IF($P14<Cen!$F$250,IF($P14>Cen!$E$250,IF($H14<Cen!$F$240,0.5,1),0),0)+IF($P14<Cen!$F$250,IF($P14>Cen!$E$250,IF($H14>Cen!$E$244,0.5,0),0),0) -> 0 | T12: T5550 | U12: =IF($O$42=2,IF($H10>1199,3,IF($T15>11.9,3,2)),0)+IF($O$42=2,IF($H10>1799,1,IF($T15>19.9,1,0)),0) -> 2 | V12: Z5500 | W12: =IF($P$42=2,IF($H10>1199,3,IF($T15>11.9,3,2)),0)+IF($P$42=2,IF($H10>1799,1,IF($T15>19.9,1,0)),0) -> 2 | AR12: =List!$C$80&" LF = "&List!$C$298&" [kg]" -> Ukazatel výkonnosti LF = výška korpusu KH [mm] x hmotnost obou čel včetně úchytky [kg]
B13: =List!$C$76&" [kg] " -> Vypočtená hmotnost čela [kg] | H13: =$H$210 -> 0 | I13: =IF($H15>0,IF($H13>0,IF($H12=0,$N$35," ")," ")," ") ->  | P13: F39 | Q13: =IF($P14<Cen!$F$251,IF($P14>Cen!$E$251,IF($H14<Cen!$F$240,0.5,1),0),0)+IF($P14<Cen!$F$251,IF($P14>Cen!$E$251,IF($H14>Cen!$E$244,0.5,0),0),0) -> 0 | Z13: =" "&List!$C$177&" A" -> Výpočet hmotnosti A
B14: =List!$C$80&" LF " -> Ukazatel výkonnosti LF | H14: =IF(H11<1041,IF(H11>479,IF(H12>0,H11*H12,H11*H13),0),0) -> 0 | I14: =IF(AND(H14>0, H14<960), $T$38, IF($H14>25900,$N$38,IF($H14>17250,$N$39," "))&IF(H14>25900," ",IF(AND($S9=1,$H14>17250),$Q$39," "))) ->  | O14: výška korpusu | P14: =IF(F11>0,IF(F11>=H11,F11,0),H11) -> 0
B15: =List!$C$69&" " -> Počet skříněk | I15: =IF(AND(M15>0, H14>959, O10=0.5), $U$39, " ") ->  | M15: =IF($H10*$P14=0,0,IF(SUM($H12,$H13)=0,0,IF($P14>Cen!$F$252,0,IF(P14<Cen!$E$248,0,IF(OR(H14<Cen!$E$240, H14>Cen!$F$244),0,$H15))))) -> 0 | N15: ← Hlavní údaj | S15: hmot = | T15: =IF(H12>0,H12,H13) -> 0 | U15: =IF(SUM(H12,H13)=0,0,IF(H12>0,1,2)) -> 0 | V15: zadaná / vypočtená | Z15: =" "&List!$C$176 -> Výpočet asymetrických čel | AR15: =List!$C$149 -> Zpět
B16: =IF(H15>0,IF(U15=0," ",IF(U15=1,$N$47,$N$48))," ")&IF(H15>0,IF(U15=0," ",IF(U15=1,$N$49,$N$50))," ") -> 
B17: =IF(F11=0," ",IF(F11>1040,"TKH = max. 1040!",IF(F11<480,"TKH = min. 480!",IF(F11<H11,$N$53,IF(H15>0,IF(F11=0," ",IF(F11>0,$N$52," "))," "))))) -> 
B18: SERVO-DRIVE | D18: =List!$C$62&" B" -> Korpus B | N18: zdvih B | P18: teleskop | S18: =IF($T$18=TRUE,1,2) -> 2 | T18: FALSE | V18: - SRVDRV | Z18: =" "&List!$C$361 -> Ověření síly zdvihače
B19: =List!$C$72&" KB [mm] " -> Šířka korpusu KB [mm] | I19: =IF(H19=0," ",IF($H19<220," min. 220mm",IF($H19>1800," max. 1 800mm"," ")))&IF(H24>0,IF(H19=0,"● "&List!$C$111," ")," ") ->  | N19: F22 | O19: =IF($H23<Cen!$F$240,0.5,IF($H23<Cen!$F$241,1,0)) -> 0.5 | P19: F32 | Q19: =SUM(IF($P23<Cen!$F$248,IF($H23<Cen!$F$240,0.5,1),0),IF($P23<Cen!$F$248,IF($H23>Cen!$E$244,0.5,0),0))*IF($P23<480,0,1) -> 0 | T19: Závěs B | V19: Závěs Bs
B20: =List!$C$73&" [mm]" -> Výška korpusu [mm] | E20: TKH * | G20: KH | I20: =IF(H20=0," ",IF($H20<480," min. 480mm",IF($H20>1040," max. 1 040mm"," ")))&IF(H24>0,IF(H20=0,"● "&List!$C$111," ")," ") ->  | N20: F25 | O20: =IF($H23<Cen!$E$242,0,IF($H23<Cen!$F$242,1,0)) -> 0 | P20: F35 | Q20: =IF($P23<Cen!$F$249,IF($P23>Cen!$E$249,IF($H23<Cen!$F$240,0.5,1),0),0)+IF($P23<Cen!$F$249,IF($P23>Cen!$E$249,IF($H23>Cen!$E$244,0.5,0),0),0) -> 0 | T20: T558E | U20: =IF($O$42=1,IF($H19>1199,3,IF($T24>11.9,3,2)),0)+IF(O$42=1,IF($H19>1799,1,IF($T24>19.9,1,0)),0) -> 0 | V20: Z553E | W20: =IF($P$42=1,IF($H19>1199,3,IF($T24>11.9,3,2)),0)+IF($P$42=1,IF($H19>1799,1,IF($T24>19.9,1,0)),0) -> 0
B21: =List!$C$74&" [kg] ** " -> Hmotnost čela včetně úchytky [kg] ** | I21: =IF($H24=0," ",IF(SUM($H21,$H22)=0,$N$34," "))&IF($H24>0,IF($H21>0,$N$35," ")," ") ->  | N21: F28 | O21: =IF($H23<Cen!$E$243,0,IF($H23<Cen!$F$243,1,IF($H23>Cen!$E$244,1.5,0))) -> 0 | P21: F38 | Q21: =IF($P23<Cen!$F$250,IF($P23>Cen!$E$250,IF($H23<Cen!$F$240,0.5,1),0),0)+IF($P23<Cen!$F$250,IF($P23>Cen!$E$250,IF($H23>Cen!$E$244,0.5,0),0),0) -> 0 | T21: T5550 | U21: =IF($O$42=2,IF($H19>1199,3,IF($T24>11.9,3,2)),0)+IF($O$42=2,IF($H19>1799,1,IF($T24>19.9,1,0)),0) -> 2 | V21: Z5500 | W21: =IF($P$42=2,IF($H19>1199,3,IF($T24>11.9,3,2)),0)+IF($P$42=2,IF($H19>1799,1,IF($T24>19.9,1,0)),0) -> 2
B22: =List!$C$76&" [kg] " -> Vypočtená hmotnost čela [kg] | H22: =$H$219 -> 0 | I22: =IF($H24>0,IF($H22>0,IF($H21=0,$N$35," ")," ")," ") ->  | P22: F39 | Q22: =IF($P23<Cen!$F$251,IF($P23>Cen!$E$251,IF($H23<Cen!$F$240,0.5,1),0),0)+IF($P23<Cen!$F$251,IF($P23>Cen!$E$251,IF($H23>Cen!$E$244,0.5,0),0),0) -> 0 | Z22: =" "&List!$C$177&" B" -> Výpočet hmotnosti B
B23: =List!$C$80&" LF " -> Ukazatel výkonnosti LF | H23: =IF(H20<1041,IF(H20>479,IF(H21>0,H20*H21,H20*H22),0),0) -> 0 | I23: =IF(AND(H23>0, H23<960), $T$38, IF($H23>25900,$N$38,IF($H23>17250,$N$39," "))&IF(H23>25900," ",IF(AND($S18=1,$H23>17250),$Q$39," "))) ->  | O23: výška korpusu | P23: =IF(F20>0,IF(F20>=H20,F20,0),H20) -> 0
B24: =List!$C$69&" " -> Počet skříněk | I24: =IF(AND(M24>0, H23>959, O19=0.5), $U$39, " ") ->  | M24: =IF($H19*$P23=0,0,IF(SUM($H21,$H22)=0,0,IF($P23>Cen!$F$252,0,IF(P23<Cen!$E$248,0,IF(OR(H23<Cen!$E$240, H23>Cen!$F$244),0,$H24))))) -> 0 | N24: ← Hlavní údaj | S24: hmot = | T24: =IF(H21>0,H21,H22) -> 0 | U24: =IF(SUM(H21,H22)=0,0,IF(H21>0,1,2)) -> 0 | V24: zadaná / vypočtená | Z24: =" "&List!$C$176 -> Výpočet asymetrických čel
B25: =IF(H24>0,IF(U24=0," ",IF(U24=1,$N$47,$N$48))," ")&IF(H24>0,IF(U24=0," ",IF(U24=1,$N$49,$N$50))," ") -> 
B26: =IF(F20=0," ",IF(F20>1040,"TKH = max. 1040!",IF(F20<480,"TKH = min. 480!",IF(F20<H20,$N$53,IF(H24>0,IF(F20=0," ",IF(F20>0,$N$52," "))," "))))) -> 
B27: =IF(OR(AND($S$9=1, $M$15>0), AND($S$18=1, $M$24>0)), List!$C$157, " ") ->  | S27: =IF($T$27=FALSE,2,1) -> 1 | T27: TRUE | V27: - Zdroj
C31: =IF($H14>25900," ",IF($H14>17250,$N$40,IF($H23>25900," ",IF($H23>17250,$N$40," ")))) -> 
N32: =List!C158 -> Cena bez napájecího zdroje!
C33: ="* "&List!$C$165 -> * Pouze pro asymetrická čela: zadejte teoretickou výšku TKH.
C34: =" ( "&List!$C$166&")" -> ( TKH = dvojnásobná výška horního čela včetně mezer) | N34: =" "&List!$C$103 -> Doplňte nebo použijte "Výpočet hmotnosti"
C35: ="** "&List!$C$168 -> ** Pokud znáte hmotnost a nechcete využít výpočtu hmotnosti | N35: ="◄ "&List!$C$100 -> ◄ hodnota bude použita pro výpočet LF
C36: ="*** "&List!$C$371 -> *** Vyberte typ alurámečku! | N36: =" * "&List!$C$110 -> * Doplňte hodnoty
C37: =" "&List!$C$372 -> Více informací k výběru alurámečků v Nápovědě
N38: =" max. 25.900! "&List!$C$105 -> max. 25.900! Upravte hmotnost nebo výšku | T38: =" min. 960! "&List!$C$105 -> min. 960! Upravte hmotnost nebo výšku
N39: =" "&List!$C$104&"!" -> Přídavný třetí zdvihač! | Q39: =" "&List!$C$108&"!" -> Druhá pohonná jednotka! | U39: =" "&List!C109 -> Použijte pouze jeden zdvihač
N40: =List!$C$163 -> Přídavný třetí zdvihač může být použit pouze s plným spodním čelem!
N42: =HF!$L$37 -> 2 | O42: 2 | P42: =HF!$N$37 -> 2 | Q42: 2 | R42: =HF!$P$37 -> 2 | T42: =Menu!$Q$27 -> 3
N43: záv. | O43: alu | P43: střed. | Q43: alu | R43: podl. | T43: kryt.
N44: =List!$C$116 -> Expando | P44: =List!$C$116 -> Expando | R44: =List!$C$116 -> Expando | T44: =List!$C$128 -> Světle šedá (HG/T)
N45: =List!$C$117 -> na vruty | P45: =List!$C$117 -> na vruty | R45: =List!$C$117 -> na vruty | T45: =List!$C$129 -> Tmavě šedá (TGR)
T46: =List!$C$130 -> Hedvábně bílá (SW/T)
N47: =List!C169 -> Pro určení typu zdvihače bude použita zadaná hmotnost
N48: =List!C170 -> Pro určení typu zdvihače bude použita vypočtená hmotnost
N49: =". "&List!$C$171 -> . Chcete-li použít vypočtenou hmotnost, smažte zadanou hodnotu
N50: =". "&List!$C$172 -> . Chcete-li použít zadanou hmotnost, zadejte ji do políčka
N51: =List!C173 -> 0
N52: =List!C174 -> Pro výběr teleskopů bude použita teoretická výška TKH
N53: =List!C175 -> Teoretická výška TKH nesmí být menší než KH
B98: =List!C142 -> Soupis kování
B100: =$B$2 -> AVENTOS HF | D100: =B4 -> Široký alurámeček *** | F100: - | G100: =B5 -> Dřevěné čelo
B101: =List!C50 -> Název | G101: =List!$C$51 -> Číslo artiklu | I101: =List!C52 -> Barva | J101: =List!C54 -> Ks | K101: =List!C56 -> Jednotková cena | L101: =List!C57 -> Celkem | M101: A | N101: Cena | O101: B | P101: Cena | S101: Filtr
B102: =Cen!A2 -> Sada zdvihačů HF | G102: =Cen!E2 -> 20F2200.05 | I102: =Cen!G2 -> ZN | J102: =ROUNDUP($M$15*O10+$M$24*O19,0) -> 0 | K102: =Cen!I2 -> 0 | L102: =J102*K102 -> 0 | M102: =ROUNDUP($M$15*O10,0) -> 0 | N102: =$K102*M102 -> 0 | O102: =ROUNDUP($M$24*O19,0) -> 0 | P102: =$K102*O102 -> 0 | S102: x
B103: =Cen!A3 -> Sada zdvihačů HF | G103: =Cen!E3 -> 20F2500.05 | I103: =Cen!G3 -> ZN | J103: =ROUNDUP($M$15*O11+$M$24*O20,0) -> 0 | K103: =Cen!I3 -> 0 | L103: =J103*K103 -> 0 | M103: =ROUNDUP($M$15*O11,0) -> 0 | N103: 0 | O103: =ROUNDUP($M$24*O20,0) -> 0 | P103: 0 | S103: x
B104: =Cen!A4 -> Sada zdvihačů HF | G104: =Cen!E4 -> 20F2800.05 | I104: =Cen!G4 -> ZN | J104: =ROUNDUP($M$15*O12+$M$24*O21,0) -> 0 | K104: =Cen!I4 -> 0 | L104: 0 | M104: =ROUNDUP($M$15*O12,0) -> 0 | N104: 0 | O104: =ROUNDUP($M$24*O21,0) -> 0 | P104: 0 | S104: x
B105: =Cen!A5 -> Sada teleskopů (480-570mm) | G105: =Cen!E5 -> 20F3200.01 | I105: =Cen!G5 -> NI | J105: =ROUNDUP($M$15*Q10+$M$24*Q19,0) -> 0 | K105: =Cen!I5 -> 0 | L105: 0 | M105: =ROUNDUP($M$15*Q10,0) -> 0 | N105: 0 | O105: =ROUNDUP($M$24*Q19,0) -> 0 | P105: 0 | S105: x
B106: =Cen!A6 -> Sada teleskopů (560-710mm) | G106: =Cen!E6 -> 20F3500.01 | I106: =Cen!G6 -> NI | J106: =ROUNDUP($M$15*Q11+$M$24*Q20,0) -> 0 | K106: =Cen!I6 -> 0 | L106: 0 | M106: =ROUNDUP($M$15*Q11,0) -> 0 | N106: 0 | O106: =ROUNDUP($M$24*Q20,0) -> 0 | P106: 0 | S106: x
B107: =Cen!A7 -> Sada teleskopů (700-900mm) | G107: =Cen!E7 -> 20F3800.01 | I107: =Cen!G7 -> NI | J107: =ROUNDUP($M$15*Q12+$M$24*Q21,0) -> 0 | K107: =Cen!I7 -> 0 | L107: 0 | M107: =ROUNDUP($M$15*Q12,0) -> 0 | N107: 0 | O107: =ROUNDUP($M$24*Q21,0) -> 0 | P107: 0 | S107: x
B108: =Cen!A8 -> Sada teleskopů (760-1040mm) | G108: =Cen!E8 -> 20F3900.01 | I108: =Cen!G8 -> NI | J108: =ROUNDUP($M$15*Q13+$M$24*Q22,0) -> 0 | K108: =Cen!I8 -> 0 | L108: 0 | M108: =ROUNDUP($M$15*Q13,0) -> 0 | N108: 0 | O108: =ROUNDUP($M$24*Q22,0) -> 0 | P108: 0 | S108: x
B109: =Cen!A9 -> Sada krytek HF SERVO-DRIVE, sv.šedá | G109: =Cen!E9 -> 21F8000 | I109: =Cen!G9 -> HG/T | J109: =SUM(M109,O109,Q109) -> 0 | K109: =Cen!I9 -> 0 | L109: 0 | M109: =IF($S$9=2,0,IF($T$42=1,$M$134,0)) -> 0 | N109: 0 | O109: =IF($S$18=2,0,IF($T$42=1,$O$134,0)) -> 0 | P109: 0 | S109: x
B110: =Cen!A10 -> Sada krytek HF SERVO-DRIVE, tm.šedá | G110: =Cen!E10 -> 21F8000 | I110: =Cen!G10 -> TGR | J110: =SUM(M110,O110,Q110) -> 0 | K110: =Cen!I10 -> 0 | L110: =J110*K110 -> 0 | M110: =IF($S$9=2,0,IF($T$42=2,$M$134,0)) -> 0 | N110: =$K110*M110 -> 0 | O110: =IF($S$18=2,0,IF($T$42=2,$O$134,0)) -> 0 | P110: =$K110*O110 -> 0 | S110: x
B111: =Cen!A11 -> Sada krytek HF SERVO-DRIVE, bílá | G111: =Cen!E11 -> 21F8000 | I111: =Cen!G11 -> SW/T | J111: 0 | K111: =Cen!I11 -> 0 | L111: 0 | M111: =IF($S$9=2,0,IF($T$42=3,$M$134,0)) -> 0 | N111: 0 | O111: =IF($S$18=2,0,IF($T$42=3,$O$134,0)) -> 0 | P111: 0 | S111: x
B113: =Cen!A12 -> Sada krytek HF, světle šedá | G113: =Cen!E12 -> 20F8000 | I113: =Cen!G12 -> HG/T | J113: 0 | K113: =Cen!I12 -> 0 | L113: 0 | M113: =IF($S$9=1,0,IF($T$42=1,SUM($M$102:$M$104,0),0)) -> 0 | N113: 0 | O113: =IF($S$18=1,0,IF($T$42=1,SUM($O$102:$O$104,0),0)) -> 0 | P113: 0 | S113: x
B114: =Cen!A13 -> Sada krytek HF, tmavě šedá | G114: =Cen!E13 -> 20F8000 | I114: =Cen!G13 -> TGR | J114: =SUM(M114,O114,Q114) -> 0 | K114: =Cen!I13 -> 0 | L114: =J114*K114 -> 0 | M114: =IF($S$9=1,0,IF($T$42=2,SUM($M$102:$M$104,0),0)) -> 0 | N114: =$K114*M114 -> 0 | O114: =IF($S$18=1,0,IF($T$42=2,SUM($O$102:$O$104,0),0)) -> 0 | P114: =$K114*O114 -> 0 | S114: x
B115: =Cen!A14 -> Sada krytek HF, bílá | G115: =Cen!E14 -> 20F8000 | I115: =Cen!G14 -> SW/T | J115: 0 | K115: =Cen!I14 -> 0 | L115: 0 | M115: =IF($S$9=1,0,IF($T$42=3,SUM($M$102:$M$104,0),0)) -> 0 | N115: 0 | O115: =IF($S$18=1,0,IF($T$42=3,SUM($O$102:$O$104,0),0)) -> 0 | P115: 0 | S115: x
B117: =Cen!A15 -> Závěs CLIP top 120° | G117: =Cen!E15 -> 70T5550.TL | I117: =Cen!G15 -> NI | J117: 0 | K117: =Cen!I15 -> 0 | L117: 0 | M117: =$M$15*$U$12 -> 0 | N117: 0 | O117: =$M$24*$U$21 -> 0 | P117: 0 | S117: x
B118: =Cen!A16 -> Závěs CLIP top 120° EXPANDO | G118: =Cen!E16 -> 70T558E | I118: =Cen!G16 -> NI | J118: 0 | K118: =Cen!I16 -> 0 | L118: 0 | M118: =$M$15*$U$11 -> 0 | N118: 0 | O118: =$M$24*$U$20 -> 0 | P118: 0
B119: =Cen!A17 -> Středový závěs CLIP top | G119: =Cen!E17 -> 78Z5500T | I119: =Cen!G17 -> NI | J119: 0 | K119: =Cen!I17 -> 0 | L119: 0 | M119: =$M$15*$W$12 -> 0 | N119: 0 | O119: =$M$24*$W$21 -> 0 | P119: 0 | S119: x
B120: =Cen!A18 -> Středový závěs CLIP top EXPANDO | G120: =Cen!E18 -> 78Z553ET | I120: =Cen!G18 -> NI | J120: 0 | K120: =Cen!I18 -> 0 | L120: 0 | M120: =$M$15*$W$11 -> 0 | N120: 0 | O120: =$M$24*$W$20 -> 0 | P120: 0 | S120: x
B121: =Cen!A19 -> Závěs CLIP top pro alurámečky | G121: =Cen!E19 -> 72T550A.TL | I121: =Cen!G19 -> NI | K121: =Cen!I19 -> 0 | L121: 0 | N121: 0 | P121: 0
B122: =Cen!A20 -> Střed. závěs CLIP top pro alurámečky | G122: =Cen!E20 -> 78Z550AT | I122: =Cen!G20 -> NI | K122: =Cen!I20 -> 0 | L122: 0 | N122: 0 | P122: 0
B123: =Cen!A21 -> Přímá montážní podložka | G123: =Cen!E21 -> 175H3100 | I123: =Cen!G21 -> NI | J123: =SUM(M123,O123,Q123) -> 0 | K123: =Cen!I21 -> 0 | L123: 0 | M123: =IF($R$42=2,SUM($U$11,$U$12,$Q$10*2,$Q$11*2,$Q$12*2,$Q$13*2)*$M$15,0) -> 0 | N123: 0 | O123: =IF($R$42=2,SUM($U$20,$U$21,$Q$19*2,$Q$20*2,$Q$21*2,$Q$22*2)*$M$24,0) -> 0 | P123: 0 | S123: x
B124: =Cen!A22 -> Přímá montážní podložka, EXPANDO | G124: =Cen!E22 -> 177H3100E | I124: =Cen!G22 -> NI | J124: =SUM(M124,O124,Q124) -> 0 | K124: =Cen!I22 -> 0 | L124: 0 | M124: =IF($R$42=1,SUM($U$11,$U$12,$Q$10*2,$Q$11*2,$Q$12*2,$Q$13*2)*$M$15,0) -> 0 | N124: 0 | O124: =IF($R$42=1,SUM($U$20,$U$21,$Q$19*2,$Q$20*2,$Q$21*2,$Q$22*2)*$M$24,0) -> 0 | P124: 0 | S124: x
B125: =Cen!A23 -> Podložka CLIP excentrická | G125: =Cen!E23 -> 173H7100 | I125: =Cen!G23 -> NI | J125: =SUM(M125,O125,Q125) -> 0 | K125: =Cen!I23 -> 0 | L125: 0 | M125: =SUM($W$11,$W$12)*$M$15 -> 0 | N125: 0 | O125: =SUM($W$20,$W$21)*$M$24 -> 0 | P125: 0 | S125: x
B126: =Cen!A24 -> Adaptér CLIP k teleskopům P | G126: =Cen!E24 -> 175H5B00 R | I126: =Cen!G24 -> NI | K126: =Cen!I24 -> 0 | L126: 0 | N126: 0 | P126: 0
B127: =Cen!A25 -> Adaptér CLIP k teleskopům L | G127: =Cen!E25 -> 175H5B00 L | I127: =Cen!G25 -> NI | K127: =Cen!I25 -> 0 | L127: 0 | N127: 0 | P127: 0
B128: =Cen!A26 -> Adaptér CLIP ke středovým závěsům | G128: =Cen!E26 -> 175H5A00 | I128: =Cen!G26 -> NI | K128: =Cen!I26 -> 0 | L128: 0 | N128: 0 | P128: 0
B129: =Cen!A27 -> Omezovač úhlu otevření na 83° | G129: =Cen!E27 -> 20F7011 | I129: =Cen!G27 -> TGR | K129: =Cen!I27 -> 0 | L129: 0 | N129: 0 | P129: 0
B130: =Cen!A28 -> Omezovač úhlu otevření na 104° | G130: =Cen!E28 -> 20F7051 | I130: =Cen!G28 -> TGR | K130: =Cen!I28 -> 0 | L130: 0 | N130: 0 | P130: 0
B131: =Cen!A151 -> CLIP top krytka raménka Nikl | G131: =Cen!E151 -> 70.1503 | I131: =Cen!G151 -> NI | J131: =SUM(M131,O131,Q131) -> 0 | K131: =Cen!I151 -> 0 | L131: 0 | M131: =SUM(M$117:M$122) -> 0 | N131: 0 | O131: =SUM(O$117:O$122) -> 0 | P131: 0 | S131: x
B132: =Cen!A195 -> Samořezný vrut do alurámečků | G132: =Cen!E195 -> 660.0950 | I132: =Cen!G195 -> NI | J132: =SUM(M132,O132,Q132) -> 0 | K132: =Cen!I195 -> 0 | L132: =J132*K132 -> 0 | M132: =SUM(M117, M125)*2 -> 0 | N132: =$K132*M132 -> 0 | O132: =SUM(O117, O125)*2 -> 0 | P132: 0 | S132: x
L133: 0 | N133: 0 | P133: 0
B134: =Cen!A199 -> SERVO-DRIVE jednotka (sada) | G134: =Cen!E199 -> 21FA000 | I134: =Cen!G199 -> HGR | J134: =SUM(M134,O134,Q134) -> 0 | K134: =Cen!I199 -> 0 | L134: 0 | M134: =IF($S$9=2,0,$M$15)+IF(AND($S$9=1,$H$14>17250),$M$15,0) -> 0 | N134: 0 | O134: =IF($S$18=2,0,$M$24)+IF(AND($S$18=1,$H$23>17250),$M$24,0) -> 0 | P134: 0 | S134: x
B135: =Cen!A200 -> SERVO-DRIVE jednotka (sada) pro HK top | G135: =Cen!E200 -> 23KA000 | I135: =Cen!G200 -> HGR | K135: =Cen!I200 -> 0 | L135: 0 | N135: 0 | P135: 0
K138: =List!$C$59&" " -> Cena celkem bez DPH | L138: =SUM(L102:L136) -> 0 | N138: =SUM(N102:N137) -> 0 | P138: =SUM(P102:P137) -> 0 | R138: =SUM(R102:R137) -> 0
L140: =List!$C$149 -> Zpět
B199: =List!$C$71 -> Výpočet hmotnosti čel
C200: =List!$C$33&" " -> horní čelo | I200: =IF(U206=3,IF(H200=0,T203," "),IF(H200>0,T204," ")) ->  | N200: =IF($U$206=1,$U$227,IF($U$206=2,$U$228,$U$229&" - "&$H$200&"mm")) -> Alurámečky s 4mm sklem | S200: =Menu!$Q$205 -> 2500
C201: =List!$C$34&" " -> dolní čelo | I201: =IF(O207=3,IF(H201=0,N203," "),IF(H201>0,N204," ")) ->  | N201: =IF($O$207=1,$O$208,IF($O$207=2,$O$209,$O$210&" "&$N$210&"kg/m3"))&" A~"&$H$208&"/ B~"&$H$217&"mm" -> MDF (760 kg/m3) A~/ B~mm
D202: =IF($O$207<>3,$N$202," ")&" " -> Změnit hodnoty můžete v Úvodu plánování | N202: =" "&List!$C$382 -> Změnit hodnoty můžete v Úvodu plánování
N203: =" "&List!$C$225&" [kg/m3]" -> Zadejte objemovou hmotnost [kg/m3] | T203: =" "&List!$C$226&" [mm]" -> Zadejte sílu skla [mm]
N204: =" "&List!$C$221&" '"&List!$C$86&"'" -> Hodnota platí jen pro volbu 'Jiné - volitelná hustota' | T204: =" "&List!$C$221&" '"&List!$C$89&"'" -> Hodnota platí jen pro volbu 'Alurámečky s jiným sklem'
F205: =D9 -> Korpus A | T205: váha spoj. | U205: tl. skla | V205: typ alu
B206: =List!$C$72&" KB [mm] " -> Šířka korpusu KB [mm] | H206: =H10 -> 0 | N206: =H206*H207*H208/2 -> 0 | S206: =IF($V$206=1,$M$236,$M$237) -> 0.62 | T206: =$M$238 -> 0.61 | U206: 1 | V206: =$O$4 -> 1
B207: =List!$C$73&" KH [mm] " -> Výška korpusu KH [mm] | H207: =H11 -> 0 | N207: =N206/1000000000 -> 0 | O207: 1 | S207: váha alu | T207: =SUM(H206*2,(H207/2-90)*2)*S206/1000 -> -0.1116 | U207: A plocha B
B208: =List!$C$77&" TS [mm] " -> Síla čela TS [mm] | I208: =IF(SUM(H206,H207)=0," ",IF(H208=0," ● "&List!$C$111," ")) ->  | N208: =Menu!$L$30 -> 760 | O208: =List!$C$84&" ("&N208&" kg/m3)" -> MDF (760 kg/m3) | S208: =$S$200*4/1000 -> 10 | T208: =IF($V$206=1,U208*S208,V208*S208) -> 0.064 | U208: =SUM(($H$206-80)*($H$207/2-80)/1000000) -> 0.0064 | V208: =SUM(($H$206-6)*($H$207/2-6)/1000000) -> 3.6e-05 | W208: 4mm
B209: =List!$C$78&" [kg] " -> Hmotnost úchytky [kg] | I209: =IF(SUM(H206,H207)=0," ",IF(H209=0," ● "&List!$C$112," ")) ->  | N209: =Menu!$L$31 -> 680 | O209: =List!$C$85&" ("&N209&" kg/m3)" -> Dřevotříska (680 kg/m3) | S209: =$S$200*5/1000 -> 12.5 | T209: =IF($V$206=1,U209*S209,V209*S209) -> 0.08 | U209: =SUM(($H$206-80)*($H$207/2-80)/1000000) -> 0.0064 | V209: =SUM(($H$206-6)*($H$207/2-6)/1000000) -> 3.6e-05 | W209: 5mm
B210: =List!$C$76&" [kg] " -> Vypočtená hmotnost čela [kg] | H210: =IF(M210*S211<>0,SUM(M210,S211,H209),0) -> 0 | M210: =IF(H206*H207*H208=0,0,IF(O207=1,N207*N208,IF(O207=2,N207*N209,N207*N210))) -> 0 | N210: =$H$201 -> 0 | O210: =List!$C$86 -> Jiné - volitelná hustota | S210: =$S$200*$H$200/1000 -> 0 | T210: =IF($V$206=1,U210*S210,V210*S210) -> 0 | U210: =SUM(($H$206-80)*($H$207/2-80)/1000000) -> 0.0064 | V210: =SUM(($H$206-6)*($H$207/2-6)/1000000) -> 3.6e-05 | W210: jiné
C211: =IF(H210>0,IF(H209=0,$N$227," ")," ") ->  | S211: =IF(OR(AND(U206=3, $H$200=0), H206*H207=0), 0, SUM(IF(U206=1,T208,IF(U206=2,T209,T210)),T207,T206)) -> 0
F214: =D18 -> Korpus B | T214: váha spoj. | U214: tl. skla | V214: typ alu
B215: =List!$C$72&" KB [mm] " -> Šířka korpusu KB [mm] | H215: =H19 -> 0 | N215: =H215*H216*H217 -> 0 | S215: =IF($V$206=1,$M$236,$M$237) -> 0.62 | T215: =$M$238 -> 0.61 | U215: =$U$206 -> 1 | V215: =$V$206 -> 1
B216: =List!$C$73&" KH [mm] " -> Výška korpusu KH [mm] | H216: =H20 -> 0 | N216: =N215/1000000000/2 -> 0 | O216: =O207 -> 1 | S216: váha alu | T216: =SUM(H215*2,(H216/2-90)*2)*S215/1000 -> -0.1116 | U216: A plocha B
B217: =List!$C$77&" TS [mm] " -> Síla čela TS [mm] | I217: =IF(SUM(H215,H216)=0," ",IF(H217=0," ● "&List!$C$111," ")) ->  | N217: =$N$208 -> 760 | O217: =$O$208 -> MDF (760 kg/m3) | S217: =S208 -> 10 | T217: =IF($V$206=1,U217*S217,V217*S217) -> 0.064 | U217: =SUM(($H$215-80)*($H$216/2-80)/1000000) -> 0.0064 | V217: =SUM(($H$215-6)*($H$216/2-6)/1000000) -> 3.6e-05 | W217: 4mm
B218: =List!$C$78&" [kg] " -> Hmotnost úchytky [kg] | I218: =IF(SUM(H215,H216)=0," ",IF(H218=0," ● "&List!$C$112," ")) ->  | N218: =$N$209 -> 680 | O218: =$O$209 -> Dřevotříska (680 kg/m3) | S218: =S209 -> 12.5 | T218: =IF($V$206=1,U218*S218,V218*S218) -> 0.08 | U218: =SUM(($H$215-80)*($H$216/2-80)/1000000) -> 0.0064 | V218: =SUM(($H$215-6)*($H$216/2-6)/1000000) -> 3.6e-05 | W218: 5mm
B219: =List!$C$76&" [kg] " -> Vypočtená hmotnost čela [kg] | H219: =IF(M219*S220<>0,SUM(M219,S220,H218),0) -> 0 | M219: =IF(H215*H216*H217=0,0,IF(O216=1,N216*N217,IF(O216=2,N216*N218,N216*N219))) -> 0 | N219: =$N$210 -> 0 | O219: =$O$210 -> Jiné - volitelná hustota | S219: =S210 -> 0 | T219: =IF($V$206=1,U219*S219,V219*S219) -> 0 | U219: =SUM(($H$215-80)*($H$216/2-80)/1000000) -> 0.0064 | V219: =SUM(($H$215-6)*($H$216/2-6)/1000000) -> 3.6e-05 | W219: jiné
C220: =IF(H219>0,IF(H218=0,$N$227," ")," ") ->  | S220: =IF(OR(AND(U215=3, $H$200=0), H215*H216=0), 0, SUM(IF(U215=1,T217,IF(U215=2,T218,T219)),T216,T215)) -> 0
K223: =IF(SUM(J221,J222)=0," ",IF(J223=0," * "&List!$C$111," ")) -> 
G224: =List!$C$149 -> Zpět
C227: =List!$C$217&" "&List!$C$218 -> Upozornění: Vypočtené hodnoty jsou pouze orientační. Firma Blum ani prodejci neručí za jejich správnost. | N227: =List!$C$95&"!" -> Není započtena hmotnost úchytky! | U227: =List!$C$87 -> Alurámečky s 4mm sklem
U228: =List!$C$88 -> Alurámečky s 5mm sklem
U229: =List!$C$89 -> Alurámečky s jiným sklem
E235: Hmotnost alurámečků [kg/bm] | G235: =List!$C$368 -> Podle Úvodu | H235: =List!$C$58 -> Změna
F236: =List!$C$373&" " -> S vloženým sklem | G236: =Menu!$Q215 -> 0.62 | M236: =IF($H236>0,$H236,$G236) -> 0.62
F237: =List!$C$374&" " -> S naloženým nebo nalepeným sklem | G237: 0.65 | M237: =IF($H237>0,$H237,$G237) -> 0.65
F238: =List!$C$377&" [kg/set] * " -> Hmotnost spojovacího materiálu [kg/set] * | G238: 0.61 | M238: =IF($H238>0,$H238,$G238) -> 0.61
C240: =" * "& List!$C$378&" " -> * Rohové spojky, šrouby, těsnění pro jeden rámeček
G243: =List!$C$149 -> Zpět
B300: =List!$C$176 -> Výpočet asymetrických čel
B302: =" "&List!$C$179 -> Parametry korpusu
B303: =List!$C$73&" KH [mm] " -> Výška korpusu KH [mm] | K303: =IF(SUM($I$304:$J$307,$I$314)<>0,IF($I$303=0," "&List!$C$111," ")," ") -> 
B304: =List!$C$182&" [mm] " -> Mezera nahoře [mm]
B305: =List!$C$183&" [mm] " -> Mezera mezi čely [mm] | K305: =IF($I$303=0," ",IF($I$305<1.5," min. 1,5 mm!"," ")) -> 
B306: =List!$C$184&" [mm] " -> Mezera dole [mm]
B307: =List!$C$185&" [mm] " -> Síla dna korpusu [mm]
B309: =" "&List!$C$187 -> Výsledky plánování
G310: =List!$C$188&" [mm] " -> Možné výšky čel [mm] | P310: =ROUNDUP((+$I$303-$I$304-$I$305-$I$306)/2,0) -> 0 | Q310: =IF($P$310<272,70,47) -> 70
B311: =List!$C$189 -> Vrchní čelo (FHo) v rozmezí | G311: min. | H311: =IF($P$310=0,0,IF($P$310<236,$Q$315,IF($P$310>516,$Q$315,$P$310))) -> 0 | I311: max. | J311: =IF($P$310=0,0,IF($Q$315=$H$311,$Q$315,IF($P$315<$P$314,$P$315,$P$314))) -> 0 | P311: =ROUNDDOWN(($I$303-$I$304-$I$305-$I$306-$Q$310-19-$I$307+$I$306)/1.5,0) -> -59 | Q311: =IF($P$310<272,70,47) -> 70
B312: =List!$C$190 -> Spodní čelo (FHu) v rozmezí | G312: min. | H312: =IF($J$312=$Q$315,$Q$315,SUM($I$303-$I$304-$I$305-$I$306-$J$311)) -> 0 | I312: max. | J312: =IF($Q$315=$H$311,$Q$315,(+$I$303-$I$304-$I$305-$I$306)/2) -> 0 | P312: =ROUNDDOWN(($I$303-$I$304-$I$305-$I$306-$Q$311-19-$I$307+$I$306)/1.5,0) -> -59 | Q312: =IF($P$310<272,70,47) -> 70
P313: =ROUNDDOWN(($I$303-$I$304-$I$305-$I$306-$Q$312-19-$I$307+$I$306)/1.5,0) -> -59 | Q313: =IF($P$310<272,70,47) -> 70
B314: =List!$C$196&" FHo [mm] " -> Výška vrchního čela FHo [mm] | K314: =IF($I$303=0," ",IF($I$314>$J$311,V314,IF($I$314<$H$311,$S$314," "))) ->  | P314: =ROUNDDOWN(($I$303-$I$304-$I$305-$I$306-$Q$313-19-$I$307+$I$306)/1.5,0) -> -59 | S314: =" min. "&TEXT($H$311,"#")&" mm!" -> min. mm! | V314: =" max. "&TEXT($J$311,"#")&" mm!" -> max. mm!
B315: =List!$C$197&" FHu [mm] " -> Výška spodního čela FHu [mm] | I315: =IF($I$314<$H$311,$Q$315,IF($I$314>$J$311,$Q$315,+$I$303-$I$304-$I$305-$I$306-$I$314)) -> 0 | P315: =+(1040-$I$304-$I$305-$I$306)/2 -> 520 | Q315: =List!C193 -> nelze
B316: =List!$C$198&" H [mm] " -> Pozice zdvihače H [mm] | I316: =IF($P$310=0,0,IF($I$315=$Q$315, $Q$315,$I$314*0.6-$Q$316+$I$304)) -> 0 | Q316: =IF($I$314<272,28,57) -> 28
B317: =List!$C$199&" X [mm] " -> Pozice mont. podložky pro teleskopy X [mm] | I317: =IF($P$310=0,0,IF($I$315=$Q$315,$Q$315,$I$314*0.5+$Q$317)) -> 0 | Q317: =IF($I$314<272,70,47) -> 70
B318: =List!$C$200&" TKH [mm] * " -> Teoretická výška korpusu TKH [mm] * | I318: =IF($I$315=$Q$315,$Q$315,IF($Q$318>479.99,IF($Q$318<1040.01,$Q$318,$Q$315)," ")) ->  | P318: TKH | Q318: =SUM($I$314*2+$I$304+$I$305+$I$306) -> 0
B320: * | C320: =List!$C$202 -> Tuto výšku zadejte do tabulky pro plánování výklopů
I325: =List!$C$149 -> Zpět
B399: AVENTOS HF
B401: =List!$C$281 -> Potřebný zdvihač se určí pomocí ukazatele výkonnosti.
B402: =List!$C$282 -> Ukazatel výkonnosti závisí na hmotnosti dolního i horního čílka, a rovněž na výšce korpusu.
B404: =" "&List!$C$295 -> Tak se to dělá:
D405: =List!$C$80&" = " -> Ukazatel výkonnosti = | E405: =List!$C$298&" [kg]" -> výška korpusu KH [mm] x hmotnost obou čel včetně úchytky [kg]
B407: =List!$C$286 -> Je-li ukazatel výkonnosti větší než 17.250, přidá se třetí zdvihač.
B408: =List!$C$287 -> Pokud je zvolen SERVO-DRIVE, přidá se rovněž druhá pohonná jednotka.
B409: =List!$C$163 -> Přídavný třetí zdvihač může být použit pouze s plným spodním čelem!
B411: =List!$C$289 -> Pokud znáte hmotnost čela, můžete ji zadat, jinak použijte "Výpočet hmotnosti".
B412: =List!$C$290 -> V tabulce má přednost zadaná hodnota. Chcete-li použít vypočtenou hmotnost, smažte zadanou hodnotu.
B414: =List!$C$301&". "&List!$C$302&"." -> Délka teleskopů závisí na výšce korpusu KH. U asymetrických čel se použije teoretická výška TKH.
B416: =" "&List!$C$144&":" -> Asymetrická čela:
B417: =" "&List!$C$299 -> Teoretická výška korpusu (TKH) = výška horního čela (FHo) x 2 (včetně mezer)
B419: =List!$C$293 -> U asymetrických čel musí být větší čelo nahoře!
B421: =List!$C$304 -> Pokud zadáte hodnotu TKH, použije se pro určení délky teleskopů
B422: =List!$C$305 -> Nemáte-li asymetrická čela, nechte políčko prázdné.
B423: =List!$C$306&" ' "&List!$C$176&"' " -> Pro výpočet TKH můžete použít ' Výpočet asymetrických čel'
B426: =List!$C$284 -> Chcete-li změnit barvu krytek, přejděte na "Úvod"
B428: =List!$C$383 -> Věnujte pozornost výběru alurámečků.
B429: =List!$C$384 -> Vyberte, který typ lépe odpovídá tvaru použitého alurámečku.
B430: =List!$C$385 -> Způsob osazení skla do rámečku výrazně ovlivňuje plochu skla a tím i hmotnost!
C432: =" "&List!$C$373&" " -> S vloženým sklem
C434: =" "&List!$C$374&" " -> S naloženým nebo nalepeným sklem
L436: =List!$C$149 -> Zpět

Sheet HFna
B2: AVENTOS HF | D2: AVENTOS HS | F2: AVENTOS HL | H2: AVENTOS HK top | J2: AVENTOS HK-S | L2: AVENTOS HK-XS | O2: rámeček | S2: 3 | Z2: =List!$C$135 -> Jdi na
B4: =List!$C$19&" ***" -> Úzké alurámečky *** | F4: =N200&" " -> Alurámečky s 4mm sklem | O4: 1 | S4: =" "&List!$C$39&" A " -> Cena za korpus A | Z4: =List!$C$136 -> Úvod plánování
O5: A = 1 | S5: =" "&List!$C$39&" B " -> Cena za korpus B | Z5: =List!$C$137 -> Nápověda
G6: =List!$C$47&" "&List!$C$22&" " -> Nastavit hmotnost alurámečků | O6: B = 2 | S6: =" "&List!$C$59 -> Cena celkem bez DPH | AR6: =" "&List!$C$80&" LF " -> Ukazatel výkonnosti LF | AT6: =List!$C$79 -> Zdvihací mechanizmus
B7: =List!$C$142 -> Soupis kování | G7: =IF(S2=1,$N$138,IF($S$2=2,$P$138,IF($S$2=3,$L$138,0))) -> 0 | Z7: =List!$C$141 -> Doplňky
H8: =IF(AND(OR($S$9=1, $S$18=1), $L$138>0), $N$32, " ") ->  | AR8: =" 2.600 - 5.500 (1 "&List!$C$153&" LF 960 - 2.650)" -> 2.600 - 5.500 (1 ks LF 960 - 2.650) | AT8: 20F2200.05
B9: SERVO-DRIVE | D9: =List!$C$62&" A" -> Korpus A | N9: zdvih A | P9: teleskop | S9: =IF($T$9=TRUE,1,2) -> 2 | T9: FALSE | V9: - SRVDRV | Z9: =List!$C$139 -> Přehled korpusů | AR9: 5.350 - 10.150 | AT9: 20F2500.05
B10: =List!$C$72&" KB [mm] " -> Šířka korpusu KB [mm] | I10: =IF(H10=0," ",IF($H10<220," min. 220mm",IF($H10>1800," max. 1 800mm"," ")))&IF(H15>0,IF(H10=0,"● "&List!$C$111," ")," ") ->  | N10: F22 | O10: =IF($H14<Cen!$F$240,0.5,IF($H14<Cen!$F$241,1,0)) -> 0.5 | P10: F32 | Q10: =SUM(IF($P14<Cen!$F$248,IF($H14<Cen!$F$240,0.5,1),0)) -> 0.5 | T10: Závěs A | V10: Závěs As | Z10: =List!$C$140 -> Objednávka | AR10: 9.000 - 17.250 | AT10: 20F2800.05
B11: =List!$C$73&" [mm]" -> Výška korpusu [mm] | E11: TKH * | G11: KH | I11: =IF(H11=0," ",IF($H11<480," min. 480mm",IF($H11>1040," max. 1 040mm"," ")))&IF(H15>0,IF(H11=0,"● "&List!$C$111," ")," ") ->  | N11: F25 | O11: =IF($H14<Cen!$E$242,0,IF($H14<Cen!$F$242,1,0)) -> 0 | P11: F35 | Q11: =IF($P14<Cen!$F$249,IF($P14>Cen!$E$249,IF($H14<Cen!$F$240,0.5,1),0),0) -> 0 | T11: T558E | U11: =IF($O$42=1,IF($H10>1199,3,IF($T15>11.9,3,2)),0)+IF(O$42=1,IF($H10>1799,1,IF($T15>19.9,1,0)),0) -> 0 | V11: Z553E | W11: =IF($Q$42=1,IF($H10>1199,3,IF($T15>11.9,3,2)),0)+IF($Q$42=1,IF($H10>1799,1,IF($T15>19.9,1,0)),0) -> 0
B12: =List!$C$74&" [kg] ** " -> Hmotnost čela včetně úchytky [kg] ** | I12: =IF($H15=0," ",IF(SUM($H12,$H13)=0,$N$34," "))&IF($H15>0,IF($H12>0,$N$35," ")," ") ->  | N12: F28 | O12: =IF($H14<Cen!$E$243,0,IF($H14<Cen!$F$243,1,IF($H14>Cen!$E$244,0,0))) -> 0 | P12: F38 | Q12: =IF($P14<Cen!$F$250,IF($P14>Cen!$E$250,IF($H14<Cen!$F$240,0.5,1),0),0) -> 0 | T12: T5550 | U12: =IF($O$42=2,IF($H10>1199,3,IF($T15>11.9,3,2)),0)+IF($O$42=2,IF($H10>1799,1,IF($T15>19.9,1,0)),0) -> 2 | V12: Z5500 | W12: =IF($Q$42=2,IF($H10>1199,3,IF($T15>11.9,3,2)),0)+IF($Q$42=2,IF($H10>1799,1,IF($T15>19.9,1,0)),0) -> 2 | AR12: =List!$C$80&" LF = "&List!$C$298&" [kg]" -> Ukazatel výkonnosti LF = výška korpusu KH [mm] x hmotnost obou čel včetně úchytky [kg]
B13: =List!$C$76&" [kg] " -> Vypočtená hmotnost čela [kg] | H13: =$H$210 -> 0 | I13: =IF($H15>0,IF($H13>0,IF($H12=0,$N$35," ")," ")," ") ->  | P13: F39 | Q13: =IF($P14<Cen!$F$251,IF($P14>Cen!$E$251,IF($H14<Cen!$F$240,0.5,1),0),0) -> 0 | Z13: =" "&List!$C$177&" A" -> Výpočet hmotnosti A
B14: =List!$C$80&" LF " -> Ukazatel výkonnosti LF | H14: =IF(H11<1041,IF(H11>479,IF(H12>0,H11*H12,H11*H13),0),0) -> 0 | I14: =IF(AND(H14>0,H14<960), $T$38, IF($H14>17250,$N$38," ")) ->  | O14: výška korpusu | P14: =IF(F11>0,IF(F11>=H11,F11,0),H11) -> 0
B15: =List!$C$69&" " -> Počet skříněk | I15: =IF(AND(M15>0, H14>959, O10=0.5), $U$39, " ") ->  | M15: =IF($H10*$P14=0,0,IF(SUM($H12,$H13)=0,0,IF($P14>Cen!$F$252,0,IF(P14<Cen!$E$248,0,IF(OR(H14<Cen!$E$240, H14>Cen!$F$243),0,$H15))))) -> 0 | N15: ← Hlavní údaj | S15: hmot = | T15: =IF(H12>0,H12,H13) -> 0 | U15: =IF(SUM(H12,H13)=0,0,IF(H12>0,1,2)) -> 0 | V15: zadaná / vypočtená | Z15: =" "&List!$C$176 -> Výpočet asymetrických čel | AR15: =List!$C$149 -> Zpět
B16: =IF(H15>0,IF(U15=0," ",IF(U15=1,$N$47,$N$48))," ")&IF(H15>0,IF(U15=0," ",IF(U15=1,$N$49,$N$50))," ") -> 
B17: =IF(F11=0," ",IF(F11>1040,"TKH = max. 1040!",IF(F11<480,"TKH = min. 480!",IF(F11<H11,$N$53,IF(H15>0,IF(F11=0," ",IF(F11>0,$N$52," "))," "))))) -> 
B18: SERVO-DRIVE | D18: =List!$C$62&" B" -> Korpus B | N18: zdvih B | P18: teleskop | S18: =IF($T$18=TRUE,1,2) -> 2 | T18: FALSE | V18: - SRVDRV | Z18: =" "&List!$C$361 -> Ověření síly zdvihače
B19: =List!$C$72&" KB [mm] " -> Šířka korpusu KB [mm] | I19: =IF(H19=0," ",IF($H19<220," min. 220mm",IF($H19>1800," max. 1 800mm"," ")))&IF(H24>0,IF(H19=0,"● "&List!$C$111," ")," ") ->  | N19: F22 | O19: =IF($H23<Cen!$F$240,0.5,IF($H23<Cen!$F$241,1,0)) -> 0.5 | P19: F32 | Q19: =SUM(IF($P23<Cen!$F$248,IF($H23<Cen!$F$240,0.5,1),0)) -> 0.5 | T19: Závěs B | V19: Závěs Bs
B20: =List!$C$73&" [mm]" -> Výška korpusu [mm] | E20: TKH * | G20: KH | I20: =IF(H20=0," ",IF($H20<480," min. 480mm",IF($H20>1040," max. 1 040mm"," ")))&IF(H24>0,IF(H20=0,"● "&List!$C$111," ")," ") ->  | N20: F25 | O20: =IF($H23<Cen!$E$242,0,IF($H23<Cen!$F$242,1,0)) -> 0 | P20: F35 | Q20: =IF($P23<Cen!$F$249,IF($P23>Cen!$E$249,IF($H23<Cen!$F$240,0.5,1),0),0) -> 0 | T20: T558E | U20: =IF($O$42=1,IF($H19>1199,3,IF($T24>11.9,3,2)),0)+IF(O$42=1,IF($H19>1799,1,IF($T24>19.9,1,0)),0) -> 0 | V20: Z553E | W20: =IF($Q$42=1,IF($H19>1199,3,IF($T24>11.9,3,2)),0)+IF($Q$42=1,IF($H19>1799,1,IF($T24>19.9,1,0)),0) -> 0
B21: =List!$C$74&" [kg] ** " -> Hmotnost čela včetně úchytky [kg] ** | I21: =IF($H24=0," ",IF(SUM($H21,$H22)=0,$N$34," "))&IF($H24>0,IF($H21>0,$N$35," ")," ") ->  | N21: F28 | O21: =IF($H23<Cen!$E$243,0,IF($H23<Cen!$F$243,1,IF($H23>Cen!$E$244,0,0))) -> 0 | P21: F38 | Q21: =IF($P23<Cen!$F$250,IF($P23>Cen!$E$250,IF($H23<Cen!$F$240,0.5,1),0),0) -> 0 | T21: T5550 | U21: =IF($O$42=2,IF($H19>1199,3,IF($T24>11.9,3,2)),0)+IF($O$42=2,IF($H19>1799,1,IF($T24>19.9,1,0)),0) -> 2 | V21: Z5500 | W21: =IF($Q$42=2,IF($H19>1199,3,IF($T24>11.9,3,2)),0)+IF($Q$42=2,IF($H19>1799,1,IF($T24>19.9,1,0)),0) -> 2
B22: =List!$C$76&" [kg] " -> Vypočtená hmotnost čela [kg] | H22: =$H$219 -> 0 | I22: =IF($H24>0,IF($H22>0,IF($H21=0,$N$35," ")," ")," ") ->  | P22: F39 | Q22: =IF($P23<Cen!$F$251,IF($P23>Cen!$E$251,IF($H23<Cen!$F$240,0.5,1),0),0) -> 0 | Z22: =" "&List!$C$177&" B" -> Výpočet hmotnosti B
B23: =List!$C$80&" LF " -> Ukazatel výkonnosti LF | H23: =IF(H20<1041,IF(H20>479,IF(H21>0,H20*H21,H20*H22),0),0) -> 0 | I23: =IF(AND(H23>0,H23<960), $T$38, IF($H23>17250,$N$38," ")) ->  | O23: výška korpusu | P23: =IF(F20>0,IF(F20>=H20,F20,0),H20) -> 0
B24: =List!$C$69&" " -> Počet skříněk | I24: =IF(AND(M24>0, H23>959, O19=0.5), $U$39, " ") ->  | M24: =IF($H19*$P23=0,0,IF(SUM($H21,$H22)=0,0,IF($P23>Cen!$F$252,0,IF(P23<Cen!$E$248,0,IF(OR(H23<Cen!$E$240, H23>Cen!$F$243),0,$H24))))) -> 0 | N24: ← Hlavní údaj | S24: hmot = | T24: =IF(H21>0,H21,H22) -> 0 | U24: =IF(SUM(H21,H22)=0,0,IF(H21>0,1,2)) -> 0 | V24: zadaná / vypočtená | Z24: =" "&List!$C$176 -> Výpočet asymetrických čel
B25: =IF(H24>0,IF(U24=0," ",IF(U24=1,$N$47,$N$48))," ")&IF(H24>0,IF(U24=0," ",IF(U24=1,$N$49,$N$50))," ") -> 
B26: =IF(F20=0," ",IF(F20>1040,"TKH = max. 1040!",IF(F20<480,"TKH = min. 480!",IF(F20<H20,$N$53,IF(H24>0,IF(F20=0," ",IF(F20>0,$N$52," "))," "))))) -> 
B27: =IF(OR(AND($S$9=1, $M$15>0), AND($S$18=1, $M$24>0)), List!$C$157, " ") ->  | S27: =IF($T$27=FALSE,2,1) -> 1 | T27: TRUE | V27: - Zdroj
N32: =List!C158 -> Cena bez napájecího zdroje!
C33: ="* "&List!$C$165 -> * Pouze pro asymetrická čela: zadejte teoretickou výšku TKH.
C34: =" ( "&List!$C$166&")" -> ( TKH = dvojnásobná výška horního čela včetně mezer) | N34: =" "&List!$C$103 -> Doplňte nebo použijte "Výpočet hmotnosti"
C35: ="** "&List!$C$168 -> ** Pokud znáte hmotnost a nechcete využít výpočtu hmotnosti | N35: ="◄ "&List!$C$100 -> ◄ hodnota bude použita pro výpočet LF
C36: ="*** "&List!$C$371 -> *** Vyberte typ alurámečku! | N36: =" * "&List!$C$110 -> * Doplňte hodnoty
C37: =" "&List!$C$372 -> Více informací k výběru alurámečků v Nápovědě
N38: =" max. 17.250! "&List!$C$105 -> max. 17.250! Upravte hmotnost nebo výšku | T38: =" min. 960! "&List!$C$105 -> min. 960! Upravte hmotnost nebo výšku
N39: =" "&List!$C$104 -> Přídavný třetí zdvihač | U39: =" "&List!C109 -> Použijte pouze jeden zdvihač
N40: =List!$C$163 -> Přídavný třetí zdvihač může být použit pouze s plným spodním čelem!
N42: =HF!$L$37 -> 2 | O42: 2 | P42: =HF!$N$37 -> 2 | Q42: 2 | R42: =HF!$P$37 -> 2 | T42: =Menu!$Q$27 -> 3
N43: záv. | O43: alu | P43: střed. | Q43: alu | R43: podl. | T43: kryt.
N44: =List!$C$116 -> Expando | P44: =List!$C$116 -> Expando | R44: =List!$C$116 -> Expando | T44: =List!$C$128 -> Světle šedá (HG/T)
N45: =List!$C$117 -> na vruty | P45: =List!$C$117 -> na vruty | R45: =List!$C$117 -> na vruty | T45: =List!$C$129 -> Tmavě šedá (TGR)
T46: =List!$C$130 -> Hedvábně bílá (SW/T)
N47: =List!C169 -> Pro určení typu zdvihače bude použita zadaná hmotnost
N48: =List!C170 -> Pro určení typu zdvihače bude použita vypočtená hmotnost
N49: =". "&List!$C$171 -> . Chcete-li použít vypočtenou hmotnost, smažte zadanou hodnotu
N50: =". "&List!$C$172 -> . Chcete-li použít zadanou hmotnost, zadejte ji do políčka
N51: =List!C173 -> 0
N52: =List!C174 -> Pro výběr teleskopů bude použita teoretická výška TKH
N53: =List!C175 -> Teoretická výška TKH nesmí být menší než KH
B98: =List!C142 -> Soupis kování
B100: =$B$2 -> AVENTOS HF | D100: =B4 -> Úzké alurámečky ***
B101: =List!C50 -> Název | G101: =List!$C$51 -> Číslo artiklu | I101: =List!C52 -> Barva | J101: =List!C54 -> Ks | K101: =List!C56 -> Jednotková cena | L101: =List!C57 -> Celkem | M101: A | N101: Cena | O101: B | P101: Cena | S101: Filtr
B102: =Cen!A2 -> Sada zdvihačů HF | G102: =Cen!E2 -> 20F2200.05 | I102: =Cen!G2 -> ZN | J102: =ROUNDUP($M$15*O10+$M$24*O19,0) -> 0 | K102: =Cen!I2 -> 0 | L102: =J102*K102 -> 0 | M102: =ROUNDUP($M$15*O10,0) -> 0 | N102: =$K102*M102 -> 0 | O102: =ROUNDUP($M$24*O19,0) -> 0 | P102: =$K102*O102 -> 0 | S102: x
B103: =Cen!A3 -> Sada zdvihačů HF | G103: =Cen!E3 -> 20F2500.05 | I103: =Cen!G3 -> ZN | J103: =ROUNDUP($M$15*O11+$M$24*O20,0) -> 0 | K103: =Cen!I3 -> 0 | L103: =J103*K103 -> 0 | M103: =ROUNDUP($M$15*O11,0) -> 0 | N103: 0 | O103: =ROUNDUP($M$24*O20,0) -> 0 | P103: 0 | S103: x
B104: =Cen!A4 -> Sada zdvihačů HF | G104: =Cen!E4 -> 20F2800.05 | I104: =Cen!G4 -> ZN | J104: =ROUNDUP($M$15*O12+$M$24*O21,0) -> 0 | K104: =Cen!I4 -> 0 | L104: 0 | M104: =ROUNDUP($M$15*O12,0) -> 0 | N104: 0 | O104: =ROUNDUP($M$24*O21,0) -> 0 | P104: 0 | S104: x
B105: =Cen!A5 -> Sada teleskopů (480-570mm) | G105: =Cen!E5 -> 20F3200.01 | I105: =Cen!G5 -> NI | J105: =ROUNDUP($M$15*Q10+$M$24*Q19,0) -> 0 | K105: =Cen!I5 -> 0 | L105: 0 | M105: =ROUNDUP($M$15*Q10,0) -> 0 | N105: 0 | O105: =ROUNDUP($M$24*Q19,0) -> 0 | P105: 0 | S105: x
B106: =Cen!A6 -> Sada teleskopů (560-710mm) | G106: =Cen!E6 -> 20F3500.01 | I106: =Cen!G6 -> NI | J106: =ROUNDUP($M$15*Q11+$M$24*Q20,0) -> 0 | K106: =Cen!I6 -> 0 | L106: 0 | M106: =ROUNDUP($M$15*Q11,0) -> 0 | N106: 0 | O106: =ROUNDUP($M$24*Q20,0) -> 0 | P106: 0 | S106: x
B107: =Cen!A7 -> Sada teleskopů (700-900mm) | G107: =Cen!E7 -> 20F3800.01 | I107: =Cen!G7 -> NI | J107: =ROUNDUP($M$15*Q12+$M$24*Q21,0) -> 0 | K107: =Cen!I7 -> 0 | L107: 0 | M107: =ROUNDUP($M$15*Q12,0) -> 0 | N107: 0 | O107: =ROUNDUP($M$24*Q21,0) -> 0 | P107: 0 | S107: x
B108: =Cen!A8 -> Sada teleskopů (760-1040mm) | G108: =Cen!E8 -> 20F3900.01 | I108: =Cen!G8 -> NI | J108: =ROUNDUP($M$15*Q13+$M$24*Q22,0) -> 0 | K108: =Cen!I8 -> 0 | L108: 0 | M108: =ROUNDUP($M$15*Q13,0) -> 0 | N108: 0 | O108: =ROUNDUP($M$24*Q22,0) -> 0 | P108: 0 | S108: x
B109: =Cen!A9 -> Sada krytek HF SERVO-DRIVE, sv.šedá | G109: =Cen!E9 -> 21F8000 | I109: =Cen!G9 -> HG/T | J109: =SUM(M109,O109,Q109) -> 0 | K109: =Cen!I9 -> 0 | L109: 0 | M109: =IF($S$9=2,0,IF($T$42=1,$M$134,0)) -> 0 | N109: 0 | O109: =IF($S$18=2,0,IF($T$42=1,$O$134,0)) -> 0 | P109: 0 | S109: x
B110: =Cen!A10 -> Sada krytek HF SERVO-DRIVE, tm.šedá | G110: =Cen!E10 -> 21F8000 | I110: =Cen!G10 -> TGR | J110: =SUM(M110,O110,Q110) -> 0 | K110: =Cen!I10 -> 0 | L110: =J110*K110 -> 0 | M110: =IF($S$9=2,0,IF($T$42=2,$M$134,0)) -> 0 | N110: =$K110*M110 -> 0 | O110: =IF($S$18=2,0,IF($T$42=2,$O$134,0)) -> 0 | P110: =$K110*O110 -> 0 | S110: x
B111: =Cen!A11 -> Sada krytek HF SERVO-DRIVE, bílá | G111: =Cen!E11 -> 21F8000 | I111: =Cen!G11 -> SW/T | J111: 0 | K111: =Cen!I11 -> 0 | L111: 0 | M111: =IF($S$9=2,0,IF($T$42=3,$M$134,0)) -> 0 | N111: =$K111*M111 -> 0 | O111: =IF($S$18=2,0,IF($T$42=3,$O$134,0)) -> 0 | P111: 0 | S111: x
B113: =Cen!A12 -> Sada krytek HF, světle šedá | G113: =Cen!E12 -> 20F8000 | I113: =Cen!G12 -> HG/T | J113: 0 | K113: =Cen!I12 -> 0 | L113: 0 | M113: =IF($S$9=1,0,IF($T$42=1,SUM($M$102:$M$104,0),0)) -> 0 | N113: 0 | O113: =IF($S$18=1,0,IF($T$42=1,SUM($O$102:$O$104,0),0)) -> 0 | P113: 0 | S113: x
B114: =Cen!A13 -> Sada krytek HF, tmavě šedá | G114: =Cen!E13 -> 20F8000 | I114: =Cen!G13 -> TGR | J114: =SUM(M114,O114,Q114) -> 0 | K114: =Cen!I13 -> 0 | L114: =J114*K114 -> 0 | M114: =IF($S$9=1,0,IF($T$42=2,SUM($M$102:$M$104,0),0)) -> 0 | N114: =$K114*M114 -> 0 | O114: =IF($S$18=1,0,IF($T$42=2,SUM($O$102:$O$104,0),0)) -> 0 | P114: =$K114*O114 -> 0 | S114: x
B115: =Cen!A14 -> Sada krytek HF, bílá | G115: =Cen!E14 -> 20F8000 | I115: =Cen!G14 -> SW/T | J115: 0 | K115: =Cen!I14 -> 0 | L115: 0 | M115: =IF($S$9=1,0,IF($T$42=3,SUM($M$102:$M$104,0),0)) -> 0 | N115: 0 | O115: =IF($S$18=1,0,IF($T$42=3,SUM($O$102:$O$104,0),0)) -> 0 | P115: 0 | S115: x
B117: =Cen!A15 -> Závěs CLIP top 120° | G117: =Cen!E15 -> 70T5550.TL | I117: =Cen!G15 -> NI | J117: 0 | K117: =Cen!I15 -> 0 | L117: 0 | N117: 0 | P117: 0
B118: =Cen!A16 -> Závěs CLIP top 120° EXPANDO | G118: =Cen!E16 -> 70T558E | I118: =Cen!G16 -> NI | J118: 0 | K118: =Cen!I16 -> 0 | L118: 0 | N118: 0 | P118: 0
B119: =Cen!A17 -> Středový závěs CLIP top | G119: =Cen!E17 -> 78Z5500T | I119: =Cen!G17 -> NI | J119: 0 | K119: =Cen!I17 -> 0 | L119: 0 | N119: 0 | P119: 0
B120: =Cen!A18 -> Středový závěs CLIP top EXPANDO | G120: =Cen!E18 -> 78Z553ET | I120: =Cen!G18 -> NI | J120: 0 | K120: =Cen!I18 -> 0 | L120: 0 | N120: 0 | P120: 0
B121: =Cen!A19 -> Závěs CLIP top pro alurámečky | G121: =Cen!E19 -> 72T550A.TL | I121: =Cen!G19 -> NI | J121: 0 | K121: =Cen!I19 -> 0 | L121: 0 | M121: =$M$15*$U$12 -> 0 | N121: 0 | O121: =$M$24*$U$21 -> 0 | P121: 0 | S121: x
B122: =Cen!A20 -> Střed. závěs CLIP top pro alurámečky | G122: =Cen!E20 -> 78Z550AT | I122: =Cen!G20 -> NI | J122: 0 | K122: =Cen!I20 -> 0 | L122: 0 | M122: =$M$15*$W$12 -> 0 | N122: 0 | O122: =$M$24*$W$21 -> 0 | P122: 0 | S122: x
B123: =Cen!A21 -> Přímá montážní podložka | G123: =Cen!E21 -> 175H3100 | I123: =Cen!G21 -> NI | J123: 0 | K123: =Cen!I21 -> 0 | L123: 0 | M123: =IF($R$42=2,$U$12*$M$15,0) -> 0 | N123: 0 | O123: =IF($R$42=2,$U$21*$M$24,0) -> 0 | P123: 0 | S123: x
B124: =Cen!A22 -> Přímá montážní podložka, EXPANDO | G124: =Cen!E22 -> 177H3100E | I124: =Cen!G22 -> NI | J124: 0 | K124: =Cen!I22 -> 0 | L124: 0 | M124: =IF($R$42=1,$U$12*$M$15,0) -> 0 | N124: 0 | O124: =IF($R$42=1,$U$21*$M$24,0) -> 0 | P124: 0 | S124: x
B125: =Cen!A23 -> Podložka CLIP excentrická | G125: =Cen!E23 -> 173H7100 | I125: =Cen!G23 -> NI | J125: 0 | K125: =Cen!I23 -> 0 | L125: 0 | N125: 0 | P125: 0
B126: =Cen!A24 -> Adaptér CLIP k teleskopům P | G126: =Cen!E24 -> 175H5B00 R | I126: =Cen!G24 -> NI | J126: 0 | K126: =Cen!I24 -> 0 | L126: 0 | M126: =IF($S$9=2,SUM($M$105:$M$108),IF($H$14<Cen!$F$240,$M$15,SUM($M$105:$M$108))) -> 0 | N126: 0 | O126: =IF($S$18=2,SUM($O$105:$O$108),IF($H$23<Cen!$F$240,$M$24,SUM($O$105:$O$108))) -> 0 | P126: 0 | S126: x
B127: =Cen!A25 -> Adaptér CLIP k teleskopům L | G127: =Cen!E25 -> 175H5B00 L | I127: =Cen!G25 -> NI | J127: 0 | K127: =Cen!I25 -> 0 | L127: 0 | M127: =IF($S$9=2,SUM($M$105:$M$108),IF($H$14<Cen!$F$240,0,SUM($M$105:$M$108))) -> 0 | N127: 0 | O127: =IF($S$18=2,SUM($O$105:$O$108),IF($H$23<Cen!$F$240,0,SUM($O$105:$O$108))) -> 0 | P127: 0 | S127: x
B128: =Cen!A26 -> Adaptér CLIP ke středovým závěsům | G128: =Cen!E26 -> 175H5A00 | I128: =Cen!G26 -> NI | J128: 0 | K128: =Cen!I26 -> 0 | L128: 0 | M128: =$M$122 -> 0 | N128: 0 | O128: =$O$122 -> 0 | P128: 0 | S128: x
B129: =Cen!A27 -> Omezovač úhlu otevření na 83° | G129: =Cen!E27 -> 20F7011 | I129: =Cen!G27 -> TGR | J129: 0 | K129: =Cen!I27 -> 0 | L129: 0 | N129: 0 | P129: 0
B130: =Cen!A28 -> Omezovač úhlu otevření na 104° | G130: =Cen!E28 -> 20F7051 | I130: =Cen!G28 -> TGR | J130: 0 | K130: =Cen!I28 -> 0 | L130: 0 | N130: 0 | P130: 0
B131: =Cen!A151 -> CLIP top krytka raménka Nikl | G131: =Cen!E151 -> 70.1503 | I131: =Cen!G151 -> NI | J131: 0 | K131: =Cen!I151 -> 0 | L131: 0 | M131: =SUM(M$117:M$122) -> 0 | N131: 0 | O131: =SUM(O$117:O$122) -> 0 | P131: 0 | S131: x
L133: 0 | N133: 0 | P133: 0
B134: =Cen!A199 -> SERVO-DRIVE jednotka (sada) | G134: =Cen!E199 -> 21FA000 | I134: =Cen!G199 -> HGR | J134: =SUM(M134,O134,Q134) -> 0 | K134: =Cen!I199 -> 0 | L134: 0 | M134: =IF($S$9=2,0,$M$15) -> 0 | N134: 0 | O134: =IF($S$18=2,0,$M$24) -> 0 | P134: 0 | S134: x
B135: =Cen!A200 -> SERVO-DRIVE jednotka (sada) pro HK top | G135: =Cen!E200 -> 23KA000 | I135: =Cen!G200 -> HGR | K135: =Cen!I200 -> 0 | L135: 0 | N135: 0 | P135: 0
K138: =List!$C$59&" " -> Cena celkem bez DPH | L138: =SUM(L102:L136) -> 0 | N138: =SUM(N102:N137) -> 0 | P138: =SUM(P102:P137) -> 0 | R138: =SUM(R102:R137) -> 0
L140: =List!$C$149 -> Zpět
B199: =List!$C$71 -> Výpočet hmotnosti čel
C200: =List!$C$161&" " -> Provedení čel | I200: =IF(U206=3,IF(H200=0,N203," "),IF(H200>0,N204," ")) ->  | N200: =IF($U$206=1,$U$227,IF($U$206=2,$U$228,$U$229&" - "&$H$200&"mm")) -> Alurámečky s 4mm sklem | S200: =Menu!$Q$205 -> 2500
N201: =" "&List!$C$224 -> Změnit objemovou hmotnost
N202: =" "&List!$C$225&" [kg/m3]" -> Zadejte objemovou hmotnost [kg/m3]
N203: =" "&List!$C$226&" [mm]" -> Zadejte sílu skla [mm]
N204: =" "&List!$C$221&" '"&List!$C$89&"'" -> Hodnota platí jen pro volbu 'Alurámečky s jiným sklem'
F205: =D9 -> Korpus A | T205: váha spoj. | U205: tl. skla | V205: typ alu
B206: =List!$C$72&" KB [mm] " -> Šířka korpusu KB [mm] | H206: =H10 -> 0 | N206: =H206*H207*H208 -> 0 | S206: =IF($V$206=1,$M$236,$M$237) -> 0.31 | T206: =$M$238*2 -> 0.92 | U206: 1 | V206: =$O$4 -> 1
B207: =List!$C$73&" KH [mm] " -> Výška korpusu KH [mm] | H207: =H11 -> 0 | N207: =N206/1000000000 -> 0 | O207: 3 | S207: váha alu | T207: =SUM(H206*4,(H207-80)*2)*S206/1000 -> -0.0496 | U207: A plocha B
B208: =List!$C$77&" TS [mm] " -> Síla čela TS [mm] | N208: =Menu!$L$30 -> 760 | O208: =List!$C$84&" ("&N208&" kg/m3)" -> MDF (760 kg/m3) | S208: =$S$200*4/1000 -> 10 | T208: =IF($V$206=1,U208*S208,V208*S208) -> 0.018 | U208: =SUM(($H$206-30)*($H$207-60)/1000000) -> 0.0018 | V208: =SUM(($H$206-6)*($H$207-15)/1000000) -> 9e-05 | W208: 4mm
B209: =List!$C$78&" [kg] " -> Hmotnost úchytky [kg] | I209: =IF(SUM(H206,H207)=0," ",IF(H209=0," ● "&List!$C$112," ")) ->  | N209: =Menu!$L$31 -> 680 | O209: =List!$C$85&" ("&N209&" kg/m3)" -> Dřevotříska (680 kg/m3) | S209: =$S$200*5/1000 -> 12.5 | T209: =IF($V$206=1,U209*S209,V209*S209) -> 0.0225 | U209: =SUM(($H$206-30)*($H$207-60)/1000000) -> 0.0018 | V209: =SUM(($H$206-6)*($H$207-15)/1000000) -> 9e-05 | W209: 5mm
B210: =List!$C$76&" [kg] " -> Vypočtená hmotnost čela [kg] | H210: =IF(S211=0,0,S211+H209) -> 0 | M210: =IF(H206*H207*H208=0,0,IF(O207=1,N207*N208+H209,IF(O207=2,N207*N209+H209,N207*N210+H209))) -> 0 | N210: =$H$200 -> 0 | O210: =List!$C$86 -> Jiné - volitelná hustota | S210: =$S$200*$H$200/1000 -> 0 | T210: =IF($V$206=1,U210*S210,V210*S210) -> 0 | U210: =SUM(($H$206-30)*($H$207-60)/1000000) -> 0.0018 | V210: =SUM(($H$206-6)*($H$207-15)/1000000) -> 9e-05 | W210: jiné
C211: =IF(H210>0,IF(H209=0,$N$227," ")," ") ->  | S211: =IF(OR(AND(U206=3, $H$200=0), H206*H207=0), 0, SUM(IF(U206=1,T208,IF(U206=2,T209,T210)),T207,T206)) -> 0
F214: =D18 -> Korpus B | T214: váha spoj. | U214: tl. skla | V214: typ alu
B215: =List!$C$72&" KB [mm] " -> Šířka korpusu KB [mm] | H215: =H19 -> 0 | N215: =H215*H216*H217 -> 0 | S215: =IF($V$206=1,$M$236,$M$237) -> 0.31 | T215: =$M$238*2 -> 0.92 | U215: =$U$206 -> 1 | V215: =$V$206 -> 1
B216: =List!$C$73&" KH [mm] " -> Výška korpusu KH [mm] | H216: =H20 -> 0 | N216: =N215/1000000000 -> 0 | O216: =O207 -> 3 | S216: váha alu | T216: =SUM(H215*4,(H216-80)*2)*S215/1000 -> -0.0496 | U216: A plocha B
B217: =List!$C$77&" TS [mm] " -> Síla čela TS [mm] | N217: =$N$208 -> 760 | O217: =$O$208 -> MDF (760 kg/m3) | S217: =S208 -> 10 | T217: =IF($V$206=1,U217*S217,V217*S217) -> 0.018 | U217: =SUM(($H$215-30)*($H$216-60)/1000000) -> 0.0018 | V217: =SUM(($H$215-6)*($H$216-15)/1000000) -> 9e-05 | W217: 4mm
B218: =List!$C$78&" [kg] " -> Hmotnost úchytky [kg] | I218: =IF(SUM(H215,H216)=0," ",IF(H218=0," ● "&List!$C$112," ")) ->  | N218: =$N$209 -> 680 | O218: =$O$209 -> Dřevotříska (680 kg/m3) | S218: =S209 -> 12.5 | T218: =IF($V$206=1,U218*S218,V218*S218) -> 0.0225 | U218: =SUM(($H$215-30)*($H$216-60)/1000000) -> 0.0018 | V218: =SUM(($H$215-6)*($H$216-15)/1000000) -> 9e-05 | W218: 5mm
B219: =List!$C$76&" [kg] " -> Vypočtená hmotnost čela [kg] | H219: =IF(S220=0,0,S220+H218) -> 0 | M219: =IF(H215*H216*H217=0,0,IF(O216=1,N216*N217+H218,IF(O216=2,N216*N218+H218,N216*N219+H218))) -> 0 | N219: =$N$210 -> 0 | O219: =$O$210 -> Jiné - volitelná hustota | S219: =S210 -> 0 | T219: =IF($V$206=1,U219*S219,V219*S219) -> 0 | U219: =SUM(($H$215-30)*($H$216-60)/1000000) -> 0.0018 | V219: =SUM(($H$215-6)*($H$216-15)/1000000) -> 9e-05 | W219: jiné
C220: =IF(H219>0,IF(H218=0,$N$227," ")," ") ->  | S220: =IF(H215*H216=0,0,SUM(IF(U215=1,T217,IF(U215=2,T218,T219)),T216,T215)) -> 0
G224: =List!$C$149 -> Zpět
C227: =List!$C$217&" "&List!$C$218 -> Upozornění: Vypočtené hodnoty jsou pouze orientační. Firma Blum ani prodejci neručí za jejich správnost. | N227: =List!$C$95&"!" -> Není započtena hmotnost úchytky! | U227: =List!$C$87 -> Alurámečky s 4mm sklem
U228: =List!$C$88 -> Alurámečky s 5mm sklem
U229: =List!$C$89 -> Alurámečky s jiným sklem
E235: Hmotnost alurámečků [kg/bm] | G235: =List!$C$368 -> Podle Úvodu | H235: =List!$C$58 -> Změna
F236: =List!$C$375&" " -> S vloženým sklem | G236: =Menu!$Q220 -> 0.31 | M236: =IF($H236>0,$H236,$G236) -> 0.31
F237: =List!$C$376&" " -> S naloženým nebo nalepeným sklem | G237: =Menu!$Q221 -> 0.32 | M237: =IF($H237>0,$H237,$G237) -> 0.32
F238: =List!$C$377&" [kg/set] * " -> Hmotnost spojovacího materiálu [kg/set] * | G238: =Menu!$Q222 -> 0.46 | M238: =IF($H238>0,$H238,$G238) -> 0.46
C240: =" * "& List!$C$378&" " -> * Rohové spojky, šrouby, těsnění pro jeden rámeček
G243: =List!$C$149 -> Zpět
B300: =List!$C$176 -> Výpočet asymetrických čel
B302: =" "&List!$C$179 -> Parametry korpusu
B303: =List!$C$73&" KH [mm] " -> Výška korpusu KH [mm] | K303: =IF(SUM($I$304:$J$307,$I$314)<>0,IF($I$303=0," "&List!$C$111," ")," ") -> 
B304: =List!$C$182&" [mm] " -> Mezera nahoře [mm]
B305: =List!$C$183&" [mm] " -> Mezera mezi čely [mm] | K305: =IF($I$303=0," ",IF($I$305<1.5," min. 1,5 mm!"," ")) -> 
B306: =List!$C$184&" [mm] " -> Mezera dole [mm]
B307: =List!$C$185&" [mm] " -> Síla dna korpusu [mm]
B309: =" "&List!$C$187 -> Výsledky plánování
G310: =List!$C$188&" [mm] " -> Možné výšky čel [mm] | P310: =ROUNDUP((+$I$303-$I$304-$I$305-$I$306)/2,0) -> 0 | Q310: =IF($P$310<272,70,47) -> 70
B311: =List!$C$189 -> Vrchní čelo (FHo) v rozmezí | G311: min. | H311: =IF($P$310=0,0,IF($P$310<236,$Q$315,IF($P$310>516,$Q$315,$P$310))) -> 0 | I311: max. | J311: =IF($P$310=0,0,IF($Q$315=$H$311,$Q$315,IF($P$315<$P$314,$P$315,$P$314))) -> 0 | P311: =ROUNDDOWN(($I$303-$I$304-$I$305-$I$306-$Q$310-19-$I$307+$I$306)/1.5,0) -> -59 | Q311: =IF($P$310<272,70,47) -> 70
B312: =List!$C$190 -> Spodní čelo (FHu) v rozmezí | G312: min. | H312: =IF($J$312=$Q$315,$Q$315,SUM($I$303-$I$304-$I$305-$I$306-$J$311)) -> 0 | I312: max. | J312: =IF($Q$315=$H$311,$Q$315,(+$I$303-$I$304-$I$305-$I$306)/2) -> 0 | P312: =ROUNDDOWN(($I$303-$I$304-$I$305-$I$306-$Q$311-19-$I$307+$I$306)/1.5,0) -> -59 | Q312: =IF($P$310<272,70,47) -> 70
P313: =ROUNDDOWN(($I$303-$I$304-$I$305-$I$306-$Q$312-19-$I$307+$I$306)/1.5,0) -> -59 | Q313: =IF($P$310<272,70,47) -> 70
B314: =List!$C$196&" FHo [mm] " -> Výška vrchního čela FHo [mm] | K314: =IF($I$303=0," ",IF($I$314>$J$311,V314,IF($I$314<$H$311,$S$314," "))) ->  | P314: =ROUNDDOWN(($I$303-$I$304-$I$305-$I$306-$Q$313-19-$I$307+$I$306)/1.5,0) -> -59 | S314: =" min. "&TEXT($H$311,"#")&" mm!" -> min. mm! | V314: =" max. "&TEXT($J$311,"#")&" mm!" -> max. mm!
B315: =List!$C$197&" FHu [mm] " -> Výška spodního čela FHu [mm] | I315: =IF($I$314<$H$311,$Q$315,IF($I$314>$J$311,$Q$315,+$I$303-$I$304-$I$305-$I$306-$I$314)) -> 0 | P315: =+(1040-$I$304-$I$305-$I$306)/2 -> 520 | Q315: =List!C193 -> nelze
B316: =List!$C$198&" H [mm] " -> Pozice zdvihače H [mm] | I316: =IF($P$310=0,0,IF($I$315=$Q$315, $Q$315,$I$314*0.6-$Q$316+$I$304)) -> 0 | Q316: =IF($I$314<272,28,57) -> 28
B317: =List!$C$199&" X [mm] " -> Pozice mont. podložky pro teleskopy X [mm] | I317: =IF($P$310=0,0,IF($I$315=$Q$315,$Q$315,$I$314*0.5+$Q$317)) -> 0 | Q317: =IF($I$314<272,70,47) -> 70
B318: =List!$C$200&" TKH [mm] * " -> Teoretická výška korpusu TKH [mm] * | I318: =IF($I$315=$Q$315,$Q$315,IF($Q$318>479.99,IF($Q$318<1040.01,$Q$318,$Q$315)," ")) ->  | P318: TKH | Q318: =SUM($I$314*2+$I$304+$I$305+$I$306) -> 0
B320: * | C320: =List!$C$202 -> Tuto výšku zadejte do tabulky pro plánování výklopů
I325: =List!$C$149 -> Zpět
B399: AVENTOS HF
B401: =List!$C$281 -> Potřebný zdvihač se určí pomocí ukazatele výkonnosti.
B402: =List!$C$282 -> Ukazatel výkonnosti závisí na hmotnosti dolního i horního čílka, a rovněž na výšce korpusu.
B404: =" "&List!$C$295 -> Tak se to dělá:
D405: =List!$C$80&" = " -> Ukazatel výkonnosti = | E405: =List!$C$298&" [kg]" -> výška korpusu KH [mm] x hmotnost obou čel včetně úchytky [kg]
B411: =List!$C$289 -> Pokud znáte hmotnost čela, můžete ji zadat, jinak použijte "Výpočet hmotnosti".
B412: =List!$C$290 -> V tabulce má přednost zadaná hodnota. Chcete-li použít vypočtenou hmotnost, smažte zadanou hodnotu.
B414: =List!$C$301&". "&List!$C$302&"." -> Délka teleskopů závisí na výšce korpusu KH. U asymetrických čel se použije teoretická výška TKH.
B416: =" "&List!$C$144&":" -> Asymetrická čela:
B417: =" "&List!$C$299 -> Teoretická výška korpusu (TKH) = výška horního čela (FHo) x 2 (včetně mezer)
B419: =List!$C$293 -> U asymetrických čel musí být větší čelo nahoře!
B421: =List!$C$304 -> Pokud zadáte hodnotu TKH, použije se pro určení délky teleskopů
B422: =List!$C$305 -> Nemáte-li asymetrická čela, nechte políčko prázdné.
B423: =List!$C$306&" ' "&List!$C$176&"' " -> Pro výpočet TKH můžete použít ' Výpočet asymetrických čel'
B426: =List!$C$284 -> Chcete-li změnit barvu krytek, přejděte na "Úvod"
B428: =List!$C$383 -> Věnujte pozornost výběru alurámečků.
B429: =List!$C$384 -> Vyberte, který typ lépe odpovídá tvaru použitého alurámečku.
B430: =List!$C$385 -> Způsob osazení skla do rámečku výrazně ovlivňuje plochu skla a tím i hmotnost!
C432: =" "&List!$C$375&" " -> S vloženým sklem
C434: =" "&List!$C$376&" " -> S naloženým nebo nalepeným sklem
L436: =List!$C$149 -> Zpět

Sheet HFw_na
B2: AVENTOS HF | D2: AVENTOS HS | F2: AVENTOS HL | H2: AVENTOS HK top | J2: AVENTOS HK-S | L2: AVENTOS HK-XS | O2: rámeček | S2: 3 | Z2: =List!$C$135 -> Jdi na
B4: =List!$C$15 -> Dřevěné čelo | F4: =$N$200&" " -> MDF (760 kg/m3) A~/ B~mm | O4: 1 | S4: =" "&List!$C$39&" A " -> Cena za korpus A | Z4: =List!$C$136 -> Úvod plánování
B5: =List!$C$20&" ***" -> Úzký alurámeček *** | F5: =$N$201&" " -> Alurámečky s 4mm sklem | O5: A = 1 | S5: =" "&List!$C$39&" B " -> Cena za korpus B | Z5: =List!$C$137 -> Nápověda
G6: =List!$C$47&" "&List!$C$22&" " -> Nastavit hmotnost alurámečků | O6: B = 2 | S6: =" "&List!$C$59 -> Cena celkem bez DPH | AR6: =" "&List!$C$80&" LF " -> Ukazatel výkonnosti LF | AT6: =List!$C$79 -> Zdvihací mechanizmus
B7: =List!$C$142 -> Soupis kování | G7: =IF(S2=1,$N$138,IF($S$2=2,$P$138,IF($S$2=3,$L$138,0))) -> 0 | Z7: =List!$C$141 -> Doplňky
H8: =IF(AND(OR($S$9=1, $S$18=1), $L$138>0), $N$32, " ") ->  | AR8: =" 2.600 - 5.500 (1 "&List!$C$153&" LF 960 - 2.650)" -> 2.600 - 5.500 (1 ks LF 960 - 2.650) | AT8: 20F2200.05
B9: SERVO-DRIVE | D9: =List!$C$62&" A" -> Korpus A | N9: zdvih A | P9: teleskop | S9: =IF($T$9=TRUE,1,2) -> 2 | T9: FALSE | V9: - SRVDRV | Z9: =List!$C$139 -> Přehled korpusů | AR9: 5.350 - 10.150 | AT9: 20F2500.05
B10: =List!$C$72&" KB [mm] " -> Šířka korpusu KB [mm] | I10: =IF(H10=0," ",IF($H10<220," min. 220mm",IF($H10>1800," max. 1 800mm"," ")))&IF(H15>0,IF(H10=0,"● "&List!$C$111," ")," ") ->  | N10: F22 | O10: =IF($H14<Cen!$F$240,0.5,IF($H14<Cen!$F$241,1,0)) -> 0.5 | P10: F32 | Q10: =SUM(IF($P14<Cen!$F$248,IF($H14<Cen!$F$240,0.5,1),0)) -> 0.5 | T10: Závěs A | V10: Závěs As | Z10: =List!$C$140 -> Objednávka | AR10: 9.000 - 17.250 | AT10: 20F2800.05
B11: =List!$C$73&" [mm]" -> Výška korpusu [mm] | E11: TKH * | G11: KH | I11: =IF(H11=0," ",IF($H11<480," min. 480mm",IF($H11>1040," max. 1 040mm"," ")))&IF(H15>0,IF(H11=0,"● "&List!$C$111," ")," ") ->  | N11: F25 | O11: =IF($H14<Cen!$E$242,0,IF($H14<Cen!$F$242,1,0)) -> 0 | P11: F35 | Q11: =IF($P14<Cen!$F$249,IF($P14>Cen!$E$249,IF($H14<Cen!$F$240,0.5,1),0),0) -> 0 | T11: T558E | U11: =IF($N$42=1,IF($H10>1199,3,IF($T15>11.9,3,2)),0)+IF(N$42=1,IF($H10>1799,1,IF($T15>19.9,1,0)),0) -> 0 | V11: Z553E | W11: =IF($Q$42=1,IF($H10>1199,3,IF($T15>11.9,3,2)),0)+IF($Q$42=1,IF($H10>1799,1,IF($T15>19.9,1,0)),0) -> 0
B12: =List!$C$74&" [kg] ** " -> Hmotnost čela včetně úchytky [kg] ** | I12: =IF($H15=0," ",IF(SUM($H12,$H13)=0,$N$34," "))&IF($H15>0,IF($H12>0,$N$35," ")," ") ->  | N12: F28 | O12: =IF($H14<Cen!$E$243,0,IF($H14<Cen!$F$243,1,IF($H14>Cen!$E$244,0,0))) -> 0 | P12: F38 | Q12: =IF($P14<Cen!$F$250,IF($P14>Cen!$E$250,IF($H14<Cen!$F$240,0.5,1),0),0) -> 0 | T12: T5550 | U12: =IF($N$42=2,IF($H10>1199,3,IF($T15>11.9,3,2)),0)+IF($N$42=2,IF($H10>1799,1,IF($T15>19.9,1,0)),0) -> 2 | V12: Z5500 | W12: =IF($Q$42=2,IF($H10>1199,3,IF($T15>11.9,3,2)),0)+IF($Q$42=2,IF($H10>1799,1,IF($T15>19.9,1,0)),0) -> 2 | AR12: =List!$C$80&" LF = "&List!$C$298&" [kg]" -> Ukazatel výkonnosti LF = výška korpusu KH [mm] x hmotnost obou čel včetně úchytky [kg]
B13: =List!$C$76&" [kg] " -> Vypočtená hmotnost čela [kg] | H13: =$H$210 -> 0 | I13: =IF($H15>0,IF($H13>0,IF($H12=0,$N$35," ")," ")," ") ->  | P13: F39 | Q13: =IF($P14<Cen!$F$251,IF($P14>Cen!$E$251,IF($H14<Cen!$F$240,0.5,1),0),0) -> 0 | Z13: =" "&List!$C$177&" A" -> Výpočet hmotnosti A
B14: =List!$C$80&" LF " -> Ukazatel výkonnosti LF | H14: =IF(H11<1041,IF(H11>479,IF(H12>0,H11*H12,H11*H13),0),0) -> 0 | I14: =IF(AND(H14>0,H14<960), $T$38, IF($H14>17250,$N$38," ")) ->  | O14: výška korpusu | P14: =IF(F11>0,IF(F11>=H11,F11,0),H11) -> 0
B15: =List!$C$69&" " -> Počet skříněk | I15: =IF(AND(M15>0, H14>959, O10=0.5), $U$39, " ") ->  | M15: =IF($H10*$P14=0,0,IF(SUM($H12,$H13)=0,0,IF($P14>Cen!$F$252,0,IF(P14<Cen!$E$248,0,IF(OR(H14<Cen!$E$240, H14>Cen!$F$243),0,$H15))))) -> 0 | N15: ← Hlavní údaj | S15: hmot = | T15: =IF(H12>0,H12,H13) -> 0 | U15: =IF(SUM(H12,H13)=0,0,IF(H12>0,1,2)) -> 0 | V15: zadaná / vypočtená | Z15: =" "&List!$C$176 -> Výpočet asymetrických čel | AR15: =List!$C$149 -> Zpět
B16: =IF(H15>0,IF(U15=0," ",IF(U15=1,$N$47,$N$48))," ")&IF(H15>0,IF(U15=0," ",IF(U15=1,$N$49,$N$50))," ") -> 
B17: =IF(F11=0," ",IF(F11>1040,"TKH = max. 1040!",IF(F11<480,"TKH = min. 480!",IF(F11<H11,$N$53,IF(H15>0,IF(F11=0," ",IF(F11>0,$N$52," "))," "))))) -> 
B18: SERVO-DRIVE | D18: =List!$C$62&" B" -> Korpus B | N18: zdvih B | P18: teleskop | S18: =IF($T$18=TRUE,1,2) -> 2 | T18: FALSE | V18: - SRVDRV | Z18: =" "&List!$C$361 -> Ověření síly zdvihače
B19: =List!$C$72&" KB [mm] " -> Šířka korpusu KB [mm] | I19: =IF(H19=0," ",IF($H19<220," min. 220mm",IF($H19>1800," max. 1 800mm"," ")))&IF(H24>0,IF(H19=0,"● "&List!$C$111," ")," ") ->  | N19: F22 | O19: =IF($H23<Cen!$F$240,0.5,IF($H23<Cen!$F$241,1,0)) -> 0.5 | P19: F32 | Q19: =SUM(IF($P23<Cen!$F$248,IF($H23<Cen!$F$240,0.5,1),0)) -> 0.5 | T19: Závěs B | V19: Závěs Bs
B20: =List!$C$73&" [mm]" -> Výška korpusu [mm] | E20: TKH * | G20: KH | I20: =IF(H20=0," ",IF($H20<480," min. 480mm",IF($H20>1040," max. 1 040mm"," ")))&IF(H24>0,IF(H20=0,"● "&List!$C$111," ")," ") ->  | N20: F25 | O20: =IF($H23<Cen!$E$242,0,IF($H23<Cen!$F$242,1,0)) -> 0 | P20: F35 | Q20: =IF($P23<Cen!$F$249,IF($P23>Cen!$E$249,IF($H23<Cen!$F$240,0.5,1),0),0) -> 0 | T20: T558E | U20: =IF($N$42=1,IF($H19>1199,3,IF($T24>11.9,3,2)),0)+IF(N$42=1,IF($H19>1799,1,IF($T24>19.9,1,0)),0) -> 0 | V20: Z553E | W20: =IF($Q$42=1,IF($H19>1199,3,IF($T24>11.9,3,2)),0)+IF($Q$42=1,IF($H19>1799,1,IF($T24>19.9,1,0)),0) -> 0
B21: =List!$C$74&" [kg] ** " -> Hmotnost čela včetně úchytky [kg] ** | I21: =IF($H24=0," ",IF(SUM($H21,$H22)=0,$N$34," "))&IF($H24>0,IF($H21>0,$N$35," ")," ") ->  | N21: F28 | O21: =IF($H23<Cen!$E$243,0,IF($H23<Cen!$F$243,1,IF($H23>Cen!$E$244,0,0))) -> 0 | P21: F38 | Q21: =IF($P23<Cen!$F$250,IF($P23>Cen!$E$250,IF($H23<Cen!$F$240,0.5,1),0),0) -> 0 | T21: T5550 | U21: =IF($N$42=2,IF($H19>1199,3,IF($T24>11.9,3,2)),0)+IF($N$42=2,IF($H19>1799,1,IF($T24>19.9,1,0)),0) -> 2 | V21: Z5500 | W21: =IF($Q$42=2,IF($H19>1199,3,IF($T24>11.9,3,2)),0)+IF($Q$42=2,IF($H19>1799,1,IF($T24>19.9,1,0)),0) -> 2
B22: =List!$C$76&" [kg] " -> Vypočtená hmotnost čela [kg] | H22: =$H$219 -> 0 | I22: =IF($H24>0,IF($H22>0,IF($H21=0,$N$35," ")," ")," ") ->  | P22: F39 | Q22: =IF($P23<Cen!$F$251,IF($P23>Cen!$E$251,IF($H23<Cen!$F$240,0.5,1),0),0) -> 0 | Z22: =" "&List!$C$177&" B" -> Výpočet hmotnosti B
B23: =List!$C$80&" LF " -> Ukazatel výkonnosti LF | H23: =IF(H20<1041,IF(H20>479,IF(H21>0,H20*H21,H20*H22),0),0) -> 0 | I23: =IF(AND(H23>0,H23<960), $T$38, IF($H23>17250,$N$38," ")) ->  | O23: výška korpusu | P23: =IF(F20>0,IF(F20>=H20,F20,0),H20) -> 0
B24: =List!$C$69&" " -> Počet skříněk | I24: =IF(AND(M24>0, H23>959, O19=0.5), $U$39, " ") ->  | M24: =IF($H19*$P23=0,0,IF(SUM($H21,$H22)=0,0,IF($P23>Cen!$F$252,0,IF(P23<Cen!$E$248,0,IF(OR(H23<Cen!$E$240, H23>Cen!$F$243),0,$H24))))) -> 0 | N24: ← Hlavní údaj | S24: hmot = | T24: =IF(H21>0,H21,H22) -> 0 | U24: =IF(SUM(H21,H22)=0,0,IF(H21>0,1,2)) -> 0 | V24: zadaná / vypočtená | Z24: =" "&List!$C$176 -> Výpočet asymetrických čel
B25: =IF(H24>0,IF(U24=0," ",IF(U24=1,$N$47,$N$48))," ")&IF(H24>0,IF(U24=0," ",IF(U24=1,$N$49,$N$50))," ") -> 
B26: =IF(F20=0," ",IF(F20>1040,"TKH = max. 1040!",IF(F20<480,"TKH = min. 480!",IF(F20<H20,$N$53,IF(H24>0,IF(F20=0," ",IF(F20>0,$N$52," "))," "))))) -> 
B27: =IF(OR(AND($S$9=1, $M$15>0), AND($S$18=1, $M$24>0)), List!$C$157, " ") ->  | S27: =IF($T$27=FALSE,2,1) -> 1 | T27: TRUE | V27: - Zdroj
N32: =List!C158 -> Cena bez napájecího zdroje!
C33: ="* "&List!$C$165 -> * Pouze pro asymetrická čela: zadejte teoretickou výšku TKH.
C34: =" ( "&List!$C$166&")" -> ( TKH = dvojnásobná výška horního čela včetně mezer) | N34: =" "&List!$C$103 -> Doplňte nebo použijte "Výpočet hmotnosti"
C35: ="** "&List!$C$168 -> ** Pokud znáte hmotnost a nechcete využít výpočtu hmotnosti | N35: ="◄ "&List!$C$100 -> ◄ hodnota bude použita pro výpočet LF
C36: ="*** "&List!$C$371 -> *** Vyberte typ alurámečku! | N36: =" * "&List!$C$110 -> * Doplňte hodnoty
C37: =" "&List!$C$372 -> Více informací k výběru alurámečků v Nápovědě
N38: =" max. 17.250! "&List!$C$105 -> max. 17.250! Upravte hmotnost nebo výšku | T38: =" min. 960! "&List!$C$105 -> min. 960! Upravte hmotnost nebo výšku
N39: =" "&List!$C$104 -> Přídavný třetí zdvihač | U39: =" "&List!C109 -> Použijte pouze jeden zdvihač
N40: =List!$C$163 -> Přídavný třetí zdvihač může být použit pouze s plným spodním čelem!
N42: =HF!$L$37 -> 2 | O42: 2 | P42: =HF!$N$37 -> 2 | Q42: 2 | R42: =HF!$P$37 -> 2 | T42: =Menu!$Q$27 -> 3
N43: záv. | O43: alu | P43: střed. | Q43: alu | R43: podl. | T43: kryt.
N44: =List!$C$116 -> Expando | P44: =List!$C$116 -> Expando | R44: =List!$C$116 -> Expando | T44: =List!$C$128 -> Světle šedá (HG/T)
N45: =List!$C$117 -> na vruty | P45: =List!$C$117 -> na vruty | R45: =List!$C$117 -> na vruty | T45: =List!$C$129 -> Tmavě šedá (TGR)
T46: =List!$C$130 -> Hedvábně bílá (SW/T)
N47: =List!C169 -> Pro určení typu zdvihače bude použita zadaná hmotnost
N48: =List!C170 -> Pro určení typu zdvihače bude použita vypočtená hmotnost
N49: =". "&List!$C$171 -> . Chcete-li použít vypočtenou hmotnost, smažte zadanou hodnotu
N50: =". "&List!$C$172 -> . Chcete-li použít zadanou hmotnost, zadejte ji do políčka
N51: =List!C173 -> 0
N52: =List!C174 -> Pro výběr teleskopů bude použita teoretická výška TKH
N53: =List!C175 -> Teoretická výška TKH nesmí být menší než KH
B98: =List!C142 -> Soupis kování
B100: =$B$2 -> AVENTOS HF | D100: =B4 -> Dřevěné čelo | F100: - | G100: =B5 -> Úzký alurámeček ***
B101: =List!C50 -> Název | G101: =List!$C$51 -> Číslo artiklu | I101: =List!C52 -> Barva | J101: =List!C54 -> Ks | K101: =List!C56 -> Jednotková cena | L101: =List!C57 -> Celkem | M101: A | N101: Cena | O101: B | P101: Cena | S101: Filtr
B102: =Cen!A2 -> Sada zdvihačů HF | G102: =Cen!E2 -> 20F2200.05 | I102: =Cen!G2 -> ZN | J102: =ROUNDUP($M$15*O10+$M$24*O19,0) -> 0 | K102: =Cen!I2 -> 0 | L102: =J102*K102 -> 0 | M102: =ROUNDUP($M$15*O10,0) -> 0 | N102: =$K102*M102 -> 0 | O102: =ROUNDUP($M$24*O19,0) -> 0 | P102: =$K102*O102 -> 0 | S102: x
B103: =Cen!A3 -> Sada zdvihačů HF | G103: =Cen!E3 -> 20F2500.05 | I103: =Cen!G3 -> ZN | J103: =ROUNDUP($M$15*O11+$M$24*O20,0) -> 0 | K103: =Cen!I3 -> 0 | L103: =J103*K103 -> 0 | M103: =ROUNDUP($M$15*O11,0) -> 0 | N103: 0 | O103: =ROUNDUP($M$24*O20,0) -> 0 | P103: 0 | S103: x
B104: =Cen!A4 -> Sada zdvihačů HF | G104: =Cen!E4 -> 20F2800.05 | I104: =Cen!G4 -> ZN | J104: =ROUNDUP($M$15*O12+$M$24*O21,0) -> 0 | K104: =Cen!I4 -> 0 | L104: 0 | M104: =ROUNDUP($M$15*O12,0) -> 0 | N104: 0 | O104: =ROUNDUP($M$24*O21,0) -> 0 | P104: 0 | S104: x
B105: =Cen!A5 -> Sada teleskopů (480-570mm) | G105: =Cen!E5 -> 20F3200.01 | I105: =Cen!G5 -> NI | J105: =ROUNDUP($M$15*Q10+$M$24*Q19,0) -> 0 | K105: =Cen!I5 -> 0 | L105: 0 | M105: =ROUNDUP($M$15*Q10,0) -> 0 | N105: 0 | O105: =ROUNDUP($M$24*Q19,0) -> 0 | P105: 0 | S105: x
B106: =Cen!A6 -> Sada teleskopů (560-710mm) | G106: =Cen!E6 -> 20F3500.01 | I106: =Cen!G6 -> NI | J106: =ROUNDUP($M$15*Q11+$M$24*Q20,0) -> 0 | K106: =Cen!I6 -> 0 | L106: 0 | M106: =ROUNDUP($M$15*Q11,0) -> 0 | N106: 0 | O106: =ROUNDUP($M$24*Q20,0) -> 0 | P106: 0 | S106: x
B107: =Cen!A7 -> Sada teleskopů (700-900mm) | G107: =Cen!E7 -> 20F3800.01 | I107: =Cen!G7 -> NI | J107: =ROUNDUP($M$15*Q12+$M$24*Q21,0) -> 0 | K107: =Cen!I7 -> 0 | L107: 0 | M107: =ROUNDUP($M$15*Q12,0) -> 0 | N107: 0 | O107: =ROUNDUP($M$24*Q21,0) -> 0 | P107: 0 | S107: x
B108: =Cen!A8 -> Sada teleskopů (760-1040mm) | G108: =Cen!E8 -> 20F3900.01 | I108: =Cen!G8 -> NI | J108: =ROUNDUP($M$15*Q13+$M$24*Q22,0) -> 0 | K108: =Cen!I8 -> 0 | L108: 0 | M108: =ROUNDUP($M$15*Q13,0) -> 0 | N108: 0 | O108: =ROUNDUP($M$24*Q22,0) -> 0 | P108: 0 | S108: x
B109: =Cen!A9 -> Sada krytek HF SERVO-DRIVE, sv.šedá | G109: =Cen!E9 -> 21F8000 | I109: =Cen!G9 -> HG/T | J109: =SUM(M109,O109,Q109) -> 0 | K109: =Cen!I9 -> 0 | L109: 0 | M109: =IF($S$9=2,0,IF($T$42=1,$M$134,0)) -> 0 | N109: 0 | O109: =IF($S$18=2,0,IF($T$42=1,$O$134,0)) -> 0 | P109: 0 | S109: x
B110: =Cen!A10 -> Sada krytek HF SERVO-DRIVE, tm.šedá | G110: =Cen!E10 -> 21F8000 | I110: =Cen!G10 -> TGR | J110: =SUM(M110,O110,Q110) -> 0 | K110: =Cen!I10 -> 0 | L110: =J110*K110 -> 0 | M110: =IF($S$9=2,0,IF($T$42=2,$M$134,0)) -> 0 | N110: 0 | O110: =IF($S$18=2,0,IF($T$42=2,$O$134,0)) -> 0 | P110: =$K110*O110 -> 0 | S110: x
B111: =Cen!A11 -> Sada krytek HF SERVO-DRIVE, bílá | G111: =Cen!E11 -> 21F8000 | I111: =Cen!G11 -> SW/T | J111: 0 | K111: =Cen!I11 -> 0 | L111: 0 | M111: =IF($S$9=2,0,IF($T$42=3,$M$134,0)) -> 0 | N111: 0 | O111: =IF($S$18=2,0,IF($T$42=3,$O$134,0)) -> 0 | P111: 0 | S111: x
B113: =Cen!A12 -> Sada krytek HF, světle šedá | G113: =Cen!E12 -> 20F8000 | I113: =Cen!G12 -> HG/T | J113: 0 | K113: =Cen!I12 -> 0 | L113: 0 | M113: =IF($S$9=1,0,IF($T$42=1,SUM($M$102:$M$104,0),0)) -> 0 | N113: 0 | O113: =IF($S$18=1,0,IF($T$42=1,SUM($O$102:$O$104,0),0)) -> 0 | P113: 0 | S113: x
B114: =Cen!A13 -> Sada krytek HF, tmavě šedá | G114: =Cen!E13 -> 20F8000 | I114: =Cen!G13 -> TGR | J114: =SUM(M114,O114,Q114) -> 0 | K114: =Cen!I13 -> 0 | L114: =J114*K114 -> 0 | M114: =IF($S$9=1,0,IF($T$42=2,SUM($M$102:$M$104,0),0)) -> 0 | N114: =$K114*M114 -> 0 | O114: =IF($S$18=1,0,IF($T$42=2,SUM($O$102:$O$104,0),0)) -> 0 | P114: =$K114*O114 -> 0 | S114: x
B115: =Cen!A14 -> Sada krytek HF, bílá | G115: =Cen!E14 -> 20F8000 | I115: =Cen!G14 -> SW/T | J115: 0 | K115: =Cen!I14 -> 0 | L115: 0 | M115: =IF($S$9=1,0,IF($T$42=3,SUM($M$102:$M$104,0),0)) -> 0 | N115: 0 | O115: =IF($S$18=1,0,IF($T$42=3,SUM($O$102:$O$104,0),0)) -> 0 | P115: 0 | S115: x
B117: =Cen!A15 -> Závěs CLIP top 120° | G117: =Cen!E15 -> 70T5550.TL | I117: =Cen!G15 -> NI | J117: 0 | K117: =Cen!I15 -> 0 | L117: 0 | M117: =$M$15*$U$12 -> 0 | N117: 0 | O117: =$M$24*$U$21 -> 0 | P117: 0 | S117: x
B118: =Cen!A16 -> Závěs CLIP top 120° EXPANDO | G118: =Cen!E16 -> 70T558E | I118: =Cen!G16 -> NI | J118: 0 | K118: =Cen!I16 -> 0 | L118: 0 | M118: =$M$15*$U$11 -> 0 | N118: 0 | O118: =$M$24*$U$20 -> 0 | P118: 0 | S118: x
B119: =Cen!A17 -> Středový závěs CLIP top | G119: =Cen!E17 -> 78Z5500T | I119: =Cen!G17 -> NI | J119: 0 | K119: =Cen!I17 -> 0 | L119: 0 | N119: 0 | P119: 0
B120: =Cen!A18 -> Středový závěs CLIP top EXPANDO | G120: =Cen!E18 -> 78Z553ET | I120: =Cen!G18 -> NI | J120: 0 | K120: =Cen!I18 -> 0 | L120: 0 | N120: 0 | P120: 0
B121: =Cen!A19 -> Závěs CLIP top pro alurámečky | G121: =Cen!E19 -> 72T550A.TL | I121: =Cen!G19 -> NI | K121: =Cen!I19 -> 0 | L121: 0 | N121: 0 | P121: 0
B122: =Cen!A20 -> Střed. závěs CLIP top pro alurámečky | G122: =Cen!E20 -> 78Z550AT | I122: =Cen!G20 -> NI | J122: =SUM(M122,O122,Q122) -> 0 | K122: =Cen!I20 -> 0 | L122: 0 | M122: =$M$15*$W$12 -> 0 | N122: 0 | O122: =$M$24*$W$21 -> 0 | P122: 0 | S122: x
B123: =Cen!A21 -> Přímá montážní podložka | G123: =Cen!E21 -> 175H3100 | I123: =Cen!G21 -> NI | J123: =SUM(M123,O123,Q123) -> 0 | K123: =Cen!I21 -> 0 | L123: 0 | M123: =IF($R$42=2,SUM($U$11,$U$12,$W$11,$W$12)*$M$15,0) -> 0 | N123: 0 | O123: =IF($R$42=2,SUM($U$20,$U$21,$W$20,$W$21)*$M$24,0) -> 0 | P123: 0 | S123: x
B124: =Cen!A22 -> Přímá montážní podložka, EXPANDO | G124: =Cen!E22 -> 177H3100E | I124: =Cen!G22 -> NI | J124: =SUM(M124,O124,Q124) -> 0 | K124: =Cen!I22 -> 0 | L124: 0 | M124: =IF($R$42=1,SUM($U$11,$U$12,$W$11,$W$12)*$M$15,0) -> 0 | N124: 0 | O124: =IF($R$42=1,SUM($U$20,$U$21,$W$20,$W$21)*$M$24,0) -> 0 | P124: 0 | S124: x
B125: =Cen!A23 -> Podložka CLIP excentrická | G125: =Cen!E23 -> 173H7100 | I125: =Cen!G23 -> NI | K125: =Cen!I23 -> 0 | L125: 0 | N125: 0 | P125: 0
B126: =Cen!A24 -> Adaptér CLIP k teleskopům P | G126: =Cen!E24 -> 175H5B00 R | I126: =Cen!G24 -> NI | J126: =SUM(M126,O126,Q126) -> 0 | K126: =Cen!I24 -> 0 | L126: 0 | M126: =IF($S$9=2,SUM($M$105:$M$108),IF($H$14<Cen!$F$240,$M$15,SUM($M$105:$M$108))) -> 0 | N126: 0 | O126: =IF($S$18=2,SUM($O$105:$O$108),IF($H$23<Cen!$F$240,$M$24,SUM($O$105:$O$108))) -> 0 | P126: 0 | S126: x
B127: =Cen!A25 -> Adaptér CLIP k teleskopům L | G127: =Cen!E25 -> 175H5B00 L | I127: =Cen!G25 -> NI | J127: =SUM(M127,O127,Q127) -> 0 | K127: =Cen!I25 -> 0 | L127: 0 | M127: =IF($S$9=2,SUM($M$105:$M$108),IF($H$14<Cen!$F$240,0,SUM($M$105:$M$108))) -> 0 | N127: 0 | O127: =IF($S$18=2,SUM($O$105:$O$108),IF($H$23<Cen!$F$240,0,SUM($O$105:$O$108))) -> 0 | P127: 0 | S127: x
B128: =Cen!A26 -> Adaptér CLIP ke středovým závěsům | G128: =Cen!E26 -> 175H5A00 | I128: =Cen!G26 -> NI | K128: =Cen!I26 -> 0 | L128: 0 | N128: 0 | P128: 0
B129: =Cen!A27 -> Omezovač úhlu otevření na 83° | G129: =Cen!E27 -> 20F7011 | I129: =Cen!G27 -> TGR | K129: =Cen!I27 -> 0 | L129: 0 | N129: 0 | P129: 0
B130: =Cen!A28 -> Omezovač úhlu otevření na 104° | G130: =Cen!E28 -> 20F7051 | I130: =Cen!G28 -> TGR | K130: =Cen!I28 -> 0 | L130: 0 | N130: 0 | P130: 0
B131: =Cen!A151 -> CLIP top krytka raménka Nikl | G131: =Cen!E151 -> 70.1503 | I131: =Cen!G151 -> NI | J131: =SUM(M131,O131,Q131) -> 0 | K131: =Cen!I151 -> 0 | L131: 0 | M131: =SUM(M$117:M$122) -> 0 | N131: 0 | O131: =SUM(O$117:O$122) -> 0 | P131: 0 | S131: x
L133: 0 | N133: 0 | P133: 0
B134: =Cen!A199 -> SERVO-DRIVE jednotka (sada) | G134: =Cen!E199 -> 21FA000 | I134: =Cen!G199 -> HGR | J134: =SUM(M134,O134,Q134) -> 0 | K134: =Cen!I199 -> 0 | L134: 0 | M134: =IF($S$9=2,0,$M$15) -> 0 | N134: 0 | O134: =IF($S$18=2,0,$M$24) -> 0 | P134: 0 | S134: x
B135: =Cen!A200 -> SERVO-DRIVE jednotka (sada) pro HK top | G135: =Cen!E200 -> 23KA000 | I135: =Cen!G200 -> HGR | K135: =Cen!I200 -> 0 | L135: 0 | N135: 0 | P135: 0
K138: =List!$C$59&" " -> Cena celkem bez DPH | L138: =SUM(L102:L136) -> 0 | N138: =SUM(N102:N137) -> 0 | P138: =SUM(P102:P137) -> 0 | R138: =SUM(R102:R137) -> 0
L140: =List!$C$149 -> Zpět
B199: =List!$C$71 -> Výpočet hmotnosti čel
C200: =List!$C$33&" " -> horní čelo | I200: =IF(O207=3,IF(H200=0,N203," "),IF(H200>0,N204," ")) ->  | N200: =IF($O$207=1,$O$208,IF($O$207=2,$O$209,$O$210&" "&$N$210&"kg/m3"))&" A~"&$H$208&"/ B~"&$H$217&"mm" -> MDF (760 kg/m3) A~/ B~mm | S200: =Menu!$Q$205 -> 2500
D201: =IF($O$207<>3,$N$202," ")&" " -> Změnit hodnoty můžete v Úvodu plánování | N201: =IF($U$206=1,$U$227,IF($U$206=2,$U$228,$U$229&" - "&$H$202&"mm")) -> Alurámečky s 4mm sklem
C202: =List!$C$34&" " -> dolní čelo | I202: =IF(U206=3,IF(H202=0,T203," "),IF(H202>0,T204," ")) ->  | N202: =" "&List!$C$382 -> Změnit hodnoty můžete v Úvodu plánování
N203: =" "&List!$C$225&" [kg/m3]" -> Zadejte objemovou hmotnost [kg/m3] | T203: =" "&List!$C$226&" [mm]" -> Zadejte sílu skla [mm]
N204: =" "&List!$C$221&" '"&List!$C$86&"'" -> Hodnota platí jen pro volbu 'Jiné - volitelná hustota' | T204: =" "&List!$C$221&" '"&List!$C$89&"'" -> Hodnota platí jen pro volbu 'Alurámečky s jiným sklem'
F205: =D9 -> Korpus A | T205: váha spoj. | U205: tl. skla | V205: typ alu
B206: =List!$C$72&" KB [mm] " -> Šířka korpusu KB [mm] | H206: =H10 -> 0 | N206: =H206*H207*H208/2 -> 0 | S206: =IF($V$206=1,$M$236,$M$237) -> 0.31 | T206: =$M$238 -> 0.46 | U206: 1 | V206: =$O$4 -> 1
B207: =List!$C$73&" KH [mm] " -> Výška korpusu KH [mm] | H207: =H11 -> 0 | N207: =N206/1000000000 -> 0 | O207: 1 | S207: váha alu | T207: =SUM(H206*2,(H207/2-40)*2)*S206/1000 -> -0.0248 | U207: A plocha B
B208: =List!$C$77&" TS [mm] " -> Síla čela TS [mm] | I208: =IF(SUM(H206,H207)=0," ",IF(H208=0," ● "&List!$C$111," ")) ->  | N208: =Menu!$L$30 -> 760 | O208: =List!$C$84&" ("&N208&" kg/m3)" -> MDF (760 kg/m3) | S208: =$S$200*4/1000 -> 10 | T208: =IF($V$206=1,U208*S208,V208*S208) -> 0.009 | U208: =SUM(($H$206-30)*($H$207/2-30)/1000000) -> 0.0009 | V208: =SUM(($H$206-6)*($H$207/2-6)/1000000) -> 3.6e-05 | W208: 4mm
B209: =List!$C$78&" [kg] " -> Hmotnost úchytky [kg] | I209: =IF(SUM(H206,H207)=0," ",IF(H209=0," ● "&List!$C$112," ")) ->  | N209: =Menu!$L$31 -> 680 | O209: =List!$C$85&" ("&N209&" kg/m3)" -> Dřevotříska (680 kg/m3) | S209: =$S$200*5/1000 -> 12.5 | T209: =IF($V$206=1,U209*S209,V209*S209) -> 0.01125 | U209: =SUM(($H$206-30)*($H$207/2-30)/1000000) -> 0.0009 | V209: =SUM(($H$206-6)*($H$207/2-6)/1000000) -> 3.6e-05 | W209: 5mm
B210: =List!$C$76&" [kg] " -> Vypočtená hmotnost čela [kg] | H210: =IF(M210*S211<>0,SUM(M210,S211,H209),0) -> 0 | M210: =IF(H206*H207*H208=0,0,IF(O207=1,N207*N208,IF(O207=2,N207*N209,N207*N210))) -> 0 | N210: =$H$200 -> 0 | O210: =List!$C$86 -> Jiné - volitelná hustota | S210: =$S$200*$H$202/1000 -> 0 | T210: =IF($V$206=1,U210*S210,V210*S210) -> 0 | U210: =SUM(($H$206-30)*($H$207/2-30)/1000000) -> 0.0009 | V210: =SUM(($H$206-6)*($H$207/2-6)/1000000) -> 3.6e-05 | W210: jiné
C211: =IF(H210>0,IF(H209=0,$N$227," ")," ") ->  | S211: =IF(OR(AND(U206=3, $H$202=0), H206*H207=0), 0, SUM(IF(U206=1,T208,IF(U206=2,T209,T210)),T207,T206)) -> 0
F214: =D18 -> Korpus B | T214: váha spoj. | U214: tl. skla | V214: typ alu
B215: =List!$C$72&" KB [mm] " -> Šířka korpusu KB [mm] | H215: =H19 -> 0 | N215: =H215*H216*H217 -> 0 | S215: =IF($V$206=1,$M$236,$M$237) -> 0.31 | T215: =$M$238 -> 0.46 | U215: =$U$206 -> 1 | V215: =$V$206 -> 1
B216: =List!$C$73&" KH [mm] " -> Výška korpusu KH [mm] | H216: =H20 -> 0 | N216: =N215/1000000000/2 -> 0 | O216: =O207 -> 1 | S216: váha alu | T216: =SUM(H215*2,(H216/2-40)*2)*S215/1000 -> -0.0248 | U216: A plocha B
B217: =List!$C$77&" TS [mm] " -> Síla čela TS [mm] | I217: =IF(SUM(H215,H216)=0," ",IF(H217=0," ● "&List!$C$111," ")) ->  | N217: =$N$208 -> 760 | O217: =$O$208 -> MDF (760 kg/m3) | S217: =S208 -> 10 | T217: =IF($V$206=1,U217*S217,V217*S217) -> 0.009 | U217: =SUM(($H$215-30)*($H$216/2-30)/1000000) -> 0.0009 | V217: =SUM(($H$215-6)*($H$216/2-6)/1000000) -> 3.6e-05 | W217: 4mm
B218: =List!$C$78&" [kg] " -> Hmotnost úchytky [kg] | I218: =IF(SUM(H215,H216)=0," ",IF(H218=0," ● "&List!$C$112," ")) ->  | N218: =$N$209 -> 680 | O218: =$O$209 -> Dřevotříska (680 kg/m3) | S218: =S209 -> 12.5 | T218: =IF($V$206=1,U218*S218,V218*S218) -> 0.01125 | U218: =SUM(($H$215-30)*($H$216/2-30)/1000000) -> 0.0009 | V218: =SUM(($H$215-6)*($H$216/2-6)/1000000) -> 3.6e-05 | W218: 5mm
B219: =List!$C$76&" [kg] " -> Vypočtená hmotnost čela [kg] | H219: =IF(M219*S220<>0,SUM(M219,S220,H218),0) -> 0 | M219: =IF(H215*H216*H217=0,0,IF(O216=1,N216*N217,IF(O216=2,N216*N218,N216*N219))) -> 0 | N219: =$N$210 -> 0 | O219: =$O$210 -> Jiné - volitelná hustota | S219: =S210 -> 0 | T219: =IF($V$206=1,U219*S219,V219*S219) -> 0 | U219: =SUM(($H$215-30)*($H$216/2-30)/1000000) -> 0.0009 | V219: =SUM(($H$215-6)*($H$216/2-6)/1000000) -> 3.6e-05 | W219: jiné
C220: =IF(H219>0,IF(H218=0,$N$227," ")," ") ->  | S220: =IF(H215*H216=0,0,SUM(IF(U215=1,T217,IF(U215=2,T218,T219)),T216,T215)) -> 0
K223: =IF(SUM(J221,J222)=0," ",IF(J223=0," * "&List!$C$111," ")) -> 
G224: =List!$C$149 -> Zpět
C227: =List!$C$217&" "&List!$C$218 -> Upozornění: Vypočtené hodnoty jsou pouze orientační. Firma Blum ani prodejci neručí za jejich správnost. | N227: =List!$C$95&"!" -> Není započtena hmotnost úchytky! | U227: =List!$C$87 -> Alurámečky s 4mm sklem
U228: =List!$C$88 -> Alurámečky s 5mm sklem
U229: =List!$C$89 -> Alurámečky s jiným sklem
E235: Hmotnost alurámečků [kg/bm] | G235: =List!$C$368 -> Podle Úvodu | H235: =List!$C$58 -> Změna
F236: =List!$C$375&" " -> S vloženým sklem | G236: =Menu!$Q220 -> 0.31 | M236: =IF($H236>0,$H236,$G236) -> 0.31
F237: =List!$C$376&" " -> S naloženým nebo nalepeným sklem | G237: =Menu!$Q221 -> 0.32 | M237: =IF($H237>0,$H237,$G237) -> 0.32
F238: =List!$C$377&" [kg/set] * " -> Hmotnost spojovacího materiálu [kg/set] * | G238: =Menu!$Q222 -> 0.46 | M238: =IF($H238>0,$H238,$G238) -> 0.46
C240: =" * "& List!$C$378&" " -> * Rohové spojky, šrouby, těsnění pro jeden rámeček
G243: =List!$C$149 -> Zpět
B300: =List!$C$176 -> Výpočet asymetrických čel
B302: =" "&List!$C$179 -> Parametry korpusu
B303: =List!$C$73&" KH [mm] " -> Výška korpusu KH [mm] | K303: =IF(SUM($I$304:$J$307,$I$314)<>0,IF($I$303=0," "&List!$C$111," ")," ") -> 
B304: =List!$C$182&" [mm] " -> Mezera nahoře [mm]
B305: =List!$C$183&" [mm] " -> Mezera mezi čely [mm] | K305: =IF($I$303=0," ",IF($I$305<1.5," min. 1,5 mm!"," ")) -> 
B306: =List!$C$184&" [mm] " -> Mezera dole [mm]
B307: =List!$C$185&" [mm] " -> Síla dna korpusu [mm]
B309: =" "&List!$C$187 -> Výsledky plánování
G310: =List!$C$188&" [mm] " -> Možné výšky čel [mm] | P310: =ROUNDUP((+$I$303-$I$304-$I$305-$I$306)/2,0) -> 0 | Q310: =IF($P$310<272,70,47) -> 70
B311: =List!$C$189 -> Vrchní čelo (FHo) v rozmezí | G311: min. | H311: =IF($P$310=0,0,IF($P$310<236,$Q$315,IF($P$310>516,$Q$315,$P$310))) -> 0 | I311: max. | J311: =IF($P$310=0,0,IF($Q$315=$H$311,$Q$315,IF($P$315<$P$314,$P$315,$P$314))) -> 0 | P311: =ROUNDDOWN(($I$303-$I$304-$I$305-$I$306-$Q$310-19-$I$307+$I$306)/1.5,0) -> -59 | Q311: =IF($P$310<272,70,47) -> 70
B312: =List!$C$190 -> Spodní čelo (FHu) v rozmezí | G312: min. | H312: =IF($J$312=$Q$315,$Q$315,SUM($I$303-$I$304-$I$305-$I$306-$J$311)) -> 0 | I312: max. | J312: =IF($Q$315=$H$311,$Q$315,(+$I$303-$I$304-$I$305-$I$306)/2) -> 0 | P312: =ROUNDDOWN(($I$303-$I$304-$I$305-$I$306-$Q$311-19-$I$307+$I$306)/1.5,0) -> -59 | Q312: =IF($P$310<272,70,47) -> 70
P313: =ROUNDDOWN(($I$303-$I$304-$I$305-$I$306-$Q$312-19-$I$307+$I$306)/1.5,0) -> -59 | Q313: =IF($P$310<272,70,47) -> 70
B314: =List!$C$196&" FHo [mm] " -> Výška vrchního čela FHo [mm] | K314: =IF($I$303=0," ",IF($I$314>$J$311,V314,IF($I$314<$H$311,$S$314," "))) ->  | P314: =ROUNDDOWN(($I$303-$I$304-$I$305-$I$306-$Q$313-19-$I$307+$I$306)/1.5,0) -> -59 | S314: =" min. "&TEXT($H$311,"#")&" mm!" -> min. mm! | V314: =" max. "&TEXT($J$311,"#")&" mm!" -> max. mm!
B315: =List!$C$197&" FHu [mm] " -> Výška spodního čela FHu [mm] | I315: =IF($I$314<$H$311,$Q$315,IF($I$314>$J$311,$Q$315,+$I$303-$I$304-$I$305-$I$306-$I$314)) -> 0 | P315: =+(1040-$I$304-$I$305-$I$306)/2 -> 520 | Q315: =List!C193 -> nelze
B316: =List!$C$198&" H [mm] " -> Pozice zdvihače H [mm] | I316: =IF($P$310=0,0,IF($I$315=$Q$315, $Q$315,$I$314*0.6-$Q$316+$I$304)) -> 0 | Q316: =IF($I$314<272,28,57) -> 28
B317: =List!$C$199&" X [mm] " -> Pozice mont. podložky pro teleskopy X [mm] | I317: =IF($P$310=0,0,IF($I$315=$Q$315,$Q$315,$I$314*0.5+$Q$317)) -> 0 | Q317: =IF($I$314<272,70,47) -> 70
B318: =List!$C$200&" TKH [mm] * " -> Teoretická výška korpusu TKH [mm] * | I318: =IF($I$315=$Q$315,$Q$315,IF($Q$318>479.99,IF($Q$318<1040.01,$Q$318,$Q$315)," ")) ->  | P318: TKH | Q318: =SUM($I$314*2+$I$304+$I$305+$I$306) -> 0
B320: * | C320: =List!$C$202 -> Tuto výšku zadejte do tabulky pro plánování výklopů
I325: =List!$C$149 -> Zpět
B399: AVENTOS HF
B401: =List!$C$281 -> Potřebný zdvihač se určí pomocí ukazatele výkonnosti.
B402: =List!$C$282 -> Ukazatel výkonnosti závisí na hmotnosti dolního i horního čílka, a rovněž na výšce korpusu.
B404: =" "&List!$C$295 -> Tak se to dělá:
D405: =List!$C$80&" = " -> Ukazatel výkonnosti = | E405: =List!$C$298&" [kg]" -> výška korpusu KH [mm] x hmotnost obou čel včetně úchytky [kg]
B411: =List!$C$289 -> Pokud znáte hmotnost čela, můžete ji zadat, jinak použijte "Výpočet hmotnosti".
B412: =List!$C$290 -> V tabulce má přednost zadaná hodnota. Chcete-li použít vypočtenou hmotnost, smažte zadanou hodnotu.
B414: =List!$C$301&". "&List!$C$302&"." -> Délka teleskopů závisí na výšce korpusu KH. U asymetrických čel se použije teoretická výška TKH.
B416: =" "&List!$C$144&":" -> Asymetrická čela:
B417: =" "&List!$C$299 -> Teoretická výška korpusu (TKH) = výška horního čela (FHo) x 2 (včetně mezer)
B419: =List!$C$293 -> U asymetrických čel musí být větší čelo nahoře!
B421: =List!$C$304 -> Pokud zadáte hodnotu TKH, použije se pro určení délky teleskopů
B422: =List!$C$305 -> Nemáte-li asymetrická čela, nechte políčko prázdné.
B423: =List!$C$306&" ' "&List!$C$176&"' " -> Pro výpočet TKH můžete použít ' Výpočet asymetrických čel'
B426: =List!$C$284 -> Chcete-li změnit barvu krytek, přejděte na "Úvod"
B428: =List!$C$383 -> Věnujte pozornost výběru alurámečků.
B429: =List!$C$384 -> Vyberte, který typ lépe odpovídá tvaru použitého alurámečku.
B430: =List!$C$385 -> Způsob osazení skla do rámečku výrazně ovlivňuje plochu skla a tím i hmotnost!
C432: =" "&List!$C$375&" " -> S vloženým sklem
C434: =" "&List!$C$376&" " -> S naloženým nebo nalepeným sklem
L436: =List!$C$149 -> Zpět

Sheet HFna_w
B2: AVENTOS HF | D2: AVENTOS HS | F2: AVENTOS HL | H2: AVENTOS HK top | J2: AVENTOS HK-S | L2: AVENTOS HK-XS | O2: rámeček | S2: 3 | Z2: =List!$C$135 -> Jdi na
B4: =List!$C$19&" ***" -> Úzké alurámečky *** | F4: =$N$200&" " -> Alurámečky s 4mm sklem | O4: 1 | S4: =" "&List!$C$39&" A " -> Cena za korpus A | Z4: =List!$C$136 -> Úvod plánování
B5: =List!$C$15 -> Dřevěné čelo | F5: =$N$201&" " -> MDF (760 kg/m3) A~/ B~mm | O5: A = 1 | S5: =" "&List!$C$39&" B " -> Cena za korpus B | Z5: =List!$C$137 -> Nápověda
G6: =List!$C$47&" "&List!$C$22&" " -> Nastavit hmotnost alurámečků | O6: B = 2 | S6: =" "&List!$C$59 -> Cena celkem bez DPH | AR6: =" "&List!$C$80&" LF " -> Ukazatel výkonnosti LF | AT6: =List!$C$79 -> Zdvihací mechanizmus
B7: =List!$C$142 -> Soupis kování | G7: =IF(S2=1,$N$138,IF($S$2=2,$P$138,IF($S$2=3,$L$138,0))) -> 0 | Z7: =List!$C$141 -> Doplňky
H8: =IF(AND(OR($S$9=1, $S$18=1), $L$138>0), $N$32, " ") ->  | AR8: =" 2.600 - 5.500 (1 "&List!$C$153&" LF 960 - 2.650)" -> 2.600 - 5.500 (1 ks LF 960 - 2.650) | AT8: 20F2200.05
B9: SERVO-DRIVE | D9: =List!$C$62&" A" -> Korpus A | N9: zdvih A | P9: teleskop | S9: =IF($T$9=TRUE,1,2) -> 2 | T9: FALSE | V9: - SRVDRV | Z9: =List!$C$139 -> Přehled korpusů | AR9: 5.350 - 10.150 | AT9: 20F2500.05
B10: =List!$C$72&" KB [mm] " -> Šířka korpusu KB [mm] | I10: =IF(H10=0," ",IF($H10<220," min. 220mm",IF($H10>1800," max. 1 800mm"," ")))&IF(H15>0,IF(H10=0,"● "&List!$C$111," ")," ") ->  | N10: F22 | O10: =IF($H14<Cen!$F$240,0.5,IF($H14<Cen!$F$241,1,0)) -> 0.5 | P10: F32 | Q10: =SUM(IF($P14<Cen!$F$248,IF($H14<Cen!$F$240,0.5,1),0),IF($P14<Cen!$F$248,IF($H14>Cen!$E$244,0.5,0),0))*IF($P14<480,0,1) -> 0 | T10: Závěs A | V10: Závěs As | Z10: =List!$C$140 -> Objednávka | AR10: =" 9.000 - 17.250 (3 "&List!$C$153&" LF 13.500 - 25.900)" -> 9.000 - 17.250 (3 ks LF 13.500 - 25.900) | AT10: 20F2800.05
B11: =List!$C$73&" [mm]" -> Výška korpusu [mm] | E11: TKH * | G11: KH | I11: =IF(H11=0," ",IF($H11<480," min. 480mm",IF($H11>1040," max. 1 040mm"," ")))&IF(H15>0,IF(H11=0,"● "&List!$C$111," ")," ") ->  | N11: F25 | O11: =IF($H14<Cen!$E$242,0,IF($H14<Cen!$F$242,1,0)) -> 0 | P11: F35 | Q11: =IF($P14<Cen!$F$249,IF($P14>Cen!$E$249,IF($H14<Cen!$F$240,0.5,1),0),0)+IF($P14<Cen!$F$249,IF($P14>Cen!$E$249,IF($H14>Cen!$E$244,0.5,0),0),0) -> 0 | T11: T558E | U11: =IF($O$42=1,IF($H10>1199,3,IF($T15>11.9,3,2)),0)+IF(O$42=1,IF($H10>1799,1,IF($T15>19.9,1,0)),0) -> 0 | V11: Z553E | W11: =IF($P$42=1,IF($H10>1199,3,IF($T15>11.9,3,2)),0)+IF($P$42=1,IF($H10>1799,1,IF($T15>19.9,1,0)),0) -> 0
B12: =List!$C$74&" [kg] ** " -> Hmotnost čela včetně úchytky [kg] ** | I12: =IF($H15=0," ",IF(SUM($H12,$H13)=0,$N$34," "))&IF($H15>0,IF($H12>0,$N$35," ")," ") ->  | N12: F28 | O12: =IF($H14<Cen!$E$243,0,IF($H14<Cen!$F$243,1,IF($H14>Cen!$E$244,1.5,0))) -> 0 | P12: F38 | Q12: =IF($P14<Cen!$F$250,IF($P14>Cen!$E$250,IF($H14<Cen!$F$240,0.5,1),0),0)+IF($P14<Cen!$F$250,IF($P14>Cen!$E$250,IF($H14>Cen!$E$244,0.5,0),0),0) -> 0 | T12: T5550 | U12: =IF($O$42=2,IF($H10>1199,3,IF($T15>11.9,3,2)),0)+IF($O$42=2,IF($H10>1799,1,IF($T15>19.9,1,0)),0) -> 2 | V12: Z5500 | W12: =IF($P$42=2,IF($H10>1199,3,IF($T15>11.9,3,2)),0)+IF($P$42=2,IF($H10>1799,1,IF($T15>19.9,1,0)),0) -> 2 | AR12: =List!$C$80&" LF = "&List!$C$298&" [kg]" -> Ukazatel výkonnosti LF = výška korpusu KH [mm] x hmotnost obou čel včetně úchytky [kg]
B13: =List!$C$76&" [kg] " -> Vypočtená hmotnost čela [kg] | H13: =$H$210 -> 0 | I13: =IF($H15>0,IF($H13>0,IF($H12=0,$N$35," ")," ")," ") ->  | P13: F39 | Q13: =IF($P14<Cen!$F$251,IF($P14>Cen!$E$251,IF($H14<Cen!$F$240,0.5,1),0),0)+IF($P14<Cen!$F$251,IF($P14>Cen!$E$251,IF($H14>Cen!$E$244,0.5,0),0),0) -> 0 | Z13: =" "&List!$C$177&" A" -> Výpočet hmotnosti A
B14: =List!$C$80&" LF " -> Ukazatel výkonnosti LF | H14: =IF(H11<1041,IF(H11>479,IF(H12>0,H11*H12,H11*H13),0),0) -> 0 | I14: =IF(AND(H14>0, H14<960), $T$38, IF($H14>25900,$N$38,IF($H14>17250,$N$39," "))&IF(H14>25900," ",IF(AND($S9=1,$H14>17250),$Q$39," "))) ->  | O14: výška korpusu | P14: =IF(F11>0,IF(F11>=H11,F11,0),H11) -> 0
B15: =List!$C$69&" " -> Počet skříněk | I15: =IF(AND(M15>0, H14>959, O10=0.5), $U$39, " ") ->  | M15: =IF($H10*$P14=0,0,IF(SUM($H12,$H13)=0,0,IF($P14>Cen!$F$252,0,IF(P14<Cen!$E$248,0,IF(OR(H14<Cen!$E$240, H14>Cen!$F$244),0,$H15))))) -> 0 | N15: ← Hlavní údaj | S15: hmot = | T15: =IF(H12>0,H12,H13) -> 0 | U15: =IF(SUM(H12,H13)=0,0,IF(H12>0,1,2)) -> 0 | V15: zadaná / vypočtená | Z15: =" "&List!$C$176 -> Výpočet asymetrických čel | AR15: =List!$C$149 -> Zpět
B16: =IF(H15>0,IF(U15=0," ",IF(U15=1,$N$47,$N$48))," ")&IF(H15>0,IF(U15=0," ",IF(U15=1,$N$49,$N$50))," ") -> 
B17: =IF(F11=0," ",IF(F11>1040,"TKH = max. 1040!",IF(F11<480,"TKH = min. 480!",IF(F11<H11,$N$53,IF(H15>0,IF(F11=0," ",IF(F11>0,$N$52," "))," "))))) -> 
B18: SERVO-DRIVE | D18: =List!$C$62&" B" -> Korpus B | N18: zdvih B | P18: teleskop | S18: =IF($T$18=TRUE,1,2) -> 2 | T18: FALSE | V18: - SRVDRV | Z18: =" "&List!$C$361 -> Ověření síly zdvihače
B19: =List!$C$72&" KB [mm] " -> Šířka korpusu KB [mm] | I19: =IF(H19=0," ",IF($H19<220," min. 220mm",IF($H19>1800," max. 1 800mm"," ")))&IF(H24>0,IF(H19=0,"● "&List!$C$111," ")," ") ->  | N19: F22 | O19: =IF($H23<Cen!$F$240,0.5,IF($H23<Cen!$F$241,1,0)) -> 0.5 | P19: F32 | Q19: =SUM(IF($P23<Cen!$F$248,IF($H23<Cen!$F$240,0.5,1),0),IF($P23<Cen!$F$248,IF($H23>Cen!$E$244,0.5,0),0))*IF($P23<480,0,1) -> 0 | T19: Závěs B | V19: Závěs Bs
B20: =List!$C$73&" [mm]" -> Výška korpusu [mm] | E20: TKH * | G20: KH | I20: =IF(H20=0," ",IF($H20<480," min. 480mm",IF($H20>1040," max. 1 040mm"," ")))&IF(H24>0,IF(H20=0,"● "&List!$C$111," ")," ") ->  | N20: F25 | O20: =IF($H23<Cen!$E$242,0,IF($H23<Cen!$F$242,1,0)) -> 0 | P20: F35 | Q20: =IF($P23<Cen!$F$249,IF($P23>Cen!$E$249,IF($H23<Cen!$F$240,0.5,1),0),0)+IF($P23<Cen!$F$249,IF($P23>Cen!$E$249,IF($H23>Cen!$E$244,0.5,0),0),0) -> 0 | T20: T558E | U20: =IF($O$42=1,IF($H19>1199,3,IF($T24>11.9,3,2)),0)+IF(O$42=1,IF($H19>1799,1,IF($T24>19.9,1,0)),0) -> 0 | V20: Z553E | W20: =IF($P$42=1,IF($H19>1199,3,IF($T24>11.9,3,2)),0)+IF($P$42=1,IF($H19>1799,1,IF($T24>19.9,1,0)),0) -> 0
B21: =List!$C$74&" [kg] ** " -> Hmotnost čela včetně úchytky [kg] ** | I21: =IF($H24=0," ",IF(SUM($H21,$H22)=0,$N$34," "))&IF($H24>0,IF($H21>0,$N$35," ")," ") ->  | N21: F28 | O21: =IF($H23<Cen!$E$243,0,IF($H23<Cen!$F$243,1,IF($H23>Cen!$E$244,1.5,0))) -> 0 | P21: F38 | Q21: =IF($P23<Cen!$F$250,IF($P23>Cen!$E$250,IF($H23<Cen!$F$240,0.5,1),0),0)+IF($P23<Cen!$F$250,IF($P23>Cen!$E$250,IF($H23>Cen!$E$244,0.5,0),0),0) -> 0 | T21: T5550 | U21: =IF($O$42=2,IF($H19>1199,3,IF($T24>11.9,3,2)),0)+IF($O$42=2,IF($H19>1799,1,IF($T24>19.9,1,0)),0) -> 2 | V21: Z5500 | W21: =IF($P$42=2,IF($H19>1199,3,IF($T24>11.9,3,2)),0)+IF($P$42=2,IF($H19>1799,1,IF($T24>19.9,1,0)),0) -> 2
B22: =List!$C$76&" [kg] " -> Vypočtená hmotnost čela [kg] | H22: =$H$219 -> 0 | I22: =IF($H24>0,IF($H22>0,IF($H21=0,$N$35," ")," ")," ") ->  | P22: F39 | Q22: =IF($P23<Cen!$F$251,IF($P23>Cen!$E$251,IF($H23<Cen!$F$240,0.5,1),0),0)+IF($P23<Cen!$F$251,IF($P23>Cen!$E$251,IF($H23>Cen!$E$244,0.5,0),0),0) -> 0 | Z22: =" "&List!$C$177&" B" -> Výpočet hmotnosti B
B23: =List!$C$80&" LF " -> Ukazatel výkonnosti LF | H23: =IF(H20<1041,IF(H20>479,IF(H21>0,H20*H21,H20*H22),0),0) -> 0 | I23: =IF(AND(H23>0, H23<960), $T$38, IF($H23>25900,$N$38,IF($H23>17250,$N$39," "))&IF(H23>25900," ",IF(AND($S18=1,$H23>17250),$Q$39," "))) ->  | O23: výška korpusu | P23: =IF(F20>0,IF(F20>=H20,F20,0),H20) -> 0
B24: =List!$C$69&" " -> Počet skříněk | I24: =IF(AND(M24>0, H23>959, O19=0.5), $U$39, " ") ->  | M24: =IF($H19*$P23=0,0,IF(SUM($H21,$H22)=0,0,IF($P23>Cen!$F$252,0,IF(P23<Cen!$E$248,0,IF(OR(H23<Cen!$E$240, H23>Cen!$F$244),0,$H24))))) -> 0 | N24: ← Hlavní údaj | S24: hmot = | T24: =IF(H21>0,H21,H22) -> 0 | U24: =IF(SUM(H21,H22)=0,0,IF(H21>0,1,2)) -> 0 | V24: zadaná / vypočtená | Z24: =" "&List!$C$176 -> Výpočet asymetrických čel
B25: =IF(H24>0,IF(U24=0," ",IF(U24=1,$N$47,$N$48))," ")&IF(H24>0,IF(U24=0," ",IF(U24=1,$N$49,$N$50))," ") -> 
B26: =IF(F20=0," ",IF(F20>1040,"TKH = max. 1040!",IF(F20<480,"TKH = min. 480!",IF(F20<H20,$N$53,IF(H24>0,IF(F20=0," ",IF(F20>0,$N$52," "))," "))))) -> 
B27: =IF(OR(AND($S$9=1, $M$15>0), AND($S$18=1, $M$24>0)), List!$C$157, " ") ->  | S27: =IF($T$27=FALSE,2,1) -> 1 | T27: TRUE | V27: - Zdroj
C31: =IF($H14>25900," ",IF($H14>17250,$N$40,IF($H23>25900," ",IF($H23>17250,$N$40," ")))) -> 
N32: =List!C158 -> Cena bez napájecího zdroje!
C33: ="* "&List!$C$165 -> * Pouze pro asymetrická čela: zadejte teoretickou výšku TKH.
C34: =" ( "&List!$C$166&")" -> ( TKH = dvojnásobná výška horního čela včetně mezer) | N34: =" "&List!$C$103 -> Doplňte nebo použijte "Výpočet hmotnosti"
C35: ="** "&List!$C$168 -> ** Pokud znáte hmotnost a nechcete využít výpočtu hmotnosti | N35: ="◄ "&List!$C$100 -> ◄ hodnota bude použita pro výpočet LF
C36: ="*** "&List!$C$371 -> *** Vyberte typ alurámečku! | N36: =" * "&List!$C$110 -> * Doplňte hodnoty
C37: =" "&List!$C$372 -> Více informací k výběru alurámečků v Nápovědě
N38: =" max. 25.900! "&List!$C$105 -> max. 25.900! Upravte hmotnost nebo výšku | T38: =" min. 960! "&List!$C$105 -> min. 960! Upravte hmotnost nebo výšku
N39: =" "&List!$C$104&"!" -> Přídavný třetí zdvihač! | Q39: =" "&List!$C$108&"!" -> Druhá pohonná jednotka! | U39: =" "&List!C109 -> Použijte pouze jeden zdvihač
N40: =List!$C$163 -> Přídavný třetí zdvihač může být použit pouze s plným spodním čelem!
N42: =HF!$L$37 -> 2 | O42: 2 | P42: =HF!$N$37 -> 2 | Q42: 2 | R42: =HF!$P$37 -> 2 | T42: =Menu!$Q$27 -> 3
N43: záv. | O43: alu | P43: střed. | Q43: alu | R43: podl. | T43: kryt.
N44: =List!$C$116 -> Expando | P44: =List!$C$116 -> Expando | R44: =List!$C$116 -> Expando | T44: =List!$C$128 -> Světle šedá (HG/T)
N45: =List!$C$117 -> na vruty | P45: =List!$C$117 -> na vruty | R45: =List!$C$117 -> na vruty | T45: =List!$C$129 -> Tmavě šedá (TGR)
T46: =List!$C$130 -> Hedvábně bílá (SW/T)
N47: =List!C169 -> Pro určení typu zdvihače bude použita zadaná hmotnost
N48: =List!C170 -> Pro určení typu zdvihače bude použita vypočtená hmotnost
N49: =". "&List!$C$171 -> . Chcete-li použít vypočtenou hmotnost, smažte zadanou hodnotu
N50: =". "&List!$C$172 -> . Chcete-li použít zadanou hmotnost, zadejte ji do políčka
N51: =List!C173 -> 0
N52: =List!C174 -> Pro výběr teleskopů bude použita teoretická výška TKH
N53: =List!C175 -> Teoretická výška TKH nesmí být menší než KH
B98: =List!C142 -> Soupis kování
B100: =$B$2 -> AVENTOS HF | D100: =B4 -> Úzké alurámečky *** | F100: - | G100: =B5 -> Dřevěné čelo
B101: =List!C50 -> Název | G101: =List!$C$51 -> Číslo artiklu | I101: =List!C52 -> Barva | J101: =List!C54 -> Ks | K101: =List!C56 -> Jednotková cena | L101: =List!C57 -> Celkem | M101: A | N101: Cena | O101: B | P101: Cena | S101: Filtr
B102: =Cen!A2 -> Sada zdvihačů HF | G102: =Cen!E2 -> 20F2200.05 | I102: =Cen!G2 -> ZN | J102: =ROUNDUP($M$15*O10+$M$24*O19,0) -> 0 | K102: =Cen!I2 -> 0 | L102: =J102*K102 -> 0 | M102: =ROUNDUP($M$15*O10,0) -> 0 | N102: =$K102*M102 -> 0 | O102: =ROUNDUP($M$24*O19,0) -> 0 | P102: =$K102*O102 -> 0 | S102: x
B103: =Cen!A3 -> Sada zdvihačů HF | G103: =Cen!E3 -> 20F2500.05 | I103: =Cen!G3 -> ZN | J103: =ROUNDUP($M$15*O11+$M$24*O20,0) -> 0 | K103: =Cen!I3 -> 0 | L103: =J103*K103 -> 0 | M103: =ROUNDUP($M$15*O11,0) -> 0 | N103: 0 | O103: =ROUNDUP($M$24*O20,0) -> 0 | P103: 0 | S103: x
B104: =Cen!A4 -> Sada zdvihačů HF | G104: =Cen!E4 -> 20F2800.05 | I104: =Cen!G4 -> ZN | J104: =ROUNDUP($M$15*O12+$M$24*O21,0) -> 0 | K104: =Cen!I4 -> 0 | L104: 0 | M104: =ROUNDUP($M$15*O12,0) -> 0 | N104: 0 | O104: =ROUNDUP($M$24*O21,0) -> 0 | P104: 0 | S104: x
B105: =Cen!A5 -> Sada teleskopů (480-570mm) | G105: =Cen!E5 -> 20F3200.01 | I105: =Cen!G5 -> NI | J105: =ROUNDUP($M$15*Q10+$M$24*Q19,0) -> 0 | K105: =Cen!I5 -> 0 | L105: 0 | M105: =ROUNDUP($M$15*Q10,0) -> 0 | N105: 0 | O105: =ROUNDUP($M$24*Q19,0) -> 0 | P105: 0 | S105: x
B106: =Cen!A6 -> Sada teleskopů (560-710mm) | G106: =Cen!E6 -> 20F3500.01 | I106: =Cen!G6 -> NI | J106: =ROUNDUP($M$15*Q11+$M$24*Q20,0) -> 0 | K106: =Cen!I6 -> 0 | L106: 0 | M106: =ROUNDUP($M$15*Q11,0) -> 0 | N106: 0 | O106: =ROUNDUP($M$24*Q20,0) -> 0 | P106: 0 | S106: x
B107: =Cen!A7 -> Sada teleskopů (700-900mm) | G107: =Cen!E7 -> 20F3800.01 | I107: =Cen!G7 -> NI | J107: =ROUNDUP($M$15*Q12+$M$24*Q21,0) -> 0 | K107: =Cen!I7 -> 0 | L107: 0 | M107: =ROUNDUP($M$15*Q12,0) -> 0 | N107: 0 | O107: =ROUNDUP($M$24*Q21,0) -> 0 | P107: 0 | S107: x
B108: =Cen!A8 -> Sada teleskopů (760-1040mm) | G108: =Cen!E8 -> 20F3900.01 | I108: =Cen!G8 -> NI | J108: =ROUNDUP($M$15*Q13+$M$24*Q22,0) -> 0 | K108: =Cen!I8 -> 0 | L108: 0 | M108: =ROUNDUP($M$15*Q13,0) -> 0 | N108: 0 | O108: =ROUNDUP($M$24*Q22,0) -> 0 | P108: 0 | S108: x
B109: =Cen!A9 -> Sada krytek HF SERVO-DRIVE, sv.šedá | G109: =Cen!E9 -> 21F8000 | I109: =Cen!G9 -> HG/T | J109: =SUM(M109,O109,Q109) -> 0 | K109: =Cen!I9 -> 0 | L109: 0 | M109: =IF($S$9=2,0,IF($T$42=1,$M$134,0)) -> 0 | N109: 0 | O109: =IF($S$18=2,0,IF($T$42=1,$O$134,0)) -> 0 | P109: 0 | S109: x
B110: =Cen!A10 -> Sada krytek HF SERVO-DRIVE, tm.šedá | G110: =Cen!E10 -> 21F8000 | I110: =Cen!G10 -> TGR | J110: =SUM(M110,O110,Q110) -> 0 | K110: =Cen!I10 -> 0 | L110: =J110*K110 -> 0 | M110: =IF($S$9=2,0,IF($T$42=2,$M$134,0)) -> 0 | N110: =$K110*M110 -> 0 | O110: =IF($S$18=2,0,IF($T$42=2,$O$134,0)) -> 0 | P110: =$K110*O110 -> 0 | S110: x
B111: =Cen!A11 -> Sada krytek HF SERVO-DRIVE, bílá | G111: =Cen!E11 -> 21F8000 | I111: =Cen!G11 -> SW/T | J111: 0 | K111: =Cen!I11 -> 0 | L111: 0 | M111: =IF($S$9=2,0,IF($T$42=3,$M$134,0)) -> 0 | N111: 0 | O111: =IF($S$18=2,0,IF($T$42=3,$O$134,0)) -> 0 | P111: 0 | S111: x
B113: =Cen!A12 -> Sada krytek HF, světle šedá | G113: =Cen!E12 -> 20F8000 | I113: =Cen!G12 -> HG/T | J113: 0 | K113: =Cen!I12 -> 0 | L113: 0 | M113: =IF($S$9=1,0,IF($T$42=1,SUM($M$102:$M$104,0),0)) -> 0 | N113: 0 | O113: =IF($S$18=1,0,IF($T$42=1,SUM($O$102:$O$104,0),0)) -> 0 | P113: 0 | S113: x
B114: =Cen!A13 -> Sada krytek HF, tmavě šedá | G114: =Cen!E13 -> 20F8000 | I114: =Cen!G13 -> TGR | J114: =SUM(M114,O114,Q114) -> 0 | K114: =Cen!I13 -> 0 | L114: =J114*K114 -> 0 | M114: =IF($S$9=1,0,IF($T$42=2,SUM($M$102:$M$104,0),0)) -> 0 | N114: =$K114*M114 -> 0 | O114: =IF($S$18=1,0,IF($T$42=2,SUM($O$102:$O$104,0),0)) -> 0 | P114: =$K114*O114 -> 0 | S114: x
B115: =Cen!A14 -> Sada krytek HF, bílá | G115: =Cen!E14 -> 20F8000 | I115: =Cen!G14 -> SW/T | J115: 0 | K115: =Cen!I14 -> 0 | L115: 0 | M115: =IF($S$9=1,0,IF($T$42=3,SUM($M$102:$M$104,0),0)) -> 0 | N115: 0 | O115: =IF($S$18=1,0,IF($T$42=3,SUM($O$102:$O$104,0),0)) -> 0 | P115: 0 | S115: x
B117: =Cen!A15 -> Závěs CLIP top 120° | G117: =Cen!E15 -> 70T5550.TL | I117: =Cen!G15 -> NI | J117: 0 | K117: =Cen!I15 -> 0 | L117: 0 | N117: 0 | P117: 0
B118: =Cen!A16 -> Závěs CLIP top 120° EXPANDO | G118: =Cen!E16 -> 70T558E | I118: =Cen!G16 -> NI | J118: 0 | K118: =Cen!I16 -> 0 | L118: 0 | N118: 0 | P118: 0
B119: =Cen!A17 -> Středový závěs CLIP top | G119: =Cen!E17 -> 78Z5500T | I119: =Cen!G17 -> NI | J119: 0 | K119: =Cen!I17 -> 0 | L119: 0 | M119: =$M$15*$W$12 -> 0 | N119: 0 | O119: =$M$24*$W$21 -> 0 | P119: 0 | S119: x
B120: =Cen!A18 -> Středový závěs CLIP top EXPANDO | G120: =Cen!E18 -> 78Z553ET | I120: =Cen!G18 -> NI | J120: 0 | K120: =Cen!I18 -> 0 | L120: 0 | M120: =$M$15*$W$11 -> 0 | N120: 0 | O120: =$M$24*$W$20 -> 0 | P120: 0 | S120: x
B121: =Cen!A19 -> Závěs CLIP top pro alurámečky | G121: =Cen!E19 -> 72T550A.TL | I121: =Cen!G19 -> NI | J121: 0 | K121: =Cen!I19 -> 0 | L121: 0 | M121: =$M$15*$U$12 -> 0 | N121: 0 | O121: =$M$24*$U$21 -> 0 | P121: 0 | S121: x
B122: =Cen!A20 -> Střed. závěs CLIP top pro alurámečky | G122: =Cen!E20 -> 78Z550AT | I122: =Cen!G20 -> NI | K122: =Cen!I20 -> 0 | L122: 0 | N122: 0 | P122: 0
B123: =Cen!A21 -> Přímá montážní podložka | G123: =Cen!E21 -> 175H3100 | I123: =Cen!G21 -> NI | J123: =SUM(M123,O123,Q123) -> 0 | K123: =Cen!I21 -> 0 | L123: 0 | M123: =IF($R$42=2,SUM($U$11,$U$12,$Q$10*2,$Q$11*2,$Q$12*2,$Q$13*2)*$M$15,0) -> 0 | N123: 0 | O123: =IF($R$42=2,SUM($U$20,$U$21,$Q$19*2,$Q$20*2,$Q$21*2,$Q$22*2)*$M$24,0) -> 0 | P123: 0 | S123: x
B124: =Cen!A22 -> Přímá montážní podložka, EXPANDO | G124: =Cen!E22 -> 177H3100E | I124: =Cen!G22 -> NI | J124: 0 | K124: =Cen!I22 -> 0 | L124: 0 | M124: =IF($R$42=1,SUM($U$11,$U$12,$Q$10*2,$Q$11*2,$Q$12*2,$Q$13*2)*$M$15,0) -> 0 | N124: 0 | O124: =IF($R$42=1,SUM($U$20,$U$21,$Q$19*2,$Q$20*2,$Q$21*2,$Q$22*2)*$M$24,0) -> 0 | P124: 0 | S124: x
B125: =Cen!A23 -> Podložka CLIP excentrická | G125: =Cen!E23 -> 173H7100 | I125: =Cen!G23 -> NI | J125: 0 | K125: =Cen!I23 -> 0 | L125: 0 | N125: =$K125*M125 -> 0 | P125: 0
B126: =Cen!A24 -> Adaptér CLIP k teleskopům P | G126: =Cen!E24 -> 175H5B00 R | I126: =Cen!G24 -> NI | J126: 0 | K126: =Cen!I24 -> 0 | L126: 0 | N126: 0 | P126: 0
B127: =Cen!A25 -> Adaptér CLIP k teleskopům L | G127: =Cen!E25 -> 175H5B00 L | I127: =Cen!G25 -> NI | J127: 0 | K127: =Cen!I25 -> 0 | L127: 0 | N127: 0 | P127: 0
B128: =Cen!A26 -> Adaptér CLIP ke středovým závěsům | G128: =Cen!E26 -> 175H5A00 | I128: =Cen!G26 -> NI | J128: 0 | K128: =Cen!I26 -> 0 | L128: 0 | M128: =SUM($W$11,$W$12)*$M$15 -> 0 | N128: =$K128*M128 -> 0 | O128: =SUM($W$20,$W$21)*$M$24 -> 0 | P128: 0 | S128: x
B129: =Cen!A27 -> Omezovač úhlu otevření na 83° | G129: =Cen!E27 -> 20F7011 | I129: =Cen!G27 -> TGR | K129: =Cen!I27 -> 0 | L129: 0 | N129: 0 | P129: 0
B130: =Cen!A28 -> Omezovač úhlu otevření na 104° | G130: =Cen!E28 -> 20F7051 | I130: =Cen!G28 -> TGR | K130: =Cen!I28 -> 0 | L130: 0 | N130: 0 | P130: 0
B131: =Cen!A151 -> CLIP top krytka raménka Nikl | G131: =Cen!E151 -> 70.1503 | I131: =Cen!G151 -> NI | J131: =SUM(M131,O131,Q131) -> 0 | K131: =Cen!I151 -> 0 | L131: 0 | M131: =SUM(M$117:M$122) -> 0 | N131: 0 | O131: =SUM(O$117:O$122) -> 0 | P131: 0 | S131: x
L133: 0 | N133: 0 | P133: 0
B134: =Cen!A199 -> SERVO-DRIVE jednotka (sada) | G134: =Cen!E199 -> 21FA000 | I134: =Cen!G199 -> HGR | J134: =SUM(M134,O134,Q134) -> 0 | K134: =Cen!I199 -> 0 | L134: 0 | M134: =IF($S$9=2,0,$M$15)+IF(AND($S$9=1,$H$14>17250),$M$15,0) -> 0 | N134: 0 | O134: =IF($S$18=2,0,$M$24)+IF(AND($S$18=1,$H$23>17250),$M$24,0) -> 0 | P134: 0 | S134: x
B135: =Cen!A200 -> SERVO-DRIVE jednotka (sada) pro HK top | G135: =Cen!E200 -> 23KA000 | I135: =Cen!G200 -> HGR | K135: =Cen!I200 -> 0 | L135: 0 | N135: 0 | P135: 0
K138: =List!$C$59&" " -> Cena celkem bez DPH | L138: =SUM(L102:L136) -> 0 | N138: =SUM(N102:N137) -> 0 | P138: =SUM(P102:P137) -> 0 | R138: =SUM(R102:R137) -> 0
L140: =List!$C$149 -> Zpět
B199: =List!$C$71 -> Výpočet hmotnosti čel
C200: =List!$C$33&" " -> horní čelo | I200: =IF(U206=3,IF(H200=0,T203," "),IF(H200>0,T204," ")) ->  | N200: =IF($U$206=1,$U$227,IF($U$206=2,$U$228,$U$229&" - "&$H$200&"mm")) -> Alurámečky s 4mm sklem | S200: =Menu!$Q$205 -> 2500
C201: =List!$C$34&" " -> dolní čelo | I201: =IF(O208=3,IF(H201=0,N203," "),IF(H201>0,N204," ")) ->  | N201: =IF($O$207=1,$O$208,IF($O$207=2,$O$209,$O$210&" "&$N$210&"kg/m3"))&" A~"&$H$208&"/ B~"&$H$217&"mm" -> MDF (760 kg/m3) A~/ B~mm
D202: =IF($O$207<>3,$N$202," ")&" " -> Změnit hodnoty můžete v Úvodu plánování | N202: =" "&List!$C$382 -> Změnit hodnoty můžete v Úvodu plánování
N203: =" "&List!$C$225&" [kg/m3]" -> Zadejte objemovou hmotnost [kg/m3] | T203: =" "&List!$C$226&" [mm]" -> Zadejte sílu skla [mm]
N204: =" "&List!$C$221&" '"&List!$C$86&"'" -> Hodnota platí jen pro volbu 'Jiné - volitelná hustota' | T204: =" "&List!$C$221&" '"&List!$C$89&"'" -> Hodnota platí jen pro volbu 'Alurámečky s jiným sklem'
F205: =D9 -> Korpus A | T205: váha spoj. | U205: tl. skla | V205: typ alu
B206: =List!$C$72&" KB [mm] " -> Šířka korpusu KB [mm] | H206: =H10 -> 0 | N206: =H206*H207*H208/2 -> 0 | S206: =IF($V$206=1,$M$236,$M$237) -> 0.31 | T206: =$M$238 -> 0.46 | U206: 1 | V206: =$O$4 -> 1
B207: =List!$C$73&" KH [mm] " -> Výška korpusu KH [mm] | H207: =H11 -> 0 | N207: =N206/1000000000 -> 0 | O207: 1 | S207: váha alu | T207: =SUM(H206*2,(H207/2-40)*2)*S206/1000 -> -0.0248 | U207: A plocha B
B208: =List!$C$77&" TS [mm] " -> Síla čela TS [mm] | I208: =IF(SUM(H206,H207)=0," ",IF(H208=0," ● "&List!$C$111," ")) ->  | N208: =Menu!$L$30 -> 760 | O208: =List!$C$84&" ("&N208&" kg/m3)" -> MDF (760 kg/m3) | S208: =$S$200*4/1000 -> 10 | T208: =IF($V$206=1,U208*S208,V208*S208) -> 0.009 | U208: =SUM(($H$206-30)*($H$207/2-30)/1000000) -> 0.0009 | V208: =SUM(($H$206-6)*($H$207/2-6)/1000000) -> 3.6e-05 | W208: 4mm
B209: =List!$C$78&" [kg] " -> Hmotnost úchytky [kg] | I209: =IF(SUM(H206,H207)=0," ",IF(H209=0," ● "&List!$C$112," ")) ->  | N209: =Menu!$L$31 -> 680 | O209: =List!$C$85&" ("&N209&" kg/m3)" -> Dřevotříska (680 kg/m3) | S209: =$S$200*5/1000 -> 12.5 | T209: =IF($V$206=1,U209*S209,V209*S209) -> 0.01125 | U209: =SUM(($H$206-30)*($H$207/2-30)/1000000) -> 0.0009 | V209: =SUM(($H$206-6)*($H$207/2-6)/1000000) -> 3.6e-05 | W209: 5mm
B210: =List!$C$76&" [kg] " -> Vypočtená hmotnost čela [kg] | H210: =IF(M210*S211<>0,SUM(M210,S211,H209),0) -> 0 | M210: =IF(H206*H207*H208=0,0,IF(O207=1,N207*N208,IF(O207=2,N207*N209,N207*N210))) -> 0 | N210: =$H$201 -> 0 | O210: =List!$C$86 -> Jiné - volitelná hustota | S210: =$S$200*$H$200/1000 -> 0 | T210: =IF($V$206=1,U210*S210,V210*S210) -> 0 | U210: =SUM(($H$206-30)*($H$207/2-30)/1000000) -> 0.0009 | V210: =SUM(($H$206-6)*($H$207/2-6)/1000000) -> 3.6e-05 | W210: jiné
C211: =IF(H210>0,IF(H209=0,$N$227," ")," ") ->  | S211: =IF(OR(AND(U206=3, $H$200=0), H206*H207=0), 0, SUM(IF(U206=1,T208,IF(U206=2,T209,T210)),T207,T206)) -> 0
F214: =D18 -> Korpus B | T214: váha spoj. | U214: tl. skla | V214: typ alu
B215: =List!$C$72&" KB [mm] " -> Šířka korpusu KB [mm] | H215: =H19 -> 0 | N215: =H215*H216*H217 -> 0 | S215: =IF($V$206=1,$M$236,$M$237) -> 0.31 | T215: =$M$238 -> 0.46 | U215: =$U$206 -> 1 | V215: =$V$206 -> 1
B216: =List!$C$73&" KH [mm] " -> Výška korpusu KH [mm] | H216: =H20 -> 0 | N216: =N215/1000000000/2 -> 0 | O216: =O207 -> 1 | S216: váha alu | T216: =SUM(H215*2,(H216/2-40)*2)*S215/1000 -> -0.0248 | U216: A plocha B
B217: =List!$C$77&" TS [mm] " -> Síla čela TS [mm] | I217: =IF(SUM(H215,H216)=0," ",IF(H217=0," ● "&List!$C$111," ")) ->  | N217: =$N$208 -> 760 | O217: =$O$208 -> MDF (760 kg/m3) | S217: =S208 -> 10 | T217: =IF($V$206=1,U217*S217,V217*S217) -> 0.009 | U217: =SUM(($H$215-30)*($H$216/2-30)/1000000) -> 0.0009 | V217: =SUM(($H$215-6)*($H$216/2-6)/1000000) -> 3.6e-05 | W217: 4mm
B218: =List!$C$78&" [kg] " -> Hmotnost úchytky [kg] | I218: =IF(SUM(H215,H216)=0," ",IF(H218=0," ● "&List!$C$112," ")) ->  | N218: =$N$209 -> 680 | O218: =$O$209 -> Dřevotříska (680 kg/m3) | S218: =S209 -> 12.5 | T218: =IF($V$206=1,U218*S218,V218*S218) -> 0.01125 | U218: =SUM(($H$215-30)*($H$216/2-30)/1000000) -> 0.0009 | V218: =SUM(($H$215-6)*($H$216/2-6)/1000000) -> 3.6e-05 | W218: 5mm
B219: =List!$C$76&" [kg] " -> Vypočtená hmotnost čela [kg] | H219: =IF(M219*S220<>0,SUM(M219,S220,H218),0) -> 0 | M219: =IF(H215*H216*H217=0,0,IF(O216=1,N216*N217,IF(O216=2,N216*N218,N216*N219))) -> 0 | N219: =$N$210 -> 0 | O219: =$O$210 -> Jiné - volitelná hustota | S219: =S210 -> 0 | T219: =IF($V$206=1,U219*S219,V219*S219) -> 0 | U219: =SUM(($H$215-30)*($H$216/2-30)/1000000) -> 0.0009 | V219: =SUM(($H$215-6)*($H$216/2-6)/1000000) -> 3.6e-05 | W219: jiné
C220: =IF(H219>0,IF(H218=0,$N$227," ")," ") ->  | S220: =IF(OR(AND(U215=3, $H$200=0), H215*H216=0), 0, SUM(IF(U215=1,T217,IF(U215=2,T218,T219)),T216,T215)) -> 0
K223: =IF(SUM(J221,J222)=0," ",IF(J223=0," * "&List!$C$111," ")) -> 
G224: =List!$C$149 -> Zpět
C227: =List!$C$217&" "&List!$C$218 -> Upozornění: Vypočtené hodnoty jsou pouze orientační. Firma Blum ani prodejci neručí za jejich správnost. | N227: =List!$C$95&"!" -> Není započtena hmotnost úchytky! | U227: =List!$C$87 -> Alurámečky s 4mm sklem
U228: =List!$C$88 -> Alurámečky s 5mm sklem
U229: =List!$C$89 -> Alurámečky s jiným sklem
E235: Hmotnost alurámečků [kg/bm] | G235: =List!$C$368 -> Podle Úvodu | H235: =List!$C$58 -> Změna
F236: =List!$C$375&" " -> S vloženým sklem | G236: =Menu!$Q220 -> 0.31 | M236: =IF($H236>0,$H236,$G236) -> 0.31
F237: =List!$C$376&" " -> S naloženým nebo nalepeným sklem | G237: =Menu!$Q221 -> 0.32 | M237: =IF($H237>0,$H237,$G237) -> 0.32
F238: =List!$C$377&" [kg/set] * " -> Hmotnost spojovacího materiálu [kg/set] * | G238: =Menu!$Q222 -> 0.46 | M238: =IF($H238>0,$H238,$G238) -> 0.46
C240: =" * "& List!$C$378&" " -> * Rohové spojky, šrouby, těsnění pro jeden rámeček
G243: =List!$C$149 -> Zpět
B300: =List!$C$176 -> Výpočet asymetrických čel
B302: =" "&List!$C$179 -> Parametry korpusu
B303: =List!$C$73&" KH [mm] " -> Výška korpusu KH [mm] | K303: =IF(SUM($I$304:$J$307,$I$314)<>0,IF($I$303=0," "&List!$C$111," ")," ") -> 
B304: =List!$C$182&" [mm] " -> Mezera nahoře [mm]
B305: =List!$C$183&" [mm] " -> Mezera mezi čely [mm] | K305: =IF($I$303=0," ",IF($I$305<1.5," min. 1,5 mm!"," ")) -> 
B306: =List!$C$184&" [mm] " -> Mezera dole [mm]
B307: =List!$C$185&" [mm] " -> Síla dna korpusu [mm]
B309: =" "&List!$C$187 -> Výsledky plánování
G310: =List!$C$188&" [mm] " -> Možné výšky čel [mm] | P310: =ROUNDUP((+$I$303-$I$304-$I$305-$I$306)/2,0) -> 0 | Q310: =IF($P$310<272,70,47) -> 70
B311: =List!$C$189 -> Vrchní čelo (FHo) v rozmezí | G311: min. | H311: =IF($P$310=0,0,IF($P$310<236,$Q$315,IF($P$310>516,$Q$315,$P$310))) -> 0 | I311: max. | J311: =IF($P$310=0,0,IF($Q$315=$H$311,$Q$315,IF($P$315<$P$314,$P$315,$P$314))) -> 0 | P311: =ROUNDDOWN(($I$303-$I$304-$I$305-$I$306-$Q$310-19-$I$307+$I$306)/1.5,0) -> -59 | Q311: =IF($P$310<272,70,47) -> 70
B312: =List!$C$190 -> Spodní čelo (FHu) v rozmezí | G312: min. | H312: =IF($J$312=$Q$315,$Q$315,SUM($I$303-$I$304-$I$305-$I$306-$J$311)) -> 0 | I312: max. | J312: =IF($Q$315=$H$311,$Q$315,(+$I$303-$I$304-$I$305-$I$306)/2) -> 0 | P312: =ROUNDDOWN(($I$303-$I$304-$I$305-$I$306-$Q$311-19-$I$307+$I$306)/1.5,0) -> -59 | Q312: =IF($P$310<272,70,47) -> 70
P313: =ROUNDDOWN(($I$303-$I$304-$I$305-$I$306-$Q$312-19-$I$307+$I$306)/1.5,0) -> -59 | Q313: =IF($P$310<272,70,47) -> 70
B314: =List!$C$196&" FHo [mm] " -> Výška vrchního čela FHo [mm] | K314: =IF($I$303=0," ",IF($I$314>$J$311,V314,IF($I$314<$H$311,$S$314," "))) ->  | P314: =ROUNDDOWN(($I$303-$I$304-$I$305-$I$306-$Q$313-19-$I$307+$I$306)/1.5,0) -> -59 | S314: =" min. "&TEXT($H$311,"#")&" mm!" -> min. mm! | V314: =" max. "&TEXT($J$311,"#")&" mm!" -> max. mm!
B315: =List!$C$197&" FHu [mm] " -> Výška spodního čela FHu [mm] | I315: =IF($I$314<$H$311,$Q$315,IF($I$314>$J$311,$Q$315,+$I$303-$I$304-$I$305-$I$306-$I$314)) -> 0 | P315: =+(1040-$I$304-$I$305-$I$306)/2 -> 520 | Q315: =List!C193 -> nelze
B316: =List!$C$198&" H [mm] " -> Pozice zdvihače H [mm] | I316: =IF($P$310=0,0,IF($I$315=$Q$315, $Q$315,$I$314*0.6-$Q$316+$I$304)) -> 0 | Q316: =IF($I$314<272,28,57) -> 28
B317: =List!$C$199&" X [mm] " -> Pozice mont. podložky pro teleskopy X [mm] | I317: =IF($P$310=0,0,IF($I$315=$Q$315,$Q$315,$I$314*0.5+$Q$317)) -> 0 | Q317: =IF($I$314<272,70,47) -> 70
B318: =List!$C$200&" TKH [mm] * " -> Teoretická výška korpusu TKH [mm] * | I318: =IF($I$315=$Q$315,$Q$315,IF($Q$318>479.99,IF($Q$318<1040.01,$Q$318,$Q$315)," ")) ->  | P318: TKH | Q318: =SUM($I$314*2+$I$304+$I$305+$I$306) -> 0
B320: * | C320: =List!$C$202 -> Tuto výšku zadejte do tabulky pro plánování výklopů
I325: =List!$C$149 -> Zpět
B399: AVENTOS HF
B401: =List!$C$281 -> Potřebný zdvihač se určí pomocí ukazatele výkonnosti.
B402: =List!$C$282 -> Ukazatel výkonnosti závisí na hmotnosti dolního i horního čílka, a rovněž na výšce korpusu.
B404: =" "&List!$C$295 -> Tak se to dělá:
D405: =List!$C$80&" = " -> Ukazatel výkonnosti = | E405: =List!$C$298&" [kg]" -> výška korpusu KH [mm] x hmotnost obou čel včetně úchytky [kg]
B407: =List!$C$286 -> Je-li ukazatel výkonnosti větší než 17.250, přidá se třetí zdvihač.
B408: =List!$C$287 -> Pokud je zvolen SERVO-DRIVE, přidá se rovněž druhá pohonná jednotka.
B409: =List!$C$163 -> Přídavný třetí zdvihač může být použit pouze s plným spodním čelem!
B411: =List!$C$289 -> Pokud znáte hmotnost čela, můžete ji zadat, jinak použijte "Výpočet hmotnosti".
B412: =List!$C$290 -> V tabulce má přednost zadaná hodnota. Chcete-li použít vypočtenou hmotnost, smažte zadanou hodnotu.
B414: =List!$C$301&". "&List!$C$302&"." -> Délka teleskopů závisí na výšce korpusu KH. U asymetrických čel se použije teoretická výška TKH.
B416: =" "&List!$C$144&":" -> Asymetrická čela:
B417: =" "&List!$C$299 -> Teoretická výška korpusu (TKH) = výška horního čela (FHo) x 2 (včetně mezer)
B419: =List!$C$293 -> U asymetrických čel musí být větší čelo nahoře!
B421: =List!$C$304 -> Pokud zadáte hodnotu TKH, použije se pro určení délky teleskopů
B422: =List!$C$305 -> Nemáte-li asymetrická čela, nechte políčko prázdné.
B423: =List!$C$306&" ' "&List!$C$176&"' " -> Pro výpočet TKH můžete použít ' Výpočet asymetrických čel'
B426: =List!$C$284 -> Chcete-li změnit barvu krytek, přejděte na "Úvod"
B428: =List!$C$383 -> Věnujte pozornost výběru alurámečků.
B429: =List!$C$384 -> Vyberte, který typ lépe odpovídá tvaru použitého alurámečku.
B430: =List!$C$385 -> Způsob osazení skla do rámečku výrazně ovlivňuje plochu skla a tím i hmotnost!
C432: =" "&List!$C$375&" " -> S vloženým sklem
C434: =" "&List!$C$376&" " -> S naloženým nebo nalepeným sklem
L436: =List!$C$149 -> Zpět

Sheet HSw
B2: AVENTOS HF | D2: AVENTOS HS | F2: AVENTOS HL | H2: AVENTOS HK top | J2: AVENTOS HK-S | L2: AVENTOS HK-XS | N2: zdvih A | Q2: zdvih B | BD2: 3 | BG2: =List!$C$135 -> Jdi na
B4: =List!$C$15 -> Dřevěné čelo | F4: =N200&" " -> MDF (760 kg/m3) A~/ B~mm | N4: S1A | O4: =SUM(AW5:AW40) -> 0 | Q4: S1A | R4: =SUM(AW43:AW78) -> 0 | W4: zdvih A | Z4: 20S1G00 | AB4: 20S1H00 | AD4: 20S1I00 | AF4: max | AK4: 20S1D00 | AM4: 20S1E00 | AO4: 20S1F00 | AQ4: max | AV4: 20S1A00 | AX4: 20S1B00 | AZ4: 20S1C00 | BB4: max | BD4: =" "&List!$C$39&" A " -> Cena za korpus A | BG4: =List!$C$136 -> Úvod plánování
N5: S1B | O5: =SUM(AY5:AY40) -> 0 | Q5: S1B | R5: =SUM(AY43:AY78) -> 0 | W5: 800 | X5: 797 | Y5: 801 | Z5: 4 | AA5: =IF($H$11<$Y5,IF($H$11>$X5,IF($P$15>SUM(Z5-0.01),IF($P$15<AB5,1,0),0),0),0) -> 0 | AB5: 6.5 | AC5: =IF($H$11<$Y5,IF($H$11>$X5,IF($P$15>SUM(AB5-0.01),IF($P$15<AD5,1,0),0),0),0) -> 0 | AD5: 11.375 | AE5: =IF($H$11<$Y5,IF($H$11>$X5,IF($P$15>SUM(AD5-0.01),IF($P$15<AF5,1,0),0),0),0) -> 0 | AF5: 20.001 | AH5: 675 | AI5: 672 | AJ5: 676 | AK5: 3 | AL5: =IF($H$11<$AJ5,IF($H$11>$AI5,IF($P$15>SUM(AK5-0.01),IF($P$15<AM5,1,0),0),0),0) -> 0 | AM5: 5.125 | AN5: =IF($H$11<$AJ5,IF($H$11>$AI5,IF($P$15>SUM(AM5-0.01),IF($P$15<AO5,1,0),0),0),0) -> 0 | AO5: 10.375 | AP5: =IF($H$11<$AJ5,IF($H$11>$AI5,IF($P$15>SUM(AO5-0.01),IF($P$15<AQ5,1,0),0),0),0) -> 0 | AQ5: 19.001 | AS5: 525 | AT5: 522 | AU5: 526 | AV5: 2.5 | AW5: =IF($H$11<$AU5,IF($H$11>$AT5,IF($P$15>SUM(AV5-0.01),IF($P$15<AX5,1,0),0),0),0) -> 0 | AX5: 3.625 | AY5: =IF($H$11<$AU5,IF($H$11>$AT5,IF($P$15>SUM(AX5-0.01),IF($P$15<AZ5,1,0),0),0),0) -> 0 | AZ5: 7.375 | BA5: =IF($H$11<$AU5,IF($H$11>$AT5,IF($P$15>SUM(AZ5-0.01),IF($P$15<BB5,1,0),0),0),0) -> 0 | BB5: 15.001 | BD5: =" "&List!$C$39&" B " -> Cena za korpus B | BG5: =List!$C$137 -> Nápověda
N6: S1C | O6: =SUM(BA5:BA40) -> 0 | Q6: S1C | R6: =SUM(BA43:BA78) -> 0 | W6: =W5-5 -> 795 | X6: 792 | Y6: 798 | Z6: 4 | AA6: =IF($H$11<$Y6,IF($H$11>$X6,IF($P$15>SUM(Z6-0.01),IF($P$15<AB6,1,0),0),0),0) -> 0 | AB6: 6.5 | AC6: =IF($H$11<$Y6,IF($H$11>$X6,IF($P$15>SUM(AB6-0.01),IF($P$15<AD6,1,0),0),0),0) -> 0 | AD6: 11.375 | AE6: =IF($H$11<$Y6,IF($H$11>$X6,IF($P$15>SUM(AD6-0.01),IF($P$15<AF6,1,0),0),0),0) -> 0 | AF6: 20.001 | AH6: =AH5-5 -> 670 | AI6: 667 | AJ6: 673 | AK6: 3 | AL6: =IF($H$11<$AJ6,IF($H$11>$AI6,IF($P$15>SUM(AK6-0.01),IF($P$15<AM6,1,0),0),0),0) -> 0 | AM6: 5.125 | AN6: =IF($H$11<$AJ6,IF($H$11>$AI6,IF($P$15>SUM(AM6-0.01),IF($P$15<AO6,1,0),0),0),0) -> 0 | AO6: 10.375 | AP6: =IF($H$11<$AJ6,IF($H$11>$AI6,IF($P$15>SUM(AO6-0.01),IF($P$15<AQ6,1,0),0),0),0) -> 0 | AQ6: 19.001 | AS6: =AS5-5 -> 520 | AT6: 517 | AU6: 523 | AV6: 2.5 | AW6: =IF($H$11<$AU6,IF($H$11>$AT6,IF($P$15>SUM(AV6-0.01),IF($P$15<AX6,1,0),0),0),0) -> 0 | AX6: 3.75 | AY6: =IF($H$11<$AU6,IF($H$11>$AT6,IF($P$15>SUM(AX6-0.01),IF($P$15<AZ6,1,0),0),0),0) -> 0 | AZ6: 7.375 | BA6: =IF($H$11<$AU6,IF($H$11>$AT6,IF($P$15>SUM(AZ6-0.01),IF($P$15<BB6,1,0),0),0),0) -> 0 | BB6: 15.001 | BD6: =" "&List!$C$59 -> Cena celkem bez DPH
B7: =List!$C$142 -> Soupis kování | G7: =IF($BD$2=1,$N$138,IF($BD$2=2,$P$138,IF($BD$2=3,$L$138,0))) -> 0 | N7: S1D | O7: =SUM(AL5:AL35) -> 0 | Q7: S1D | R7: =SUM(AL43:AL73) -> 0 | W7: 790 | X7: 787 | Y7: 793 | Z7: 4 | AA7: =IF($H$11<$Y7,IF($H$11>$X7,IF($P$15>SUM(Z7-0.01),IF($P$15<AB7,1,0),0),0),0) -> 0 | AB7: 6.5 | AC7: 0 | AD7: 11.5 | AE7: 0 | AF7: 20.001 | AH7: 665 | AI7: 662 | AJ7: 668 | AK7: 3 | AL7: 0 | AM7: 5.125 | AN7: 0 | AO7: 10.375 | AP7: 0 | AQ7: 19.001 | AS7: 515 | AT7: 512 | AU7: 518 | AV7: 2.5 | AW7: 0 | AX7: 3.75 | AY7: 0 | AZ7: 7.375 | BA7: 0 | BB7: 14.751 | BG7: =List!$C$141 -> Doplňky | CA7: =List!$C$74&" [kg]" -> Hmotnost čela včetně úchytky [kg]
H8: =IF(AND(OR($Q$14=1, $Q$23=1), $L$138>0), $N$32, " ") ->  | N8: S1E | O8: =SUM(AN5:AN35) -> 0 | Q8: S1E | R8: =SUM(AN43:AN73) -> 0 | W8: 785 | X8: 782 | Y8: 788 | Z8: 4 | AA8: 0 | AB8: 6.625 | AC8: 0 | AD8: 11.625 | AE8: 0 | AF8: 20.001 | AH8: 660 | AI8: 657 | AJ8: 663 | AK8: 3 | AL8: 0 | AM8: 5.375 | AN8: 0 | AO8: 10.625 | AP8: 0 | AQ8: 19.001 | AS8: 510 | AT8: 507 | AU8: 513 | AV8: 2.5 | AW8: 0 | AX8: 3.75 | AY8: 0 | AZ8: 7.625 | BA8: 0 | BB8: 14.751 | CA8: KH [mm] | CB8: 20S2G00.05 | CC8: 20S2H00.05 | CD8: 20S2I00.05 | CF8: KH [mm] | CG8: 20S2D00.05 | CH8: 20S2E00.05 | CI8: 20S2F00.05 | CK8: =List!$C$149 -> Zpět
B9: SERVO-DRIVE | D9: =List!$C$62&" A" -> Korpus A | N9: S1F | O9: =SUM(AP5:AP35) -> 0 | Q9: S1F | R9: =SUM(AP43:AP73) -> 0 | W9: 780 | X9: 777 | Y9: 783 | Z9: 4 | AA9: 0 | AB9: 6.625 | AC9: 0 | AD9: 11.625 | AE9: 0 | AF9: 20.251 | AH9: 655 | AI9: 652 | AJ9: 658 | AK9: 3 | AL9: 0 | AM9: 5.375 | AN9: 0 | AO9: 10.625 | AP9: 0 | AQ9: 19.001 | AS9: 505 | AT9: 502 | AU9: 508 | AV9: 2.5 | AW9: 0 | AX9: 3.75 | AY9: 0 | AZ9: 7.625 | BA9: 0 | BB9: 14.751 | BG9: =List!$C$139 -> Přehled korpusů | CA9: 800 | CB9: 4.00-7.00 | CC9: 6.00-12.25 | CD9: 10.50-20.00 | CF9: 570 | CG9: 3.00-6.25 | CH9: 5.75-12.25 | CI9: 11.25-17.75
B10: =List!$C$72&" KB [mm] " -> Šířka korpusu KB [mm] | I10: =IF($H10=0," ",IF($H10<220," min. 220mm",IF($H10>1800," max. 1 800mm"," ")))&IF(H15>0,IF(H10=0,"● "&List!$C$111," ")," ") ->  | N10: S1G | O10: =SUM(AA5:AA30) -> 0 | Q10: S1G | R10: =SUM(AA43:AA68) -> 0 | W10: 775 | X10: 772 | Y10: 778 | Z10: 3.75 | AA10: 0 | AB10: 6.625 | AC10: 0 | AD10: 11.75 | AE10: 0 | AF10: 20.251 | AH10: 650 | AI10: 647 | AJ10: 653 | AK10: 3 | AL10: 0 | AM10: 5.375 | AN10: 0 | AO10: 10.625 | AP10: 0 | AQ10: 19.001 | AS10: 500 | AT10: 497 | AU10: 503 | AV10: 2.5 | AW10: 0 | AX10: 3.875 | AY10: 0 | AZ10: 7.625 | BA10: 0 | BB10: 14.751 | BG10: =List!$C$140 -> Objednávka | CA10: 795 | CB10: 4.00-7.00 | CC10: 6.00-12.25 | CD10: 10.50-20.00 | CF10: 656 | CG10: 3.00-6.25 | CH10: 5.75-12.25 | CI10: 11.25-17.75
B11: =List!$C$73&" KH [mm] " -> Výška korpusu KH [mm] | I11: =IF($H11=0," ",IF($H11<350," min. 350mm",IF($H11>800," max. 800 mm"," ")))&IF(H15>0,IF(H11=0,"● "&List!$C$111," ")," ") ->  | N11: S1H | O11: =SUM(AC5:AC30) -> 0 | Q11: S1H | R11: =SUM(AC43:AC68) -> 0 | W11: 770 | X11: 767 | Y11: 773 | Z11: 3.75 | AA11: 0 | AB11: 6.625 | AC11: 0 | AD11: 11.75 | AE11: 0 | AF11: 20.251 | AH11: 645 | AI11: 642 | AJ11: 648 | AK11: 3 | AL11: 0 | AM11: 5.375 | AN11: 0 | AO11: 10.625 | AP11: 0 | AQ11: 18.751 | AS11: 495 | AT11: 492 | AU11: 498 | AV11: 2.5 | AW11: 0 | AX11: 4 | AY11: 0 | AZ11: 7.625 | BA11: 0 | BB11: 14.501 | CA11: 790 | CB11: 4.00-7.00 | CC11: 6.00-12.25 | CD11: 10.75-20.00 | CF11: 560 | CG11: 3.00-6.50 | CH11: 6.00-12.25 | CI11: 11.25-17.50
B12: =List!$C$74&" [kg] ** " -> Hmotnost čela včetně úchytky [kg] ** | I12: =IF($H15=0," ",IF(SUM($H12,$H13)=0,$BD$34," "))&IF(AND(SUM($O$4:$O$12)=0,$T12="ano",H12>0),$BD$38,IF(AND($H15>0,$H12>0,T$12="ano"),$BD$35," ")) ->  | N12: S1I | O12: =SUM(AE5:AE31) -> 0 | Q12: S1I | R12: =SUM(AE43:AE68) -> 0 | S12: limit v/š | T12: =IF(AND(219<H10,H10<1801,349<H11,H11<801),"ano","ne") -> ne | W12: 765 | X12: 762 | Y12: 768 | Z12: 3.75 | AA12: 0 | AB12: 6.875 | AC12: 0 | AD12: 11.75 | AE12: 0 | AF12: 20.251 | AH12: 640 | AI12: 637 | AJ12: 643 | AK12: 3 | AL12: 0 | AM12: 5.375 | AN12: 0 | AO12: 10.625 | AP12: 0 | AQ12: 18.751 | AS12: 490 | AT12: 487 | AU12: 493 | AV12: 2.5 | AW12: 0 | AX12: 4 | AY12: 0 | AZ12: 7.875 | BA12: 0 | BB12: 14.501 | CA12: 785 | CB12: 4.00-7.00 | CC12: 6.25-12.50 | CD12: 10.75-20.00 | CF12: 555 | CG12: 3.00-6.50 | CH12: 6.00-12.50 | CI12: 11.50-17.50
B13: =List!$C$76&" [kg] " -> Vypočtená hmotnost čela [kg] | H13: =$H$210 -> 0 | I13: =IF($H15>0,IF($H13>0,IF($H12=0,$BD$35," ")," ")," ") ->  | P13: Servo-Drive | W13: 760 | X13: 757 | Y13: 763 | Z13: 3.75 | AA13: 0 | AB13: 6.875 | AC13: 0 | AD13: 12 | AE13: 0 | AF13: 20.251 | AH13: 635 | AI13: 632 | AJ13: 638 | AK13: 3 | AL13: 0 | AM13: 5.375 | AN13: 0 | AO13: 10.875 | AP13: 0 | AQ13: 18.751 | AS13: 485 | AT13: 482 | AU13: 488 | AV13: 2.5 | AW13: 0 | AX13: 4 | AY13: 0 | AZ13: 7.875 | BA13: 0 | BB13: 14.251 | BG13: =" "&List!$C$177&" A" -> Výpočet hmotnosti A | CA13: 780 | CB13: 4.00-7.00 | CC13: 6.25-12.50 | CD13: 10.75-20.00 | CF13: 550 | CG13: 3.00-6.50 | CH13: 6.00-12.50 | CI13: 11.50-17.25
B14: =List!$C$27&" * " -> Počet mezistěn * | O14: FALSE | Q14: =IF($O$14=FALSE,2,1) -> 2 | W14: 755 | X14: 752 | Y14: 758 | Z14: 3.75 | AA14: 0 | AB14: 6.875 | AC14: 0 | AD14: 12 | AE14: 0 | AF14: 20.501 | AH14: 630 | AI14: 627 | AJ14: 633 | AK14: 3 | AL14: 0 | AM14: 5.625 | AN14: 0 | AO14: 10.875 | AP14: 0 | AQ14: 18.751 | AS14: 480 | AT14: 477 | AU14: 483 | AV14: 2.5 | AW14: 0 | AX14: 4 | AY14: 0 | AZ14: 7.875 | BA14: 0 | BB14: 14.251 | CA14: 775 | CB14: 3.75-7.00 | CC14: 6.25-12.50 | CD14: 11.00-20.25 | CF14: 545 | CG14: 3.00-6.50 | CH14: 6.00-12.50 | CI14: 11.50-17.25
B15: =List!$C$69&" " -> Počet skříněk | M15: =IF($H10*$H$11*$P15=0,0,IF(SUM(O4:O12)=0,0,IF(H10>1800,0,IF(H10<220,0,H15)))) -> 0 | O15: hmot = | P15: =IF(H12>0,H12,H13) -> 0 | Q15: =IF(SUM(H12,H13)=0,0,IF(H12>0,1,2)) -> 0 | R15: zadaná / vypočtená | W15: 750 | X15: 747 | Y15: 753 | Z15: 3.5 | AA15: 0 | AB15: 6.875 | AC15: 0 | AD15: 12.125 | AE15: 0 | AF15: 20.501 | AH15: 625 | AI15: 622 | AJ15: 628 | AK15: 3 | AL15: 0 | AM15: 5.625 | AN15: 0 | AO15: 10.875 | AP15: 0 | AQ15: 18.751 | AS15: 475 | AT15: 472 | AU15: 478 | AV15: 2.5 | AW15: 0 | AX15: 4 | AY15: 0 | AZ15: 7.875 | BA15: 0 | BB15: 14.001 | CA15: 770 | CB15: 3.75-7.00 | CC15: 6.25-12.50 | CD15: 11.00-20.25 | CF15: 540 | CG15: 3.00-6.50 | CH15: 6.00-12.75 | CI15: 11.75-17.00
B16: =IF(H15>0,IF(Q15=0," ",IF(Q15=1,$BD$47,$BD$48))," ")&IF(H15>0,IF(Q15=0," ",IF(Q15=1,$BD$49,$BD$50))," ") ->  | W16: 745 | X16: 742 | Y16: 748 | Z16: 3.5 | AA16: 0 | AB16: 6.875 | AC16: 0 | AD16: 12.125 | AE16: 0 | AF16: 20.501 | AH16: 620 | AI16: 617 | AJ16: 623 | AK16: 3 | AL16: 0 | AM16: 5.625 | AN16: 0 | AO16: 10.875 | AP16: 0 | AQ16: 18.751 | AS16: 470 | AT16: 467 | AU16: 473 | AV16: 2.5 | AW16: 0 | AX16: 4.125 | AY16: 0 | AZ16: 8.125 | BA16: 0 | BB16: 14.001 | CA16: 765 | CB16: 3.75-7.25 | CC16: 6.50-12.50 | CD16: 11.00-20.25 | CF16: 535 | CG16: 3.00-6.75 | CH16: 6.25-12.75 | CI16: 11.75-16.75
N17: tyč | O17: =IF($H$10>1360,1.5,IF($H$10<610,0.5,1)) -> 0.5 | Q17: tyč | R17: =IF($H$19>1360,1.5,IF($H$19<610,0.5,1)) -> 0.5 | W17: 740 | X17: 737 | Y17: 743 | Z17: 3.5 | AA17: 0 | AB17: 6.875 | AC17: 0 | AD17: 12.25 | AE17: 0 | AF17: 20.751 | AH17: 615 | AI17: 612 | AJ17: 618 | AK17: 3 | AL17: 0 | AM17: 5.625 | AN17: 0 | AO17: 10.875 | AP17: 0 | AQ17: 18.751 | AS17: 465 | AT17: 462 | AU17: 468 | AV17: 2.25 | AW17: 0 | AX17: 4.125 | AY17: 0 | AZ17: 8.125 | BA17: 0 | BB17: 13.751 | BG17: =" "&List!$C$361 -> Ověření síly zdvihače | CA17: 760 | CB17: 3.75-7.25 | CC17: 6.50-12.75 | CD17: 11.25-20.25 | CF17: 530 | CG17: 3.00-6.75 | CH17: 6.25-12.75 | CI17: 11.75-16.75
B18: SERVO-DRIVE | D18: =List!$C$62&" B" -> Korpus B | N18: mezistěny | O18: =IF($H$14>0,$H$14,IF($H$10>1219,1,0)) -> 0 | Q18: mezistěny | R18: =IF($H$23>0,$H$23,IF($H$19>1219,1,0)) -> 0 | W18: 735 | X18: 732 | Y18: 738 | Z18: 3.5 | AA18: 0 | AB18: 6.875 | AC18: 0 | AD18: 12.375 | AE18: 0 | AF18: 20.751 | AH18: 610 | AI18: 607 | AJ18: 613 | AK18: 3 | AL18: 0 | AM18: 5.75 | AN18: 0 | AO18: 11.125 | AP18: 0 | AQ18: 18.501 | AS18: 460 | AT18: 457 | AU18: 463 | AV18: 2.25 | AW18: 0 | AX18: 4.125 | AY18: 0 | AZ18: 8.125 | BA18: 0 | BB18: 13.751 | CA18: 755 | CB18: 3.75-7.25 | CC18: 6.50-12.75 | CD18: 11.25-20.50 | CF18: 526 | CG18: 3.00-6.75 | CH18: 6.25-13.00 | CI18: 12.00-16.50
B19: =List!$C$72&" KB [mm] " -> Šířka korpusu KB [mm] | I19: =IF($H19=0," ",IF($H19<220," min. 220mm",IF($H19>1800," max. 1 800mm"," ")))&IF(H24>0,IF(H19=0,"● "&List!$C$111," ")," ") ->  | W19: 730 | X19: 727 | Y19: 733 | Z19: 3.5 | AA19: 0 | AB19: 7.125 | AC19: 0 | AD19: 12.375 | AE19: 0 | AF19: 21.001 | AH19: 605 | AI19: 602 | AJ19: 608 | AK19: 3 | AL19: 0 | AM19: 5.75 | AN19: 0 | AO19: 11.125 | AP19: 0 | AQ19: 18.501 | AS19: 455 | AT19: 452 | AU19: 458 | AV19: 2.25 | AW19: 0 | AX19: 4.125 | AY19: 0 | AZ19: 8.375 | BA19: 0 | BB19: 13.501 | CA19: 750 | CB19: 3.50-7.25 | CC19: 6.50-12.75 | CD19: 11.50-20.50
B20: =List!$C$73&" KH [mm] " -> Výška korpusu KH [mm] | I20: =IF($H20=0," ",IF($H20<350," min. 350mm",IF($H20>800," max. 800 mm"," ")))&IF(H24>0,IF(H20=0,"● "&List!$C$111," ")," ") ->  | W20: 725 | X20: 722 | Y20: 728 | Z20: 3.5 | AA20: 0 | AB20: 7.125 | AC20: 0 | AD20: 12.5 | AE20: 0 | AF20: 21.001 | AH20: 600 | AI20: 597 | AJ20: 603 | AK20: 3 | AL20: 0 | AM20: 5.75 | AN20: 0 | AO20: 11.125 | AP20: 0 | AQ20: 18.501 | AS20: 450 | AT20: 447 | AU20: 453 | AV20: 2.25 | AW20: 0 | AX20: 4.125 | AY20: 0 | AZ20: 8.375 | BA20: 0 | BB20: 13.501 | CA20: 745 | CB20: 3.50-7.25 | CC20: 6.50-12.75 | CD20: 11.50-20.50 | CF20: KH [mm] | CG20: 20S2A00.05 | CH20: 20S2B00.05 | CI20: 20S2C00.05
B21: =List!$C$74&" [kg] ** " -> Hmotnost čela včetně úchytky [kg] ** | I21: =IF($H24=0," ",IF(SUM($H21,$H22)=0,$BD$34," "))&IF(AND(SUM($R$4:$R$12)=0,$T21="ano",H21>0),$BD$38,IF(AND($H24>0,$H21>0,T$21="ano"),$BD$35," ")) ->  | S21: limit v/š | T21: =IF(AND(219<H19,H19<1801,349<H20,H20<801),"ano","ne") -> ne | W21: 720 | X21: 717 | Y21: 723 | Z21: 3.5 | AA21: 0 | AB21: 7.125 | AC21: 0 | AD21: 12.5 | AE21: 0 | AF21: 21.251 | AH21: 595 | AI21: 592 | AJ21: 598 | AK21: 3 | AL21: 0 | AM21: 5.75 | AN21: 0 | AO21: 11.125 | AP21: 0 | AQ21: 18.501 | AS21: 445 | AT21: 442 | AU21: 448 | AV21: 2.25 | AW21: 0 | AX21: 4.375 | AY21: 0 | AZ21: 8.375 | BA21: 0 | BB21: 13.251 | CA21: 740 | CB21: 3.50-7.25 | CC21: 6.50-12.75 | CD21: 11.75-20.75 | CF21: 525 | CG21: 2.50-4.00 | CH21: 3.25-7.50 | CI21: 7.25-15.00
B22: =List!$C$76&" [kg] " -> Vypočtená hmotnost čela [kg] | H22: =$H$219 -> 0 | I22: =IF($H24>0,IF($H22>0,IF($H21=0,$BD$35," ")," ")," ") ->  | P22: Servo-Drive | W22: =W21-5 -> 715 | X22: 712 | Y22: 718 | Z22: 3.5 | AA22: 0 | AB22: 7.125 | AC22: 0 | AD22: 12.5 | AE22: 0 | AF22: 21.251 | AH22: =AH21-5 -> 590 | AI22: 587 | AJ22: 593 | AK22: 3 | AL22: 0 | AM22: 5.75 | AN22: 0 | AO22: 11.375 | AP22: 0 | AQ22: 18.251 | AS22: =AS21-5 -> 440 | AT22: 437 | AU22: 443 | AV22: 2.25 | AW22: 0 | AX22: 4.375 | AY22: 0 | AZ22: 8.375 | BA22: 0 | BB22: 13.001 | BG22: =" "&List!$C$177&" B" -> Výpočet hmotnosti B | CA22: 735 | CB22: 3.50-7.50 | CC22: 6.50-13.00 | CD22: 11.75-20.75 | CF22: 520 | CG22: 2.50-4.00 | CH22: 3.50-7.50 | CI22: 7.25-15.00
B23: =List!$C$27&" * " -> Počet mezistěn * | O23: FALSE | Q23: =IF($O$23=FALSE,2,1) -> 2 | W23: 710 | X23: 707 | Y23: 713 | Z23: 3.5 | AA23: 0 | AB23: 7.25 | AC23: 0 | AD23: 12.75 | AE23: 0 | AF23: 21.251 | AH23: 585 | AI23: 582 | AJ23: 588 | AK23: 3 | AL23: 0 | AM23: 6 | AN23: 0 | AO23: 11.375 | AP23: 0 | AQ23: 18.251 | AS23: 435 | AT23: 432 | AU23: 438 | AV23: 2.25 | AW23: 0 | AX23: 4.375 | AY23: 0 | AZ23: 8.625 | BA23: 0 | BB23: 13.001 | CA23: 730 | CB23: 3.50-7.50 | CC23: 6.75-13.00 | CD23: 11.75-21.00 | CF23: 515 | CG23: 2.50-4.00 | CH23: 3.50-7.50 | CI23: 7.25-14.75
B24: =List!$C$69&" " -> Počet skříněk | M24: =IF($H19*$H$20*$P24=0,0,IF(SUM(R4:R12)=0,0,IF(H19>1800,0,IF(H19<220,0,H24)))) -> 0 | O24: hmot = | P24: =IF(H21>0,H21,H22) -> 0 | Q24: =IF(SUM(H21,H22)=0,0,IF(H21>0,1,2)) -> 0 | R24: zadaná / vypočtená | W24: 705 | X24: 702 | Y24: 708 | Z24: 3.5 | AA24: 0 | AB24: 7.25 | AC24: 0 | AD24: 12.75 | AE24: 0 | AF24: 21.501 | AH24: 580 | AI24: 577 | AJ24: 583 | AK24: 3 | AL24: 0 | AM24: 6 | AN24: 0 | AO24: 11.5 | AP24: 0 | AQ24: 18.001 | AS24: 430 | AT24: 427 | AU24: 433 | AV24: 2.25 | AW24: 0 | AX24: 4.375 | AY24: 0 | AZ24: 8.625 | BA24: 0 | BB24: 12.751 | CA24: 725 | CB24: 3.50-7.50 | CC24: 6.75-13.00 | CD24: 12.00-21.00 | CF24: 510 | CG24: 2.50-4.00 | CH24: 3.50-7.75 | CI24: 7.50-14.75
B25: =IF(H24>0,IF(Q24=0," ",IF(Q24=1,$BD$47,$BD$48))," ")&IF(H24>0,IF(Q24=0," ",IF(Q24=1,$BD$49,$BD$50))," ") ->  | W25: 700 | X25: 697 | Y25: 703 | Z25: 3.5 | AA25: 0 | AB25: 7.25 | AC25: 0 | AD25: 12.875 | AE25: 0 | AF25: 21.501 | AH25: 575 | AI25: 572 | AJ25: 578 | AK25: 3 | AL25: 0 | AM25: 6 | AN25: 0 | AO25: 11.5 | AP25: 0 | AQ25: 18.001 | AS25: 425 | AT25: 422 | AU25: 428 | AV25: 2.25 | AW25: 0 | AX25: 4.375 | AY25: 0 | AZ25: 8.625 | BA25: 0 | BB25: 12.751 | CA25: 720 | CB25: 3.50-7.50 | CC25: 6.75-13.00 | CD25: 12.00-21.25 | CF25: 505 | CG25: 2.50-4.00 | CH25: 3.50-7.75 | CI25: 7.50-14.75
W26: 695 | X26: 692 | Y26: 698 | Z26: 3.5 | AA26: 0 | AB26: 7.25 | AC26: 0 | AD26: 12.875 | AE26: 0 | AF26: 21.501 | AH26: 570 | AI26: 567 | AJ26: 573 | AK26: 3 | AL26: 0 | AM26: 6 | AN26: 0 | AO26: 11.75 | AP26: 0 | AQ26: 17.751 | AS26: 420 | AT26: 417 | AU26: 423 | AV26: 2.25 | AW26: 0 | AX26: 4.375 | AY26: 0 | AZ26: 8.625 | BA26: 0 | BB26: 12.501 | CA26: 715 | CB26: 3.50-7.50 | CC26: 6.75-13.00 | CD26: 12.00-21.25 | CF26: 500 | CG26: 2.50-4.25 | CH26: 3.50-7.75 | CI26: 7.50-14.75
B27: =IF(OR(AND($Q$14=1, $M$15>0), AND($Q$23=1, $M$24>0)), List!$C$157, " ") ->  | O27: =IF($P$27=FALSE,2,1) -> 2 | P27: FALSE | R27: - Zdroj | W27: 690 | X27: 687 | Y27: 693 | Z27: 3.5 | AA27: 0 | AB27: 7.25 | AC27: 0 | AD27: 13 | AE27: 0 | AF27: 21.501 | AH27: 565 | AI27: 562 | AJ27: 568 | AK27: 3 | AL27: 0 | AM27: 6 | AN27: 0 | AO27: 11.75 | AP27: 0 | AQ27: 17.751 | AS27: 415 | AT27: 412 | AU27: 418 | AV27: 2.25 | AW27: 0 | AX27: 4.375 | AY27: 0 | AZ27: 8.625 | BA27: 0 | BB27: 12.501 | CA27: 710 | CB27: 3.50-7.75 | CC27: 6.75-13.25 | CD27: 12.25-21.25 | CF27: 495 | CG27: 2.50-4.25 | CH27: 3.75-7.75 | CI27: 7.50-14.50
W28: 685 | X28: 682 | Y28: 688 | Z28: 3.5 | AA28: 0 | AB28: 7.5 | AC28: 0 | AD28: 13 | AE28: 0 | AF28: 21.501 | AH28: 560 | AI28: 557 | AJ28: 563 | AK28: 3 | AL28: 0 | AM28: 6.25 | AN28: 0 | AO28: 11.75 | AP28: 0 | AQ28: 17.501 | AS28: 410 | AT28: 407 | AU28: 413 | AV28: 2.25 | AW28: 0 | AX28: 4.375 | AY28: 0 | AZ28: 8.875 | BA28: 0 | BB28: 12.251 | CA28: 705 | CB28: 3.50-7.75 | CC28: 6.75-13.25 | CD28: 12.25-21.50 | CF28: 490 | CG28: 2.50-4.25 | CH28: 3.75-8.00 | CI28: 7.75-14.50
W29: 680 | X29: 677 | Y29: 683 | Z29: 3.5 | AA29: 0 | AB29: 7.5 | AC29: =IF($H$11<$Y29,IF($H$11>$X29,IF($P$15>SUM(AB29-0.01),IF($P$15<AD29,1,0),0),0),0) -> 0 | AD29: 13.25 | AE29: 0 | AF29: 21.501 | AH29: 555 | AI29: 552 | AJ29: 558 | AK29: 3 | AL29: 0 | AM29: 6.25 | AN29: 0 | AO29: 12 | AP29: 0 | AQ29: 17.501 | AS29: 405 | AT29: 402 | AU29: 408 | AV29: 2.25 | AW29: 0 | AX29: 4.375 | AY29: 0 | AZ29: 8.875 | BA29: 0 | BB29: 12.001 | CA29: 700 | CB29: 3.50-7.75 | CC29: 6.75-13.25 | CD29: 12.50-21.50 | CF29: 485 | CG29: 2.50-4.25 | CH29: 3.75-8.00 | CI29: 7.75-14.25
W30: 676 | X30: 675 | Y30: 678 | Z30: 3.5 | AA30: 0 | AB30: 7.5 | AC30: 0 | AD30: 13.25 | AE30: 0 | AF30: 21.501 | AH30: 550 | AI30: 547 | AJ30: 553 | AK30: 3 | AL30: 0 | AM30: 6.25 | AN30: 0 | AO30: 12 | AP30: 0 | AQ30: 17.251 | AS30: 400 | AT30: 397 | AU30: 403 | AV30: 2 | AW30: 0 | AX30: 4.5 | AY30: 0 | AZ30: 8.875 | BA30: 0 | BB30: 12.001 | CA30: 695 | CB30: 3.50-7.75 | CC30: 6.75-13.25 | CD30: 12.50-21.50 | CF30: 480 | CG30: 2.50-4.25 | CH30: 3.75-8.00 | CI30: 7.75-14.25
AH31: 545 | AI31: 542 | AJ31: 548 | AK31: 3 | AL31: 0 | AM31: 6.25 | AN31: 0 | AO31: 12 | AP31: 0 | AQ31: 17.251 | AS31: 395 | AT31: 392 | AU31: 398 | AV31: 2 | AW31: 0 | AX31: 4.625 | AY31: 0 | AZ31: 8.875 | BA31: 0 | BB31: 11.751 | CA31: 690 | CB31: 3.50-7.75 | CC31: 6.75-13.25 | CD31: 12.75-21.50 | CF31: 475 | CG31: 2.50-4.25 | CH31: 3.75-8.00 | CI31: 7.75-14.00
N32: =List!C158 -> Cena bez napájecího zdroje! | AH32: 540 | AI32: 537 | AJ32: 543 | AK32: 3 | AL32: 0 | AM32: 6.25 | AN32: 0 | AO32: 12.25 | AP32: 0 | AQ32: 17.001 | AS32: 390 | AT32: 387 | AU32: 393 | AV32: 2 | AW32: 0 | AX32: 4.625 | AY32: 0 | AZ32: 8.875 | BA32: 0 | BB32: 11.501 | CA32: 685 | CB32: 3.50-8.00 | CC32: 7.00-13.25 | CD32: 12.75-21.50 | CF32: 470 | CG32: 2.50-4.25 | CH32: 4.00-8.25 | CI32: 8.00-14.00
B33: * | C33: =List!$C$215 -> Zadejte počet mezistěn v korpusu. | AH33: 535 | AI33: 532 | AJ33: 538 | AK33: 3 | AL33: 0 | AM33: 6.5 | AN33: 0 | AO33: 12.25 | AP33: 0 | AQ33: 16.751 | AS33: 385 | AT33: 382 | AU33: 388 | AV33: 2 | AW33: 0 | AX33: 4.625 | AY33: 0 | AZ33: 9.125 | BA33: 0 | BB33: 11.501 | CA33: 680 | CB33: 3.50-8.00 | CC33: 7.00-13.50 | CD33: 13.00-21.50 | CF33: 465 | CG33: 2.25-4.25 | CH33: 4.00-8.25 | CI33: 8.00-13.75
B34: ** | C34: =List!$C$168 -> Pokud znáte hmotnost a nechcete využít výpočtu hmotnosti | AH34: 530 | AI34: 527 | AJ34: 533 | AK34: 3 | AL34: 0 | AM34: 6.5 | AN34: 0 | AO34: 12.25 | AP34: 0 | AQ34: 16.751 | AS34: 380 | AT34: 377 | AU34: 383 | AV34: 2 | AW34: 0 | AX34: 4.625 | AY34: 0 | AZ34: 9.125 | BA34: 0 | BB34: 11.251 | BD34: =" "&List!$C$103 -> Doplňte nebo použijte "Výpočet hmotnosti" | CA34: 676 | CB34: 3.50-8.00 | CC34: 7.00-13.50 | CD34: 13.00-21.50 | CF34: 460 | CG34: 2.25-4.25 | CH34: 4.00-8.25 | CI34: 8.00-13.75
AH35: 526 | AI35: 525 | AJ35: 528 | AK35: 3 | AL35: 0 | AM35: 6.5 | AN35: 0 | AO35: 12.5 | AP35: 0 | AQ35: 16.501 | AS35: 375 | AT35: 372 | AU35: 378 | AV35: 2 | AW35: 0 | AX35: 4.625 | AY35: 0 | AZ35: 9.125 | BA35: 0 | BB35: 11.251 | BD35: ="◄ "&List!$C$101 -> ◄ hodnota bude použita pro výběr zdvihače | CF35: 455 | CG35: 2.25-4.25 | CH35: 4.00-8.50 | CI35: 8.25-13.50
AS36: 370 | AT36: 367 | AU36: 373 | AV36: 2 | AW36: 0 | AX36: 4.625 | AY36: 0 | AZ36: 9.125 | BA36: 0 | BB36: 11.001 | BD36: =" * "&List!$C$110 -> * Doplňte hodnoty | CA36: KH [mm] | CB36: 20S2D00.05 | CC36: 20S2E00.05 | CD36: 20S2F00.05 | CF36: 450 | CG36: 2.25-4.25 | CH36: 4.00-8.50 | CI36: 8.25-13.50
AS37: 365 | AT37: 362 | AU37: 368 | AV37: 2 | AW37: 0 | AX37: 4.625 | AY37: 0 | AZ37: 9.125 | BA37: 0 | BB37: 11.001 | CA37: 675 | CB37: 3.00-5.25 | CC37: 5.00-11.00 | CD37: 9.75-19.00 | CF37: 445 | CG37: 2.25-4.50 | CH37: 4.25-8.50 | CI37: 8.25-13.25
AS38: =AS37-5 -> 360 | AT38: 357 | AU38: 363 | AV38: 2 | AW38: 0 | AX38: 4.625 | AY38: 0 | AZ38: 9.375 | BA38: 0 | BB38: 10.751 | BD38: =List!$C$107&"!" -> Překročena maximální hmotnost! | CA38: 670 | CB38: 3.00-5.25 | CC38: 5.00-11.00 | CD38: 9.75-19.00 | CF38: 440 | CG38: 2.25-4.50 | CH38: 4.25-8.50 | CI38: 8.25-13.00
AS39: 355 | AT39: 352 | AU39: 358 | AV39: 2 | AW39: 0 | AX39: 4.625 | AY39: 0 | AZ39: 9.375 | BA39: 0 | BB39: 10.501 | BD39: =" max. 9 000! "&List!$C$105 -> max. 9 000! Upravte hmotnost nebo výšku | CA39: 665 | CB39: 3.00-5.25 | CC39: 5.00-11.00 | CD39: 9.75-19.00 | CF39: 435 | CG39: 2.25-4.50 | CH39: 4.25-8.75 | CI39: 8.50-13.00
AS40: 350 | AT40: 349 | AU40: =AU39-5 -> 353 | AV40: 2 | AW40: 0 | AX40: 4.75 | AY40: 0 | AZ40: 9.375 | BA40: 0 | BB40: 10.501 | BD40: =" "&List!$C$216 -> Nutná mezistěna | CA40: 660 | CB40: 3.00-5.50 | CC40: 5.25-11.25 | CD40: 10.00-19.00 | CF40: 430 | CG40: 2.25-4.50 | CH40: 4.25-8.75 | CI40: 8.50-12.75
CA41: 655 | CB41: 3.00-5.50 | CC41: 5.25-11.25 | CD41: 10.00-19.00 | CF41: 425 | CG41: 2.25-4.50 | CH41: 4.25-8.75 | CI41: 8.50-12.75
R42: =HS!$K$27 -> 1 | T42: =Menu!$Q$27 -> 3 | W42: zdvih B | Z42: 20S1G00 | AB42: 20S1H00 | AD42: 20S1I00 | AF42: max | AK42: 20S1D00 | AM42: 20S1E00 | AO42: 20S1F00 | AQ42: max | AV42: 20S1A00 | AX42: 20S1B00 | AZ42: 20S1C00 | BB42: max | CA42: 650 | CB42: 3.00-5.50 | CC42: 5.25-11.25 | CD42: 10.00-19.00 | CF42: 420 | CG42: 2.25-4.50 | CH42: 4.25-8.75 | CI42: 8.50-12.50
R43: čelní kov. | T43: kryt. | W43: 800 | X43: 797 | Y43: 801 | Z43: 4 | AA43: =IF($H$20<$Y43,IF($H$20>$X43,IF($P$24>SUM(Z43-0.01),IF($P$24<AB43,1,0),0),0),0) -> 0 | AB43: 6.5 | AC43: =IF($H$20<$Y43,IF($H$20>$X43,IF($P$24>SUM(AB43-0.01),IF($P$24<AD43,1,0),0),0),0) -> 0 | AD43: 11.375 | AE43: =IF($H$20<$Y43,IF($H$20>$X43,IF($P$24>SUM(AD43-0.01),IF($P$24<AF43,1,0),0),0),0) -> 0 | AF43: 20.001 | AH43: 675 | AI43: 672 | AJ43: 676 | AK43: 3 | AL43: =IF($H$20<$AJ43,IF($H$20>$AI43,IF($P$24>SUM(AK43-0.01),IF($P$24<AM43,1,0),0),0),0) -> 0 | AM43: 5.125 | AN43: =IF($H$20<$AJ43,IF($H$20>$AI43,IF($P$24>SUM(AM43-0.01),IF($P$24<AO43,1,0),0),0),0) -> 0 | AO43: 10.375 | AP43: =IF($H$20<$AJ43,IF($H$20>$AI43,IF($P$24>SUM(AO43-0.01),IF($P$24<AQ43,1,0),0),0),0) -> 0 | AQ43: 19.001 | AS43: 525 | AT43: 522 | AU43: 526 | AV43: 2.5 | AW43: =IF($H$20<$AU43,IF($H$20>$AT43,IF($P$24>SUM(AV43-0.01),IF($P$24<AX43,1,0),0),0),0) -> 0 | AX43: 3.625 | AY43: =IF($H$20<$AU43,IF($H$20>$AT43,IF($P$24>SUM(AX43-0.01),IF($P$24<AZ43,1,0),0),0),0) -> 0 | AZ43: 7.375 | BA43: =IF($H$20<$AU43,IF($H$20>$AT43,IF($P$24>SUM(AZ43-0.01),IF($P$24<BB43,1,0),0),0),0) -> 0 | BB43: 15.001 | CA43: 645 | CB43: 3.00-5.50 | CC43: 5.25-11.25 | CD43: 10.00-18.75 | CF43: 415 | CG43: 2.25-4.50 | CH43: 4.25-8.75 | CI43: 8.50-12.50
R44: =List!$C$125 -> Expando | T44: =List!$C$128 -> Světle šedá (HG/T) | W44: =W43-5 -> 795 | X44: 792 | Y44: 798 | Z44: 4 | AA44: =IF($H$20<$Y44,IF($H$20>$X44,IF($P$24>SUM(Z44-0.01),IF($P$24<AB44,1,0),0),0),0) -> 0 | AB44: 6.5 | AC44: =IF($H$20<$Y44,IF($H$20>$X44,IF($P$24>SUM(AB44-0.01),IF($P$24<AD44,1,0),0),0),0) -> 0 | AD44: 11.375 | AE44: =IF($H$20<$Y44,IF($H$20>$X44,IF($P$24>SUM(AD44-0.01),IF($P$24<AF44,1,0),0),0),0) -> 0 | AF44: 20.001 | AH44: =AH43-5 -> 670 | AI44: 667 | AJ44: 673 | AK44: 3 | AL44: =IF($H$20<$AJ44,IF($H$20>$AI44,IF($P$24>SUM(AK44-0.01),IF($P$24<AM44,1,0),0),0),0) -> 0 | AM44: 5.125 | AN44: =IF($H$20<$AJ44,IF($H$20>$AI44,IF($P$24>SUM(AM44-0.01),IF($P$24<AO44,1,0),0),0),0) -> 0 | AO44: 10.375 | AP44: =IF($H$20<$AJ44,IF($H$20>$AI44,IF($P$24>SUM(AO44-0.01),IF($P$24<AQ44,1,0),0),0),0) -> 0 | AQ44: 19.001 | AS44: =AS43-5 -> 520 | AT44: 517 | AU44: 523 | AV44: 2.5 | AW44: =IF($H$20<$AU44,IF($H$20>$AT44,IF($P$24>SUM(AV44-0.01),IF($P$24<AX44,1,0),0),0),0) -> 0 | AX44: 3.75 | AY44: =IF($H$20<$AU44,IF($H$20>$AT44,IF($P$24>SUM(AX44-0.01),IF($P$24<AZ44,1,0),0),0),0) -> 0 | AZ44: 7.375 | BA44: =IF($H$15<$AU44,IF($H$15>$AT44,IF($H$16>SUM(AZ44-0.01),IF($H$16<BB44,1,0),0),0),0) -> 0 | BB44: 15.001 | CA44: 640 | CB44: 3.00-5.50 | CC44: 5.25-11.25 | CD44: 10.00-18.75 | CF44: 410 | CG44: 2.25-4.50 | CH44: 4.25-9.00 | CI44: 8.75-12.25
R45: =List!$C$126 -> na vruty | T45: =List!$C$129 -> Tmavě šedá (TGR) | W45: 790 | X45: 787 | Y45: 793 | Z45: 4 | AA45: 0 | AB45: 6.5 | AC45: 0 | AD45: 11.5 | AE45: 0 | AF45: 20.001 | AH45: 665 | AI45: 662 | AJ45: 668 | AK45: 3 | AL45: 0 | AM45: 5.125 | AN45: 0 | AO45: 10.375 | AP45: 0 | AQ45: 19.001 | AS45: 515 | AT45: 512 | AU45: 518 | AV45: 2.5 | AW45: 0 | AX45: 3.75 | AY45: 0 | AZ45: 7.375 | BA45: 0 | BB45: 14.751 | CA45: 635 | CB45: 3.00-5.50 | CC45: 5.25-11.50 | CD45: 10.25-18.75 | CF45: 405 | CG45: 2.25-4.50 | CH45: 4.25-9.00 | CI45: 8.75-12.20
T46: =List!$C$130 -> Hedvábně bílá (SW/T) | W46: 785 | X46: 782 | Y46: 788 | Z46: 4 | AA46: 0 | AB46: 6.625 | AC46: 0 | AD46: 11.625 | AE46: 0 | AF46: 20.001 | AH46: 660 | AI46: 657 | AJ46: 663 | AK46: 3 | AL46: 0 | AM46: 5.375 | AN46: 0 | AO46: 10.625 | AP46: 0 | AQ46: 19.001 | AS46: 510 | AT46: 507 | AU46: 513 | AV46: 2.5 | AW46: 0 | AX46: 3.75 | AY46: 0 | AZ46: 7.625 | BA46: 0 | BB46: 14.751 | CA46: 630 | CB46: 3.00-5.75 | CC46: 5.50-11.50 | CD46: 10.25-18.75 | CF46: 400 | CG46: 2.00-4.75 | CH46: 4.25-9.00 | CI46: 8.75-12.20
W47: 780 | X47: 777 | Y47: 783 | Z47: 4 | AA47: 0 | AB47: 6.625 | AC47: 0 | AD47: 11.625 | AE47: 0 | AF47: 20.251 | AH47: 655 | AI47: 652 | AJ47: 658 | AK47: 3 | AL47: 0 | AM47: 5.375 | AN47: 0 | AO47: 10.625 | AP47: 0 | AQ47: 19.001 | AS47: 505 | AT47: 502 | AU47: 508 | AV47: 2.5 | AW47: 0 | AX47: 3.75 | AY47: 0 | AZ47: 7.625 | BA47: 0 | BB47: 14.751 | BD47: =List!C169&". " -> Pro určení typu zdvihače bude použita zadaná hmotnost. | CA47: 625 | CB47: 3.00-5.75 | CC47: 5.50-11.50 | CD47: 10.25-18.75 | CF47: 395 | CG47: 2.00-4.75 | CH47: 4.50-9.00 | CI47: 8.75-11.75
W48: 775 | X48: 772 | Y48: 778 | Z48: 3.75 | AA48: 0 | AB48: 6.625 | AC48: 0 | AD48: 11.75 | AE48: 0 | AF48: 20.251 | AH48: 650 | AI48: 647 | AJ48: 653 | AK48: 3 | AL48: 0 | AM48: 5.375 | AN48: 0 | AO48: 10.625 | AP48: 0 | AQ48: 19.001 | AS48: 500 | AT48: 497 | AU48: 503 | AV48: 2.5 | AW48: 0 | AX48: 3.875 | AY48: 0 | AZ48: 7.625 | BA48: 0 | BB48: 14.751 | BD48: =List!C170&". " -> Pro určení typu zdvihače bude použita vypočtená hmotnost. | CA48: 620 | CB48: 3.00-5.75 | CC48: 5.50-11.50 | CD48: 10.25-18.75 | CF48: 390 | CG48: 2.00-4.75 | CH48: 4.50-9.00 | CI48: 8.75-11.50
W49: 770 | X49: 767 | Y49: 773 | Z49: 3.75 | AA49: 0 | AB49: 6.625 | AC49: 0 | AD49: 11.75 | AE49: 0 | AF49: 20.251 | AH49: 645 | AI49: 642 | AJ49: 648 | AK49: 3 | AL49: 0 | AM49: 5.375 | AN49: 0 | AO49: 10.625 | AP49: 0 | AQ49: 18.751 | AS49: 495 | AT49: 492 | AU49: 498 | AV49: 2.5 | AW49: 0 | AX49: 4 | AY49: 0 | AZ49: 7.625 | BA49: 0 | BB49: 14.501 | BD49: =List!C171 -> Chcete-li použít vypočtenou hmotnost, smažte zadanou hodnotu | CA49: 615 | CB49: 3.00-5.75 | CC49: 5.50-11.50 | CD49: 10.25-18.75 | CF49: 385 | CG49: 2.00-4.75 | CH49: 4.50-9.25 | CI49: 9.00-11.50
W50: 765 | X50: 762 | Y50: 768 | Z50: 3.75 | AA50: 0 | AB50: 6.875 | AC50: 0 | AD50: 11.75 | AE50: 0 | AF50: 20.251 | AH50: 640 | AI50: 637 | AJ50: 643 | AK50: 3 | AL50: 0 | AM50: 5.375 | AN50: 0 | AO50: 10.625 | AP50: 0 | AQ50: 18.751 | AS50: 490 | AT50: 487 | AU50: 493 | AV50: 2.5 | AW50: 0 | AX50: 4 | AY50: 0 | AZ50: 7.875 | BA50: 0 | BB50: 14.501 | BD50: =List!C172 -> Chcete-li použít zadanou hmotnost, zadejte ji do políčka | CA50: 610 | CB50: 3.00-6.00 | CC50: 5.50-11.75 | CD50: 10.50-18.50 | CF50: 380 | CG50: 2.00-4.75 | CH50: 4.50-9.25 | CI50: 9.00-11.25
W51: 760 | X51: 757 | Y51: 763 | Z51: 3.75 | AA51: 0 | AB51: 6.875 | AC51: 0 | AD51: 12 | AE51: 0 | AF51: 20.251 | AH51: 635 | AI51: 632 | AJ51: 638 | AK51: 3 | AL51: 0 | AM51: 5.375 | AN51: 0 | AO51: 10.875 | AP51: 0 | AQ51: 18.751 | AS51: 485 | AT51: 482 | AU51: 488 | AV51: 2.5 | AW51: 0 | AX51: 4 | AY51: 0 | AZ51: 7.875 | BA51: 0 | BB51: 14.251 | CA51: 605 | CB51: 3.00-6.00 | CC51: 5.50-11.75 | CD51: 10.50-18.50 | CF51: 375 | CG51: 2.00-4.75 | CH51: 4.50-9.25 | CI51: 9.00-11.25
W52: 755 | X52: 752 | Y52: 758 | Z52: 3.75 | AA52: 0 | AB52: 6.875 | AC52: 0 | AD52: 12 | AE52: 0 | AF52: 20.501 | AH52: 630 | AI52: 627 | AJ52: 633 | AK52: 3 | AL52: 0 | AM52: 5.625 | AN52: 0 | AO52: 10.875 | AP52: 0 | AQ52: 18.751 | AS52: 480 | AT52: 477 | AU52: 483 | AV52: 2.5 | AW52: 0 | AX52: 4 | AY52: 0 | AZ52: 7.875 | BA52: 0 | BB52: 14.251 | CA52: 600 | CB52: 3.00-6.00 | CC52: 5.50-11.75 | CD52: 10.50-18.50 | CF52: 370 | CG52: 2.00-4.75 | CH52: 4.50-9.25 | CI52: 9.00-11.00
W53: 750 | X53: 747 | Y53: 753 | Z53: 3.5 | AA53: 0 | AB53: 6.875 | AC53: 0 | AD53: 12.125 | AE53: 0 | AF53: 20.501 | AH53: 625 | AI53: 622 | AJ53: 628 | AK53: 3 | AL53: 0 | AM53: 5.625 | AN53: 0 | AO53: 10.875 | AP53: 0 | AQ53: 18.751 | AS53: 475 | AT53: 472 | AU53: 478 | AV53: 2.5 | AW53: 0 | AX53: 4 | AY53: 0 | AZ53: 7.875 | BA53: 0 | BB53: 14.001 | CA53: 595 | CB53: 3.00-6.00 | CC53: 5.50-11.75 | CD53: 10.50-18.50 | CF53: 365 | CG53: 2.00-4.75 | CH53: 4.50-9.25 | CI53: 9.00-11.00
W54: 745 | X54: 742 | Y54: 748 | Z54: 3.5 | AA54: 0 | AB54: 6.875 | AC54: 0 | AD54: 12.125 | AE54: 0 | AF54: 20.501 | AH54: 620 | AI54: 617 | AJ54: 623 | AK54: 3 | AL54: 0 | AM54: 5.625 | AN54: 0 | AO54: 10.875 | AP54: 0 | AQ54: 18.751 | AS54: 470 | AT54: 467 | AU54: 473 | AV54: 2.5 | AW54: 0 | AX54: 4.125 | AY54: 0 | AZ54: 8.125 | BA54: 0 | BB54: 14.001 | CA54: 590 | CB54: 3.00-6.00 | CC54: 5.50-12.00 | CD54: 10.75-18.25 | CF54: 360 | CG54: 2.00-4.75 | CH54: 4.50-9.50 | CI54: 9.25-10.75
W55: 740 | X55: 737 | Y55: 743 | Z55: 3.5 | AA55: 0 | AB55: 6.875 | AC55: 0 | AD55: 12.25 | AE55: 0 | AF55: 20.751 | AH55: 615 | AI55: 612 | AJ55: 618 | AK55: 3 | AL55: 0 | AM55: 5.625 | AN55: 0 | AO55: 10.875 | AP55: 0 | AQ55: 18.751 | AS55: 465 | AT55: 462 | AU55: 468 | AV55: 2.25 | AW55: 0 | AX55: 4.125 | AY55: 0 | AZ55: 8.125 | BA55: 0 | BB55: 13.751 | CA55: 585 | CB55: 3.00-6.25 | CC55: 5.75-12.00 | CD55: 10.75-18.25 | CF55: 355 | CG55: 2.00-4.75 | CH55: 4.50-9.50 | CI55: 9.25-10.50
W56: 735 | X56: 732 | Y56: 738 | Z56: 3.5 | AA56: 0 | AB56: 6.875 | AC56: 0 | AD56: 12.375 | AE56: 0 | AF56: 20.751 | AH56: 610 | AI56: 607 | AJ56: 613 | AK56: 3 | AL56: 0 | AM56: 5.75 | AN56: 0 | AO56: 11.125 | AP56: 0 | AQ56: 18.501 | AS56: 460 | AT56: 457 | AU56: 463 | AV56: 2.25 | AW56: 0 | AX56: 4.125 | AY56: 0 | AZ56: 8.125 | BA56: 0 | BB56: 13.751 | CA56: 580 | CB56: 3.00-6.25 | CC56: 5.75-12.00 | CD56: 11.00-18.00 | CF56: 350 | CG56: 2.00-5.00 | CH56: 4.50-9.50 | CI56: 9.25-10.50
W57: 730 | X57: 727 | Y57: 733 | Z57: 3.5 | AA57: 0 | AB57: 7.125 | AC57: 0 | AD57: 12.375 | AE57: 0 | AF57: 21.001 | AH57: 605 | AI57: 602 | AJ57: 608 | AK57: 3 | AL57: 0 | AM57: 5.75 | AN57: 0 | AO57: 11.125 | AP57: 0 | AQ57: 18.501 | AS57: 455 | AT57: 452 | AU57: 458 | AV57: 2.25 | AW57: 0 | AX57: 4.125 | AY57: 0 | AZ57: 8.375 | BA57: 0 | BB57: 13.501 | CA57: 575 | CB57: 3.00-6.25 | CC57: 5.75-12.00 | CD57: 11.00-18.00 | CF57: =List!$C$73&" KH [mm] " -> Výška korpusu KH [mm]
W58: 725 | X58: 722 | Y58: 728 | Z58: 3.5 | AA58: 0 | AB58: 7.125 | AC58: 0 | AD58: 12.5 | AE58: 0 | AF58: 21.001 | AH58: 600 | AI58: 597 | AJ58: 603 | AK58: 3 | AL58: 0 | AM58: 5.75 | AN58: 0 | AO58: 11.125 | AP58: 0 | AQ58: 18.501 | AS58: 450 | AT58: 447 | AU58: 453 | AV58: 2.25 | AW58: 0 | AX58: 4.125 | AY58: 0 | AZ58: 8.375 | BA58: 0 | BB58: 13.501
W59: 720 | X59: 717 | Y59: 723 | Z59: 3.5 | AA59: 0 | AB59: 7.125 | AC59: 0 | AD59: 12.5 | AE59: 0 | AF59: 21.251 | AH59: 595 | AI59: 592 | AJ59: 598 | AK59: 3 | AL59: 0 | AM59: 5.75 | AN59: 0 | AO59: 11.125 | AP59: 0 | AQ59: 18.501 | AS59: 445 | AT59: 442 | AU59: 448 | AV59: 2.25 | AW59: 0 | AX59: 4.375 | AY59: 0 | AZ59: 8.375 | BA59: 0 | BB59: 13.251 | CA59: =List!$C$149 -> Zpět
W60: =W59-5 -> 715 | X60: 712 | Y60: 718 | Z60: 3.5 | AA60: 0 | AB60: 7.125 | AC60: 0 | AD60: 12.5 | AE60: 0 | AF60: 21.251 | AH60: =AH59-5 -> 590 | AI60: 587 | AJ60: 593 | AK60: 3 | AL60: 0 | AM60: 5.75 | AN60: 0 | AO60: 11.375 | AP60: 0 | AQ60: 18.251 | AS60: =AS59-5 -> 440 | AT60: 437 | AU60: 443 | AV60: 2.25 | AW60: 0 | AX60: 4.375 | AY60: 0 | AZ60: 8.375 | BA60: 0 | BB60: 13.001
W61: 710 | X61: 707 | Y61: 713 | Z61: 3.5 | AA61: 0 | AB61: 7.25 | AC61: 0 | AD61: 12.75 | AE61: 0 | AF61: 21.251 | AH61: 585 | AI61: 582 | AJ61: 588 | AK61: 3 | AL61: 0 | AM61: 6 | AN61: 0 | AO61: 11.375 | AP61: 0 | AQ61: 18.251 | AS61: 435 | AT61: 432 | AU61: 438 | AV61: 2.25 | AW61: 0 | AX61: 4.375 | AY61: 0 | AZ61: 8.625 | BA61: 0 | BB61: 13.001
W62: 705 | X62: 702 | Y62: 708 | Z62: 3.5 | AA62: 0 | AB62: 7.25 | AC62: 0 | AD62: 12.75 | AE62: 0 | AF62: 21.501 | AH62: 580 | AI62: 577 | AJ62: 583 | AK62: 3 | AL62: 0 | AM62: 6 | AN62: 0 | AO62: 11.5 | AP62: 0 | AQ62: 18.001 | AS62: 430 | AT62: 427 | AU62: 433 | AV62: 2.25 | AW62: 0 | AX62: 4.375 | AY62: 0 | AZ62: 8.625 | BA62: 0 | BB62: 12.751
W63: 700 | X63: 697 | Y63: 703 | Z63: 3.5 | AA63: 0 | AB63: 7.25 | AC63: 0 | AD63: 12.875 | AE63: 0 | AF63: 21.501 | AH63: 575 | AI63: 572 | AJ63: 578 | AK63: 3 | AL63: 0 | AM63: 6 | AN63: 0 | AO63: 11.5 | AP63: 0 | AQ63: 18.001 | AS63: 425 | AT63: 422 | AU63: 428 | AV63: 2.25 | AW63: 0 | AX63: 4.375 | AY63: 0 | AZ63: 8.625 | BA63: 0 | BB63: 12.751
W64: 695 | X64: 692 | Y64: 698 | Z64: 3.5 | AA64: 0 | AB64: 7.25 | AC64: 0 | AD64: 12.875 | AE64: 0 | AF64: 21.501 | AH64: 570 | AI64: 567 | AJ64: 573 | AK64: 3 | AL64: 0 | AM64: 6 | AN64: 0 | AO64: 11.75 | AP64: 0 | AQ64: 17.751 | AS64: 420 | AT64: 417 | AU64: 423 | AV64: 2.25 | AW64: 0 | AX64: 4.375 | AY64: 0 | AZ64: 8.625 | BA64: 0 | BB64: 12.501
W65: 690 | X65: 687 | Y65: 693 | Z65: 3.5 | AA65: 0 | AB65: 7.25 | AC65: 0 | AD65: 13 | AE65: 0 | AF65: 21.501 | AH65: 565 | AI65: 562 | AJ65: 568 | AK65: 3 | AL65: 0 | AM65: 6 | AN65: 0 | AO65: 11.75 | AP65: 0 | AQ65: 17.751 | AS65: 415 | AT65: 412 | AU65: 418 | AV65: 2.25 | AW65: 0 | AX65: 4.375 | AY65: 0 | AZ65: 8.625 | BA65: 0 | BB65: 12.501
W66: 685 | X66: 682 | Y66: 688 | Z66: 3.5 | AA66: 0 | AB66: 7.5 | AC66: 0 | AD66: 13 | AE66: 0 | AF66: 21.501 | AH66: 560 | AI66: 557 | AJ66: 563 | AK66: 3 | AL66: 0 | AM66: 6.25 | AN66: 0 | AO66: 11.75 | AP66: 0 | AQ66: 17.501 | AS66: 410 | AT66: 407 | AU66: 413 | AV66: 2.25 | AW66: 0 | AX66: 4.375 | AY66: 0 | AZ66: 8.875 | BA66: 0 | BB66: 12.251
W67: 680 | X67: 677 | Y67: 683 | Z67: 3.5 | AA67: 0 | AB67: 7.5 | AC67: 0 | AD67: 13.25 | AE67: 0 | AF67: 21.501 | AH67: 555 | AI67: 552 | AJ67: 558 | AK67: 3 | AL67: 0 | AM67: 6.25 | AN67: 0 | AO67: 12 | AP67: 0 | AQ67: 17.501 | AS67: 405 | AT67: 402 | AU67: 408 | AV67: 2.25 | AW67: 0 | AX67: 4.375 | AY67: 0 | AZ67: 8.875 | BA67: 0 | BB67: 12.001
W68: 676 | X68: 675 | Y68: 678 | Z68: 3.5 | AA68: 0 | AB68: 7.5 | AC68: 0 | AD68: 13.25 | AE68: 0 | AF68: 21.501 | AH68: 550 | AI68: 547 | AJ68: 553 | AK68: 3 | AL68: 0 | AM68: 6.25 | AN68: 0 | AO68: 12 | AP68: 0 | AQ68: 17.251 | AS68: 400 | AT68: 397 | AU68: 403 | AV68: 2 | AW68: 0 | AX68: 4.5 | AY68: 0 | AZ68: 8.875 | BA68: 0 | BB68: 12.001
AH69: 545 | AI69: 542 | AJ69: 548 | AK69: 3 | AL69: 0 | AM69: 6.25 | AN69: 0 | AO69: 12 | AP69: 0 | AQ69: 17.251 | AS69: 395 | AT69: 392 | AU69: 398 | AV69: 2 | AW69: 0 | AX69: 4.625 | AY69: 0 | AZ69: 8.875 | BA69: 0 | BB69: 11.751
AH70: 540 | AI70: 537 | AJ70: 543 | AK70: 3 | AL70: 0 | AM70: 6.25 | AN70: 0 | AO70: 12.25 | AP70: 0 | AQ70: 17.001 | AS70: 390 | AT70: 387 | AU70: 393 | AV70: 2 | AW70: 0 | AX70: 4.625 | AY70: 0 | AZ70: 8.875 | BA70: 0 | BB70: 11.501
AH71: 535 | AI71: 532 | AJ71: 538 | AK71: 3 | AL71: 0 | AM71: 6.5 | AN71: 0 | AO71: 12.25 | AP71: 0 | AQ71: 16.751 | AS71: 385 | AT71: 382 | AU71: 388 | AV71: 2 | AW71: 0 | AX71: 4.625 | AY71: 0 | AZ71: 9.125 | BA71: 0 | BB71: 11.501
AH72: 530 | AI72: 527 | AJ72: 533 | AK72: 3 | AL72: 0 | AM72: 6.5 | AN72: 0 | AO72: 12.25 | AP72: 0 | AQ72: 16.751 | AS72: 380 | AT72: 377 | AU72: 383 | AV72: 2 | AW72: 0 | AX72: 4.625 | AY72: 0 | AZ72: 9.125 | BA72: 0 | BB72: 11.251
AH73: 526 | AI73: 525 | AJ73: 528 | AK73: 3 | AL73: 0 | AM73: 6.5 | AN73: 0 | AO73: 12.5 | AP73: 0 | AQ73: 16.501 | AS73: 375 | AT73: 372 | AU73: 378 | AV73: 2 | AW73: 0 | AX73: 4.625 | AY73: 0 | AZ73: 9.125 | BA73: 0 | BB73: 11.251
AS74: 370 | AT74: 367 | AU74: 373 | AV74: 2 | AW74: 0 | AX74: 4.625 | AY74: 0 | AZ74: 9.125 | BA74: 0 | BB74: 11.001
AS75: 365 | AT75: 362 | AU75: 368 | AV75: 2 | AW75: 0 | AX75: 4.625 | AY75: 0 | AZ75: 9.125 | BA75: 0 | BB75: 11.001
AS76: =AS75-5 -> 360 | AT76: 357 | AU76: 363 | AV76: 2 | AW76: 0 | AX76: 4.625 | AY76: 0 | AZ76: 9.375 | BA76: 0 | BB76: 10.751
AS77: 355 | AT77: 352 | AU77: 358 | AV77: 2 | AW77: 0 | AX77: 4.625 | AY77: 0 | AZ77: 9.375 | BA77: 0 | BB77: 10.501
AS78: 350 | AT78: 349 | AU78: =AU77-5 -> 353 | AV78: 2 | AW78: 0 | AX78: 4.75 | AY78: 0 | AZ78: 9.375 | BA78: 0 | BB78: 10.501
B98: =List!C142 -> Soupis kování
B100: =$D$2 -> AVENTOS HS | D100: =B4 -> Dřevěné čelo
B101: =List!C50 -> Název | G101: =List!$C$51 -> Číslo artiklu | I101: =List!C52 -> Barva | J101: =List!C54 -> Ks | K101: =List!C56 -> Jednotková cena | L101: =List!C57 -> Celkem | M101: A | N101: Cena | O101: B | P101: Cena | Q101: C | R101: Cena | S101: Filtr
B102: =Cen!A36 -> Sada zdvihačů HS | G102: =Cen!E36 -> 20S2A00.05 | I102: =Cen!G36 -> ZN | J102: =SUM(M102,O102) -> 0 | K102: =Cen!I36 -> 0 | L102: =J102*K102 -> 0 | M102: =$M$15*$O4 -> 0 | N102: =$K102*M102 -> 0 | O102: =$M$24*$R4 -> 0 | P102: =$K102*O102 -> 0 | R102: =$K102*Q102 -> 0 | S102: x
B103: =Cen!A37 -> Sada zdvihačů HS | G103: =Cen!E37 -> 20S2B00.05 | I103: =Cen!G37 -> ZN | J103: =SUM(M103,O103) -> 0 | K103: =Cen!I37 -> 0 | L103: =J103*K103 -> 0 | M103: =$M$15*$O5 -> 0 | N103: 0 | O103: =$M$24*$R5 -> 0 | P103: 0 | R103: 0 | S103: x
B104: =Cen!A38 -> Sada zdvihačů HS | G104: =Cen!E38 -> 20S2C00.05 | I104: =Cen!G38 -> ZN | J104: 0 | K104: =Cen!I38 -> 0 | L104: 0 | M104: 0 | N104: 0 | O104: 0 | P104: 0 | R104: 0 | S104: x
B105: =Cen!A39 -> Sada zdvihačů HS | G105: =Cen!E39 -> 20S2D00.05 | I105: =Cen!G39 -> ZN | J105: 0 | K105: =Cen!I39 -> 0 | L105: 0 | M105: 0 | N105: 0 | O105: 0 | P105: 0 | R105: 0 | S105: x
B106: =Cen!A40 -> Sada zdvihačů HS | G106: =Cen!E40 -> 20S2E00.05 | I106: =Cen!G40 -> ZN | J106: 0 | K106: =Cen!I40 -> 0 | L106: 0 | M106: 0 | N106: 0 | O106: 0 | P106: 0 | R106: 0 | S106: x
B107: =Cen!A41 -> Sada zdvihačů HS | G107: =Cen!E41 -> 20S2F00.05 | I107: =Cen!G41 -> ZN | J107: 0 | K107: =Cen!I41 -> 0 | L107: 0 | M107: 0 | N107: 0 | O107: 0 | P107: 0 | R107: 0 | S107: x
B108: =Cen!A42 -> Sada zdvihačů HS | G108: =Cen!E42 -> 20S2G00.05 | I108: =Cen!G42 -> ZN | J108: 0 | K108: =Cen!I42 -> 0 | L108: 0 | M108: 0 | N108: 0 | O108: 0 | P108: 0 | R108: 0 | S108: x
B109: =Cen!A43 -> Sada zdvihačů HS | G109: =Cen!E43 -> 20S2H00.05 | I109: =Cen!G43 -> ZN | J109: 0 | K109: =Cen!I43 -> 0 | L109: 0 | M109: 0 | N109: 0 | O109: 0 | P109: 0 | R109: 0 | S109: x
B110: =Cen!A44 -> Sada zdvihačů HS | G110: =Cen!E44 -> 20S2I00.05 | I110: =Cen!G44 -> ZN | J110: 0 | K110: =Cen!I44 -> 0 | L110: 0 | M110: 0 | N110: 0 | O110: 0 | P110: 0 | R110: 0 | S110: x
B111: =Cen!A45 -> Sada soustav ramen SERVO-DRIVE | G111: =Cen!E45 -> 21S3500.01 | I111: =Cen!G45 -> ZN | J111: =SUM(M111,O111,Q111) -> 0 | K111: =Cen!I45 -> 0 | L111: 0 | M111: =IF($Q$14=1,SUM($M$102:$M$110),0) -> 0 | N111: 0 | O111: =IF($Q$23=1,SUM($O$102:$O$110),0) -> 0 | P111: 0 | R111: 0 | S111: x
B112: =Cen!A46 -> Sada ramen HS | G112: =Cen!E46 -> 20S3500.06 | I112: =Cen!G46 -> ZN | J112: 0 | K112: =Cen!I46 -> 0 | L112: 0 | M112: =IF($Q$14=2,SUM($M$102:$M$110),0) -> 0 | N112: 0 | O112: =IF($Q$23=2,SUM($O$102:$O$110),0) -> 0 | P112: 0 | R112: 0 | S112: x
B113: =Cen!A47 -> Sada krytek HS SERVO-DRIVE, sv.šedá | G113: =Cen!E47 -> 21S8000 | I113: =Cen!G47 -> HG/T | J113: 0 | K113: =Cen!I47 -> 0 | L113: 0 | M113: =IF(AND($Q$14=1,$T$42=1),SUM($M$102:$M$110),0) -> 0 | N113: 0 | O113: =IF(AND($Q$23=1,$T$42=1),SUM($O$102:$O$110),0) -> 0 | P113: 0 | R113: 0 | S113: x
B114: =Cen!A48 -> Sada krytek HS SERVO-DRIVE, tm.šedá | G114: =Cen!E48 -> 21S8000 | I114: =Cen!G48 -> TGR | J114: =SUM(M114,O114,Q114) -> 0 | K114: =Cen!I48 -> 0 | L114: =J114*K114 -> 0 | M114: =IF(AND($Q$14=1,$T$42=2),SUM($M$102:$M$110),0) -> 0 | N114: =$K114*M114 -> 0 | O114: =IF(AND($Q$23=1,$T$42=2),SUM($O$102:$O$110),0) -> 0 | P114: =$K114*O114 -> 0 | R114: =$K114*Q114 -> 0 | S114: x
B115: =Cen!A49 -> Sada krytek HS SERVO-DRIVE, bílá | G115: =Cen!E49 -> 21S8000 | I115: =Cen!G49 -> SW/T | J115: 0 | K115: =Cen!I49 -> 0 | L115: 0 | M115: =IF(AND($Q$14=1,$T$42=3),SUM($M$102:$M$110),0) -> 0 | N115: 0 | O115: =IF(AND($Q$23=1,$T$42=3),SUM($O$102:$O$110),0) -> 0 | P115: 0 | R115: 0 | S115: x
B117: =Cen!A50 -> Sada krytek HS, světle šedá | G117: =Cen!E50 -> 20S8000 | I117: =Cen!G50 -> HG/T | J117: 0 | K117: =Cen!I50 -> 0 | L117: 0 | M117: =IF(AND($Q$14=2,$T$42=1),SUM($M$102:$M$110),0) -> 0 | N117: 0 | O117: =IF(AND($Q$23=2,$T$42=1),SUM($O$102:$O$110),0) -> 0 | P117: 0 | R117: 0 | S117: x
B118: =Cen!A51 -> Sada krytek HS, tmavě šedá | G118: =Cen!E51 -> 20S8000 | I118: =Cen!G51 -> TGR | J118: =SUM(M118,O118,Q118) -> 0 | K118: =Cen!I51 -> 0 | L118: =J118*K118 -> 0 | M118: =IF(AND($Q$14=2,$T$42=2),SUM($M$102:$M$110),0) -> 0 | N118: =$K118*M118 -> 0 | O118: =IF(AND($Q$23=2,$T$42=2),SUM($O$102:$O$110),0) -> 0 | P118: =$K118*O118 -> 0 | R118: =$K118*Q118 -> 0 | S118: x
B119: =Cen!A52 -> Sada krytek HS, bílá | G119: =Cen!E52 -> 20S8000 | I119: =Cen!G52 -> SW/T | J119: 0 | K119: =Cen!I52 -> 0 | L119: 0 | M119: =IF(AND($Q$14=2,$T$42=3),SUM($M$102:$M$110),0) -> 0 | N119: 0 | O119: =IF(AND($Q$23=2,$T$42=3),SUM($O$102:$O$110),0) -> 0 | P119: 0 | R119: 0 | S119: x
B121: =Cen!A53 -> Tyč příčné stabilizace ke zkrác. | G121: =Cen!E53 -> 20Q1061UN | I121: =Cen!G53 -> EV | J121: =ROUNDUP(SUM($M$15*$O$17,$M$24*$R$17),0) -> 0 | K121: =Cen!I53 -> 0 | L121: 0 | M121: =ROUNDUP($M$15*$O$17,0) -> 0 | N121: 0 | O121: =ROUNDUP($M$24*$R$17,0) -> 0 | P121: 0 | R121: 0 | S121: x
B123: =Cen!A54 -> Spojovací díl příčné stabilizace | G123: =Cen!E54 -> 20Q153ZN | I123: =Cen!G54 -> EV | J123: =SUM(M123,O123,Q123) -> 0 | K123: =Cen!I54 -> 0 | L123: 0 | M123: =IF($Q$14<3,$O$18*$M$15,0) -> 0 | N123: 0 | O123: =IF($Q$23<3,$R$18*$M$24,0) -> 0 | P123: 0 | R123: 0 | S123: x
B124: =Cen!A55 -> 0 | G124: =Cen!E55 -> 0 | I124: =Cen!G55 -> 0 | J124: 0 | K124: =Cen!I55 -> 0 | L124: 0 | N124: 0 | P124: 0
B125: =Cen!A56 -> 0 | G125: =Cen!E56 -> 0 | I125: =Cen!G56 -> 0 | J125: 0 | K125: =Cen!I56 -> 0 | L125: 0 | N125: 0 | P125: 0
B126: =Cen!A57 -> 0 | G126: =Cen!E57 -> 0 | I126: =Cen!G57 -> 0 | J126: 0 | K126: =Cen!I57 -> 0 | L126: 0 | N126: 0 | P126: 0
B127: =Cen!A119 -> 0 | G127: =Cen!E119 -> 0 | I127: =Cen!G119 -> 0 | J127: 0 | K127: =Cen!I119 -> 0 | L127: 0 | N127: 0 | P127: 0
B128: =Cen!A120 -> Sada čel.kování pro dřev. čela | G128: =Cen!E120 -> 20S4200 | I128: =Cen!G120 -> NI | J128: 0 | K128: =Cen!I120 -> 0 | L128: 0 | M128: =IF($R$42=2,SUM(M$102:M$110),0) -> 0 | N128: 0 | O128: =IF($R$42=2,SUM(O$102:O$110),0) -> 0 | P128: 0 | S128: x
B129: =Cen!A121 -> Čelní.kování pro dřev. čela EXPANDO | G129: =Cen!E121 -> 20S42E1 | I129: =Cen!G121 -> NI | J129: 0 | K129: =Cen!I121 -> 0 | L129: 0 | M129: =IF($R$42=1,SUM(M$102:M$110)*2,0) -> 0 | N129: 0 | O129: =IF($R$42=1,SUM(O$102:O$110)*2,0) -> 0 | P129: 0 | S129: x
B130: =Cen!A122 -> Sada čel.kování pro úzké alurámečky | G130: =Cen!E122 -> 20S4200A | I130: =Cen!G122 -> NI | J130: 0 | K130: =Cen!I122 -> 0 | L130: 0 | N130: 0 | P130: 0
B131: =Cen!A151 -> CLIP top krytka raménka Nikl | G131: =Cen!E151 -> 70.1503 | I131: =Cen!G151 -> NI | J131: =SUM(M131,O131,Q131) -> 0 | K131: =Cen!I151 -> 0 | L131: 0 | M131: =SUM(M$102:M$110)*2 -> 0 | N131: 0 | O131: =SUM(O$102:O$110)*2 -> 0 | P131: 0 | S131: x
L132: 0 | N132: 0 | P132: 0
L133: 0 | N133: 0 | P133: 0
B134: =Cen!A199 -> SERVO-DRIVE jednotka (sada) | G134: =Cen!E199 -> 21FA000 | I134: =Cen!G199 -> HGR | J134: =SUM(M134,O134,Q134) -> 0 | K134: =Cen!I199 -> 0 | L134: 0 | M134: =IF($Q$14=2,0,$M$15) -> 0 | N134: 0 | O134: =IF($Q$23=2,0,$M$24) -> 0 | P134: 0 | S134: x
B135: =Cen!A200 -> SERVO-DRIVE jednotka (sada) pro HK top | G135: =Cen!E200 -> 23KA000 | I135: =Cen!G200 -> HGR | K135: =Cen!I200 -> 0 | L135: 0 | N135: 0 | P135: 0
K138: =List!$C$59&" " -> Cena celkem bez DPH | L138: =SUM(L102:L136) -> 0 | N138: =SUM(N102:N137) -> 0 | P138: =SUM(P102:P137) -> 0 | R138: =SUM(R102:R137) -> 0
L140: =List!$C$149 -> Zpět
B199: =List!$C$71 -> Výpočet hmotnosti čel
C200: =List!$C$161&" " -> Provedení čel | I200: =IF(O207=3,IF(H200=0,N202," "),IF(H200>0,N203," ")) ->  | N200: =IF($O$207=1,$O$208,IF($O$207=2,$O$209,$O$210&" "&$N$210&"kg/m3"))&" A~"&$H$208&"/ B~"&$H$217&"mm" -> MDF (760 kg/m3) A~/ B~mm
D201: =IF($O$207<>3,$N$201," ")&" " -> Změnit hodnoty můžete v Úvodu plánování | N201: =" "&List!$C$382 -> Změnit hodnoty můžete v Úvodu plánování
N202: =" "&List!$C$225&" [kg/m3]" -> Zadejte objemovou hmotnost [kg/m3]
N203: =" "&List!$C$221&" '"&List!$C$86&"'" -> Hodnota platí jen pro volbu 'Jiné - volitelná hustota'
F205: =D9 -> Korpus A
B206: =List!$C$72&" KB [mm] " -> Šířka korpusu KB [mm] | H206: =H10 -> 0 | N206: =H206*H207*H208 -> 0 | S206: 3.51 | T206: alu
B207: =List!$C$73&" KH [mm] " -> Výška korpusu KH [mm] | H207: =H11 -> 0 | N207: =N206/1000000000 -> 0 | O207: 1 | S207: váha alu | T207: =SUM(H206*2,H207*2)*S206/10000 -> 0 | U207: 3
B208: =List!$C$77&" TS [mm] " -> Síla čela TS [mm] | I208: =IF(SUM(H206,H207)=0," ",IF(H208=0," ● "&List!$C$111," ")) ->  | N208: =Menu!$L$30 -> 760 | O208: =List!$C$84&" ("&N208&" kg/m3)" -> MDF (760 kg/m3) | S208: 10 | T208: =SUM($H$206*$H$207*$S208)/1000000 -> 0 | U208: =List!$C$87 -> Alurámečky s 4mm sklem
B209: =List!$C$78&" [kg] " -> Hmotnost úchytky [kg] | I209: =IF(SUM(H206,H207)=0," ",IF(H209=0," ● "&List!$C$112," ")) ->  | N209: =Menu!$L$31 -> 680 | O209: =List!$C$85&" ("&N209&" kg/m3)" -> Dřevotříska (680 kg/m3) | S209: 15 | T209: =SUM($H$206*$H$207*$S209)/1000000 -> 0 | U209: =List!$C$88 -> Alurámečky s 5mm sklem
B210: =List!$C$76&" [kg] " -> Vypočtená hmotnost čela [kg] | H210: =IF(M210=0,0,M210+H209) -> 0 | M210: =IF(H206*H207*H208=0,0,IF(O207=1,N207*N208,IF(O207=2,N207*N209,N207*N210))) -> 0 | N210: =$H$200 -> 0 | O210: =List!$C$86 -> Jiné - volitelná hustota | S210: =2.5*$H$200 -> 0 | T210: =SUM($H$206*$H$207*$S210)/1000000 -> 0 | U210: =List!$C$89 -> Alurámečky s jiným sklem
C211: =IF(H210>0,IF(H209=0,$N$227," ")," ") ->  | S211: =SUM(IF(U207=1,T208,IF(U207=2,T209,T210)),T207) -> 0
F214: =D18 -> Korpus B
B215: =List!$C$72&" KB [mm] " -> Šířka korpusu KB [mm] | H215: =H19 -> 0 | N215: =H215*H216*H217 -> 0 | S215: 3.51 | T215: alu
B216: =List!$C$73&" KH [mm] " -> Výška korpusu KH [mm] | H216: =H20 -> 0 | N216: =N215/1000000000 -> 0 | O216: =O207 -> 1 | S216: váha alu | T216: =SUM(H215*2,H216*2)*S215/10000 -> 0 | U216: =U207 -> 3
B217: =List!$C$77&" TS [mm] " -> Síla čela TS [mm] | I217: =IF(SUM(H215,H216)=0," ",IF(H217=0," ● "&List!$C$111," ")) ->  | N217: =$N$208 -> 760 | O217: =$O$208 -> MDF (760 kg/m3) | S217: 8.8 | T217: =SUM($H$215*$H$216*$S217)/1000000 -> 0 | U217: =List!$C$87 -> Alurámečky s 4mm sklem
B218: =List!$C$78&" [kg] " -> Hmotnost úchytky [kg] | I218: =IF(SUM(H215,H216)=0," ",IF(H218=0," ● "&List!$C$112," ")) ->  | N218: =$N$209 -> 680 | O218: =$O$209 -> Dřevotříska (680 kg/m3) | S218: 13.2 | T218: =SUM($H$215*$H$216*$S218)/1000000 -> 0 | U218: =List!$C$88 -> Alurámečky s 5mm sklem
B219: =List!$C$76&" [kg] " -> Vypočtená hmotnost čela [kg] | H219: =IF(M219=0,0,M219+H218) -> 0 | M219: =IF(H215*H216*H217=0,0,IF(O216=1,N216*N217,IF(O216=2,N216*N218,N216*N219))) -> 0 | N219: =$N$210 -> 0 | O219: =$O$210 -> Jiné - volitelná hustota | S219: =2.2*$H$200 -> 0 | T219: =SUM($H$215*$H$216*$S219)/1000000 -> 0 | U219: =List!$C$89 -> Alurámečky s jiným sklem
C220: =IF(H219>0,IF(H218=0,$N$227," ")," ") ->  | S220: =SUM(IF(U216=1,T217,IF(U216=2,T218,T219)),T216) -> 0
G224: =List!$C$149 -> Zpět
C227: =List!$C$217&" "&List!$C$218 -> Upozornění: Vypočtené hodnoty jsou pouze orientační. Firma Blum ani prodejci neručí za jejich správnost. | N227: =List!$C$95&"!" -> Není započtena hmotnost úchytky!
B399: AVENTOS HS
B401: =List!$C$311 -> Pro výběr správného zdvihače potřebujete znát výšku korpusu a hmotnost čela.
B403: =List!$C$313 -> Výška korpusu KH = 602 mm zaokrouhlit na KH = 600 mm
B404: =List!$C$314 -> Výška korpusu KH = 603 mm zaokrouhlit na KH = 605 mm
B406: =List!$C$289 -> Pokud znáte hmotnost čela, můžete ji zadat, jinak použijte "Výpočet hmotnosti".
B407: =List!$C$290 -> V tabulce má přednost zadaná hodnota. Chcete-li použít vypočtenou hmotnost, smažte zadanou hodnotu.
B410: =List!$C$284 -> Chcete-li změnit barvu krytek, přejděte na "Úvod"
L413: =List!$C$149 -> Zpět

Sheet HSwa
A1: 1
B2: AVENTOS HF | D2: AVENTOS HS | F2: AVENTOS HL | H2: AVENTOS HK top | J2: AVENTOS HK-S | L2: AVENTOS HK-XS | N2: zdvih A | Q2: zdvih B | T2: rámeček | BD2: 3 | BG2: =List!$C$135 -> Jdi na
B4: =List!$C$18&" ***" -> Široký alurámeček *** | F4: =N200&" " -> Alurámečky s 4mm sklem | N4: S1A | O4: =SUM(AW5:AW40) -> 0 | Q4: S1A | R4: =SUM(AW43:AW78) -> 0 | T4: 1 | W4: zdvih A | Z4: 20S1G00 | AB4: 20S1H00 | AD4: 20S1I00 | AF4: max | AK4: 20S1D00 | AM4: 20S1E00 | AO4: 20S1F00 | AQ4: max | AV4: 20S1A00 | AX4: 20S1B00 | AZ4: 20S1C00 | BB4: max | BD4: =" "&List!$C$39&" A " -> Cena za korpus A | BG4: =List!$C$136 -> Úvod plánování
G5: =List!$C$47&" "&List!$C$22&" " -> Nastavit hmotnost alurámečků | N5: S1B | O5: =SUM(AY5:AY40) -> 0 | Q5: S1B | R5: =SUM(AY43:AY78) -> 0 | T5: A = 1 | W5: 800 | X5: 797 | Y5: 801 | Z5: 4 | AA5: =IF($H$11<$Y5,IF($H$11>$X5,IF($P$15>SUM(Z5-0.01),IF($P$15<AB5,1,0),0),0),0) -> 0 | AB5: 6.5 | AC5: =IF($H$11<$Y5,IF($H$11>$X5,IF($P$15>SUM(AB5-0.01),IF($P$15<AD5,1,0),0),0),0) -> 0 | AD5: 11.375 | AE5: =IF($H$11<$Y5,IF($H$11>$X5,IF($P$15>SUM(AD5-0.01),IF($P$15<AF5,1,0),0),0),0) -> 0 | AF5: 20.001 | AH5: 675 | AI5: 672 | AJ5: 676 | AK5: 3 | AL5: =IF($H$11<$AJ5,IF($H$11>$AI5,IF($P$15>SUM(AK5-0.01),IF($P$15<AM5,1,0),0),0),0) -> 0 | AM5: 5.125 | AN5: =IF($H$11<$AJ5,IF($H$11>$AI5,IF($P$15>SUM(AM5-0.01),IF($P$15<AO5,1,0),0),0),0) -> 0 | AO5: 10.375 | AP5: =IF($H$11<$AJ5,IF($H$11>$AI5,IF($P$15>SUM(AO5-0.01),IF($P$15<AQ5,1,0),0),0),0) -> 0 | AQ5: 19.001 | AS5: 525 | AT5: 522 | AU5: 526 | AV5: 2.5 | AW5: =IF($H$11<$AU5,IF($H$11>$AT5,IF($P$15>SUM(AV5-0.01),IF($P$15<AX5,1,0),0),0),0) -> 0 | AX5: 3.625 | AY5: =IF($H$11<$AU5,IF($H$11>$AT5,IF($P$15>SUM(AX5-0.01),IF($P$15<AZ5,1,0),0),0),0) -> 0 | AZ5: 7.375 | BA5: =IF($H$11<$AU5,IF($H$11>$AT5,IF($P$15>SUM(AZ5-0.01),IF($P$15<BB5,1,0),0),0),0) -> 0 | BB5: 15.001 | BD5: =" "&List!$C$39&" B " -> Cena za korpus B | BG5: =List!$C$137 -> Nápověda
N6: S1C | O6: =SUM(BA5:BA40) -> 0 | Q6: S1C | R6: =SUM(BA43:BA78) -> 0 | T6: B = 2 | W6: =W5-5 -> 795 | X6: 792 | Y6: 798 | Z6: 4 | AA6: =IF($H$11<$Y6,IF($H$11>$X6,IF($P$15>SUM(Z6-0.01),IF($P$15<AB6,1,0),0),0),0) -> 0 | AB6: 6.5 | AC6: =IF($H$11<$Y6,IF($H$11>$X6,IF($P$15>SUM(AB6-0.01),IF($P$15<AD6,1,0),0),0),0) -> 0 | AD6: 11.375 | AE6: =IF($H$11<$Y6,IF($H$11>$X6,IF($P$15>SUM(AD6-0.01),IF($P$15<AF6,1,0),0),0),0) -> 0 | AF6: 20.001 | AH6: =AH5-5 -> 670 | AI6: 667 | AJ6: 673 | AK6: 3 | AL6: =IF($H$11<$AJ6,IF($H$11>$AI6,IF($P$15>SUM(AK6-0.01),IF($P$15<AM6,1,0),0),0),0) -> 0 | AM6: 5.125 | AN6: =IF($H$11<$AJ6,IF($H$11>$AI6,IF($P$15>SUM(AM6-0.01),IF($P$15<AO6,1,0),0),0),0) -> 0 | AO6: 10.375 | AP6: =IF($H$11<$AJ6,IF($H$11>$AI6,IF($P$15>SUM(AO6-0.01),IF($P$15<AQ6,1,0),0),0),0) -> 0 | AQ6: 19.001 | AS6: =AS5-5 -> 520 | AT6: 517 | AU6: 523 | AV6: 2.5 | AW6: =IF($H$11<$AU6,IF($H$11>$AT6,IF($P$15>SUM(AV6-0.01),IF($P$15<AX6,1,0),0),0),0) -> 0 | AX6: 3.75 | AY6: =IF($H$11<$AU6,IF($H$11>$AT6,IF($P$15>SUM(AX6-0.01),IF($P$15<AZ6,1,0),0),0),0) -> 0 | AZ6: 7.375 | BA6: =IF($H$11<$AU6,IF($H$11>$AT6,IF($P$15>SUM(AZ6-0.01),IF($P$15<BB6,1,0),0),0),0) -> 0 | BB6: 15.001 | BD6: =" "&List!$C$59 -> Cena celkem bez DPH
B7: =List!$C$142 -> Soupis kování | G7: =IF($BD$2=1,$N$138,IF($BD$2=2,$P$138,IF($BD$2=3,$L$138,0))) -> 0 | N7: S1D | O7: =SUM(AL5:AL35) -> 0 | Q7: S1D | R7: =SUM(AL43:AL73) -> 0 | W7: 790 | X7: 787 | Y7: 793 | Z7: 4 | AA7: =IF($H$11<$Y7,IF($H$11>$X7,IF($P$15>SUM(Z7-0.01),IF($P$15<AB7,1,0),0),0),0) -> 0 | AB7: 6.5 | AC7: 0 | AD7: 11.5 | AE7: 0 | AF7: 20.001 | AH7: 665 | AI7: 662 | AJ7: 668 | AK7: 3 | AL7: 0 | AM7: 5.125 | AN7: 0 | AO7: 10.375 | AP7: 0 | AQ7: 19.001 | AS7: 515 | AT7: 512 | AU7: 518 | AV7: 2.5 | AW7: 0 | AX7: 3.75 | AY7: 0 | AZ7: 7.375 | BA7: 0 | BB7: 14.751 | BG7: =List!$C$141 -> Doplňky | CA7: =List!$C$74&" [kg]" -> Hmotnost čela včetně úchytky [kg]
H8: =IF(AND(OR($Q$14=1, $Q$23=1), $L$138>0), $N$32, " ") ->  | N8: S1E | O8: =SUM(AN5:AN35) -> 0 | Q8: S1E | R8: =SUM(AN43:AN73) -> 0 | W8: 785 | X8: 782 | Y8: 788 | Z8: 4 | AA8: 0 | AB8: 6.625 | AC8: 0 | AD8: 11.625 | AE8: 0 | AF8: 20.001 | AH8: 660 | AI8: 657 | AJ8: 663 | AK8: 3 | AL8: 0 | AM8: 5.375 | AN8: 0 | AO8: 10.625 | AP8: 0 | AQ8: 19.001 | AS8: 510 | AT8: 507 | AU8: 513 | AV8: 2.5 | AW8: 0 | AX8: 3.75 | AY8: 0 | AZ8: 7.625 | BA8: 0 | BB8: 14.751 | CA8: KH [mm] | CB8: 20S2G00.05 | CC8: 20S2H00.05 | CD8: 20S2I00.05 | CF8: KH [mm] | CG8: 20S2D00.05 | CH8: 20S2E00.05 | CI8: 20S2F00.05 | CK8: =List!$C$149 -> Zpět
B9: SERVO-DRIVE | D9: =List!$C$62&" A" -> Korpus A | N9: S1F | O9: =SUM(AP5:AP35) -> 0 | Q9: S1F | R9: =SUM(AP43:AP73) -> 0 | W9: 780 | X9: 777 | Y9: 783 | Z9: 4 | AA9: 0 | AB9: 6.625 | AC9: 0 | AD9: 11.625 | AE9: 0 | AF9: 20.251 | AH9: 655 | AI9: 652 | AJ9: 658 | AK9: 3 | AL9: 0 | AM9: 5.375 | AN9: 0 | AO9: 10.625 | AP9: 0 | AQ9: 19.001 | AS9: 505 | AT9: 502 | AU9: 508 | AV9: 2.5 | AW9: 0 | AX9: 3.75 | AY9: 0 | AZ9: 7.625 | BA9: 0 | BB9: 14.751 | BG9: =List!$C$139 -> Přehled korpusů | CA9: 800 | CB9: 4.00-7.00 | CC9: 6.00-12.25 | CD9: 10.50-20.00 | CF9: 570 | CG9: 3.00-6.25 | CH9: 5.75-12.25 | CI9: 11.25-17.75
B10: =List!$C$72&" KB [mm] " -> Šířka korpusu KB [mm] | I10: =IF($H10=0," ",IF($H10<220," min. 220mm",IF($H10>1800," max. 1 800mm"," ")))&IF(H15>0,IF(H10=0,"● "&List!$C$111," ")," ") ->  | N10: S1G | O10: =SUM(AA5:AA30) -> 0 | Q10: S1G | R10: =SUM(AA43:AA68) -> 0 | W10: 775 | X10: 772 | Y10: 778 | Z10: 3.75 | AA10: 0 | AB10: 6.625 | AC10: 0 | AD10: 11.75 | AE10: 0 | AF10: 20.251 | AH10: 650 | AI10: 647 | AJ10: 653 | AK10: 3 | AL10: 0 | AM10: 5.375 | AN10: 0 | AO10: 10.625 | AP10: 0 | AQ10: 19.001 | AS10: 500 | AT10: 497 | AU10: 503 | AV10: 2.5 | AW10: 0 | AX10: 3.875 | AY10: 0 | AZ10: 7.625 | BA10: 0 | BB10: 14.751 | BG10: =List!$C$140 -> Objednávka | CA10: 795 | CB10: 4.00-7.00 | CC10: 6.00-12.25 | CD10: 10.50-20.00 | CF10: 656 | CG10: 3.00-6.25 | CH10: 5.75-12.25 | CI10: 11.25-17.75
B11: =List!$C$73&" KH [mm] " -> Výška korpusu KH [mm] | I11: =IF($H11=0," ",IF($H11<350," min. 350mm",IF($H11>800," max. 800 mm"," ")))&IF(H15>0,IF(H11=0,"● "&List!$C$111," ")," ") ->  | N11: S1H | O11: =SUM(AC5:AC30) -> 0 | Q11: S1H | R11: =SUM(AC43:AC68) -> 0 | W11: 770 | X11: 767 | Y11: 773 | Z11: 3.75 | AA11: 0 | AB11: 6.625 | AC11: 0 | AD11: 11.75 | AE11: 0 | AF11: 20.251 | AH11: 645 | AI11: 642 | AJ11: 648 | AK11: 3 | AL11: 0 | AM11: 5.375 | AN11: 0 | AO11: 10.625 | AP11: 0 | AQ11: 18.751 | AS11: 495 | AT11: 492 | AU11: 498 | AV11: 2.5 | AW11: 0 | AX11: 4 | AY11: 0 | AZ11: 7.625 | BA11: 0 | BB11: 14.501 | CA11: 790 | CB11: 4.00-7.00 | CC11: 6.00-12.25 | CD11: 10.75-20.00 | CF11: 560 | CG11: 3.00-6.50 | CH11: 6.00-12.25 | CI11: 11.25-17.50
B12: =List!$C$74&" [kg] ** " -> Hmotnost čela včetně úchytky [kg] ** | I12: =IF($H15=0," ",IF(SUM($H12,$H13)=0,$BD$34," "))&IF(AND(SUM($O$4:$O$12)=0,$T12="ano",H12>0),$BD$38,IF(AND($H15>0,$H12>0,T$12="ano"),$BD$35," ")) ->  | N12: S1I | O12: =SUM(AE5:AE31) -> 0 | Q12: S1I | R12: =SUM(AE43:AE68) -> 0 | S12: limit v/š | T12: =IF(AND(219<H10,H10<1801,349<H11,H11<801),"ano","ne") -> ne | W12: 765 | X12: 762 | Y12: 768 | Z12: 3.75 | AA12: 0 | AB12: 6.875 | AC12: 0 | AD12: 11.75 | AE12: 0 | AF12: 20.251 | AH12: 640 | AI12: 637 | AJ12: 643 | AK12: 3 | AL12: 0 | AM12: 5.375 | AN12: 0 | AO12: 10.625 | AP12: 0 | AQ12: 18.751 | AS12: 490 | AT12: 487 | AU12: 493 | AV12: 2.5 | AW12: 0 | AX12: 4 | AY12: 0 | AZ12: 7.875 | BA12: 0 | BB12: 14.501 | CA12: 785 | CB12: 4.00-7.00 | CC12: 6.25-12.50 | CD12: 10.75-20.00 | CF12: 555 | CG12: 3.00-6.50 | CH12: 6.00-12.50 | CI12: 11.50-17.50
B13: =List!$C$76&" [kg] " -> Vypočtená hmotnost čela [kg] | H13: =$H$210 -> 0 | I13: =IF($H15>0,IF($H13>0,IF($H12=0,$BD$35," ")," ")," ") ->  | P13: Servo-Drive | W13: 760 | X13: 757 | Y13: 763 | Z13: 3.75 | AA13: 0 | AB13: 6.875 | AC13: 0 | AD13: 12 | AE13: 0 | AF13: 20.251 | AH13: 635 | AI13: 632 | AJ13: 638 | AK13: 3 | AL13: 0 | AM13: 5.375 | AN13: 0 | AO13: 10.875 | AP13: 0 | AQ13: 18.751 | AS13: 485 | AT13: 482 | AU13: 488 | AV13: 2.5 | AW13: 0 | AX13: 4 | AY13: 0 | AZ13: 7.875 | BA13: 0 | BB13: 14.251 | BG13: =" "&List!$C$177&" A" -> Výpočet hmotnosti A | CA13: 780 | CB13: 4.00-7.00 | CC13: 6.25-12.50 | CD13: 10.75-20.00 | CF13: 550 | CG13: 3.00-6.50 | CH13: 6.00-12.50 | CI13: 11.50-17.25
B14: =List!$C$27&" * " -> Počet mezistěn * | O14: FALSE | Q14: =IF($O$14=FALSE,2,1) -> 2 | W14: 755 | X14: 752 | Y14: 758 | Z14: 3.75 | AA14: 0 | AB14: 6.875 | AC14: 0 | AD14: 12 | AE14: 0 | AF14: 20.501 | AH14: 630 | AI14: 627 | AJ14: 633 | AK14: 3 | AL14: 0 | AM14: 5.625 | AN14: 0 | AO14: 10.875 | AP14: 0 | AQ14: 18.751 | AS14: 480 | AT14: 477 | AU14: 483 | AV14: 2.5 | AW14: 0 | AX14: 4 | AY14: 0 | AZ14: 7.875 | BA14: 0 | BB14: 14.251 | CA14: 775 | CB14: 3.75-7.00 | CC14: 6.25-12.50 | CD14: 11.00-20.25 | CF14: 545 | CG14: 3.00-6.50 | CH14: 6.00-12.50 | CI14: 11.50-17.25
B15: =List!$C$69 -> Počet skříněk | M15: =IF($H10*$H$11*$P15=0,0,IF(SUM(O4:O12)=0,0,IF(H10>1800,0,IF(H10<220,0,H15)))) -> 0 | O15: hmot = | P15: =IF(H12>0,H12,H13) -> 0 | Q15: =IF(SUM(H12,H13)=0,0,IF(H12>0,1,2)) -> 0 | R15: zadaná / vypočtená | W15: 750 | X15: 747 | Y15: 753 | Z15: 3.5 | AA15: 0 | AB15: 6.875 | AC15: 0 | AD15: 12.125 | AE15: 0 | AF15: 20.501 | AH15: 625 | AI15: 622 | AJ15: 628 | AK15: 3 | AL15: 0 | AM15: 5.625 | AN15: 0 | AO15: 10.875 | AP15: 0 | AQ15: 18.751 | AS15: 475 | AT15: 472 | AU15: 478 | AV15: 2.5 | AW15: 0 | AX15: 4 | AY15: 0 | AZ15: 7.875 | BA15: 0 | BB15: 14.001 | CA15: 770 | CB15: 3.75-7.00 | CC15: 6.25-12.50 | CD15: 11.00-20.25 | CF15: 540 | CG15: 3.00-6.50 | CH15: 6.00-12.75 | CI15: 11.75-17.00
B16: =IF(H15>0,IF(Q15=0," ",IF(Q15=1,$BD$47,$BD$48))," ")&IF(H15>0,IF(Q15=0," ",IF(Q15=1,$BD$49,$BD$50))," ") ->  | W16: 745 | X16: 742 | Y16: 748 | Z16: 3.5 | AA16: 0 | AB16: 6.875 | AC16: 0 | AD16: 12.125 | AE16: 0 | AF16: 20.501 | AH16: 620 | AI16: 617 | AJ16: 623 | AK16: 3 | AL16: 0 | AM16: 5.625 | AN16: 0 | AO16: 10.875 | AP16: 0 | AQ16: 18.751 | AS16: 470 | AT16: 467 | AU16: 473 | AV16: 2.5 | AW16: 0 | AX16: 4.125 | AY16: 0 | AZ16: 8.125 | BA16: 0 | BB16: 14.001 | CA16: 765 | CB16: 3.75-7.25 | CC16: 6.50-12.50 | CD16: 11.00-20.25 | CF16: 535 | CG16: 3.00-6.75 | CH16: 6.25-12.75 | CI16: 11.75-16.75
N17: tyč | O17: =IF($H$10>1360,1.5,IF($H$10<610,0.5,1)) -> 0.5 | Q17: tyč | R17: =IF($H$19>1360,1.5,IF($H$19<610,0.5,1)) -> 0.5 | W17: 740 | X17: 737 | Y17: 743 | Z17: 3.5 | AA17: 0 | AB17: 6.875 | AC17: 0 | AD17: 12.25 | AE17: 0 | AF17: 20.751 | AH17: 615 | AI17: 612 | AJ17: 618 | AK17: 3 | AL17: 0 | AM17: 5.625 | AN17: 0 | AO17: 10.875 | AP17: 0 | AQ17: 18.751 | AS17: 465 | AT17: 462 | AU17: 468 | AV17: 2.25 | AW17: 0 | AX17: 4.125 | AY17: 0 | AZ17: 8.125 | BA17: 0 | BB17: 13.751 | BG17: =" "&List!$C$361 -> Ověření síly zdvihače | CA17: 760 | CB17: 3.75-7.25 | CC17: 6.50-12.75 | CD17: 11.25-20.25 | CF17: 530 | CG17: 3.00-6.75 | CH17: 6.25-12.75 | CI17: 11.75-16.75
B18: SERVO-DRIVE | D18: =List!$C$62&" B" -> Korpus B | N18: mezistěny | O18: =IF($H$14>0,$H$14,IF($H$10>1219,1,0)) -> 0 | Q18: mezistěny | R18: =IF($H$23>0,$H$23,IF($H$19>1219,1,0)) -> 0 | W18: 735 | X18: 732 | Y18: 738 | Z18: 3.5 | AA18: 0 | AB18: 6.875 | AC18: 0 | AD18: 12.375 | AE18: 0 | AF18: 20.751 | AH18: 610 | AI18: 607 | AJ18: 613 | AK18: 3 | AL18: 0 | AM18: 5.75 | AN18: 0 | AO18: 11.125 | AP18: 0 | AQ18: 18.501 | AS18: 460 | AT18: 457 | AU18: 463 | AV18: 2.25 | AW18: 0 | AX18: 4.125 | AY18: 0 | AZ18: 8.125 | BA18: 0 | BB18: 13.751 | CA18: 755 | CB18: 3.75-7.25 | CC18: 6.50-12.75 | CD18: 11.25-20.50 | CF18: 526 | CG18: 3.00-6.75 | CH18: 6.25-13.00 | CI18: 12.00-16.50
B19: =List!$C$72&" KB [mm] " -> Šířka korpusu KB [mm] | I19: =IF($H19=0," ",IF($H19<220," min. 220mm",IF($H19>1800," max. 1 800mm"," ")))&IF(H24>0,IF(H19=0,"● "&List!$C$111," ")," ") ->  | W19: 730 | X19: 727 | Y19: 733 | Z19: 3.5 | AA19: 0 | AB19: 7.125 | AC19: 0 | AD19: 12.375 | AE19: 0 | AF19: 21.001 | AH19: 605 | AI19: 602 | AJ19: 608 | AK19: 3 | AL19: 0 | AM19: 5.75 | AN19: 0 | AO19: 11.125 | AP19: 0 | AQ19: 18.501 | AS19: 455 | AT19: 452 | AU19: 458 | AV19: 2.25 | AW19: 0 | AX19: 4.125 | AY19: 0 | AZ19: 8.375 | BA19: 0 | BB19: 13.501 | CA19: 750 | CB19: 3.50-7.25 | CC19: 6.50-12.75 | CD19: 11.50-20.50
B20: =List!$C$73&" KH [mm] " -> Výška korpusu KH [mm] | I20: =IF($H20=0," ",IF($H20<350," min. 350mm",IF($H20>800," max. 800 mm"," ")))&IF(H24>0,IF(H20=0,"● "&List!$C$111," ")," ") ->  | W20: 725 | X20: 722 | Y20: 728 | Z20: 3.5 | AA20: 0 | AB20: 7.125 | AC20: 0 | AD20: 12.5 | AE20: 0 | AF20: 21.001 | AH20: 600 | AI20: 597 | AJ20: 603 | AK20: 3 | AL20: 0 | AM20: 5.75 | AN20: =IF($H$11<$AJ20,IF($H$11>$AI20,IF($P$15>SUM(AM20-0.01),IF($P$15<AO20,1,0),0),0),0) -> 0 | AO20: 11.125 | AP20: 0 | AQ20: 18.501 | AS20: 450 | AT20: 447 | AU20: 453 | AV20: 2.25 | AW20: 0 | AX20: 4.125 | AY20: 0 | AZ20: 8.375 | BA20: 0 | BB20: 13.501 | CA20: 745 | CB20: 3.50-7.25 | CC20: 6.50-12.75 | CD20: 11.50-20.50 | CF20: KH [mm] | CG20: 20S2A00.05 | CH20: 20S2B00.05 | CI20: 20S2C00.05
B21: =List!$C$74&" [kg] ** " -> Hmotnost čela včetně úchytky [kg] ** | I21: =IF($H24=0," ",IF(SUM($H21,$H22)=0,$BD$34," "))&IF(AND(SUM($R$4:$R$12)=0,$T21="ano",H21>0),$BD$38,IF(AND($H24>0,$H21>0,T$21="ano"),$BD$35," ")) ->  | S21: limit v/š | T21: =IF(AND(219<H19,H19<1801,349<H20,H20<801),"ano","ne") -> ne | W21: 720 | X21: 717 | Y21: 723 | Z21: 3.5 | AA21: 0 | AB21: 7.125 | AC21: 0 | AD21: 12.5 | AE21: 0 | AF21: 21.251 | AH21: 595 | AI21: 592 | AJ21: 598 | AK21: 3 | AL21: 0 | AM21: 5.75 | AN21: 0 | AO21: 11.125 | AP21: 0 | AQ21: 18.501 | AS21: 445 | AT21: 442 | AU21: 448 | AV21: 2.25 | AW21: 0 | AX21: 4.375 | AY21: 0 | AZ21: 8.375 | BA21: 0 | BB21: 13.251 | CA21: 740 | CB21: 3.50-7.25 | CC21: 6.50-12.75 | CD21: 11.75-20.75 | CF21: 525 | CG21: 2.50-4.00 | CH21: 3.25-7.50 | CI21: 7.25-15.00
B22: =List!$C$76&" [kg] " -> Vypočtená hmotnost čela [kg] | H22: =$H$219 -> 0 | I22: =IF($H24>0,IF($H22>0,IF($H21=0,$BD$35," ")," ")," ") ->  | P22: Servo-Drive | W22: =W21-5 -> 715 | X22: 712 | Y22: 718 | Z22: 3.5 | AA22: 0 | AB22: 7.125 | AC22: 0 | AD22: 12.5 | AE22: 0 | AF22: 21.251 | AH22: =AH21-5 -> 590 | AI22: 587 | AJ22: 593 | AK22: 3 | AL22: 0 | AM22: 5.75 | AN22: 0 | AO22: 11.375 | AP22: 0 | AQ22: 18.251 | AS22: =AS21-5 -> 440 | AT22: 437 | AU22: 443 | AV22: 2.25 | AW22: 0 | AX22: 4.375 | AY22: 0 | AZ22: 8.375 | BA22: 0 | BB22: 13.001 | BG22: =" "&List!$C$177&" B" -> Výpočet hmotnosti B | CA22: 735 | CB22: 3.50-7.50 | CC22: 6.50-13.00 | CD22: 11.75-20.75 | CF22: 520 | CG22: 2.50-4.00 | CH22: 3.50-7.50 | CI22: 7.25-15.00
B23: =List!$C$27&" * " -> Počet mezistěn * | O23: FALSE | Q23: =IF($O$23=FALSE,2,1) -> 2 | W23: 710 | X23: 707 | Y23: 713 | Z23: 3.5 | AA23: 0 | AB23: 7.25 | AC23: 0 | AD23: 12.75 | AE23: 0 | AF23: 21.251 | AH23: 585 | AI23: 582 | AJ23: 588 | AK23: 3 | AL23: 0 | AM23: 6 | AN23: 0 | AO23: 11.375 | AP23: 0 | AQ23: 18.251 | AS23: 435 | AT23: 432 | AU23: 438 | AV23: 2.25 | AW23: 0 | AX23: 4.375 | AY23: 0 | AZ23: 8.625 | BA23: 0 | BB23: 13.001 | CA23: 730 | CB23: 3.50-7.50 | CC23: 6.75-13.00 | CD23: 11.75-21.00 | CF23: 515 | CG23: 2.50-4.00 | CH23: 3.50-7.50 | CI23: 7.25-14.75
B24: =List!$C$69 -> Počet skříněk | M24: =IF($H19*$H$20*$P24=0,0,IF(SUM(R4:R12)=0,0,IF(H19>1800,0,IF(H19<220,0,H24)))) -> 0 | O24: hmot = | P24: =IF(H21>0,H21,H22) -> 0 | Q24: =IF(SUM(H21,H22)=0,0,IF(H21>0,1,2)) -> 0 | R24: zadaná / vypočtená | W24: 705 | X24: 702 | Y24: 708 | Z24: 3.5 | AA24: 0 | AB24: 7.25 | AC24: 0 | AD24: 12.75 | AE24: 0 | AF24: 21.501 | AH24: 580 | AI24: 577 | AJ24: 583 | AK24: 3 | AL24: 0 | AM24: 6 | AN24: 0 | AO24: 11.5 | AP24: 0 | AQ24: 18.001 | AS24: 430 | AT24: 427 | AU24: 433 | AV24: 2.25 | AW24: 0 | AX24: 4.375 | AY24: 0 | AZ24: 8.625 | BA24: 0 | BB24: 12.751 | CA24: 725 | CB24: 3.50-7.50 | CC24: 6.75-13.00 | CD24: 12.00-21.00 | CF24: 510 | CG24: 2.50-4.00 | CH24: 3.50-7.75 | CI24: 7.50-14.75
B25: =IF(H24>0,IF(Q24=0," ",IF(Q24=1,$BD$47,$BD$48))," ")&IF(H24>0,IF(Q24=0," ",IF(Q24=1,$BD$49,$BD$50))," ") ->  | W25: 700 | X25: 697 | Y25: 703 | Z25: 3.5 | AA25: 0 | AB25: 7.25 | AC25: 0 | AD25: 12.875 | AE25: 0 | AF25: 21.501 | AH25: 575 | AI25: 572 | AJ25: 578 | AK25: 3 | AL25: 0 | AM25: 6 | AN25: 0 | AO25: 11.5 | AP25: 0 | AQ25: 18.001 | AS25: 425 | AT25: 422 | AU25: 428 | AV25: 2.25 | AW25: 0 | AX25: 4.375 | AY25: 0 | AZ25: 8.625 | BA25: 0 | BB25: 12.751 | CA25: 720 | CB25: 3.50-7.50 | CC25: 6.75-13.00 | CD25: 12.00-21.25 | CF25: 505 | CG25: 2.50-4.00 | CH25: 3.50-7.75 | CI25: 7.50-14.75
W26: 695 | X26: 692 | Y26: 698 | Z26: 3.5 | AA26: 0 | AB26: 7.25 | AC26: 0 | AD26: 12.875 | AE26: 0 | AF26: 21.501 | AH26: 570 | AI26: 567 | AJ26: 573 | AK26: 3 | AL26: 0 | AM26: 6 | AN26: 0 | AO26: 11.75 | AP26: 0 | AQ26: 17.751 | AS26: 420 | AT26: 417 | AU26: 423 | AV26: 2.25 | AW26: 0 | AX26: 4.375 | AY26: 0 | AZ26: 8.625 | BA26: 0 | BB26: 12.501 | CA26: 715 | CB26: 3.50-7.50 | CC26: 6.75-13.00 | CD26: 12.00-21.25 | CF26: 500 | CG26: 2.50-4.25 | CH26: 3.50-7.75 | CI26: 7.50-14.75
B27: =IF(OR(AND($Q$14=1, $M$15>0), AND($Q$23=1, $M$24>0)), List!$C$157, " ") ->  | O27: =IF($P$27=FALSE,2,1) -> 2 | P27: FALSE | R27: - Zdroj | W27: 690 | X27: 687 | Y27: 693 | Z27: 3.5 | AA27: 0 | AB27: 7.25 | AC27: 0 | AD27: 13 | AE27: 0 | AF27: 21.501 | AH27: 565 | AI27: 562 | AJ27: 568 | AK27: 3 | AL27: 0 | AM27: 6 | AN27: 0 | AO27: 11.75 | AP27: 0 | AQ27: 17.751 | AS27: 415 | AT27: 412 | AU27: 418 | AV27: 2.25 | AW27: 0 | AX27: 4.375 | AY27: 0 | AZ27: 8.625 | BA27: 0 | BB27: 12.501 | CA27: 710 | CB27: 3.50-7.75 | CC27: 6.75-13.25 | CD27: 12.25-21.25 | CF27: 495 | CG27: 2.50-4.25 | CH27: 3.75-7.75 | CI27: 7.50-14.50
W28: 685 | X28: 682 | Y28: 688 | Z28: 3.5 | AA28: 0 | AB28: 7.5 | AC28: 0 | AD28: 13 | AE28: 0 | AF28: 21.501 | AH28: 560 | AI28: 557 | AJ28: 563 | AK28: 3 | AL28: 0 | AM28: 6.25 | AN28: 0 | AO28: 11.75 | AP28: 0 | AQ28: 17.501 | AS28: 410 | AT28: 407 | AU28: 413 | AV28: 2.25 | AW28: 0 | AX28: 4.375 | AY28: 0 | AZ28: 8.875 | BA28: 0 | BB28: 12.251 | CA28: 705 | CB28: 3.50-7.75 | CC28: 6.75-13.25 | CD28: 12.25-21.50 | CF28: 490 | CG28: 2.50-4.25 | CH28: 3.75-8.00 | CI28: 7.75-14.50
W29: 680 | X29: 677 | Y29: 683 | Z29: 3.5 | AA29: 0 | AB29: 7.5 | AC29: 0 | AD29: 13.25 | AE29: 0 | AF29: 21.501 | AH29: 555 | AI29: 552 | AJ29: 558 | AK29: 3 | AL29: 0 | AM29: 6.25 | AN29: 0 | AO29: 12 | AP29: 0 | AQ29: 17.501 | AS29: 405 | AT29: 402 | AU29: 408 | AV29: 2.25 | AW29: 0 | AX29: 4.375 | AY29: 0 | AZ29: 8.875 | BA29: 0 | BB29: 12.001 | CA29: 700 | CB29: 3.50-7.75 | CC29: 6.75-13.25 | CD29: 12.50-21.50 | CF29: 485 | CG29: 2.50-4.25 | CH29: 3.75-8.00 | CI29: 7.75-14.25
W30: 676 | X30: 675 | Y30: 678 | Z30: 3.5 | AA30: 0 | AB30: 7.5 | AC30: 0 | AD30: 13.25 | AE30: =IF($H$11<$Y30,IF($H$11>$X30,IF($P$15>SUM(AD30-0.01),IF($P$15<AF30,1,0),0),0),0) -> 0 | AF30: 21.501 | AH30: 550 | AI30: 547 | AJ30: 553 | AK30: 3 | AL30: 0 | AM30: 6.25 | AN30: 0 | AO30: 12 | AP30: 0 | AQ30: 17.251 | AS30: 400 | AT30: 397 | AU30: 403 | AV30: 2 | AW30: 0 | AX30: 4.5 | AY30: 0 | AZ30: 8.875 | BA30: 0 | BB30: 12.001 | CA30: 695 | CB30: 3.50-7.75 | CC30: 6.75-13.25 | CD30: 12.50-21.50 | CF30: 480 | CG30: 2.50-4.25 | CH30: 3.75-8.00 | CI30: 7.75-14.25
AH31: 545 | AI31: 542 | AJ31: 548 | AK31: 3 | AL31: 0 | AM31: 6.25 | AN31: 0 | AO31: 12 | AP31: 0 | AQ31: 17.251 | AS31: 395 | AT31: 392 | AU31: 398 | AV31: 2 | AW31: 0 | AX31: 4.625 | AY31: 0 | AZ31: 8.875 | BA31: 0 | BB31: 11.751 | CA31: 690 | CB31: 3.50-7.75 | CC31: 6.75-13.25 | CD31: 12.75-21.50 | CF31: 475 | CG31: 2.50-4.25 | CH31: 3.75-8.00 | CI31: 7.75-14.00
N32: =List!C158 -> Cena bez napájecího zdroje! | AH32: 540 | AI32: 537 | AJ32: 543 | AK32: 3 | AL32: 0 | AM32: 6.25 | AN32: 0 | AO32: 12.25 | AP32: 0 | AQ32: 17.001 | AS32: 390 | AT32: 387 | AU32: 393 | AV32: 2 | AW32: 0 | AX32: 4.625 | AY32: 0 | AZ32: 8.875 | BA32: 0 | BB32: 11.501 | CA32: 685 | CB32: 3.50-8.00 | CC32: 7.00-13.25 | CD32: 12.75-21.50 | CF32: 470 | CG32: 2.50-4.25 | CH32: 4.00-8.25 | CI32: 8.00-14.00
C33: ="* "&List!$C$215 -> * Zadejte počet mezistěn v korpusu. | AH33: 535 | AI33: 532 | AJ33: 538 | AK33: 3 | AL33: 0 | AM33: 6.5 | AN33: 0 | AO33: 12.25 | AP33: 0 | AQ33: 16.751 | AS33: 385 | AT33: 382 | AU33: 388 | AV33: 2 | AW33: 0 | AX33: 4.625 | AY33: 0 | AZ33: 9.125 | BA33: 0 | BB33: 11.501 | CA33: 680 | CB33: 3.50-8.00 | CC33: 7.00-13.50 | CD33: 13.00-21.50 | CF33: 465 | CG33: 2.25-4.25 | CH33: 4.00-8.25 | CI33: 8.00-13.75
C34: ="** "&List!$C$168 -> ** Pokud znáte hmotnost a nechcete využít výpočtu hmotnosti | AH34: 530 | AI34: 527 | AJ34: 533 | AK34: 3 | AL34: 0 | AM34: 6.5 | AN34: 0 | AO34: 12.25 | AP34: 0 | AQ34: 16.751 | AS34: 380 | AT34: 377 | AU34: 383 | AV34: 2 | AW34: 0 | AX34: 4.625 | AY34: 0 | AZ34: 9.125 | BA34: 0 | BB34: 11.251 | BD34: =" "&List!$C$103 -> Doplňte nebo použijte "Výpočet hmotnosti" | CA34: 676 | CB34: 3.50-8.00 | CC34: 7.00-13.50 | CD34: 13.00-21.50 | CF34: 460 | CG34: 2.25-4.25 | CH34: 4.00-8.25 | CI34: 8.00-13.75
C35: ="*** "&List!$C$371 -> *** Vyberte typ alurámečku! | AH35: 526 | AI35: 525 | AJ35: 528 | AK35: 3 | AL35: 0 | AM35: 6.5 | AN35: 0 | AO35: 12.5 | AP35: 0 | AQ35: 16.501 | AS35: 375 | AT35: 372 | AU35: 378 | AV35: 2 | AW35: 0 | AX35: 4.625 | AY35: 0 | AZ35: 9.125 | BA35: 0 | BB35: 11.251 | BD35: ="◄ "&List!$C$101 -> ◄ hodnota bude použita pro výběr zdvihače | CF35: 455 | CG35: 2.25-4.25 | CH35: 4.00-8.50 | CI35: 8.25-13.50
C36: =" "&List!$C$372 -> Více informací k výběru alurámečků v Nápovědě | AS36: 370 | AT36: 367 | AU36: 373 | AV36: 2 | AW36: 0 | AX36: 4.625 | AY36: 0 | AZ36: 9.125 | BA36: 0 | BB36: 11.001 | BD36: =" * "&List!$C$110 -> * Doplňte hodnoty | CA36: KH [mm] | CB36: 20S2D00.05 | CC36: 20S2E00.05 | CD36: 20S2F00.05 | CF36: 450 | CG36: 2.25-4.25 | CH36: 4.00-8.50 | CI36: 8.25-13.50
AS37: 365 | AT37: 362 | AU37: 368 | AV37: 2 | AW37: 0 | AX37: 4.625 | AY37: 0 | AZ37: 9.125 | BA37: 0 | BB37: 11.001 | CA37: 675 | CB37: 3.00-5.25 | CC37: 5.00-11.00 | CD37: 9.75-19.00 | CF37: 445 | CG37: 2.25-4.50 | CH37: 4.25-8.50 | CI37: 8.25-13.25
AS38: =AS37-5 -> 360 | AT38: 357 | AU38: 363 | AV38: 2 | AW38: 0 | AX38: 4.625 | AY38: 0 | AZ38: 9.375 | BA38: 0 | BB38: 10.751 | BD38: =List!$C$107&"!" -> Překročena maximální hmotnost! | CA38: 670 | CB38: 3.00-5.25 | CC38: 5.00-11.00 | CD38: 9.75-19.00 | CF38: 440 | CG38: 2.25-4.50 | CH38: 4.25-8.50 | CI38: 8.25-13.00
AS39: 355 | AT39: 352 | AU39: 358 | AV39: 2 | AW39: 0 | AX39: 4.625 | AY39: 0 | AZ39: 9.375 | BA39: 0 | BB39: 10.501 | BD39: =" max. 9 000! "&List!$C$105 -> max. 9 000! Upravte hmotnost nebo výšku | CA39: 665 | CB39: 3.00-5.25 | CC39: 5.00-11.00 | CD39: 9.75-19.00 | CF39: 435 | CG39: 2.25-4.50 | CH39: 4.25-8.75 | CI39: 8.50-13.00
AS40: 350 | AT40: 349 | AU40: =AU39-5 -> 353 | AV40: 2 | AW40: 0 | AX40: 4.75 | AY40: 0 | AZ40: 9.375 | BA40: 0 | BB40: 10.501 | BD40: =" "&List!$C$216 -> Nutná mezistěna | CA40: 660 | CB40: 3.00-5.50 | CC40: 5.25-11.25 | CD40: 10.00-19.00 | CF40: 430 | CG40: 2.25-4.50 | CH40: 4.25-8.75 | CI40: 8.50-12.75
CA41: 655 | CB41: 3.00-5.50 | CC41: 5.25-11.25 | CD41: 10.00-19.00 | CF41: 425 | CG41: 2.25-4.50 | CH41: 4.25-8.75 | CI41: 8.50-12.75
R42: =HS!$K$27 -> 1 | S42: 2 | T42: =Menu!$Q$27 -> 3 | W42: zdvih B | Z42: 20S1G00 | AB42: 20S1H00 | AD42: 20S1I00 | AF42: max | AK42: 20S1D00 | AM42: 20S1E00 | AO42: 20S1F00 | AQ42: max | AV42: 20S1A00 | AX42: 20S1B00 | AZ42: 20S1C00 | BB42: max | CA42: 650 | CB42: 3.00-5.50 | CC42: 5.25-11.25 | CD42: 10.00-19.00 | CF42: 420 | CG42: 2.25-4.50 | CH42: 4.25-8.75 | CI42: 8.50-12.50
R43: čelní kov. | S43: alu | T43: kryt. | W43: 800 | X43: 797 | Y43: 801 | Z43: 4 | AA43: =IF($H$20<$Y43,IF($H$20>$X43,IF($P$24>SUM(Z43-0.01),IF($P$24<AB43,1,0),0),0),0) -> 0 | AB43: 6.5 | AC43: =IF($H$20<$Y43,IF($H$20>$X43,IF($P$24>SUM(AB43-0.01),IF($P$24<AD43,1,0),0),0),0) -> 0 | AD43: 11.375 | AE43: =IF($H$20<$Y43,IF($H$20>$X43,IF($P$24>SUM(AD43-0.01),IF($P$24<AF43,1,0),0),0),0) -> 0 | AF43: 20.001 | AH43: 675 | AI43: 672 | AJ43: 676 | AK43: 3 | AL43: =IF($H$20<$AJ43,IF($H$20>$AI43,IF($P$24>SUM(AK43-0.01),IF($P$24<AM43,1,0),0),0),0) -> 0 | AM43: 5.125 | AN43: =IF($H$20<$AJ43,IF($H$20>$AI43,IF($P$24>SUM(AM43-0.01),IF($P$24<AO43,1,0),0),0),0) -> 0 | AO43: 10.375 | AP43: =IF($H$20<$AJ43,IF($H$20>$AI43,IF($P$24>SUM(AO43-0.01),IF($P$24<AQ43,1,0),0),0),0) -> 0 | AQ43: 19.001 | AS43: 525 | AT43: 522 | AU43: 526 | AV43: 2.5 | AW43: =IF($H$20<$AU43,IF($H$20>$AT43,IF($P$24>SUM(AV43-0.01),IF($P$24<AX43,1,0),0),0),0) -> 0 | AX43: 3.625 | AY43: =IF($H$20<$AU43,IF($H$20>$AT43,IF($P$24>SUM(AX43-0.01),IF($P$24<AZ43,1,0),0),0),0) -> 0 | AZ43: 7.375 | BA43: =IF($H$20<$AU43,IF($H$20>$AT43,IF($P$24>SUM(AZ43-0.01),IF($P$24<BB43,1,0),0),0),0) -> 0 | BB43: 15.001 | CA43: 645 | CB43: 3.00-5.50 | CC43: 5.25-11.25 | CD43: 10.00-18.75 | CF43: 415 | CG43: 2.25-4.50 | CH43: 4.25-8.75 | CI43: 8.50-12.50
R44: =List!$C$125 -> Expando | T44: =List!$C$128 -> Světle šedá (HG/T) | W44: =W43-5 -> 795 | X44: 792 | Y44: 798 | Z44: 4 | AA44: =IF($H$20<$Y44,IF($H$20>$X44,IF($P$24>SUM(Z44-0.01),IF($P$24<AB44,1,0),0),0),0) -> 0 | AB44: 6.5 | AC44: =IF($H$20<$Y44,IF($H$20>$X44,IF($P$24>SUM(AB44-0.01),IF($P$24<AD44,1,0),0),0),0) -> 0 | AD44: 11.375 | AE44: =IF($H$20<$Y44,IF($H$20>$X44,IF($P$24>SUM(AD44-0.01),IF($P$24<AF44,1,0),0),0),0) -> 0 | AF44: 20.001 | AH44: =AH43-5 -> 670 | AI44: 667 | AJ44: 673 | AK44: 3 | AL44: =IF($H$20<$AJ44,IF($H$20>$AI44,IF($P$24>SUM(AK44-0.01),IF($P$24<AM44,1,0),0),0),0) -> 0 | AM44: 5.125 | AN44: =IF($H$20<$AJ44,IF($H$20>$AI44,IF($P$24>SUM(AM44-0.01),IF($P$24<AO44,1,0),0),0),0) -> 0 | AO44: 10.375 | AP44: =IF($H$20<$AJ44,IF($H$20>$AI44,IF($P$24>SUM(AO44-0.01),IF($P$24<AQ44,1,0),0),0),0) -> 0 | AQ44: 19.001 | AS44: =AS43-5 -> 520 | AT44: 517 | AU44: 523 | AV44: 2.5 | AW44: =IF($H$20<$AU44,IF($H$20>$AT44,IF($P$24>SUM(AV44-0.01),IF($P$24<AX44,1,0),0),0),0) -> 0 | AX44: 3.75 | AY44: =IF($H$20<$AU44,IF($H$20>$AT44,IF($P$24>SUM(AX44-0.01),IF($P$24<AZ44,1,0),0),0),0) -> 0 | AZ44: 7.375 | BA44: =IF($H$15<$AU44,IF($H$15>$AT44,IF($H$16>SUM(AZ44-0.01),IF($H$16<BB44,1,0),0),0),0) -> 0 | BB44: 15.001 | CA44: 640 | CB44: 3.00-5.50 | CC44: 5.25-11.25 | CD44: 10.00-18.75 | CF44: 410 | CG44: 2.25-4.50 | CH44: 4.25-9.00 | CI44: 8.75-12.25
R45: =List!$C$126 -> na vruty | T45: =List!$C$129 -> Tmavě šedá (TGR) | W45: 790 | X45: 787 | Y45: 793 | Z45: 4 | AA45: 0 | AB45: 6.5 | AC45: 0 | AD45: 11.5 | AE45: 0 | AF45: 20.001 | AH45: 665 | AI45: 662 | AJ45: 668 | AK45: 3 | AL45: 0 | AM45: 5.125 | AN45: 0 | AO45: 10.375 | AP45: 0 | AQ45: 19.001 | AS45: 515 | AT45: 512 | AU45: 518 | AV45: 2.5 | AW45: 0 | AX45: 3.75 | AY45: 0 | AZ45: 7.375 | BA45: 0 | BB45: 14.751 | CA45: 635 | CB45: 3.00-5.50 | CC45: 5.25-11.50 | CD45: 10.25-18.75 | CF45: 405 | CG45: 2.25-4.50 | CH45: 4.25-9.00 | CI45: 8.75-12.20
T46: =List!$C$130 -> Hedvábně bílá (SW/T) | W46: 785 | X46: 782 | Y46: 788 | Z46: 4 | AA46: 0 | AB46: 6.625 | AC46: 0 | AD46: 11.625 | AE46: 0 | AF46: 20.001 | AH46: 660 | AI46: 657 | AJ46: 663 | AK46: 3 | AL46: 0 | AM46: 5.375 | AN46: 0 | AO46: 10.625 | AP46: 0 | AQ46: 19.001 | AS46: 510 | AT46: 507 | AU46: 513 | AV46: 2.5 | AW46: 0 | AX46: 3.75 | AY46: 0 | AZ46: 7.625 | BA46: 0 | BB46: 14.751 | CA46: 630 | CB46: 3.00-5.75 | CC46: 5.50-11.50 | CD46: 10.25-18.75 | CF46: 400 | CG46: 2.00-4.75 | CH46: 4.25-9.00 | CI46: 8.75-12.20
W47: 780 | X47: 777 | Y47: 783 | Z47: 4 | AA47: 0 | AB47: 6.625 | AC47: 0 | AD47: 11.625 | AE47: 0 | AF47: 20.251 | AH47: 655 | AI47: 652 | AJ47: 658 | AK47: 3 | AL47: 0 | AM47: 5.375 | AN47: 0 | AO47: 10.625 | AP47: 0 | AQ47: 19.001 | AS47: 505 | AT47: 502 | AU47: 508 | AV47: 2.5 | AW47: 0 | AX47: 3.75 | AY47: 0 | AZ47: 7.625 | BA47: 0 | BB47: 14.751 | BD47: =List!C169&". " -> Pro určení typu zdvihače bude použita zadaná hmotnost. | CA47: 625 | CB47: 3.00-5.75 | CC47: 5.50-11.50 | CD47: 10.25-18.75 | CF47: 395 | CG47: 2.00-4.75 | CH47: 4.50-9.00 | CI47: 8.75-11.75
W48: 775 | X48: 772 | Y48: 778 | Z48: 3.75 | AA48: 0 | AB48: 6.625 | AC48: 0 | AD48: 11.75 | AE48: 0 | AF48: 20.251 | AH48: 650 | AI48: 647 | AJ48: 653 | AK48: 3 | AL48: 0 | AM48: 5.375 | AN48: 0 | AO48: 10.625 | AP48: 0 | AQ48: 19.001 | AS48: 500 | AT48: 497 | AU48: 503 | AV48: 2.5 | AW48: 0 | AX48: 3.875 | AY48: 0 | AZ48: 7.625 | BA48: 0 | BB48: 14.751 | BD48: =List!C170&". " -> Pro určení typu zdvihače bude použita vypočtená hmotnost. | CA48: 620 | CB48: 3.00-5.75 | CC48: 5.50-11.50 | CD48: 10.25-18.75 | CF48: 390 | CG48: 2.00-4.75 | CH48: 4.50-9.00 | CI48: 8.75-11.50
W49: 770 | X49: 767 | Y49: 773 | Z49: 3.75 | AA49: 0 | AB49: 6.625 | AC49: 0 | AD49: 11.75 | AE49: 0 | AF49: 20.251 | AH49: 645 | AI49: 642 | AJ49: 648 | AK49: 3 | AL49: 0 | AM49: 5.375 | AN49: 0 | AO49: 10.625 | AP49: 0 | AQ49: 18.751 | AS49: 495 | AT49: 492 | AU49: 498 | AV49: 2.5 | AW49: 0 | AX49: 4 | AY49: 0 | AZ49: 7.625 | BA49: 0 | BB49: 14.501 | BD49: =List!C171 -> Chcete-li použít vypočtenou hmotnost, smažte zadanou hodnotu | CA49: 615 | CB49: 3.00-5.75 | CC49: 5.50-11.50 | CD49: 10.25-18.75 | CF49: 385 | CG49: 2.00-4.75 | CH49: 4.50-9.25 | CI49: 9.00-11.50
W50: 765 | X50: 762 | Y50: 768 | Z50: 3.75 | AA50: 0 | AB50: 6.875 | AC50: 0 | AD50: 11.75 | AE50: 0 | AF50: 20.251 | AH50: 640 | AI50: 637 | AJ50: 643 | AK50: 3 | AL50: 0 | AM50: 5.375 | AN50: 0 | AO50: 10.625 | AP50: 0 | AQ50: 18.751 | AS50: 490 | AT50: 487 | AU50: 493 | AV50: 2.5 | AW50: 0 | AX50: 4 | AY50: 0 | AZ50: 7.875 | BA50: 0 | BB50: 14.501 | BD50: =List!C172 -> Chcete-li použít zadanou hmotnost, zadejte ji do políčka | CA50: 610 | CB50: 3.00-6.00 | CC50: 5.50-11.75 | CD50: 10.50-18.50 | CF50: 380 | CG50: 2.00-4.75 | CH50: 4.50-9.25 | CI50: 9.00-11.25
W51: 760 | X51: 757 | Y51: 763 | Z51: 3.75 | AA51: 0 | AB51: 6.875 | AC51: 0 | AD51: 12 | AE51: 0 | AF51: 20.251 | AH51: 635 | AI51: 632 | AJ51: 638 | AK51: 3 | AL51: 0 | AM51: 5.375 | AN51: 0 | AO51: 10.875 | AP51: 0 | AQ51: 18.751 | AS51: 485 | AT51: 482 | AU51: 488 | AV51: 2.5 | AW51: 0 | AX51: 4 | AY51: 0 | AZ51: 7.875 | BA51: 0 | BB51: 14.251 | CA51: 605 | CB51: 3.00-6.00 | CC51: 5.50-11.75 | CD51: 10.50-18.50 | CF51: 375 | CG51: 2.00-4.75 | CH51: 4.50-9.25 | CI51: 9.00-11.25
W52: 755 | X52: 752 | Y52: 758 | Z52: 3.75 | AA52: 0 | AB52: 6.875 | AC52: 0 | AD52: 12 | AE52: 0 | AF52: 20.501 | AH52: 630 | AI52: 627 | AJ52: 633 | AK52: 3 | AL52: 0 | AM52: 5.625 | AN52: 0 | AO52: 10.875 | AP52: 0 | AQ52: 18.751 | AS52: 480 | AT52: 477 | AU52: 483 | AV52: 2.5 | AW52: 0 | AX52: 4 | AY52: 0 | AZ52: 7.875 | BA52: 0 | BB52: 14.251 | CA52: 600 | CB52: 3.00-6.00 | CC52: 5.50-11.75 | CD52: 10.50-18.50 | CF52: 370 | CG52: 2.00-4.75 | CH52: 4.50-9.25 | CI52: 9.00-11.00
W53: 750 | X53: 747 | Y53: 753 | Z53: 3.5 | AA53: 0 | AB53: 6.875 | AC53: 0 | AD53: 12.125 | AE53: 0 | AF53: 20.501 | AH53: 625 | AI53: 622 | AJ53: 628 | AK53: 3 | AL53: 0 | AM53: 5.625 | AN53: 0 | AO53: 10.875 | AP53: 0 | AQ53: 18.751 | AS53: 475 | AT53: 472 | AU53: 478 | AV53: 2.5 | AW53: 0 | AX53: 4 | AY53: 0 | AZ53: 7.875 | BA53: 0 | BB53: 14.001 | CA53: 595 | CB53: 3.00-6.00 | CC53: 5.50-11.75 | CD53: 10.50-18.50 | CF53: 365 | CG53: 2.00-4.75 | CH53: 4.50-9.25 | CI53: 9.00-11.00
W54: 745 | X54: 742 | Y54: 748 | Z54: 3.5 | AA54: 0 | AB54: 6.875 | AC54: 0 | AD54: 12.125 | AE54: 0 | AF54: 20.501 | AH54: 620 | AI54: 617 | AJ54: 623 | AK54: 3 | AL54: 0 | AM54: 5.625 | AN54: 0 | AO54: 10.875 | AP54: 0 | AQ54: 18.751 | AS54: 470 | AT54: 467 | AU54: 473 | AV54: 2.5 | AW54: 0 | AX54: 4.125 | AY54: 0 | AZ54: 8.125 | BA54: 0 | BB54: 14.001 | CA54: 590 | CB54: 3.00-6.00 | CC54: 5.50-12.00 | CD54: 10.75-18.25 | CF54: 360 | CG54: 2.00-4.75 | CH54: 4.50-9.50 | CI54: 9.25-10.75
W55: 740 | X55: 737 | Y55: 743 | Z55: 3.5 | AA55: 0 | AB55: 6.875 | AC55: 0 | AD55: 12.25 | AE55: 0 | AF55: 20.751 | AH55: 615 | AI55: 612 | AJ55: 618 | AK55: 3 | AL55: 0 | AM55: 5.625 | AN55: 0 | AO55: 10.875 | AP55: 0 | AQ55: 18.751 | AS55: 465 | AT55: 462 | AU55: 468 | AV55: 2.25 | AW55: 0 | AX55: 4.125 | AY55: 0 | AZ55: 8.125 | BA55: 0 | BB55: 13.751 | CA55: 585 | CB55: 3.00-6.25 | CC55: 5.75-12.00 | CD55: 10.75-18.25 | CF55: 355 | CG55: 2.00-4.75 | CH55: 4.50-9.50 | CI55: 9.25-10.50
W56: 735 | X56: 732 | Y56: 738 | Z56: 3.5 | AA56: 0 | AB56: 6.875 | AC56: 0 | AD56: 12.375 | AE56: 0 | AF56: 20.751 | AH56: 610 | AI56: 607 | AJ56: 613 | AK56: 3 | AL56: 0 | AM56: 5.75 | AN56: 0 | AO56: 11.125 | AP56: 0 | AQ56: 18.501 | AS56: 460 | AT56: 457 | AU56: 463 | AV56: 2.25 | AW56: 0 | AX56: 4.125 | AY56: 0 | AZ56: 8.125 | BA56: 0 | BB56: 13.751 | CA56: 580 | CB56: 3.00-6.25 | CC56: 5.75-12.00 | CD56: 11.00-18.00 | CF56: 350 | CG56: 2.00-5.00 | CH56: 4.50-9.50 | CI56: 9.25-10.50
W57: 730 | X57: 727 | Y57: 733 | Z57: 3.5 | AA57: 0 | AB57: 7.125 | AC57: 0 | AD57: 12.375 | AE57: 0 | AF57: 21.001 | AH57: 605 | AI57: 602 | AJ57: 608 | AK57: 3 | AL57: 0 | AM57: 5.75 | AN57: 0 | AO57: 11.125 | AP57: 0 | AQ57: 18.501 | AS57: 455 | AT57: 452 | AU57: 458 | AV57: 2.25 | AW57: 0 | AX57: 4.125 | AY57: 0 | AZ57: 8.375 | BA57: 0 | BB57: 13.501 | CA57: 575 | CB57: 3.00-6.25 | CC57: 5.75-12.00 | CD57: 11.00-18.00 | CF57: =List!$C$73&" KH [mm] " -> Výška korpusu KH [mm]
W58: 725 | X58: 722 | Y58: 728 | Z58: 3.5 | AA58: 0 | AB58: 7.125 | AC58: 0 | AD58: 12.5 | AE58: 0 | AF58: 21.001 | AH58: 600 | AI58: 597 | AJ58: 603 | AK58: 3 | AL58: 0 | AM58: 5.75 | AN58: 0 | AO58: 11.125 | AP58: 0 | AQ58: 18.501 | AS58: 450 | AT58: 447 | AU58: 453 | AV58: 2.25 | AW58: 0 | AX58: 4.125 | AY58: 0 | AZ58: 8.375 | BA58: 0 | BB58: 13.501
W59: 720 | X59: 717 | Y59: 723 | Z59: 3.5 | AA59: 0 | AB59: 7.125 | AC59: 0 | AD59: 12.5 | AE59: 0 | AF59: 21.251 | AH59: 595 | AI59: 592 | AJ59: 598 | AK59: 3 | AL59: 0 | AM59: 5.75 | AN59: 0 | AO59: 11.125 | AP59: 0 | AQ59: 18.501 | AS59: 445 | AT59: 442 | AU59: 448 | AV59: 2.25 | AW59: 0 | AX59: 4.375 | AY59: 0 | AZ59: 8.375 | BA59: 0 | BB59: 13.251 | CA59: =List!$C$149 -> Zpět
W60: =W59-5 -> 715 | X60: 712 | Y60: 718 | Z60: 3.5 | AA60: 0 | AB60: 7.125 | AC60: 0 | AD60: 12.5 | AE60: 0 | AF60: 21.251 | AH60: =AH59-5 -> 590 | AI60: 587 | AJ60: 593 | AK60: 3 | AL60: 0 | AM60: 5.75 | AN60: 0 | AO60: 11.375 | AP60: 0 | AQ60: 18.251 | AS60: =AS59-5 -> 440 | AT60: 437 | AU60: 443 | AV60: 2.25 | AW60: 0 | AX60: 4.375 | AY60: 0 | AZ60: 8.375 | BA60: 0 | BB60: 13.001
W61: 710 | X61: 707 | Y61: 713 | Z61: 3.5 | AA61: 0 | AB61: 7.25 | AC61: 0 | AD61: 12.75 | AE61: 0 | AF61: 21.251 | AH61: 585 | AI61: 582 | AJ61: 588 | AK61: 3 | AL61: 0 | AM61: 6 | AN61: 0 | AO61: 11.375 | AP61: 0 | AQ61: 18.251 | AS61: 435 | AT61: 432 | AU61: 438 | AV61: 2.25 | AW61: 0 | AX61: 4.375 | AY61: 0 | AZ61: 8.625 | BA61: 0 | BB61: 13.001
W62: 705 | X62: 702 | Y62: 708 | Z62: 3.5 | AA62: 0 | AB62: 7.25 | AC62: 0 | AD62: 12.75 | AE62: 0 | AF62: 21.501 | AH62: 580 | AI62: 577 | AJ62: 583 | AK62: 3 | AL62: 0 | AM62: 6 | AN62: 0 | AO62: 11.5 | AP62: 0 | AQ62: 18.001 | AS62: 430 | AT62: 427 | AU62: 433 | AV62: 2.25 | AW62: 0 | AX62: 4.375 | AY62: 0 | AZ62: 8.625 | BA62: 0 | BB62: 12.751
W63: 700 | X63: 697 | Y63: 703 | Z63: 3.5 | AA63: 0 | AB63: 7.25 | AC63: 0 | AD63: 12.875 | AE63: 0 | AF63: 21.501 | AH63: 575 | AI63: 572 | AJ63: 578 | AK63: 3 | AL63: 0 | AM63: 6 | AN63: 0 | AO63: 11.5 | AP63: 0 | AQ63: 18.001 | AS63: 425 | AT63: 422 | AU63: 428 | AV63: 2.25 | AW63: 0 | AX63: 4.375 | AY63: 0 | AZ63: 8.625 | BA63: 0 | BB63: 12.751
W64: 695 | X64: 692 | Y64: 698 | Z64: 3.5 | AA64: 0 | AB64: 7.25 | AC64: 0 | AD64: 12.875 | AE64: 0 | AF64: 21.501 | AH64: 570 | AI64: 567 | AJ64: 573 | AK64: 3 | AL64: 0 | AM64: 6 | AN64: 0 | AO64: 11.75 | AP64: 0 | AQ64: 17.751 | AS64: 420 | AT64: 417 | AU64: 423 | AV64: 2.25 | AW64: 0 | AX64: 4.375 | AY64: 0 | AZ64: 8.625 | BA64: 0 | BB64: 12.501
W65: 690 | X65: 687 | Y65: 693 | Z65: 3.5 | AA65: 0 | AB65: 7.25 | AC65: 0 | AD65: 13 | AE65: 0 | AF65: 21.501 | AH65: 565 | AI65: 562 | AJ65: 568 | AK65: 3 | AL65: 0 | AM65: 6 | AN65: 0 | AO65: 11.75 | AP65: 0 | AQ65: 17.751 | AS65: 415 | AT65: 412 | AU65: 418 | AV65: 2.25 | AW65: 0 | AX65: 4.375 | AY65: 0 | AZ65: 8.625 | BA65: 0 | BB65: 12.501
W66: 685 | X66: 682 | Y66: 688 | Z66: 3.5 | AA66: 0 | AB66: 7.5 | AC66: 0 | AD66: 13 | AE66: 0 | AF66: 21.501 | AH66: 560 | AI66: 557 | AJ66: 563 | AK66: 3 | AL66: 0 | AM66: 6.25 | AN66: 0 | AO66: 11.75 | AP66: 0 | AQ66: 17.501 | AS66: 410 | AT66: 407 | AU66: 413 | AV66: 2.25 | AW66: 0 | AX66: 4.375 | AY66: 0 | AZ66: 8.875 | BA66: 0 | BB66: 12.251
W67: 680 | X67: 677 | Y67: 683 | Z67: 3.5 | AA67: 0 | AB67: 7.5 | AC67: 0 | AD67: 13.25 | AE67: 0 | AF67: 21.501 | AH67: 555 | AI67: 552 | AJ67: 558 | AK67: 3 | AL67: 0 | AM67: 6.25 | AN67: 0 | AO67: 12 | AP67: 0 | AQ67: 17.501 | AS67: 405 | AT67: 402 | AU67: 408 | AV67: 2.25 | AW67: 0 | AX67: 4.375 | AY67: 0 | AZ67: 8.875 | BA67: 0 | BB67: 12.001
W68: 676 | X68: 675 | Y68: 678 | Z68: 3.5 | AA68: 0 | AB68: 7.5 | AC68: 0 | AD68: 13.25 | AE68: 0 | AF68: 21.501 | AH68: 550 | AI68: 547 | AJ68: 553 | AK68: 3 | AL68: 0 | AM68: 6.25 | AN68: 0 | AO68: 12 | AP68: 0 | AQ68: 17.251 | AS68: 400 | AT68: 397 | AU68: 403 | AV68: 2 | AW68: 0 | AX68: 4.5 | AY68: 0 | AZ68: 8.875 | BA68: 0 | BB68: 12.001
AH69: 545 | AI69: 542 | AJ69: 548 | AK69: 3 | AL69: 0 | AM69: 6.25 | AN69: 0 | AO69: 12 | AP69: 0 | AQ69: 17.251 | AS69: 395 | AT69: 392 | AU69: 398 | AV69: 2 | AW69: 0 | AX69: 4.625 | AY69: 0 | AZ69: 8.875 | BA69: 0 | BB69: 11.751
AH70: 540 | AI70: 537 | AJ70: 543 | AK70: 3 | AL70: 0 | AM70: 6.25 | AN70: 0 | AO70: 12.25 | AP70: 0 | AQ70: 17.001 | AS70: 390 | AT70: 387 | AU70: 393 | AV70: 2 | AW70: 0 | AX70: 4.625 | AY70: 0 | AZ70: 8.875 | BA70: 0 | BB70: 11.501
AH71: 535 | AI71: 532 | AJ71: 538 | AK71: 3 | AL71: 0 | AM71: 6.5 | AN71: 0 | AO71: 12.25 | AP71: 0 | AQ71: 16.751 | AS71: 385 | AT71: 382 | AU71: 388 | AV71: 2 | AW71: 0 | AX71: 4.625 | AY71: 0 | AZ71: 9.125 | BA71: 0 | BB71: 11.501
AH72: 530 | AI72: 527 | AJ72: 533 | AK72: 3 | AL72: 0 | AM72: 6.5 | AN72: 0 | AO72: 12.25 | AP72: 0 | AQ72: 16.751 | AS72: 380 | AT72: 377 | AU72: 383 | AV72: 2 | AW72: 0 | AX72: 4.625 | AY72: 0 | AZ72: 9.125 | BA72: 0 | BB72: 11.251
AH73: 526 | AI73: 525 | AJ73: 528 | AK73: 3 | AL73: 0 | AM73: 6.5 | AN73: 0 | AO73: 12.5 | AP73: 0 | AQ73: 16.501 | AS73: 375 | AT73: 372 | AU73: 378 | AV73: 2 | AW73: 0 | AX73: 4.625 | AY73: 0 | AZ73: 9.125 | BA73: 0 | BB73: 11.251
AS74: 370 | AT74: 367 | AU74: 373 | AV74: 2 | AW74: 0 | AX74: 4.625 | AY74: 0 | AZ74: 9.125 | BA74: 0 | BB74: 11.001
AS75: 365 | AT75: 362 | AU75: 368 | AV75: 2 | AW75: 0 | AX75: 4.625 | AY75: 0 | AZ75: 9.125 | BA75: 0 | BB75: 11.001
AS76: =AS75-5 -> 360 | AT76: 357 | AU76: 363 | AV76: 2 | AW76: 0 | AX76: 4.625 | AY76: 0 | AZ76: 9.375 | BA76: 0 | BB76: 10.751
AS77: 355 | AT77: 352 | AU77: 358 | AV77: 2 | AW77: 0 | AX77: 4.625 | AY77: 0 | AZ77: 9.375 | BA77: 0 | BB77: 10.501
AS78: 350 | AT78: 349 | AU78: =AU77-5 -> 353 | AV78: 2 | AW78: 0 | AX78: 4.75 | AY78: 0 | AZ78: 9.375 | BA78: 0 | BB78: 10.501
B98: =List!C142 -> Soupis kování
B100: =$D$2 -> AVENTOS HS | D100: =B4 -> Široký alurámeček ***
B101: =List!C50 -> Název | G101: =List!$C$51 -> Číslo artiklu | I101: =List!C52 -> Barva | J101: =List!C54 -> Ks | K101: =List!C56 -> Jednotková cena | L101: =List!C57 -> Celkem | M101: A | N101: Cena | O101: B | P101: Cena | Q101: C | R101: Cena | S101: Filtr
B102: =Cen!A36 -> Sada zdvihačů HS | G102: =Cen!E36 -> 20S2A00.05 | I102: =Cen!G36 -> ZN | J102: =SUM(M102,O102) -> 0 | K102: =Cen!I36 -> 0 | L102: =J102*K102 -> 0 | M102: =$M$15*$O4 -> 0 | N102: =$K102*M102 -> 0 | O102: =$M$24*$R4 -> 0 | P102: =$K102*O102 -> 0 | R102: =$K102*Q102 -> 0 | S102: x
B103: =Cen!A37 -> Sada zdvihačů HS | G103: =Cen!E37 -> 20S2B00.05 | I103: =Cen!G37 -> ZN | J103: =SUM(M103,O103) -> 0 | K103: =Cen!I37 -> 0 | L103: =J103*K103 -> 0 | M103: =$M$15*$O5 -> 0 | N103: 0 | O103: =$M$24*$R5 -> 0 | P103: 0 | R103: 0 | S103: x
B104: =Cen!A38 -> Sada zdvihačů HS | G104: =Cen!E38 -> 20S2C00.05 | I104: =Cen!G38 -> ZN | J104: 0 | K104: =Cen!I38 -> 0 | L104: 0 | M104: 0 | N104: 0 | O104: 0 | P104: 0 | R104: 0 | S104: x
B105: =Cen!A39 -> Sada zdvihačů HS | G105: =Cen!E39 -> 20S2D00.05 | I105: =Cen!G39 -> ZN | J105: 0 | K105: =Cen!I39 -> 0 | L105: 0 | M105: 0 | N105: 0 | O105: 0 | P105: 0 | R105: 0 | S105: x
B106: =Cen!A40 -> Sada zdvihačů HS | G106: =Cen!E40 -> 20S2E00.05 | I106: =Cen!G40 -> ZN | J106: 0 | K106: =Cen!I40 -> 0 | L106: 0 | M106: 0 | N106: 0 | O106: 0 | P106: 0 | R106: 0 | S106: x
B107: =Cen!A41 -> Sada zdvihačů HS | G107: =Cen!E41 -> 20S2F00.05 | I107: =Cen!G41 -> ZN | J107: 0 | K107: =Cen!I41 -> 0 | L107: 0 | M107: 0 | N107: 0 | O107: 0 | P107: 0 | R107: 0 | S107: x
B108: =Cen!A42 -> Sada zdvihačů HS | G108: =Cen!E42 -> 20S2G00.05 | I108: =Cen!G42 -> ZN | J108: 0 | K108: =Cen!I42 -> 0 | L108: 0 | M108: 0 | N108: 0 | O108: 0 | P108: 0 | R108: 0 | S108: x
B109: =Cen!A43 -> Sada zdvihačů HS | G109: =Cen!E43 -> 20S2H00.05 | I109: =Cen!G43 -> ZN | J109: 0 | K109: =Cen!I43 -> 0 | L109: 0 | M109: 0 | N109: 0 | O109: 0 | P109: 0 | R109: 0 | S109: x
B110: =Cen!A44 -> Sada zdvihačů HS | G110: =Cen!E44 -> 20S2I00.05 | I110: =Cen!G44 -> ZN | J110: 0 | K110: =Cen!I44 -> 0 | L110: 0 | M110: 0 | N110: 0 | O110: 0 | P110: 0 | R110: 0 | S110: x
